Workbook

Sheet Introduction
C4: Joint Monitoring Programme for Water Supply, Sanitation and Hygiene
C6: Estimates on household water, sanitation and hygiene by wealth quintile and sub-national region in
C7: =+Water!B5 -> Mali
C9: Updated April 2021
C11: Follow the links below to find the following information:
C13: JMP Estimates
C14: WASH status and trends by wealth quintile (customized quintiles made without water and sanitation assets)
C15: Water
C16: Sanitation
C17: Hygiene
C19: Data inputs
C20: customized wealth quintiles and subnational data:
C21: =IF(INDIRECT(CONCATENATE("Water","!B105"))=0,"",INDIRECT(CONCATENATE("Water","!B105"))) -> DHS01
C22: =IF(INDIRECT(CONCATENATE("Water","!B106"))=0,"",INDIRECT(CONCATENATE("Water","!B106"))) -> DHS06
C23: =IF(INDIRECT(CONCATENATE("Water","!B107"))=0,"",INDIRECT(CONCATENATE("Water","!B107"))) -> MICS10
C24: =IF(INDIRECT(CONCATENATE("Water","!B108"))=0,"",INDIRECT(CONCATENATE("Water","!B108"))) -> DHS13
C25: =IF(INDIRECT(CONCATENATE("Water","!B109"))=0,"",INDIRECT(CONCATENATE("Water","!B109"))) -> MIS15
C26: =IF(INDIRECT(CONCATENATE("Water","!B110"))=0,"",INDIRECT(CONCATENATE("Water","!B110"))) -> MICS15
C27: =IF(INDIRECT(CONCATENATE("Water","!B111"))=0,"",INDIRECT(CONCATENATE("Water","!B111"))) -> DHS18
C28: =IF(INDIRECT(CONCATENATE("Water","!B112"))=0,"",INDIRECT(CONCATENATE("Water","!B112"))) -> 
C29: =IF(INDIRECT(CONCATENATE("Water","!B113"))=0,"",INDIRECT(CONCATENATE("Water","!B113"))) -> 
C30: =IF(INDIRECT(CONCATENATE("Water","!B114"))=0,"",INDIRECT(CONCATENATE("Water","!B114"))) -> 
C31: =IF(INDIRECT(CONCATENATE("Water","!B115"))=0,"",INDIRECT(CONCATENATE("Water","!B115"))) -> 
C32: =IF(INDIRECT(CONCATENATE("Water","!B116"))=0,"",INDIRECT(CONCATENATE("Water","!B116"))) -> 
L55: =+IF(ISNUMBER(M48), "", "Insufficient data to estimate safely managed sanitation services at national level") -> Insufficient data to estimate safely managed sanitation services at national level

Sheet Water
A1: BGD
B4: Summary of trends in use of drinking water by wealth quintile (%)
B5: =IF(ISERROR(INDIRECT(CONCATENATE($B105,"!A2"))),"",INDIRECT(CONCATENATE($B105,"!A2"))) -> Mali
B7: =B118 -> National use of drinking water sources, 2000–2020 | J7: =B218 -> Urban use of drinking water sources, 2000–2020 | R7: =B318 -> Rural use of drinking water sources, 2000–2020
B31: =IF(ISERROR(INDIRECT(CONCATENATE($B105,"!A2"))),"",INDIRECT(CONCATENATE($B105,"!A2"))) -> Mali | F31: Poorest | J31: Poor | N31: Middle | R31: Rich | V31: Richest
F32: Basic | G32: Limited | H32: Unimproved | I32: Surface water | J32: Basic | K32: Limited | L32: Unimproved | M32: Surface water | N32: Basic | O32: Limited | P32: Unimproved | Q32: Surface water | R32: Basic | S32: Limited | T32: Unimproved | U32: Surface water | V32: Basic | W32: Limited | X32: Unimproved | Y32: Surface water
B33: NATIONAL | D33: Estimate | E33: =C99 -> 2000 | F33: =E99 -> 37.38628538 | G33: =F99 -> 3.010084881 | H33: 54.84152228 | I33: 4.762107462 | J33: =J99 -> 36.18573861 | K33: =K99 -> 1.892496012 | L33: 57.90786688 | M33: 4.013898502 | N33: =O99 -> 32.49951538 | O33: =P99 -> 1.218330709 | P33: 59.48119675 | Q33: 6.800957163 | R33: =T99 -> 37.91706384 | S33: =U99 -> 1.421678883 | T33: 51.63090606 | U33: 9.030351216 | V33: =Y99 -> 78.27651434 | W33: =Z99 -> 2.974794434 | X33: 18.53907503 | Y33: 0.2096161968
E34: =C100 -> 2020 | F34: =E100 -> 49.57999393 | G34: 3.991837878 | H34: 41.62135819 | I34: 4.80681 | J34: =J100 -> 58.5935032 | K34: 3.064410882 | L34: 36.27966985 | M34: 2.06241606 | N34: =O100 -> 71.59395056 | O34: 2.683889515 | P34: 25.72215993 | Q34: 0 | R34: =T100 -> 91.54894145 | S34: 3.432575827 | T34: 5.018482727 | U34: 0 | V34: =Y100 -> 96.33877352 | W34: 3.661226482 | X34: 0 | Y34: 0
B36: URBAN | D36: Estimate | E36: =C199 -> 2000 | F36: =E199 -> 61.50571722 | G36: =F199 -> 1.500162859 | H36: 33.60494359 | I36: 3.389176335 | J36: =J199 -> 67.39416175 | K36: =K199 -> 2.14614998 | L36: 30.03432556 | M36: 0.4253627093 | N36: =O199 -> 83.88850695 | O36: =P199 -> 3.562823318 | P36: 12.48841625 | Q36: 0.06025347958 | R36: =T199 -> 86.09352688 | S36: =U199 -> 3.840261521 | T36: 9.906049052 | U36: 0.1601625502 | V36: =Y199 -> 95.3953166 | W36: =Z199 -> 2.30656827 | X36: 2.298115133 | Y36: 0
E37: =C200 -> 2020 | F37: =E200 -> 87.30724823 | G37: 2.129478316 | H37: 10.56327346 | I37: 0 | J37: =J200 -> 96.91380449 | K37: 3.086195513 | L37: 0 | M37: 0 | N37: =O200 -> 95.89516922 | O37: 4.07275749 | P37: 0 | Q37: 0.03207328706 | R37: =T200 -> 95.72990131 | S37: 4.270098691 | T37: 0 | U37: 0 | V37: =Y200 -> 97.63917731 | W37: 2.360822694 | X37: 0 | Y37: 0
B39: RURAL | D39: Estimate | E39: =C299 -> 2000 | F39: =E299 -> 41.33901921 | G39: =F299 -> 3.511481273 | H39: 48.05393228 | I39: 7.095567239 | J39: =J299 -> 44.16284427 | K39: =K299 -> 2.751680138 | L39: 47.61044555 | M39: 5.475030036 | N39: =O299 -> 44.08644852 | O39: =P299 -> 1.903454759 | P39: 49.13789569 | Q39: 4.872201034 | R39: =T299 -> 43.84435014 | S39: =U299 -> 1.638882383 | T39: 48.87684303 | U39: 5.639924441 | V39: =Y299 -> 53.07303675 | W39: =Z299 -> 2.266007488 | X39: 41.18726013 | Y39: 3.473695627
E40: =C300 -> 2020 | F40: =E300 -> 47.34084877 | G40: 4.021297725 | H40: 43.4596728 | I40: 5.178180703 | J40: =J300 -> 52.49727262 | K40: 3.270978233 | L40: 42.55948633 | M40: 1.672262824 | N40: =O300 -> 61.65409042 | O40: 2.661946601 | P40: 34.96471007 | Q40: 0.7192529101 | R40: =T300 -> 72.85974441 | S40: 2.723464965 | T40: 24.41679063 | U40: 0 | V40: =Y300 -> 89.38678101 | W40: 3.816459873 | X40: 6.796759117 | Y40: 0
A97: NATIONAL | D97: Poorest | I97: Poor | N97: Middle | S97: Rich | X97: Richest
D98: Improved | E98: Basic | F98: Limited | G98: Unimproved | H98: Surface water | I98: Improved | J98: Basic | K98: Limited | L98: Unimproved | M98: Surface water | N98: Improved | O98: Basic | P98: Limited | Q98: Unimproved | R98: Surface water | S98: Improved | T98: Basic | U98: Limited | V98: Unimproved | W98: Surface water | X98: Improved | Y98: Basic | Z98: Limited | AA98: Unimproved | AB98: Surface water
A99: Forecast period: | C99: 2000 | D99: =IF((D101+H101)>100,D101*100/(D101+H101),D101) -> 40.39637026 | E99: =D99*AVERAGEIF(E105:E116,">0")/100 -> 37.38628538 | F99: =D99*(100-AVERAGEIF(E105:E116,">0"))/100 -> 3.010084881 | G99: =100-(E99+F99+H99) -> 54.84152228 | H99: =IF((D101+H101)>100,H101*100/(D101+H101),H101) -> 4.762107462 | I99: =IF((I101+M101)>100,I101*100/(I101+M101),I101) -> 38.07823462 | J99: =I99*AVERAGEIF(J105:J116,">0")/100 -> 36.18573861 | K99: =I99*(100-AVERAGEIF(J105:J116,">0"))/100 -> 1.892496012 | L99: =100-(J99+K99+M99) -> 57.90786688 | M99: =IF((I101+M101)>100,M101*100/(I101+M101),M101) -> 4.013898502 | N99: =IF((N101+R101)>100,N101*100/(N101+R101),N101) -> 33.71784608 | O99: =N99*AVERAGEIF(O105:O116,">0")/100 -> 32.49951538 | P99: =N99*(100-AVERAGEIF(O105:O116,">0"))/100 -> 1.218330709 | Q99: =100-(O99+P99+R99) -> 59.48119675 | R99: =IF((N101+R101)>100,R101*100/(N101+R101),R101) -> 6.800957163 | S99: =IF((S101+W101)>100,S101*100/(S101+W101),S101) -> 39.33874272 | T99: =S99*AVERAGEIF(T105:T116,">0")/100 -> 37.91706384 | U99: =S99*(100-AVERAGEIF(T105:T116,">0"))/100 -> 1.421678883 | V99: =100-(T99+U99+W99) -> 51.63090606 | W99: =IF((S101+W101)>100,W101*100/(S101+W101),W101) -> 9.030351216 | X99: =IF((X101+AB101)>100,X101*100/(X101+AB101),X101) -> 81.25130877 | Y99: =X99*AVERAGEIF(Y105:Y116,">0")/100 -> 78.27651434 | Z99: =X99*(100-AVERAGEIF(Y105:Y116,">0"))/100 -> 2.974794434 | AA99: =100-(Y99+Z99+AB99) -> 18.53907503 | AB99: =IF((X101+AB101)>100,AB101*100/(X101+AB101),AB101) -> 0.2096161968
C100: 2020 | D100: =IF((D102+H102)>100,D102*100/(D102+H102),D102) -> 53.57183181 | E100: =D100*AVERAGEIF(E105:E116,">0")/100 -> 49.57999393 | F100: =D100*(100-AVERAGEIF(E105:E116,">0"))/100 -> 3.991837878 | G100: =100-(E100+F100+H100) -> 41.62135819 | H100: =IF((D102+H102)>100,H102*100/(D102+H102),H102) -> 4.80681 | I100: =IF((I102+M102)>100,I102*100/(I102+M102),I102) -> 61.65791409 | J100: =I100*AVERAGEIF(J105:J116,">0")/100 -> 58.5935032 | K100: =I100*(100-AVERAGEIF(J105:J116,">0"))/100 -> 3.064410882 | L100: =100-(J100+K100+M100) -> 36.27966985 | M100: =IF((I102+M102)>100,M102*100/(I102+M102),M102) -> 2.06241606 | N100: =IF((N102+R102)>100,N102*100/(N102+R102),N102) -> 74.27784007 | O100: =N100*AVERAGEIF(O105:O116,">0")/100 -> 71.59395056 | P100: =N100*(100-AVERAGEIF(O105:O116,">0"))/100 -> 2.683889515 | Q100: =100-(O100+P100+R100) -> 25.72215993 | R100: =IF((N102+R102)>100,R102*100/(N102+R102),R102) -> 0 | S100: =IF((S102+W102)>100,S102*100/(S102+W102),S102) -> 94.98151727 | T100: =S100*AVERAGEIF(T105:T116,">0")/100 -> 91.54894145 | U100: =S100*(100-AVERAGEIF(T105:T116,">0"))/100 -> 3.432575827 | V100: =100-(T100+U100+W100) -> 5.018482727 | W100: =IF((S102+W102)>100,W102*100/(S102+W102),W102) -> 0 | X100: =IF((X102+AB102)>100,X102*100/(X102+AB102),X102) -> 100 | Y100: =X100*AVERAGEIF(Y105:Y116,">0")/100 -> 96.33877352 | Z100: =X100*(100-AVERAGEIF(Y105:Y116,">0"))/100 -> 3.661226482 | AA100: =100-(Y100+Z100+AB100) -> 0 | AB100: =IF((X102+AB102)>100,AB102*100/(X102+AB102),AB102) -> 0
A101: Regression period: | C101: =MinRegYear(C99,C105:C116) -> 2000 | D101: =IF(MAX(C105:C116)-MIN(C105:C116)<5,AVERAGEIF(C105:C116,">0",D105:D116), IF(FORECAST($C101,D$105:D$116,$C$105:$C$116)<0,0, IF(FORECAST($C101,D$105:D$116,$C$105:$C$116)>100,100, FORECAST($C101,D$105:D$116,$C$105:$C$116)))) -> 40.39637026 | H101: =IF(MAX(C105:C116)-MIN(C105:C116)<5,AVERAGEIF(C105:C116,">0",H105:H116), IF(FORECAST($C101,H$105:H$116,$C$105:$C$116)<0,0, IF(FORECAST($C101,H$105:H$116,$C$105:$C$116)>100,100, FORECAST($C101,H$105:H$116,$C$105:$C$116)))) -> 4.762107462 | I101: =IF(MAX(C105:C116)-MIN(C105:C116)<5,AVERAGEIF(C105:C116,">0",I105:I116), IF(FORECAST($C101,I$105:I$116,$C$105:$C$116)<0,0, IF(FORECAST($C101,I$105:I$116,$C$105:$C$116)>100,100, FORECAST($C101,I$105:I$116,$C$105:$C$116)))) -> 38.07823462 | M101: =IF(MAX(C105:C116)-MIN(C105:C116)<5,AVERAGEIF(C105:C116,">0",M105:M116), IF(FORECAST($C101,M$105:M$116,$C$105:$C$116)<0,0, IF(FORECAST($C101,M$105:M$116,$C$105:$C$116)>100,100, FORECAST($C101,M$105:M$116,$C$105:$C$116)))) -> 4.013898502 | N101: =IF(MAX(C105:C116)-MIN(C105:C116)<5,AVERAGEIF(C105:C116,">0",N105:N116), IF(FORECAST($C101,N$105:N$116,$C$105:$C$116)<0,0, IF(FORECAST($C101,N$105:N$116,$C$105:$C$116)>100,100, FORECAST($C101,N$105:N$116,$C$105:$C$116)))) -> 33.71784608 | R101: =IF(MAX(C105:C116)-MIN(C105:C116)<5,AVERAGEIF(C105:C116,">0",R105:R116), IF(FORECAST($C101,R$105:R$116,$C$105:$C$116)<0,0, IF(FORECAST($C101,R$105:R$116,$C$105:$C$116)>100,100, FORECAST($C101,R$105:R$116,$C$105:$C$116)))) -> 6.800957163 | S101: =IF(MAX(C105:C116)-MIN(C105:C116)<5,AVERAGEIF(C105:C116,">0",S105:S116), IF(FORECAST($C101,S$105:S$116,$C$105:$C$116)<0,0, IF(FORECAST($C101,S$105:S$116,$C$105:$C$116)>100,100, FORECAST($C101,S$105:S$116,$C$105:$C$116)))) -> 39.33874272 | W101: =IF(MAX(C105:C116)-MIN(C105:C116)<5,AVERAGEIF(C105:C116,">0",W105:W116), IF(FORECAST($C101,W$105:W$116,$C$105:$C$116)<0,0, IF(FORECAST($C101,W$105:W$116,$C$105:$C$116)>100,100, FORECAST($C101,W$105:W$116,$C$105:$C$116)))) -> 9.030351216 | X101: =IF(MAX(C105:C116)-MIN(C105:C116)<5,AVERAGEIF(C105:C116,">0",X105:X116), IF(FORECAST($C101,X$105:X$116,$C$105:$C$116)<0,0, IF(FORECAST($C101,X$105:X$116,$C$105:$C$116)>100,100, FORECAST($C101,X$105:X$116,$C$105:$C$116)))) -> 81.25130877 | AB101: =IF(MAX(C105:C116)-MIN(C105:C116)<5,AVERAGEIF(C105:C116,">0",AB105:AB116), IF(FORECAST($C101,AB$105:AB$116,$C$105:$C$116)<0,0, IF(FORECAST($C101,AB$105:AB$116,$C$105:$C$116)>100,100, FORECAST($C101,AB$105:AB$116,$C$105:$C$116)))) -> 0.2096161968
C102: =MaxRegYear(C100,C105:C116) -> 2020 | D102: =IF(MAX(C105:C116)-MIN(C105:C116)<5,AVERAGEIF(C105:C116,">0",D105:D116), IF(FORECAST($C102,D$105:D$116,$C$105:$C$116)<0,0, IF(FORECAST($C102,D$105:D$116,$C$105:$C$116)>100,100, FORECAST($C102,D$105:D$116,$C$105:$C$116)))) -> 53.57183181 | H102: =IF(MAX(C105:C116)-MIN(C105:C116)<5,AVERAGEIF(C105:C116,">0",H105:H116), IF(FORECAST($C102,H$105:H$116,$C$105:$C$116)<0,0, IF(FORECAST($C102,H$105:H$116,$C$105:$C$116)>100,100, FORECAST($C102,H$105:H$116,$C$105:$C$116)))) -> 4.80681 | I102: =IF(MAX(C105:C116)-MIN(C105:C116)<5,AVERAGEIF(C105:C116,">0",I105:I116), IF(FORECAST($C102,I$105:I$116,$C$105:$C$116)<0,0, IF(FORECAST($C102,I$105:I$116,$C$105:$C$116)>100,100, FORECAST($C102,I$105:I$116,$C$105:$C$116)))) -> 61.65791409 | M102: =IF(MAX(C105:C116)-MIN(C105:C116)<5,AVERAGEIF(C105:C116,">0",M105:M116), IF(FORECAST($C102,M$105:M$116,$C$105:$C$116)<0,0, IF(FORECAST($C102,M$105:M$116,$C$105:$C$116)>100,100, FORECAST($C102,M$105:M$116,$C$105:$C$116)))) -> 2.06241606 | N102: =IF(MAX(C105:C116)-MIN(C105:C116)<5,AVERAGEIF(C105:C116,">0",N105:N116), IF(FORECAST($C102,N$105:N$116,$C$105:$C$116)<0,0, IF(FORECAST($C102,N$105:N$116,$C$105:$C$116)>100,100, FORECAST($C102,N$105:N$116,$C$105:$C$116)))) -> 74.27784007 | R102: =IF(MAX(C105:C116)-MIN(C105:C116)<5,AVERAGEIF(C105:C116,">0",R105:R116), IF(FORECAST($C102,R$105:R$116,$C$105:$C$116)<0,0, IF(FORECAST($C102,R$105:R$116,$C$105:$C$116)>100,100, FORECAST($C102,R$105:R$116,$C$105:$C$116)))) -> 0 | S102: =IF(MAX(C105:C116)-MIN(C105:C116)<5,AVERAGEIF(C105:C116,">0",S105:S116), IF(FORECAST($C102,S$105:S$116,$C$105:$C$116)<0,0, IF(FORECAST($C102,S$105:S$116,$C$105:$C$116)>100,100, FORECAST($C102,S$105:S$116,$C$105:$C$116)))) -> 94.98151727 | W102: =IF(MAX(C105:C116)-MIN(C105:C116)<5,AVERAGEIF(C105:C116,">0",W105:W116), IF(FORECAST($C102,W$105:W$116,$C$105:$C$116)<0,0, IF(FORECAST($C102,W$105:W$116,$C$105:$C$116)>100,100, FORECAST($C102,W$105:W$116,$C$105:$C$116)))) -> 0 | X102: =IF(MAX(C105:C116)-MIN(C105:C116)<5,AVERAGEIF(C105:C116,">0",X105:X116), IF(FORECAST($C102,X$105:X$116,$C$105:$C$116)<0,0, IF(FORECAST($C102,X$105:X$116,$C$105:$C$116)>100,100, FORECAST($C102,X$105:X$116,$C$105:$C$116)))) -> 100 | AB102: =IF(MAX(C105:C116)-MIN(C105:C116)<5,AVERAGEIF(C105:C116,">0",AB105:AB116), IF(FORECAST($C102,AB$105:AB$116,$C$105:$C$116)<0,0, IF(FORECAST($C102,AB$105:AB$116,$C$105:$C$116)>100,100, FORECAST($C102,AB$105:AB$116,$C$105:$C$116)))) -> 0
B104: Survey | C104: Year | D104: Improved | E104: % Improved < = 30min | H104: Surface water | I104: Improved | J104: % Improved < = 30min | M104: Surface water | N104: Improved | O104: % Improved < = 30min | R104: Surface water | S104: Improved | T104: % Improved < = 30min | W104: Surface water | X104: Improved | Y104: % Improved < = 30min | AB104: Surface water
B105: DHS01 | C105: 2001 | D105: =IF(ISERROR(INDIRECT(CONCATENATE($B105,"!C16"))),"",INDIRECT(CONCATENATE($B105,"!C16"))) -> 37.65523815 | E105: =IF(ISERROR(INDIRECT(CONCATENATE($B105,"!C23"))),"",INDIRECT(CONCATENATE($B105,"!C23"))) -> N/A | H105: =IF(ISERROR(INDIRECT(CONCATENATE($B105,"!C21"))),"",INDIRECT(CONCATENATE($B105,"!C21"))) -> 3.323258689 | I105: =IF(ISERROR(INDIRECT(CONCATENATE($B105,"!D16"))),"",INDIRECT(CONCATENATE($B105,"!D16"))) -> 35.68048403 | J105: =IF(ISERROR(INDIRECT(CONCATENATE($B105,"!D23"))),"",INDIRECT(CONCATENATE($B105,"!D23"))) -> N/A | M105: =IF(ISERROR(INDIRECT(CONCATENATE($B105,"!D21"))),"",INDIRECT(CONCATENATE($B105,"!D21"))) -> 2.511472604 | N105: =IF(ISERROR(INDIRECT(CONCATENATE($B105,"!E16"))),"",INDIRECT(CONCATENATE($B105,"!E16"))) -> 32.18819968 | O105: =IF(ISERROR(INDIRECT(CONCATENATE($B105,"!E23"))),"",INDIRECT(CONCATENATE($B105,"!E23"))) -> N/A | R105: =IF(ISERROR(INDIRECT(CONCATENATE($B105,"!E21"))),"",INDIRECT(CONCATENATE($B105,"!E21"))) -> 6.493062903 | S105: =IF(ISERROR(INDIRECT(CONCATENATE($B105,"!F16"))),"",INDIRECT(CONCATENATE($B105,"!F16"))) -> 35.78747235 | T105: =IF(ISERROR(INDIRECT(CONCATENATE($B105,"!F23"))),"",INDIRECT(CONCATENATE($B105,"!F23"))) -> N/A | W105: =IF(ISERROR(INDIRECT(CONCATENATE($B105,"!F21"))),"",INDIRECT(CONCATENATE($B105,"!F21"))) -> 11.35934531 | X105: =IF(ISERROR(INDIRECT(CONCATENATE($B105,"!G16"))),"",INDIRECT(CONCATENATE($B105,"!G16"))) -> 78.71842814 | Y105: =IF(ISERROR(INDIRECT(CONCATENATE($B105,"!G23"))),"",INDIRECT(CONCATENATE($B105,"!G23"))) -> N/A | AB105: =IF(ISERROR(INDIRECT(CONCATENATE($B105,"!G221"))),"",INDIRECT(CONCATENATE($B105,"!G21"))) -> 0.2738101671
B106: DHS06 | C106: 2006 | D106: 44.30293444 | E106: 98.10829074 | H106: 9.506721872 | I106: 46.24731018 | J106: 98.67361435 | M106: 4.975897928 | N106: 44.44233908 | O106: 98.14518671 | R106: 2.963676925 | S106: 56.15841257 | T106: 98.92492433 | W106: 1.634895926 | X106: 89.44736788 | Y106: 97.68669524 | AB106: 0.04473171779
B107: MICS10 | C107: 2010 | D107: 53.90148737 | E107: 90.70680257 | H107: 1.066306172 | I107: 54.86896521 | J107: 91.95331034 | M107: 3.941151232 | N107: 63.10678866 | O107: 93.89889474 | R107: 6.429296349 | S107: 81.21094614 | T107: 94.00169748 | W107: 3.249412185 | X107: 98.05385931 | Y107: 90.98896804 | AB107: 0.08435179997
B108: DHS13 | D108: 46.4 | E108: 96.1 | H108: 1.9 | I108: 54.3 | J108: 96.6 | M108: 3.2 | N108: 59.7 | O108: 95.9 | R108: 2 | S108: 77 | T108: 96.7 | W108: 0.7 | X108: 95.8 | Y108: 97.5 | AB108: 0.1
B109: MIS15 | C109: 2015 | D109: 51.28202937 | E109: 90.53778406 | H109: 3.952035364 | I109: 58.31476087 | J109: 92.75312917 | M109: 1.913352899 | N109: 65.78133542 | O109: 97.0964684 | R109: 0.2458474011 | S109: 78.98394888 | T109: 95.89058116 | W109: 0.09490941541 | X109: 98.05400135 | Y109: 97.56371767 | AB109: 0
B110: MICS15 | D110: 52.85848491 | E110: 92.4483991 | H110: 9.386406329 | I110: 57.05706896 | J110: 94.97321088 | M110: 3.798017986 | N110: 61.88464136 | O110: 96.22401581 | R110: 1.325984447 | S110: 78.75181612 | T110: 96.01306473 | W110: 1.188336628 | X110: 95.93186688 | Y110: 96.45523658 | AB110: 0.4143680203
B111: DHS18 | C111: 2018 | D111: =IF(ISERROR(INDIRECT(CONCATENATE($B111,"!C16"))),"",INDIRECT(CONCATENATE($B111,"!C16"))) -> 47.77881584 | E111: =IF(ISERROR(INDIRECT(CONCATENATE($B111,"!C23"))),"",INDIRECT(CONCATENATE($B111,"!C23"))) -> 87.39047582 | H111: =IF(ISERROR(INDIRECT(CONCATENATE($B111,"!C21"))),"",INDIRECT(CONCATENATE($B111,"!C21"))) -> 6.073971558 | I111: =IF(ISERROR(INDIRECT(CONCATENATE($B111,"!D16"))),"",INDIRECT(CONCATENATE($B111,"!D16"))) -> 54.22885146 | J111: =IF(ISERROR(INDIRECT(CONCATENATE($B111,"!D23"))),"",INDIRECT(CONCATENATE($B111,"!D23"))) -> 95.22661312 | M111: =IF(ISERROR(INDIRECT(CONCATENATE($B111,"!D21"))),"",INDIRECT(CONCATENATE($B111,"!D21"))) -> 1.848911743 | N111: =IF(ISERROR(INDIRECT(CONCATENATE($B111,"!E16"))),"",INDIRECT(CONCATENATE($B111,"!E16"))) -> 64.47055255 | O111: =IF(ISERROR(INDIRECT(CONCATENATE($B111,"!E23"))),"",INDIRECT(CONCATENATE($B111,"!E23"))) -> 97.05556714 | R111: =IF(ISERROR(INDIRECT(CONCATENATE($B111,"!E21"))),"",INDIRECT(CONCATENATE($B111,"!E21"))) -> 0.6018318944 | S111: =IF(ISERROR(INDIRECT(CONCATENATE($B111,"!F16"))),"",INDIRECT(CONCATENATE($B111,"!F16"))) -> 83.65987005 | T111: =IF(ISERROR(INDIRECT(CONCATENATE($B111,"!F23"))),"",INDIRECT(CONCATENATE($B111,"!F23"))) -> 96.78608736 | W111: =IF(ISERROR(INDIRECT(CONCATENATE($B111,"!F21"))),"",INDIRECT(CONCATENATE($B111,"!F21"))) -> 0.2602956924 | X111: =IF(ISERROR(INDIRECT(CONCATENATE($B111,"!G16"))),"",INDIRECT(CONCATENATE($B111,"!G16"))) -> 98.08620974 | Y111: =IF(ISERROR(INDIRECT(CONCATENATE($B111,"!G23"))),"",INDIRECT(CONCATENATE($B111,"!G23"))) -> 97.83802358 | AB111: =IF(ISERROR(INDIRECT(CONCATENATE($B111,"!G221"))),"",INDIRECT(CONCATENATE($B111,"!G21"))) -> 0.05680411755
D112: =IF(ISERROR(INDIRECT(CONCATENATE($B112,"!C16"))),"",INDIRECT(CONCATENATE($B112,"!C16"))) ->  | E112: =IF(ISERROR(INDIRECT(CONCATENATE($B112,"!C23"))),"",INDIRECT(CONCATENATE($B112,"!C23"))) ->  | H112: =IF(ISERROR(INDIRECT(CONCATENATE($B112,"!C21"))),"",INDIRECT(CONCATENATE($B112,"!C21"))) ->  | I112: =IF(ISERROR(INDIRECT(CONCATENATE($B112,"!D16"))),"",INDIRECT(CONCATENATE($B112,"!D16"))) ->  | J112: =IF(ISERROR(INDIRECT(CONCATENATE($B112,"!D23"))),"",INDIRECT(CONCATENATE($B112,"!D23"))) ->  | M112: =IF(ISERROR(INDIRECT(CONCATENATE($B112,"!D21"))),"",INDIRECT(CONCATENATE($B112,"!D21"))) ->  | N112: =IF(ISERROR(INDIRECT(CONCATENATE($B112,"!E16"))),"",INDIRECT(CONCATENATE($B112,"!E16"))) ->  | O112: =IF(ISERROR(INDIRECT(CONCATENATE($B112,"!E23"))),"",INDIRECT(CONCATENATE($B112,"!E23"))) ->  | R112: =IF(ISERROR(INDIRECT(CONCATENATE($B112,"!E21"))),"",INDIRECT(CONCATENATE($B112,"!E21"))) ->  | S112: =IF(ISERROR(INDIRECT(CONCATENATE($B112,"!F16"))),"",INDIRECT(CONCATENATE($B112,"!F16"))) ->  | T112: =IF(ISERROR(INDIRECT(CONCATENATE($B112,"!F23"))),"",INDIRECT(CONCATENATE($B112,"!F23"))) ->  | W112: =IF(ISERROR(INDIRECT(CONCATENATE($B112,"!F21"))),"",INDIRECT(CONCATENATE($B112,"!F21"))) ->  | X112: =IF(ISERROR(INDIRECT(CONCATENATE($B112,"!G16"))),"",INDIRECT(CONCATENATE($B112,"!G16"))) ->  | Y112: =IF(ISERROR(INDIRECT(CONCATENATE($B112,"!G23"))),"",INDIRECT(CONCATENATE($B112,"!G23"))) ->  | AB112: =IF(ISERROR(INDIRECT(CONCATENATE($B112,"!G221"))),"",INDIRECT(CONCATENATE($B112,"!G21"))) -> 
B118: =CONCATENATE("National use of drinking water sources, ",C99,"–",C100) -> National use of drinking water sources, 2000–2020 | S118: Data points used for regression
E153: =IF(ISERROR(INDIRECT(CONCATENATE($B153,"!M18"))),"",INDIRECT(CONCATENATE($B153,"!M18"))) ->  | F153: =IF(ISERROR(INDIRECT(CONCATENATE($B153,"!M19"))),"",INDIRECT(CONCATENATE($B153,"!M19"))) ->  | G153: =IF(ISERROR(INDIRECT(CONCATENATE($B153,"!M20"))),"",INDIRECT(CONCATENATE($B153,"!M20"))) ->  | H153: =IF(ISERROR(INDIRECT(CONCATENATE($B153,"!M21"))),"",INDIRECT(CONCATENATE($B153,"!M21"))) ->  | J153: =IF(ISERROR(INDIRECT(CONCATENATE($B153,"!N18"))),"",INDIRECT(CONCATENATE($B153,"!N18"))) ->  | K153: =IF(ISERROR(INDIRECT(CONCATENATE($B153,"!N19"))),"",INDIRECT(CONCATENATE($B153,"!N19"))) ->  | L153: =IF(ISERROR(INDIRECT(CONCATENATE($B153,"!N20"))),"",INDIRECT(CONCATENATE($B153,"!N20"))) ->  | M153: =IF(ISERROR(INDIRECT(CONCATENATE($B153,"!N21"))),"",INDIRECT(CONCATENATE($B153,"!N21"))) ->  | O153: =IF(ISERROR(INDIRECT(CONCATENATE($B153,"!O18"))),"",INDIRECT(CONCATENATE($B153,"!O18"))) ->  | P153: =IF(ISERROR(INDIRECT(CONCATENATE($B153,"!O19"))),"",INDIRECT(CONCATENATE($B153,"!O19"))) ->  | Q153: =IF(ISERROR(INDIRECT(CONCATENATE($B153,"!O20"))),"",INDIRECT(CONCATENATE($B153,"!O20"))) ->  | R153: =IF(ISERROR(INDIRECT(CONCATENATE($B153,"!O21"))),"",INDIRECT(CONCATENATE($B153,"!O21"))) ->  | T153: =IF(ISERROR(INDIRECT(CONCATENATE($B153,"!P18"))),"",INDIRECT(CONCATENATE($B153,"!P18"))) ->  | U153: =IF(ISERROR(INDIRECT(CONCATENATE($B153,"!P19"))),"",INDIRECT(CONCATENATE($B153,"!P19"))) ->  | V153: =IF(ISERROR(INDIRECT(CONCATENATE($B153,"!P20"))),"",INDIRECT(CONCATENATE($B153,"!P20"))) ->  | W153: =IF(ISERROR(INDIRECT(CONCATENATE($B153,"!P21"))),"",INDIRECT(CONCATENATE($B153,"!P21"))) ->  | Y153: =IF(ISERROR(INDIRECT(CONCATENATE($B153,"!Q18"))),"",INDIRECT(CONCATENATE($B153,"!Q18"))) ->  | Z153: =IF(ISERROR(INDIRECT(CONCATENATE($B153,"!Q19"))),"",INDIRECT(CONCATENATE($B153,"!Q19"))) ->  | AA153: =IF(ISERROR(INDIRECT(CONCATENATE($B153,"!Q20"))),"",INDIRECT(CONCATENATE($B153,"!Q20"))) ->  | AB153: =IF(ISERROR(INDIRECT(CONCATENATE($B153,"!Q21"))),"",INDIRECT(CONCATENATE($B153,"!Q1"))) -> 
A197: URBAN | D197: Poorest | I197: Poor | N197: Middle | S197: Rich | X197: Richest
D198: Improved | E198: Basic | F198: Limited | G198: Unimproved | H198: Surface water | I198: Improved | J198: Basic | K198: Limited | L198: Unimproved | M198: Surface water | N198: Improved | O198: Basic | P198: Limited | Q198: Unimproved | R198: Surface water | S198: Improved | T198: Basic | U198: Limited | V198: Unimproved | W198: Surface water | X198: Improved | Y198: Basic | Z198: Limited | AA198: Unimproved | AB198: Surface water
A199: Forecast period: | C199: =MinBase(C205:C216) -> 2000 | D199: =IF((D201+H201)>100,D201*100/(D201+H201),D201) -> 63.00588008 | E199: =D199*AVERAGEIF(E205:E216,">0")/100 -> 61.50571722 | F199: =D199*(100-AVERAGEIF(E205:E216,">0"))/100 -> 1.500162859 | G199: =100-(E199+F199+H199) -> 33.60494359 | H199: =IF((D201+H201)>100,H201*100/(D201+H201),H201) -> 3.389176335 | I199: =IF((I201+M201)>100,I201*100/(I201+M201),I201) -> 69.54031173 | J199: =I199*AVERAGEIF(J205:J216,">0")/100 -> 67.39416175 | K199: =I199*(100-AVERAGEIF(J205:J216,">0"))/100 -> 2.14614998 | L199: =100-(J199+K199+M199) -> 30.03432556 | M199: =IF((I201+M201)>100,M201*100/(I201+M201),M201) -> 0.4253627093 | N199: =IF((N201+R201)>100,N201*100/(N201+R201),N201) -> 87.45133027 | O199: =N199*AVERAGEIF(O205:O216,">0")/100 -> 83.88850695 | P199: =N199*(100-AVERAGEIF(O205:O216,">0"))/100 -> 3.562823318 | Q199: =100-(O199+P199+R199) -> 12.48841625 | R199: =IF((N201+R201)>100,R201*100/(N201+R201),R201) -> 0.06025347958 | S199: =IF((S201+W201)>100,S201*100/(S201+W201),S201) -> 89.9337884 | T199: =S199*AVERAGEIF(T205:T216,">0")/100 -> 86.09352688 | U199: =S199*(100-AVERAGEIF(T205:T216,">0"))/100 -> 3.840261521 | V199: =100-(T199+U199+W199) -> 9.906049052 | W199: =IF((S201+W201)>100,W201*100/(S201+W201),W201) -> 0.1601625502 | X199: =IF((X201+AB201)>100,X201*100/(X201+AB201),X201) -> 97.70188487 | Y199: =X199*AVERAGEIF(Y205:Y216,">0")/100 -> 95.3953166 | Z199: =X199*(100-AVERAGEIF(Y205:Y216,">0"))/100 -> 2.30656827 | AA199: =100-(Y199+Z199+AB199) -> 2.298115133 | AB199: =IF((X201+AB201)>100,AB201*100/(X201+AB201),AB201) -> 0
C200: =MaxTarget(C205:C216) -> 2020 | D200: =IF((D202+H202)>100,D202*100/(D202+H202),D202) -> 89.43672654 | E200: =D200*AVERAGEIF(E205:E216,">0")/100 -> 87.30724823 | F200: =D200*(100-AVERAGEIF(E205:E216,">0"))/100 -> 2.129478316 | G200: =100-(E200+F200+H200) -> 10.56327346 | H200: =IF((D202+H202)>100,H202*100/(D202+H202),H202) -> 0 | I200: =IF((I202+M202)>100,I202*100/(I202+M202),I202) -> 100 | J200: =I200*AVERAGEIF(J205:J216,">0")/100 -> 96.91380449 | K200: =I200*(100-AVERAGEIF(J205:J216,">0"))/100 -> 3.086195513 | L200: =100-(J200+K200+M200) -> 0 | M200: =IF((I202+M202)>100,M202*100/(I202+M202),M202) -> 0 | N200: =IF((N202+R202)>100,N202*100/(N202+R202),N202) -> 99.96792671 | O200: =N200*AVERAGEIF(O205:O216,">0")/100 -> 95.89516922 | P200: =N200*(100-AVERAGEIF(O205:O216,">0"))/100 -> 4.07275749 | Q200: =100-(O200+P200+R200) -> 0 | R200: =IF((N202+R202)>100,R202*100/(N202+R202),R202) -> 0.03207328706 | S200: =IF((S202+W202)>100,S202*100/(S202+W202),S202) -> 100 | T200: =S200*AVERAGEIF(T205:T216,">0")/100 -> 95.72990131 | U200: =S200*(100-AVERAGEIF(T205:T216,">0"))/100 -> 4.270098691 | V200: =100-(T200+U200+W200) -> 0 | W200: =IF((S202+W202)>100,W202*100/(S202+W202),W202) -> 0 | X200: =IF((X202+AB202)>100,X202*100/(X202+AB202),X202) -> 100 | Y200: =X200*AVERAGEIF(Y205:Y216,">0")/100 -> 97.63917731 | Z200: =X200*(100-AVERAGEIF(Y205:Y216,">0"))/100 -> 2.360822694 | AA200: =100-(Y200+Z200+AB200) -> 0 | AB200: =IF((X202+AB202)>100,AB202*100/(X202+AB202),AB202) -> 0
A201: Regression period: | C201: =MinRegYear(C199,C205:C216) -> 2004 | D201: =IF(MAX(C205:C216)-MIN(C205:C216)<5,AVERAGEIF(C205:C216,">0",D205:D216), IF(FORECAST($C201,D$205:D$216,$C$205:$C$216)<0,0, IF(FORECAST($C201,D$205:D$216,$C$205:$C$216)>100,100, FORECAST($C201,D$205:D$216,$C$205:$C$216)))) -> 63.00588008 | H201: =IF(MAX(C205:C216)-MIN(C205:C216)<5,AVERAGEIF(C205:C216,">0",H205:H216), IF(FORECAST($C201,H$205:H$216,$C$205:$C$216)<0,0, IF(FORECAST($C201,H$205:H$216,$C$205:$C$216)>100,100, FORECAST($C201,H$205:H$216,$C$205:$C$216)))) -> 3.389176335 | I201: =IF(MAX(C205:C216)-MIN(C205:C216)<5,AVERAGEIF(C205:C216,">0",I205:I216), IF(FORECAST($C201,I$205:I$216,$C$205:$C$216)<0,0, IF(FORECAST($C201,I$205:I$216,$C$205:$C$216)>100,100, FORECAST($C201,I$205:I$216,$C$205:$C$216)))) -> 69.54031173 | M201: =IF(MAX(C205:C216)-MIN(C205:C216)<5,AVERAGEIF(C205:C216,">0",M205:M216), IF(FORECAST($C201,M$205:M$216,$C$205:$C$216)<0,0, IF(FORECAST($C201,M$205:M$216,$C$205:$C$216)>100,100, FORECAST($C201,M$205:M$216,$C$205:$C$216)))) -> 0.4253627093 | N201: =IF(MAX(C205:C216)-MIN(C205:C216)<5,AVERAGEIF(C205:C216,">0",N205:N216), IF(FORECAST($C201,N$205:N$216,$C$205:$C$216)<0,0, IF(FORECAST($C201,N$205:N$216,$C$205:$C$216)>100,100, FORECAST($C201,N$205:N$216,$C$205:$C$216)))) -> 87.45133027 | R201: =IF(MAX(C205:C216)-MIN(C205:C216)<5,AVERAGEIF(C205:C216,">0",R205:R216), IF(FORECAST($C201,R$205:R$216,$C$205:$C$216)<0,0, IF(FORECAST($C201,R$205:R$216,$C$205:$C$216)>100,100, FORECAST($C201,R$205:R$216,$C$205:$C$216)))) -> 0.06025347958 | S201: =IF(MAX(C205:C216)-MIN(C205:C216)<5,AVERAGEIF(C205:C216,">0",S205:S216), IF(FORECAST($C201,S$205:S$216,$C$205:$C$216)<0,0, IF(FORECAST($C201,S$205:S$216,$C$205:$C$216)>100,100, FORECAST($C201,S$205:S$216,$C$205:$C$216)))) -> 89.9337884 | W201: =IF(MAX(C205:C216)-MIN(C205:C216)<5,AVERAGEIF(C205:C216,">0",W205:W216), IF(FORECAST($C201,W$205:W$216,$C$205:$C$216)<0,0, IF(FORECAST($C201,W$205:W$216,$C$205:$C$216)>100,100, FORECAST($C201,W$205:W$216,$C$205:$C$216)))) -> 0.1601625502 | X201: =IF(MAX(C205:C216)-MIN(C205:C216)<5,AVERAGEIF(C205:C216,">0",X205:X216), IF(FORECAST($C201,X$205:X$216,$C$205:$C$216)<0,0, IF(FORECAST($C201,X$205:X$216,$C$205:$C$216)>100,100, FORECAST($C201,X$205:X$216,$C$205:$C$216)))) -> 97.70188487 | AB201: =IF(MAX(C205:C216)-MIN(C205:C216)<5,AVERAGEIF(C205:C216,">0",AB205:AB216), IF(FORECAST($C201,AB$205:AB$216,$C$205:$C$216)<0,0, IF(FORECAST($C201,AB$205:AB$216,$C$205:$C$216)>100,100, FORECAST($C201,AB$205:AB$216,$C$205:$C$216)))) -> 0
C202: =MaxRegYear(C200,C205:C216) -> 2020 | D202: =IF(MAX(C205:C216)-MIN(C205:C216)<5,AVERAGEIF(C205:C216,">0",D205:D216), IF(FORECAST($C202,D$205:D$216,$C$205:$C$216)<0,0, IF(FORECAST($C202,D$205:D$216,$C$205:$C$216)>100,100, FORECAST($C202,D$205:D$216,$C$205:$C$216)))) -> 89.43672654 | H202: =IF(MAX(C205:C216)-MIN(C205:C216)<5,AVERAGEIF(C205:C216,">0",H205:H216), IF(FORECAST($C202,H$205:H$216,$C$205:$C$216)<0,0, IF(FORECAST($C202,H$205:H$216,$C$205:$C$216)>100,100, FORECAST($C202,H$205:H$216,$C$205:$C$216)))) -> 0 | I202: =IF(MAX(C205:C216)-MIN(C205:C216)<5,AVERAGEIF(C205:C216,">0",I205:I216), IF(FORECAST($C202,I$205:I$216,$C$205:$C$216)<0,0, IF(FORECAST($C202,I$205:I$216,$C$205:$C$216)>100,100, FORECAST($C202,I$205:I$216,$C$205:$C$216)))) -> 100 | M202: =IF(MAX(C205:C216)-MIN(C205:C216)<5,AVERAGEIF(C205:C216,">0",M205:M216), IF(FORECAST($C202,M$205:M$216,$C$205:$C$216)<0,0, IF(FORECAST($C202,M$205:M$216,$C$205:$C$216)>100,100, FORECAST($C202,M$205:M$216,$C$205:$C$216)))) -> 0 | N202: =IF(MAX(C205:C216)-MIN(C205:C216)<5,AVERAGEIF(C205:C216,">0",N205:N216), IF(FORECAST($C202,N$205:N$216,$C$205:$C$216)<0,0, IF(FORECAST($C202,N$205:N$216,$C$205:$C$216)>100,100, FORECAST($C202,N$205:N$216,$C$205:$C$216)))) -> 100 | R202: =IF(MAX(C205:C216)-MIN(C205:C216)<5,AVERAGEIF(C205:C216,">0",R205:R216), IF(FORECAST($C202,R$205:R$216,$C$205:$C$216)<0,0, IF(FORECAST($C202,R$205:R$216,$C$205:$C$216)>100,100, FORECAST($C202,R$205:R$216,$C$205:$C$216)))) -> 0.03208357731 | S202: =IF(MAX(C205:C216)-MIN(C205:C216)<5,AVERAGEIF(C205:C216,">0",S205:S216), IF(FORECAST($C202,S$205:S$216,$C$205:$C$216)<0,0, IF(FORECAST($C202,S$205:S$216,$C$205:$C$216)>100,100, FORECAST($C202,S$205:S$216,$C$205:$C$216)))) -> 100 | W202: =IF(MAX(C205:C216)-MIN(C205:C216)<5,AVERAGEIF(C205:C216,">0",W205:W216), IF(FORECAST($C202,W$205:W$216,$C$205:$C$216)<0,0, IF(FORECAST($C202,W$205:W$216,$C$205:$C$216)>100,100, FORECAST($C202,W$205:W$216,$C$205:$C$216)))) -> 0 | X202: =IF(MAX(C205:C216)-MIN(C205:C216)<5,AVERAGEIF(C205:C216,">0",X205:X216), IF(FORECAST($C202,X$205:X$216,$C$205:$C$216)<0,0, IF(FORECAST($C202,X$205:X$216,$C$205:$C$216)>100,100, FORECAST($C202,X$205:X$216,$C$205:$C$216)))) -> 100 | AB202: =IF(MAX(C205:C216)-MIN(C205:C216)<5,AVERAGEIF(C205:C216,">0",AB205:AB216), IF(FORECAST($C202,AB$205:AB$216,$C$205:$C$216)<0,0, IF(FORECAST($C202,AB$205:AB$216,$C$205:$C$216)>100,100, FORECAST($C202,AB$205:AB$216,$C$205:$C$216)))) -> 0
B204: Survey | C204: Year | D204: Improved | E204: % Improved < = 30min | H204: Surface water | I204: Improved | J204: % Improved < = 30min | M204: Surface water | N204: Improved | O204: % Improved < = 30min | R204: Surface water | S204: Improved | T204: % Improved < = 30min | W204: Surface water | X204: Improved | Y204: % Improved < = 30min | AB204: Surface water
B205: DHS01 | D205: =IF(ISERROR(INDIRECT(CONCATENATE($B205,"!H16"))),"",INDIRECT(CONCATENATE($B205,"!H16"))) -> 45.68695232 | E205: =IF(ISERROR(INDIRECT(CONCATENATE($B205,"!H23"))),"",INDIRECT(CONCATENATE($B205,"!H23"))) -> N/A | H205: =IF(ISERROR(INDIRECT(CONCATENATE($B205,"!H21"))),"",INDIRECT(CONCATENATE($B205,"!H21"))) -> 7.19375141 | I205: =IF(ISERROR(INDIRECT(CONCATENATE($B205,"!I16"))),"",INDIRECT(CONCATENATE($B205,"!I16"))) -> 60.31654229 | J205: =IF(ISERROR(INDIRECT(CONCATENATE($B205,"!I23"))),"",INDIRECT(CONCATENATE($B205,"!I23"))) -> N/A | M205: =IF(ISERROR(INDIRECT(CONCATENATE($B205,"!I21"))),"",INDIRECT(CONCATENATE($B205,"!I21"))) -> 1.441734548 | N205: =IF(ISERROR(INDIRECT(CONCATENATE($B205,"!J16"))),"",INDIRECT(CONCATENATE($B205,"!J16"))) -> 68.8370477 | O205: =IF(ISERROR(INDIRECT(CONCATENATE($B205,"!J23"))),"",INDIRECT(CONCATENATE($B205,"!J23"))) -> N/A | R205: =IF(ISERROR(INDIRECT(CONCATENATE($B205,"!J21"))),"",INDIRECT(CONCATENATE($B205,"!J21"))) -> 0.3539953907 | S205: =IF(ISERROR(INDIRECT(CONCATENATE($B205,"!K16"))),"",INDIRECT(CONCATENATE($B205,"!K16"))) -> 87.66809773 | T205: =IF(ISERROR(INDIRECT(CONCATENATE($B205,"!K23"))),"",INDIRECT(CONCATENATE($B205,"!K23"))) -> N/A | W205: =IF(ISERROR(INDIRECT(CONCATENATE($B205,"!K21"))),"",INDIRECT(CONCATENATE($B205,"!K21"))) -> 0.06466148993 | X205: =IF(ISERROR(INDIRECT(CONCATENATE($B205,"!L16"))),"",INDIRECT(CONCATENATE($B205,"!L16"))) -> 96.32375344 | Y205: =IF(ISERROR(INDIRECT(CONCATENATE($B205,"!L23"))),"",INDIRECT(CONCATENATE($B205,"!L23"))) -> N/A | AB205: =IF(ISERROR(INDIRECT(CONCATENATE($B205,"!L221"))),"",INDIRECT(CONCATENATE($B205,"!L21"))) -> 0
B206: DHS06 | C206: 2006 | D206: 59.65031857 | E206: 98.78901055 | H206: 3.082937197 | I206: 64.42008737 | J206: 98.63200333 | M206: 0.4324536319 | N206: 86.63993933 | O206: 97.7539484 | R206: 0 | S206: 88.1873356 | T206: 96.90043348 | W206: 0.1468297946 | X206: 97.54099082 | Y206: 98.14765272 | AB206: 0
B207: MICS10 | C207: 2010 | D207: 81.13272503 | E207: 95.13569465 | H207: 2.123581384 | I207: 97.4702507 | J207: 95.92439573 | M207: 0.149050545 | N207: 95.64473158 | O207: 88.42850919 | R207: 0.06820807624 | S207: 99.45103108 | T207: 90.25302339 | W207: 0.08620204529 | X207: 98.74368989 | Y207: 92.33576205 | AB207: 0
B208: DHS13 | C208: 2013 | D208: 82.4 | E208: 98 | H208: 0.7 | I208: 93 | J208: 97.3 | M208: 0 | N208: 96.8 | O208: 98 | R208: 0.2 | S208: 98.5 | T208: 96.5 | W208: 0 | X208: 99.4 | Y208: 99.5 | AB208: 0
B209: MIS15 | C209: 2015 | D209: 83.92888249 | E209: 99.47114898 | H209: 0 | I209: 98.90034224 | J209: 97.91846005 | M209: 0 | N209: 97.91938369 | O209: 97.73644351 | R209: 0 | S209: 100 | T209: 96.65735535 | W209: 0 | X209: 100 | Y209: 99.58031734 | AB209: 0
B210: MICS15 | C210: 2015 | D210: 75.61093942 | E210: 96.567153 | H210: 1.657739311 | I210: 94.05633166 | J210: 94.38860317 | M210: 0 | N210: 99.01116502 | O210: 95.50017116 | R210: 0 | S210: 98.56333476 | T210: 96.19926384 | W210: 0 | X210: 100 | Y210: 98.50348154 | AB210: 0
B211: DHS18 | C211: 2018 | D211: 82.86459386 | E211: 97.75106086 | H211: 0.4309662177 | I211: 97.09398868 | J211: 97.31936464 | M211: 0 | N211: 97.53314024 | O211: 98.13654268 | R211: 0 | S211: 99.53074756 | T211: 97.86933179 | W211: 0 | X211: 98.8337205 | Y211: 97.7678502 | AB211: 0
B218: =CONCATENATE("Urban use of drinking water sources, ",C199,"–",C200) -> Urban use of drinking water sources, 2000–2020 | S218: Data points used for regression
E253: =IF(ISERROR(INDIRECT(CONCATENATE($B253,"!M18"))),"",INDIRECT(CONCATENATE($B253,"!M18"))) ->  | F253: =IF(ISERROR(INDIRECT(CONCATENATE($B253,"!M19"))),"",INDIRECT(CONCATENATE($B253,"!M19"))) ->  | G253: =IF(ISERROR(INDIRECT(CONCATENATE($B253,"!M20"))),"",INDIRECT(CONCATENATE($B253,"!M20"))) ->  | H253: =IF(ISERROR(INDIRECT(CONCATENATE($B253,"!M21"))),"",INDIRECT(CONCATENATE($B253,"!M21"))) ->  | J253: =IF(ISERROR(INDIRECT(CONCATENATE($B253,"!N18"))),"",INDIRECT(CONCATENATE($B253,"!N18"))) ->  | K253: =IF(ISERROR(INDIRECT(CONCATENATE($B253,"!N19"))),"",INDIRECT(CONCATENATE($B253,"!N19"))) ->  | L253: =IF(ISERROR(INDIRECT(CONCATENATE($B253,"!N20"))),"",INDIRECT(CONCATENATE($B253,"!N20"))) ->  | M253: =IF(ISERROR(INDIRECT(CONCATENATE($B253,"!N21"))),"",INDIRECT(CONCATENATE($B253,"!N21"))) ->  | O253: =IF(ISERROR(INDIRECT(CONCATENATE($B253,"!O18"))),"",INDIRECT(CONCATENATE($B253,"!O18"))) ->  | P253: =IF(ISERROR(INDIRECT(CONCATENATE($B253,"!O19"))),"",INDIRECT(CONCATENATE($B253,"!O19"))) ->  | Q253: =IF(ISERROR(INDIRECT(CONCATENATE($B253,"!O20"))),"",INDIRECT(CONCATENATE($B253,"!O20"))) ->  | R253: =IF(ISERROR(INDIRECT(CONCATENATE($B253,"!O21"))),"",INDIRECT(CONCATENATE($B253,"!O21"))) ->  | T253: =IF(ISERROR(INDIRECT(CONCATENATE($B253,"!P18"))),"",INDIRECT(CONCATENATE($B253,"!P18"))) ->  | U253: =IF(ISERROR(INDIRECT(CONCATENATE($B253,"!P19"))),"",INDIRECT(CONCATENATE($B253,"!P19"))) ->  | V253: =IF(ISERROR(INDIRECT(CONCATENATE($B253,"!P20"))),"",INDIRECT(CONCATENATE($B253,"!P20"))) ->  | W253: =IF(ISERROR(INDIRECT(CONCATENATE($B253,"!P21"))),"",INDIRECT(CONCATENATE($B253,"!P21"))) ->  | Y253: =IF(ISERROR(INDIRECT(CONCATENATE($B253,"!Q18"))),"",INDIRECT(CONCATENATE($B253,"!Q18"))) ->  | Z253: =IF(ISERROR(INDIRECT(CONCATENATE($B253,"!Q19"))),"",INDIRECT(CONCATENATE($B253,"!Q19"))) ->  | AA253: =IF(ISERROR(INDIRECT(CONCATENATE($B253,"!Q20"))),"",INDIRECT(CONCATENATE($B253,"!Q20"))) ->  | AB253: =IF(ISERROR(INDIRECT(CONCATENATE($B253,"!Q21"))),"",INDIRECT(CONCATENATE($B253,"!Q1"))) -> 
E254: =IF(ISERROR(INDIRECT(CONCATENATE($B254,"!M18"))),"",INDIRECT(CONCATENATE($B254,"!M18"))) ->  | F254: =IF(ISERROR(INDIRECT(CONCATENATE($B254,"!M19"))),"",INDIRECT(CONCATENATE($B254,"!M19"))) ->  | G254: =IF(ISERROR(INDIRECT(CONCATENATE($B254,"!M20"))),"",INDIRECT(CONCATENATE($B254,"!M20"))) ->  | H254: =IF(ISERROR(INDIRECT(CONCATENATE($B254,"!M21"))),"",INDIRECT(CONCATENATE($B254,"!M21"))) ->  | J254: =IF(ISERROR(INDIRECT(CONCATENATE($B254,"!N18"))),"",INDIRECT(CONCATENATE($B254,"!N18"))) ->  | K254: =IF(ISERROR(INDIRECT(CONCATENATE($B254,"!N19"))),"",INDIRECT(CONCATENATE($B254,"!N19"))) ->  | L254: =IF(ISERROR(INDIRECT(CONCATENATE($B254,"!N20"))),"",INDIRECT(CONCATENATE($B254,"!N20"))) ->  | M254: =IF(ISERROR(INDIRECT(CONCATENATE($B254,"!N21"))),"",INDIRECT(CONCATENATE($B254,"!N21"))) ->  | O254: =IF(ISERROR(INDIRECT(CONCATENATE($B254,"!O18"))),"",INDIRECT(CONCATENATE($B254,"!O18"))) ->  | P254: =IF(ISERROR(INDIRECT(CONCATENATE($B254,"!O19"))),"",INDIRECT(CONCATENATE($B254,"!O19"))) ->  | Q254: =IF(ISERROR(INDIRECT(CONCATENATE($B254,"!O20"))),"",INDIRECT(CONCATENATE($B254,"!O20"))) ->  | R254: =IF(ISERROR(INDIRECT(CONCATENATE($B254,"!O21"))),"",INDIRECT(CONCATENATE($B254,"!O21"))) ->  | T254: =IF(ISERROR(INDIRECT(CONCATENATE($B254,"!P18"))),"",INDIRECT(CONCATENATE($B254,"!P18"))) ->  | U254: =IF(ISERROR(INDIRECT(CONCATENATE($B254,"!P19"))),"",INDIRECT(CONCATENATE($B254,"!P19"))) ->  | V254: =IF(ISERROR(INDIRECT(CONCATENATE($B254,"!P20"))),"",INDIRECT(CONCATENATE($B254,"!P20"))) ->  | W254: =IF(ISERROR(INDIRECT(CONCATENATE($B254,"!P21"))),"",INDIRECT(CONCATENATE($B254,"!P21"))) ->  | Y254: =IF(ISERROR(INDIRECT(CONCATENATE($B254,"!Q18"))),"",INDIRECT(CONCATENATE($B254,"!Q18"))) ->  | Z254: =IF(ISERROR(INDIRECT(CONCATENATE($B254,"!Q19"))),"",INDIRECT(CONCATENATE($B254,"!Q19"))) ->  | AA254: =IF(ISERROR(INDIRECT(CONCATENATE($B254,"!Q20"))),"",INDIRECT(CONCATENATE($B254,"!Q20"))) ->  | AB254: =IF(ISERROR(INDIRECT(CONCATENATE($B254,"!Q21"))),"",INDIRECT(CONCATENATE($B254,"!Q1"))) -> 
E255: =IF(ISERROR(INDIRECT(CONCATENATE($B255,"!M18"))),"",INDIRECT(CONCATENATE($B255,"!M18"))) ->  | F255: =IF(ISERROR(INDIRECT(CONCATENATE($B255,"!M19"))),"",INDIRECT(CONCATENATE($B255,"!M19"))) ->  | G255: =IF(ISERROR(INDIRECT(CONCATENATE($B255,"!M20"))),"",INDIRECT(CONCATENATE($B255,"!M20"))) ->  | H255: =IF(ISERROR(INDIRECT(CONCATENATE($B255,"!M21"))),"",INDIRECT(CONCATENATE($B255,"!M21"))) ->  | J255: =IF(ISERROR(INDIRECT(CONCATENATE($B255,"!N18"))),"",INDIRECT(CONCATENATE($B255,"!N18"))) ->  | K255: =IF(ISERROR(INDIRECT(CONCATENATE($B255,"!N19"))),"",INDIRECT(CONCATENATE($B255,"!N19"))) ->  | L255: =IF(ISERROR(INDIRECT(CONCATENATE($B255,"!N20"))),"",INDIRECT(CONCATENATE($B255,"!N20"))) ->  | M255: =IF(ISERROR(INDIRECT(CONCATENATE($B255,"!N21"))),"",INDIRECT(CONCATENATE($B255,"!N21"))) ->  | O255: =IF(ISERROR(INDIRECT(CONCATENATE($B255,"!O18"))),"",INDIRECT(CONCATENATE($B255,"!O18"))) ->  | P255: =IF(ISERROR(INDIRECT(CONCATENATE($B255,"!O19"))),"",INDIRECT(CONCATENATE($B255,"!O19"))) ->  | Q255: =IF(ISERROR(INDIRECT(CONCATENATE($B255,"!O20"))),"",INDIRECT(CONCATENATE($B255,"!O20"))) ->  | R255: =IF(ISERROR(INDIRECT(CONCATENATE($B255,"!O21"))),"",INDIRECT(CONCATENATE($B255,"!O21"))) ->  | T255: =IF(ISERROR(INDIRECT(CONCATENATE($B255,"!P18"))),"",INDIRECT(CONCATENATE($B255,"!P18"))) ->  | U255: =IF(ISERROR(INDIRECT(CONCATENATE($B255,"!P19"))),"",INDIRECT(CONCATENATE($B255,"!P19"))) ->  | V255: =IF(ISERROR(INDIRECT(CONCATENATE($B255,"!P20"))),"",INDIRECT(CONCATENATE($B255,"!P20"))) ->  | W255: =IF(ISERROR(INDIRECT(CONCATENATE($B255,"!P21"))),"",INDIRECT(CONCATENATE($B255,"!P21"))) ->  | Y255: =IF(ISERROR(INDIRECT(CONCATENATE($B255,"!Q18"))),"",INDIRECT(CONCATENATE($B255,"!Q18"))) ->  | Z255: =IF(ISERROR(INDIRECT(CONCATENATE($B255,"!Q19"))),"",INDIRECT(CONCATENATE($B255,"!Q19"))) ->  | AA255: =IF(ISERROR(INDIRECT(CONCATENATE($B255,"!Q20"))),"",INDIRECT(CONCATENATE($B255,"!Q20"))) ->  | AB255: =IF(ISERROR(INDIRECT(CONCATENATE($B255,"!Q21"))),"",INDIRECT(CONCATENATE($B255,"!Q1"))) -> 
E256: =IF(ISERROR(INDIRECT(CONCATENATE($B256,"!M18"))),"",INDIRECT(CONCATENATE($B256,"!M18"))) ->  | F256: =IF(ISERROR(INDIRECT(CONCATENATE($B256,"!M19"))),"",INDIRECT(CONCATENATE($B256,"!M19"))) ->  | G256: =IF(ISERROR(INDIRECT(CONCATENATE($B256,"!M20"))),"",INDIRECT(CONCATENATE($B256,"!M20"))) ->  | H256: =IF(ISERROR(INDIRECT(CONCATENATE($B256,"!M21"))),"",INDIRECT(CONCATENATE($B256,"!M21"))) ->  | J256: =IF(ISERROR(INDIRECT(CONCATENATE($B256,"!N18"))),"",INDIRECT(CONCATENATE($B256,"!N18"))) ->  | K256: =IF(ISERROR(INDIRECT(CONCATENATE($B256,"!N19"))),"",INDIRECT(CONCATENATE($B256,"!N19"))) ->  | L256: =IF(ISERROR(INDIRECT(CONCATENATE($B256,"!N20"))),"",INDIRECT(CONCATENATE($B256,"!N20"))) ->  | M256: =IF(ISERROR(INDIRECT(CONCATENATE($B256,"!N21"))),"",INDIRECT(CONCATENATE($B256,"!N21"))) ->  | O256: =IF(ISERROR(INDIRECT(CONCATENATE($B256,"!O18"))),"",INDIRECT(CONCATENATE($B256,"!O18"))) ->  | P256: =IF(ISERROR(INDIRECT(CONCATENATE($B256,"!O19"))),"",INDIRECT(CONCATENATE($B256,"!O19"))) ->  | Q256: =IF(ISERROR(INDIRECT(CONCATENATE($B256,"!O20"))),"",INDIRECT(CONCATENATE($B256,"!O20"))) ->  | R256: =IF(ISERROR(INDIRECT(CONCATENATE($B256,"!O21"))),"",INDIRECT(CONCATENATE($B256,"!O21"))) ->  | T256: =IF(ISERROR(INDIRECT(CONCATENATE($B256,"!P18"))),"",INDIRECT(CONCATENATE($B256,"!P18"))) ->  | U256: =IF(ISERROR(INDIRECT(CONCATENATE($B256,"!P19"))),"",INDIRECT(CONCATENATE($B256,"!P19"))) ->  | V256: =IF(ISERROR(INDIRECT(CONCATENATE($B256,"!P20"))),"",INDIRECT(CONCATENATE($B256,"!P20"))) ->  | W256: =IF(ISERROR(INDIRECT(CONCATENATE($B256,"!P21"))),"",INDIRECT(CONCATENATE($B256,"!P21"))) ->  | Y256: =IF(ISERROR(INDIRECT(CONCATENATE($B256,"!Q18"))),"",INDIRECT(CONCATENATE($B256,"!Q18"))) ->  | Z256: =IF(ISERROR(INDIRECT(CONCATENATE($B256,"!Q19"))),"",INDIRECT(CONCATENATE($B256,"!Q19"))) ->  | AA256: =IF(ISERROR(INDIRECT(CONCATENATE($B256,"!Q20"))),"",INDIRECT(CONCATENATE($B256,"!Q20"))) ->  | AB256: =IF(ISERROR(INDIRECT(CONCATENATE($B256,"!Q21"))),"",INDIRECT(CONCATENATE($B256,"!Q1"))) -> 
E257: =IF(ISERROR(INDIRECT(CONCATENATE($B257,"!M18"))),"",INDIRECT(CONCATENATE($B257,"!M18"))) ->  | F257: =IF(ISERROR(INDIRECT(CONCATENATE($B257,"!M19"))),"",INDIRECT(CONCATENATE($B257,"!M19"))) ->  | G257: =IF(ISERROR(INDIRECT(CONCATENATE($B257,"!M20"))),"",INDIRECT(CONCATENATE($B257,"!M20"))) ->  | H257: =IF(ISERROR(INDIRECT(CONCATENATE($B257,"!M21"))),"",INDIRECT(CONCATENATE($B257,"!M21"))) ->  | J257: =IF(ISERROR(INDIRECT(CONCATENATE($B257,"!N18"))),"",INDIRECT(CONCATENATE($B257,"!N18"))) ->  | K257: =IF(ISERROR(INDIRECT(CONCATENATE($B257,"!N19"))),"",INDIRECT(CONCATENATE($B257,"!N19"))) ->  | L257: =IF(ISERROR(INDIRECT(CONCATENATE($B257,"!N20"))),"",INDIRECT(CONCATENATE($B257,"!N20"))) ->  | M257: =IF(ISERROR(INDIRECT(CONCATENATE($B257,"!N21"))),"",INDIRECT(CONCATENATE($B257,"!N21"))) ->  | O257: =IF(ISERROR(INDIRECT(CONCATENATE($B257,"!O18"))),"",INDIRECT(CONCATENATE($B257,"!O18"))) ->  | P257: =IF(ISERROR(INDIRECT(CONCATENATE($B257,"!O19"))),"",INDIRECT(CONCATENATE($B257,"!O19"))) ->  | Q257: =IF(ISERROR(INDIRECT(CONCATENATE($B257,"!O20"))),"",INDIRECT(CONCATENATE($B257,"!O20"))) ->  | R257: =IF(ISERROR(INDIRECT(CONCATENATE($B257,"!O21"))),"",INDIRECT(CONCATENATE($B257,"!O21"))) ->  | T257: =IF(ISERROR(INDIRECT(CONCATENATE($B257,"!P18"))),"",INDIRECT(CONCATENATE($B257,"!P18"))) ->  | U257: =IF(ISERROR(INDIRECT(CONCATENATE($B257,"!P19"))),"",INDIRECT(CONCATENATE($B257,"!P19"))) ->  | V257: =IF(ISERROR(INDIRECT(CONCATENATE($B257,"!P20"))),"",INDIRECT(CONCATENATE($B257,"!P20"))) ->  | W257: =IF(ISERROR(INDIRECT(CONCATENATE($B257,"!P21"))),"",INDIRECT(CONCATENATE($B257,"!P21"))) ->  | Y257: =IF(ISERROR(INDIRECT(CONCATENATE($B257,"!Q18"))),"",INDIRECT(CONCATENATE($B257,"!Q18"))) ->  | Z257: =IF(ISERROR(INDIRECT(CONCATENATE($B257,"!Q19"))),"",INDIRECT(CONCATENATE($B257,"!Q19"))) ->  | AA257: =IF(ISERROR(INDIRECT(CONCATENATE($B257,"!Q20"))),"",INDIRECT(CONCATENATE($B257,"!Q20"))) ->  | AB257: =IF(ISERROR(INDIRECT(CONCATENATE($B257,"!Q21"))),"",INDIRECT(CONCATENATE($B257,"!Q1"))) -> 
A297: RURAL | D297: Poorest | I297: Poor | N297: Middle | S297: Rich | X297: Richest
D298: Improved | E298: Basic | F298: Limited | G298: Unimproved | H298: Surface water | I298: Improved | J298: Basic | K298: Limited | L298: Unimproved | M298: Surface water | N298: Improved | O298: Basic | P298: Limited | Q298: Unimproved | R298: Surface water | S298: Improved | T298: Basic | U298: Limited | V298: Unimproved | W298: Surface water | X298: Improved | Y298: Basic | Z298: Limited | AA298: Unimproved | AB298: Surface water
A299: Forecast period: | C299: =MinBase(C305:C316) -> 2000 | D299: =IF((D301+H301)>100,D301*100/(D301+H301),D301) -> 44.85050048 | E299: =D299*AVERAGEIF(E305:E316,">0")/100 -> 41.33901921 | F299: =D299*(100-AVERAGEIF(E305:E316,">0"))/100 -> 3.511481273 | G299: =100-(E299+F299+H299) -> 48.05393228 | H299: =IF((D301+H301)>100,H301*100/(D301+H301),H301) -> 7.095567239 | I299: =IF((I301+M301)>100,I301*100/(I301+M301),I301) -> 46.91452441 | J299: =I299*AVERAGEIF(J305:J316,">0")/100 -> 44.16284427 | K299: =I299*(100-AVERAGEIF(J305:J316,">0"))/100 -> 2.751680138 | L299: =100-(J299+K299+M299) -> 47.61044555 | M299: =IF((I301+M301)>100,M301*100/(I301+M301),M301) -> 5.475030036 | N299: =IF((N301+R301)>100,N301*100/(N301+R301),N301) -> 45.98990327 | O299: =N299*AVERAGEIF(O305:O316,">0")/100 -> 44.08644852 | P299: =N299*(100-AVERAGEIF(O305:O316,">0"))/100 -> 1.903454759 | Q299: =100-(O299+P299+R299) -> 49.13789569 | R299: =IF((N301+R301)>100,R301*100/(N301+R301),R301) -> 4.872201034 | S299: =IF((S301+W301)>100,S301*100/(S301+W301),S301) -> 45.48323253 | T299: =S299*AVERAGEIF(T305:T316,">0")/100 -> 43.84435014 | U299: =S299*(100-AVERAGEIF(T305:T316,">0"))/100 -> 1.638882383 | V299: =100-(T299+U299+W299) -> 48.87684303 | W299: =IF((S301+W301)>100,W301*100/(S301+W301),W301) -> 5.639924441 | X299: =IF((X301+AB301)>100,X301*100/(X301+AB301),X301) -> 55.33904424 | Y299: =X299*AVERAGEIF(Y305:Y316,">0")/100 -> 53.07303675 | Z299: =X299*(100-AVERAGEIF(Y305:Y316,">0"))/100 -> 2.266007488 | AA299: =100-(Y299+Z299+AB299) -> 41.18726013 | AB299: =IF((X301+AB301)>100,AB301*100/(X301+AB301),AB301) -> 3.473695627
C300: =MaxTarget(C305:C316) -> 2020 | D300: =IF((D302+H302)>100,D302*100/(D302+H302),D302) -> 51.36214649 | E300: =D300*AVERAGEIF(E305:E316,">0")/100 -> 47.34084877 | F300: =D300*(100-AVERAGEIF(E305:E316,">0"))/100 -> 4.021297725 | G300: =100-(E300+F300+H300) -> 43.4596728 | H300: =IF((D302+H302)>100,H302*100/(D302+H302),H302) -> 5.178180703 | I300: =IF((I302+M302)>100,I302*100/(I302+M302),I302) -> 55.76825085 | J300: =I300*AVERAGEIF(J305:J316,">0")/100 -> 52.49727262 | K300: =I300*(100-AVERAGEIF(J305:J316,">0"))/100 -> 3.270978233 | L300: =100-(J300+K300+M300) -> 42.55948633 | M300: =IF((I302+M302)>100,M302*100/(I302+M302),M302) -> 1.672262824 | N300: =IF((N302+R302)>100,N302*100/(N302+R302),N302) -> 64.31603702 | O300: =N300*AVERAGEIF(O305:O316,">0")/100 -> 61.65409042 | P300: =N300*(100-AVERAGEIF(O305:O316,">0"))/100 -> 2.661946601 | Q300: =100-(O300+P300+R300) -> 34.96471007 | R300: =IF((N302+R302)>100,R302*100/(N302+R302),R302) -> 0.7192529101 | S300: =IF((S302+W302)>100,S302*100/(S302+W302),S302) -> 75.58320937 | T300: =S300*AVERAGEIF(T305:T316,">0")/100 -> 72.85974441 | U300: =S300*(100-AVERAGEIF(T305:T316,">0"))/100 -> 2.723464965 | V300: =100-(T300+U300+W300) -> 24.41679063 | W300: =IF((S302+W302)>100,W302*100/(S302+W302),W302) -> 0 | X300: =IF((X302+AB302)>100,X302*100/(X302+AB302),X302) -> 93.20324088 | Y300: =X300*AVERAGEIF(Y305:Y316,">0")/100 -> 89.38678101 | Z300: =X300*(100-AVERAGEIF(Y305:Y316,">0"))/100 -> 3.816459873 | AA300: =100-(Y300+Z300+AB300) -> 6.796759117 | AB300: =IF((X302+AB302)>100,AB302*100/(X302+AB302),AB302) -> 0
A301: Regression period: | C301: =MinRegYear(C299,C305:C316) -> 2004 | D301: =IF(MAX(C305:C316)-MIN(C305:C316)<5,AVERAGEIF(C305:C316,">0",D305:D316), IF(FORECAST($C301,D$305:D$316,$C$305:$C$316)<0,0, IF(FORECAST($C301,D$305:D$316,$C$305:$C$316)>100,100, FORECAST($C301,D$305:D$316,$C$305:$C$316)))) -> 44.85050048 | H301: =IF(MAX(C305:C316)-MIN(C305:C316)<5,AVERAGEIF(C305:C316,">0",H305:H316), IF(FORECAST($C301,H$305:H$316,$C$305:$C$316)<0,0, IF(FORECAST($C301,H$305:H$316,$C$305:$C$316)>100,100, FORECAST($C301,H$305:H$316,$C$305:$C$316)))) -> 7.095567239 | I301: =IF(MAX(C305:C316)-MIN(C305:C316)<5,AVERAGEIF(C305:C316,">0",I305:I316), IF(FORECAST($C301,I$305:I$316,$C$305:$C$316)<0,0, IF(FORECAST($C301,I$305:I$316,$C$305:$C$316)>100,100, FORECAST($C301,I$305:I$316,$C$305:$C$316)))) -> 46.91452441 | M301: =IF(MAX(C305:C316)-MIN(C305:C316)<5,AVERAGEIF(C305:C316,">0",M305:M316), IF(FORECAST($C301,M$305:M$316,$C$305:$C$316)<0,0, IF(FORECAST($C301,M$305:M$316,$C$305:$C$316)>100,100, FORECAST($C301,M$305:M$316,$C$305:$C$316)))) -> 5.475030036 | N301: =IF(MAX(C305:C316)-MIN(C305:C316)<5,AVERAGEIF(C305:C316,">0",N305:N316), IF(FORECAST($C301,N$305:N$316,$C$305:$C$316)<0,0, IF(FORECAST($C301,N$305:N$316,$C$305:$C$316)>100,100, FORECAST($C301,N$305:N$316,$C$305:$C$316)))) -> 45.98990327 | R301: =IF(MAX(C305:C316)-MIN(C305:C316)<5,AVERAGEIF(C305:C316,">0",R305:R316), IF(FORECAST($C301,R$305:R$316,$C$305:$C$316)<0,0, IF(FORECAST($C301,R$305:R$316,$C$305:$C$316)>100,100, FORECAST($C301,R$305:R$316,$C$305:$C$316)))) -> 4.872201034 | S301: =IF(MAX(C305:C316)-MIN(C305:C316)<5,AVERAGEIF(C305:C316,">0",S305:S316), IF(FORECAST($C301,S$305:S$316,$C$305:$C$316)<0,0, IF(FORECAST($C301,S$305:S$316,$C$305:$C$316)>100,100, FORECAST($C301,S$305:S$316,$C$305:$C$316)))) -> 45.48323253 | W301: =IF(MAX(C305:C316)-MIN(C305:C316)<5,AVERAGEIF(C305:C316,">0",W305:W316), IF(FORECAST($C301,W$305:W$316,$C$305:$C$316)<0,0, IF(FORECAST($C301,W$305:W$316,$C$305:$C$316)>100,100, FORECAST($C301,W$305:W$316,$C$305:$C$316)))) -> 5.639924441 | X301: =IF(MAX(C305:C316)-MIN(C305:C316)<5,AVERAGEIF(C305:C316,">0",X305:X316), IF(FORECAST($C301,X$305:X$316,$C$305:$C$316)<0,0, IF(FORECAST($C301,X$305:X$316,$C$305:$C$316)>100,100, FORECAST($C301,X$305:X$316,$C$305:$C$316)))) -> 55.33904424 | AB301: =IF(MAX(C305:C316)-MIN(C305:C316)<5,AVERAGEIF(C305:C316,">0",AB305:AB316), IF(FORECAST($C301,AB$305:AB$316,$C$305:$C$316)<0,0, IF(FORECAST($C301,AB$305:AB$316,$C$305:$C$316)>100,100, FORECAST($C301,AB$305:AB$316,$C$305:$C$316)))) -> 3.473695627
C302: =MaxRegYear(C300,C305:C316) -> 2020 | D302: =IF(MAX(C305:C316)-MIN(C305:C316)<5,AVERAGEIF(C305:C316,">0",D305:D316), IF(FORECAST($C302,D$305:D$316,$C$305:$C$316)<0,0, IF(FORECAST($C302,D$305:D$316,$C$305:$C$316)>100,100, FORECAST($C302,D$305:D$316,$C$305:$C$316)))) -> 51.36214649 | H302: =IF(MAX(C305:C316)-MIN(C305:C316)<5,AVERAGEIF(C305:C316,">0",H305:H316), IF(FORECAST($C302,H$305:H$316,$C$305:$C$316)<0,0, IF(FORECAST($C302,H$305:H$316,$C$305:$C$316)>100,100, FORECAST($C302,H$305:H$316,$C$305:$C$316)))) -> 5.178180703 | I302: =IF(MAX(C305:C316)-MIN(C305:C316)<5,AVERAGEIF(C305:C316,">0",I305:I316), IF(FORECAST($C302,I$305:I$316,$C$305:$C$316)<0,0, IF(FORECAST($C302,I$305:I$316,$C$305:$C$316)>100,100, FORECAST($C302,I$305:I$316,$C$305:$C$316)))) -> 55.76825085 | M302: =IF(MAX(C305:C316)-MIN(C305:C316)<5,AVERAGEIF(C305:C316,">0",M305:M316), IF(FORECAST($C302,M$305:M$316,$C$305:$C$316)<0,0, IF(FORECAST($C302,M$305:M$316,$C$305:$C$316)>100,100, FORECAST($C302,M$305:M$316,$C$305:$C$316)))) -> 1.672262824 | N302: =IF(MAX(C305:C316)-MIN(C305:C316)<5,AVERAGEIF(C305:C316,">0",N305:N316), IF(FORECAST($C302,N$305:N$316,$C$305:$C$316)<0,0, IF(FORECAST($C302,N$305:N$316,$C$305:$C$316)>100,100, FORECAST($C302,N$305:N$316,$C$305:$C$316)))) -> 64.31603702 | R302: =IF(MAX(C305:C316)-MIN(C305:C316)<5,AVERAGEIF(C305:C316,">0",R305:R316), IF(FORECAST($C302,R$305:R$316,$C$305:$C$316)<0,0, IF(FORECAST($C302,R$305:R$316,$C$305:$C$316)>100,100, FORECAST($C302,R$305:R$316,$C$305:$C$316)))) -> 0.7192529101 | S302: =IF(MAX(C305:C316)-MIN(C305:C316)<5,AVERAGEIF(C305:C316,">0",S305:S316), IF(FORECAST($C302,S$305:S$316,$C$305:$C$316)<0,0, IF(FORECAST($C302,S$305:S$316,$C$305:$C$316)>100,100, FORECAST($C302,S$305:S$316,$C$305:$C$316)))) -> 75.58320937 | W302: =IF(MAX(C305:C316)-MIN(C305:C316)<5,AVERAGEIF(C305:C316,">0",W305:W316), IF(FORECAST($C302,W$305:W$316,$C$305:$C$316)<0,0, IF(FORECAST($C302,W$305:W$316,$C$305:$C$316)>100,100, FORECAST($C302,W$305:W$316,$C$305:$C$316)))) -> 0 | X302: =IF(MAX(C305:C316)-MIN(C305:C316)<5,AVERAGEIF(C305:C316,">0",X305:X316), IF(FORECAST($C302,X$305:X$316,$C$305:$C$316)<0,0, IF(FORECAST($C302,X$305:X$316,$C$305:$C$316)>100,100, FORECAST($C302,X$305:X$316,$C$305:$C$316)))) -> 93.20324088 | AB302: =IF(MAX(C305:C316)-MIN(C305:C316)<5,AVERAGEIF(C305:C316,">0",AB305:AB316), IF(FORECAST($C302,AB$305:AB$316,$C$305:$C$316)<0,0, IF(FORECAST($C302,AB$305:AB$316,$C$305:$C$316)>100,100, FORECAST($C302,AB$305:AB$316,$C$305:$C$316)))) -> 0
B304: Survey | C304: Year | D304: Improved | E304: % Improved < = 30min | H304: Surface water | I304: Improved | J304: % Improved < = 30min | M304: Surface water | N304: Improved | O304: % Improved < = 30min | R304: Surface water | S304: Improved | T304: % Improved < = 30min | W304: Surface water | X304: Improved | Y304: % Improved < = 30min | AB304: Surface water
B305: DHS01 | D305: =IF(ISERROR(INDIRECT(CONCATENATE($B305,"!M16"))),"",INDIRECT(CONCATENATE($B305,"!M16"))) -> 30.63454187 | E305: =IF(ISERROR(INDIRECT(CONCATENATE($B305,"!M23"))),"",INDIRECT(CONCATENATE($B305,"!M23"))) -> N/A | H305: =IF(ISERROR(INDIRECT(CONCATENATE($B305,"!M21"))),"",INDIRECT(CONCATENATE($B305,"!M21"))) -> 13.23487795 | I305: =IF(ISERROR(INDIRECT(CONCATENATE($B305,"!N16"))),"",INDIRECT(CONCATENATE($B305,"!N16"))) -> 32.71018955 | J305: =IF(ISERROR(INDIRECT(CONCATENATE($B305,"!N23"))),"",INDIRECT(CONCATENATE($B305,"!N23"))) -> N/A | M305: =IF(ISERROR(INDIRECT(CONCATENATE($B305,"!N21"))),"",INDIRECT(CONCATENATE($B305,"!N21"))) -> 7.455074033 | N305: =IF(ISERROR(INDIRECT(CONCATENATE($B305,"!O16"))),"",INDIRECT(CONCATENATE($B305,"!O16"))) -> 33.92492036 | O305: =IF(ISERROR(INDIRECT(CONCATENATE($B305,"!O23"))),"",INDIRECT(CONCATENATE($B305,"!O23"))) -> N/A | R305: =IF(ISERROR(INDIRECT(CONCATENATE($B305,"!O21"))),"",INDIRECT(CONCATENATE($B305,"!O21"))) -> 4.083735274 | S305: =IF(ISERROR(INDIRECT(CONCATENATE($B305,"!P16"))),"",INDIRECT(CONCATENATE($B305,"!P16"))) -> 35.82572346 | T305: =IF(ISERROR(INDIRECT(CONCATENATE($B305,"!P23"))),"",INDIRECT(CONCATENATE($B305,"!P23"))) -> N/A | W305: =IF(ISERROR(INDIRECT(CONCATENATE($B305,"!P21"))),"",INDIRECT(CONCATENATE($B305,"!P21"))) -> 2.03268291 | X305: =IF(ISERROR(INDIRECT(CONCATENATE($B305,"!Q16"))),"",INDIRECT(CONCATENATE($B305,"!Q16"))) -> 36.15409089 | Y305: =IF(ISERROR(INDIRECT(CONCATENATE($B305,"!Q23"))),"",INDIRECT(CONCATENATE($B305,"!Q23"))) -> N/A | AB305: =IF(ISERROR(INDIRECT(CONCATENATE($B305,"!Q221"))),"",INDIRECT(CONCATENATE($B305,"!Q21"))) -> 2.140791729
B306: DHS06 | C306: 2006 | D306: 41.64264594 | E306: 97.56786467 | H306: 11.31090739 | I306: 45.3219491 | J306: 98.76564262 | M306: 6.52559714 | N306: 44.2170224 | O306: 98.6805797 | R306: 2.996792404 | S306: 44.02379501 | T306: 98.17886905 | W306: 3.231409016 | X306: 54.6176522 | Y306: 98.87550996 | AB306: 1.835659327
B307: MICS10 | C307: 2010 | D307: 53.7473666 | E307: 90.34036041 | H307: 0.9473361967 | I307: 52.20929251 | J307: 90.70440019 | M307: 1.729254959 | N307: 57.73377172 | O307: 92.467399 | R307: 5.571910425 | S307: 63.98057344 | T307: 94.26806637 | W307: 6.632641695 | X307: 76.7157033 | Y307: 93.0751531 | AB307: 4.637569379
B308: DHS13 | C308: 2013 | D308: 46.1 | E308: 96.2 | H308: 1.9 | I308: 52 | J308: 96.6 | M308: 2.6 | N308: 56.4 | O308: 96.8 | R308: 2.8 | S308: 61.8 | T308: 95.1 | W308: 2 | X308: 79.2 | Y308: 96.1 | AB308: 0.4
B309: MIS15 | C309: 2015 | D309: 50.50583538 | E309: 89.70034921 | H309: 4.221246948 | I309: 54.17116166 | J309: 92.62022544 | M309: 2.576658645 | N309: 62.17261716 | O309: 94.20059887 | R309: 1.011228286 | S309: 68.21465077 | T309: 98.08381731 | W309: 0.06325253402 | X309: 80.43486951 | Y309: 93.9684661 | AB309: 0.1219625392
B310: MICS15 | C310: 2015 | D310: 51.04475864 | E310: 91.85533456 | H310: 10.85305228 | I310: 57.18784619 | J310: 93.55388137 | M310: 4.45353328 | N310: 58.09995409 | O310: 96.47474845 | R310: 1.98947026 | S310: 66.82487121 | T310: 96.0991574 | W310: 1.427095849 | X310: 80.71335307 | Y310: 96.60384585 | AB310: 1.230304418
B311: DHS18 | C311: 2018 | D311: 47.63222374 | E311: 87.36027725 | H311: 6.989517723 | I311: 49.92486582 | J311: 92.56401792 | M311: 2.368469801 | N311: 58.02137233 | O311: 96.5435525 | R311: 1.107164169 | S311: 67.76167804 | T311: 96.6504869 | W311: 0.6380751434 | X311: 85.77783874 | Y311: 96.80839517 | AB311: 0.3081386457
B318: =CONCATENATE("Rural use of drinking water sources, ",C299,"–",C300) -> Rural use of drinking water sources, 2000–2020 | S318: Data points used for regression

Sheet Sanitation
B4: Summary of trends in use of sanitation facilities by wealth quintile (%)
B5: =IF(ISERROR(INDIRECT(CONCATENATE($B105,"!A2"))),"",INDIRECT(CONCATENATE($B105,"!A2"))) -> Mali
B7: =B118 -> National use of sanitation facilities, 2000–2020 | J7: =B218 -> Urban use of sanitation facilities, 2000–2020 | R7: =B318 -> Rural use of sanitation facilities, 2000–2020
B31: =IF(ISERROR(INDIRECT(CONCATENATE($B105,"!A2"))),"",INDIRECT(CONCATENATE($B105,"!A2"))) -> Mali | F31: Poorest | J31: Poor | N31: Middle | R31: Rich | V31: Richest
F32: Basic | G32: Limited | H32: Unimproved | I32: Open defecation | J32: Basic | K32: Limited | L32: Unimproved | M32: Open defecation | N32: Basic | O32: Limited | P32: Unimproved | Q32: Open defecation | R32: Basic | S32: Limited | T32: Unimproved | U32: Open defecation | V32: Basic | W32: Limited | X32: Unimproved | Y32: Open defecation
B33: NATIONAL | D33: Estimate | E33: =C99 -> 2000 | F33: =E99 -> 16.44604241 | G33: =F99 -> 4.506375391 | H33: 55.3048171 | I33: 23.74276509 | J33: =J99 -> 13.02007242 | K33: =K99 -> 3.773881434 | L33: 54.20442769 | M33: 29.00161845 | N33: =O99 -> 16.17438706 | O33: =P99 -> 5.461305165 | P33: 49.56610929 | Q33: 28.79819848 | R33: =T99 -> 27.23204382 | S33: =U99 -> 12.86654009 | T33: 29.08854118 | U33: 30.8128749 | V33: =Y99 -> 55.9732261 | W33: =Z99 -> 31.74494609 | X33: 11.28961031 | Y33: 0.9922175062
E34: =C100 -> 2020 | F34: =E100 -> 15.82627619 | G34: 4.336553424 | H34: 49.78973748 | I34: 30.0474329 | J34: =J100 -> 24.55987413 | K34: 7.118704877 | L34: 60.69973354 | M34: 7.621687445 | N34: =O100 -> 31.36882761 | O34: 10.59172998 | P34: 58.03944241 | Q34: 0 | R34: =T100 -> 49.89284526 | S34: 23.57326898 | T34: 26.53388576 | U34: 0 | V34: =Y100 -> 60.18705672 | W34: 34.13479986 | X34: 5.678143419 | Y34: 0
B36: URBAN | D36: Estimate | E36: =C199 -> 2000 | F36: =E199 -> 29.57458718 | G36: =F199 -> 18.53037547 | H36: 40.23843282 | I36: 11.65660454 | J36: =J199 -> 43.29088536 | K36: =K199 -> 37.40105424 | L36: 11.58221388 | M36: 7.725846511 | N36: =O199 -> 39.55865252 | O36: =P199 -> 35.21217657 | P36: 23.6930646 | Q36: 1.536106323 | R36: =T199 -> 50.04687546 | S36: =U199 -> 34.98656227 | T36: 14.39450124 | U36: 0.5720610276 | V36: =Y199 -> 70.22478535 | W36: =Z199 -> 23.7565978 | X36: 5.800056987 | Y36: 0.2185598619
E37: =C200 -> 2020 | F37: =E200 -> 37.14023099 | G37: 23.27073649 | H37: 39.02091722 | I37: 0.5681152928 | J37: =J200 -> 45.09079365 | K37: 38.9560806 | L37: 15.95312575 | M37: 0 | N37: =O200 -> 49.31219137 | O37: 43.89405298 | P37: 6.793755656 | Q37: 0 | R37: =T200 -> 57.36211744 | S37: 40.10047132 | T37: 2.507039512 | U37: 0.03037172819 | V37: =Y200 -> 73.06216674 | W37: 24.71646586 | X37: 2.221367398 | Y37: 0
B39: RURAL | D39: Estimate | E39: =C299 -> 2000 | F39: =E299 -> 11.57620473 | G39: =F299 -> 3.237785758 | H39: 43.41861898 | I39: 41.76739053 | J39: =J299 -> 11.14894547 | K39: =K299 -> 2.768070065 | L39: 55.48048355 | M39: 30.60250092 | N39: =O299 -> 13.02928684 | O39: =P299 -> 4.297527523 | P39: 52.08516583 | Q39: 30.5880198 | R39: =T299 -> 14.45515492 | S39: =U299 -> 4.615637687 | T39: 54.68681635 | U39: 26.24239104 | V39: =Y299 -> 30.73390087 | W39: =Z299 -> 11.22236758 | X39: 38.27409987 | Y39: 19.76963168
E40: =C300 -> 2020 | F40: =E300 -> 15.3150014 | G40: 4.283501766 | H40: 53.78217235 | I40: 26.61932449 | J40: =J300 -> 23.11930633 | K40: 5.740081872 | L40: 59.90038189 | M40: 11.24022991 | N40: =O300 -> 23.88024735 | O40: 7.876564656 | P40: 65.6166673 | Q40: 2.626520698 | R40: =T300 -> 35.98302337 | S40: 11.48964502 | T40: 52.52733161 | U40: 0 | V40: =Y300 -> 58.30836131 | W40: 21.29107744 | X40: 20.40056125 | Y40: 0
A97: NATIONAL | D97: Poorest | I97: Poor | N97: Middle | S97: Rich | X97: Richest
D98: Improved | E98: Basic | F98: Limited | G98: Unimproved | H98: Open defecation | I98: Improved | J98: Basic | K98: Limited | L98: Unimproved | M98: Open defecation | N98: Improved | O98: Basic | P98: Limited | Q98: Unimproved | R98: Open defecation | S98: Improved | T98: Basic | U98: Limited | V98: Unimproved | W98: Open defecation | X98: Improved | Y98: Basic | Z98: Limited | AA98: Unimproved | AB98: Open defecation
A99: Forecast period: | C99: 2000 | D99: =IF((D101+H101)>100,D101*100/(D101+H101),D101) -> 20.95241781 | E99: =D99*AVERAGEIF(E105:E116,">0")/100 -> 16.44604241 | F99: =D99*(100-AVERAGEIF(E105:E116,">0"))/100 -> 4.506375391 | G99: =100-(E99+F99+H99) -> 55.3048171 | H99: =IF((D101+H101)>100,H101*100/(D101+H101),H101) -> 23.74276509 | I99: =IF((I101+M101)>100,I101*100/(I101+M101),I101) -> 16.79395385 | J99: =I99*AVERAGEIF(J105:J116,">0")/100 -> 13.02007242 | K99: =I99*(100-AVERAGEIF(J105:J116,">0"))/100 -> 3.773881434 | L99: =100-(J99+K99+M99) -> 54.20442769 | M99: =IF((I101+M101)>100,M101*100/(I101+M101),M101) -> 29.00161845 | N99: =IF((N101+R101)>100,N101*100/(N101+R101),N101) -> 21.63569223 | O99: =N99*AVERAGEIF(O105:O116,">0")/100 -> 16.17438706 | P99: =N99*(100-AVERAGEIF(O105:O116,">0"))/100 -> 5.461305165 | Q99: =100-(O99+P99+R99) -> 49.56610929 | R99: =IF((N101+R101)>100,R101*100/(N101+R101),R101) -> 28.79819848 | S99: =IF((S101+W101)>100,S101*100/(S101+W101),S101) -> 40.09858392 | T99: =S99*AVERAGEIF(T105:T116,">0")/100 -> 27.23204382 | U99: =S99*(100-AVERAGEIF(T105:T116,">0"))/100 -> 12.86654009 | V99: =100-(T99+U99+W99) -> 29.08854118 | W99: =IF((S101+W101)>100,W101*100/(S101+W101),W101) -> 30.8128749 | X99: =IF((X101+AB101)>100,X101*100/(X101+AB101),X101) -> 87.71817219 | Y99: =X99*AVERAGEIF(Y105:Y116,">0")/100 -> 55.9732261 | Z99: =X99*(100-AVERAGEIF(Y105:Y116,">0"))/100 -> 31.74494609 | AA99: =100-(Y99+Z99+AB99) -> 11.28961031 | AB99: =IF((X101+AB101)>100,AB101*100/(X101+AB101),AB101) -> 0.9922175062
C100: 2020 | D100: =IF((D102+H102)>100,D102*100/(D102+H102),D102) -> 20.16282961 | E100: =D100*AVERAGEIF(E105:E116,">0")/100 -> 15.82627619 | F100: =D100*(100-AVERAGEIF(E105:E116,">0"))/100 -> 4.336553424 | G100: =100-(E100+F100+H100) -> 49.78973748 | H100: =IF((D102+H102)>100,H102*100/(D102+H102),H102) -> 30.0474329 | I100: =IF((I102+M102)>100,I102*100/(I102+M102),I102) -> 31.67857901 | J100: =I100*AVERAGEIF(J105:J116,">0")/100 -> 24.55987413 | K100: =I100*(100-AVERAGEIF(J105:J116,">0"))/100 -> 7.118704877 | L100: =100-(J100+K100+M100) -> 60.69973354 | M100: =IF((I102+M102)>100,M102*100/(I102+M102),M102) -> 7.621687445 | N100: =IF((N102+R102)>100,N102*100/(N102+R102),N102) -> 41.96055759 | O100: =N100*AVERAGEIF(O105:O116,">0")/100 -> 31.36882761 | P100: =N100*(100-AVERAGEIF(O105:O116,">0"))/100 -> 10.59172998 | Q100: =100-(O100+P100+R100) -> 58.03944241 | R100: =IF((N102+R102)>100,R102*100/(N102+R102),R102) -> 0 | S100: =IF((S102+W102)>100,S102*100/(S102+W102),S102) -> 73.46611424 | T100: =S100*AVERAGEIF(T105:T116,">0")/100 -> 49.89284526 | U100: =S100*(100-AVERAGEIF(T105:T116,">0"))/100 -> 23.57326898 | V100: =100-(T100+U100+W100) -> 26.53388576 | W100: =IF((S102+W102)>100,W102*100/(S102+W102),W102) -> 0 | X100: =IF((X102+AB102)>100,X102*100/(X102+AB102),X102) -> 94.32185658 | Y100: =X100*AVERAGEIF(Y105:Y116,">0")/100 -> 60.18705672 | Z100: =X100*(100-AVERAGEIF(Y105:Y116,">0"))/100 -> 34.13479986 | AA100: =100-(Y100+Z100+AB100) -> 5.678143419 | AB100: =IF((X102+AB102)>100,AB102*100/(X102+AB102),AB102) -> 0
A101: Regression period: | C101: =MinRegYear(C99,C105:C116) -> 2000 | D101: =IF(MAX(C105:C116)-MIN(C105:C116)<5,AVERAGEIF(C105:C116,">0",D105:D116), IF(FORECAST($C101,D$105:D$116,$C$105:$C$116)<0,0, IF(FORECAST($C101,D$105:D$116,$C$105:$C$116)>100,100, FORECAST($C101,D$105:D$116,$C$105:$C$116)))) -> 20.95241781 | H101: =IF(MAX(C105:C116)-MIN(C105:C116)<5,AVERAGEIF(C105:C116,">0",H105:H116), IF(FORECAST($C101,H$105:H$116,$C$105:$C$116)<0,0, IF(FORECAST($C101,H$105:H$116,$C$105:$C$116)>100,100, FORECAST($C101,H$105:H$116,$C$105:$C$116)))) -> 23.74276509 | I101: =IF(MAX(C105:C116)-MIN(C105:C116)<5,AVERAGEIF(C105:C116,">0",I105:I116), IF(FORECAST($C101,I$105:I$116,$C$105:$C$116)<0,0, IF(FORECAST($C101,I$105:I$116,$C$105:$C$116)>100,100, FORECAST($C101,I$105:I$116,$C$105:$C$116)))) -> 16.79395385 | M101: =IF(MAX(C105:C116)-MIN(C105:C116)<5,AVERAGEIF(C105:C116,">0",M105:M116), IF(FORECAST($C101,M$105:M$116,$C$105:$C$116)<0,0, IF(FORECAST($C101,M$105:M$116,$C$105:$C$116)>100,100, FORECAST($C101,M$105:M$116,$C$105:$C$116)))) -> 29.00161845 | N101: =IF(MAX(C105:C116)-MIN(C105:C116)<5,AVERAGEIF(C105:C116,">0",N105:N116), IF(FORECAST($C101,N$105:N$116,$C$105:$C$116)<0,0, IF(FORECAST($C101,N$105:N$116,$C$105:$C$116)>100,100, FORECAST($C101,N$105:N$116,$C$105:$C$116)))) -> 21.63569223 | R101: =IF(MAX(C105:C116)-MIN(C105:C116)<5,AVERAGEIF(C105:C116,">0",R105:R116), IF(FORECAST($C101,R$105:R$116,$C$105:$C$116)<0,0, IF(FORECAST($C101,R$105:R$116,$C$105:$C$116)>100,100, FORECAST($C101,R$105:R$116,$C$105:$C$116)))) -> 28.79819848 | S101: =IF(MAX(C105:C116)-MIN(C105:C116)<5,AVERAGEIF(C105:C116,">0",S105:S116), IF(FORECAST($C101,S$105:S$116,$C$105:$C$116)<0,0, IF(FORECAST($C101,S$105:S$116,$C$105:$C$116)>100,100, FORECAST($C101,S$105:S$116,$C$105:$C$116)))) -> 40.09858392 | W101: =IF(MAX(C105:C116)-MIN(C105:C116)<5,AVERAGEIF(C105:C116,">0",W105:W116), IF(FORECAST($C101,W$105:W$116,$C$105:$C$116)<0,0, IF(FORECAST($C101,W$105:W$116,$C$105:$C$116)>100,100, FORECAST($C101,W$105:W$116,$C$105:$C$116)))) -> 30.8128749 | X101: =IF(MAX(C105:C116)-MIN(C105:C116)<5,AVERAGEIF(C105:C116,">0",X105:X116), IF(FORECAST($C101,X$105:X$116,$C$105:$C$116)<0,0, IF(FORECAST($C101,X$105:X$116,$C$105:$C$116)>100,100, FORECAST($C101,X$105:X$116,$C$105:$C$116)))) -> 87.71817219 | AB101: =IF(MAX(C105:C116)-MIN(C105:C116)<5,AVERAGEIF(C105:C116,">0",AB105:AB116), IF(FORECAST($C101,AB$105:AB$116,$C$105:$C$116)<0,0, IF(FORECAST($C101,AB$105:AB$116,$C$105:$C$116)>100,100, FORECAST($C101,AB$105:AB$116,$C$105:$C$116)))) -> 0.9922175062
C102: =MaxRegYear(C100,C105:C116) -> 2020 | D102: =IF(MAX(C105:C116)-MIN(C105:C116)<5,AVERAGEIF(C105:C116,">0",D105:D116), IF(FORECAST($C102,D$105:D$116,$C$105:$C$116)<0,0, IF(FORECAST($C102,D$105:D$116,$C$105:$C$116)>100,100, FORECAST($C102,D$105:D$116,$C$105:$C$116)))) -> 20.16282961 | H102: =IF(MAX(C105:C116)-MIN(C105:C116)<5,AVERAGEIF(C105:C116,">0",H105:H116), IF(FORECAST($C102,H$105:H$116,$C$105:$C$116)<0,0, IF(FORECAST($C102,H$105:H$116,$C$105:$C$116)>100,100, FORECAST($C102,H$105:H$116,$C$105:$C$116)))) -> 30.0474329 | I102: =IF(MAX(C105:C116)-MIN(C105:C116)<5,AVERAGEIF(C105:C116,">0",I105:I116), IF(FORECAST($C102,I$105:I$116,$C$105:$C$116)<0,0, IF(FORECAST($C102,I$105:I$116,$C$105:$C$116)>100,100, FORECAST($C102,I$105:I$116,$C$105:$C$116)))) -> 31.67857901 | M102: =IF(MAX(C105:C116)-MIN(C105:C116)<5,AVERAGEIF(C105:C116,">0",M105:M116), IF(FORECAST($C102,M$105:M$116,$C$105:$C$116)<0,0, IF(FORECAST($C102,M$105:M$116,$C$105:$C$116)>100,100, FORECAST($C102,M$105:M$116,$C$105:$C$116)))) -> 7.621687445 | N102: =IF(MAX(C105:C116)-MIN(C105:C116)<5,AVERAGEIF(C105:C116,">0",N105:N116), IF(FORECAST($C102,N$105:N$116,$C$105:$C$116)<0,0, IF(FORECAST($C102,N$105:N$116,$C$105:$C$116)>100,100, FORECAST($C102,N$105:N$116,$C$105:$C$116)))) -> 41.96055759 | R102: =IF(MAX(C105:C116)-MIN(C105:C116)<5,AVERAGEIF(C105:C116,">0",R105:R116), IF(FORECAST($C102,R$105:R$116,$C$105:$C$116)<0,0, IF(FORECAST($C102,R$105:R$116,$C$105:$C$116)>100,100, FORECAST($C102,R$105:R$116,$C$105:$C$116)))) -> 0 | S102: =IF(MAX(C105:C116)-MIN(C105:C116)<5,AVERAGEIF(C105:C116,">0",S105:S116), IF(FORECAST($C102,S$105:S$116,$C$105:$C$116)<0,0, IF(FORECAST($C102,S$105:S$116,$C$105:$C$116)>100,100, FORECAST($C102,S$105:S$116,$C$105:$C$116)))) -> 73.46611424 | W102: =IF(MAX(C105:C116)-MIN(C105:C116)<5,AVERAGEIF(C105:C116,">0",W105:W116), IF(FORECAST($C102,W$105:W$116,$C$105:$C$116)<0,0, IF(FORECAST($C102,W$105:W$116,$C$105:$C$116)>100,100, FORECAST($C102,W$105:W$116,$C$105:$C$116)))) -> 0 | X102: =IF(MAX(C105:C116)-MIN(C105:C116)<5,AVERAGEIF(C105:C116,">0",X105:X116), IF(FORECAST($C102,X$105:X$116,$C$105:$C$116)<0,0, IF(FORECAST($C102,X$105:X$116,$C$105:$C$116)>100,100, FORECAST($C102,X$105:X$116,$C$105:$C$116)))) -> 94.32185658 | AB102: =IF(MAX(C105:C116)-MIN(C105:C116)<5,AVERAGEIF(C105:C116,">0",AB105:AB116), IF(FORECAST($C102,AB$105:AB$116,$C$105:$C$116)<0,0, IF(FORECAST($C102,AB$105:AB$116,$C$105:$C$116)>100,100, FORECAST($C102,AB$105:AB$116,$C$105:$C$116)))) -> 0
B104: Survey | C104: Year | D104: Improved | E104: Not shared | H104: Open defecation | I104: Improved | J104: Not shared | M104: Open defecation | N104: Improved | O104: Not shared | R104: Open defecation | S104: Improved | T104: Not shared | W104: Open defecation | X104: Improved | Y104: Not shared | AB104: Open defecation
B105: DHS01 | C105: 2001 | D105: =IF(ISERROR(INDIRECT(CONCATENATE($B105,"!C122"))),"",INDIRECT(CONCATENATE($B105,"!C122"))) -> 23.11622266 | E105: =IF(ISERROR(INDIRECT(CONCATENATE($B105,"!C129"))),"",INDIRECT(CONCATENATE($B105,"!C129"))) -> N/A | H105: =IF(ISERROR(INDIRECT(CONCATENATE($B105,"!C127"))),"",INDIRECT(CONCATENATE($B105,"!C127"))) -> 17.50776363 | I105: =IF(ISERROR(INDIRECT(CONCATENATE($B105,"!D122"))),"",INDIRECT(CONCATENATE($B105,"!D122"))) -> 20.0053036 | J105: =IF(ISERROR(INDIRECT(CONCATENATE($B105,"!D129"))),"",INDIRECT(CONCATENATE($B105,"!D129"))) -> N/A | M105: =IF(ISERROR(INDIRECT(CONCATENATE($B105,"!D127"))),"",INDIRECT(CONCATENATE($B105,"!D127"))) -> 24.87547852 | N105: =IF(ISERROR(INDIRECT(CONCATENATE($B105,"!E122"))),"",INDIRECT(CONCATENATE($B105,"!E122"))) -> 24.98829986 | O105: =IF(ISERROR(INDIRECT(CONCATENATE($B105,"!E129"))),"",INDIRECT(CONCATENATE($B105,"!E129"))) -> N/A | R105: =IF(ISERROR(INDIRECT(CONCATENATE($B105,"!E127"))),"",INDIRECT(CONCATENATE($B105,"!E127"))) -> 27.22963855 | S105: =IF(ISERROR(INDIRECT(CONCATENATE($B105,"!F122"))),"",INDIRECT(CONCATENATE($B105,"!F122"))) -> 40.32127246 | T105: =IF(ISERROR(INDIRECT(CONCATENATE($B105,"!F129"))),"",INDIRECT(CONCATENATE($B105,"!F129"))) -> N/A | W105: =IF(ISERROR(INDIRECT(CONCATENATE($B105,"!F127"))),"",INDIRECT(CONCATENATE($B105,"!F127"))) -> 33.72737436 | X105: =IF(ISERROR(INDIRECT(CONCATENATE($B105,"!G122"))),"",INDIRECT(CONCATENATE($B105,"!G122"))) -> 87.48501054 | Y105: =IF(ISERROR(INDIRECT(CONCATENATE($B105,"!G129"))),"",INDIRECT(CONCATENATE($B105,"!G129"))) -> N/A | AB105: =IF(ISERROR(INDIRECT(CONCATENATE($B105,"!G2127"))),"",INDIRECT(CONCATENATE($B105,"!G127"))) -> 0.6945570746
B106: DHS06 | C106: 2006 | D106: 19.17846596 | E106: N/A | H106: 35.23626895 | I106: 19.61602773 | J106: N/A | M106: 27.62828437 | N106: 26.39735271 | O106: N/A | R106: 20.62818273 | S106: 54.50074325 | T106: N/A | W106: 13.43159022 | X106: 90.74624709 | Y106: N/A | AB106: 1.040490715
B107: MICS10 | D107: 12.81858602 | E107: 90.43788259 | H107: 18.46171699 | I107: 12.9931542 | J107: 83.29685389 | M107: 21.12166914 | N107: 19.40816335 | O107: 85.97945472 | R107: 21.11803735 | S107: 51.21835156 | T107: 83.47891917 | W107: 7.517503817 | X107: 82.41470011 | Y107: 64.8411609 | AB107: 0.6769917026
B108: DHS13 | D108: 15.92572681 | E108: 59.2801318 | H108: 23.67101649 | I108: 20.81552182 | J108: 63.63184133 | M108: 16.25174946 | N108: 26.7522192 | O108: 61.41248146 | R108: 10.53448638 | S108: 53.83860857 | T108: 55.24718729 | W108: 3.72531676 | X108: 91.06964582 | Y108: 56.14674941 | AB108: 0.09856999361
B109: MIS15 | C109: 2015 | D109: 14.77899366 | E109: 89.6469815 | H109: 21.56171432 | I109: 22.4667226 | J109: 86.64556019 | M109: 9.317919708 | N109: 35.96695967 | O109: 86.65696128 | R109: 2.736800648 | S109: 69.55115738 | T109: 74.54681765 | W109: 0.8724705228 | X109: 94.5492425 | Y109: 66.89240383 | AB109: 0
B110: MICS15 | C110: 2015 | D110: 19.60448374 | E110: 88.63023294 | H110: 34.090401 | I110: 26.0410394 | J110: 89.27742966 | M110: 13.7766523 | N110: 29.89552125 | O110: 82.23601814 | R110: 5.762619473 | S110: 51.3219368 | T110: 71.37510735 | W110: 2.333922053 | X110: 89.79704337 | Y110: 71.83401097 | AB110: 0.2510077353
B111: DHS18 | C111: 2018 | D111: 25.91255549 | E111: 64.46645667 | H111: 27.65551404 | I111: 36.77339512 | J111: 64.78997849 | M111: 10.61494709 | N111: 46.82370739 | O111: 57.50453593 | R111: 4.059364918 | S111: 76.55851807 | T111: 54.91562844 | W111: 0.9851355398 | X111: 94.17344952 | Y111: 59.33715935 | AB111: 0.0003521937886
B118: =CONCATENATE("National use of sanitation facilities, ",C99,"–",C100) -> National use of sanitation facilities, 2000–2020 | S118: Data points used for regression
A197: URBAN | D197: Poorest | I197: Poor | N197: Middle | S197: Rich | X197: Richest
D198: Improved | E198: Basic | F198: Limited | G198: Unimproved | H198: Open defecation | I198: Improved | J198: Basic | K198: Limited | L198: Unimproved | M198: Open defecation | N198: Improved | O198: Basic | P198: Limited | Q198: Unimproved | R198: Open defecation | S198: Improved | T198: Basic | U198: Limited | V198: Unimproved | W198: Open defecation | X198: Improved | Y198: Basic | Z198: Limited | AA198: Unimproved | AB198: Open defecation
A199: Forecast period: | C199: 2000 | D199: =IF((D201+H201)>100,D201*100/(D201+H201),D201) -> 48.10496265 | E199: =D199*AVERAGEIF(E205:E216,">0")/100 -> 29.57458718 | F199: =D199*(100-AVERAGEIF(E205:E216,">0"))/100 -> 18.53037547 | G199: =100-(E199+F199+H199) -> 40.23843282 | H199: =IF((D201+H201)>100,H201*100/(D201+H201),H201) -> 11.65660454 | I199: =IF((I201+M201)>100,I201*100/(I201+M201),I201) -> 80.69193961 | J199: =I199*AVERAGEIF(J205:J216,">0")/100 -> 43.29088536 | K199: =I199*(100-AVERAGEIF(J205:J216,">0"))/100 -> 37.40105424 | L199: =100-(J199+K199+M199) -> 11.58221388 | M199: =IF((I201+M201)>100,M201*100/(I201+M201),M201) -> 7.725846511 | N199: =IF((N201+R201)>100,N201*100/(N201+R201),N201) -> 74.77082908 | O199: =N199*AVERAGEIF(O205:O216,">0")/100 -> 39.55865252 | P199: =N199*(100-AVERAGEIF(O205:O216,">0"))/100 -> 35.21217657 | Q199: =100-(O199+P199+R199) -> 23.6930646 | R199: =IF((N201+R201)>100,R201*100/(N201+R201),R201) -> 1.536106323 | S199: =IF((S201+W201)>100,S201*100/(S201+W201),S201) -> 85.03343774 | T199: =S199*AVERAGEIF(T205:T216,">0")/100 -> 50.04687546 | U199: =S199*(100-AVERAGEIF(T205:T216,">0"))/100 -> 34.98656227 | V199: =100-(T199+U199+W199) -> 14.39450124 | W199: =IF((S201+W201)>100,W201*100/(S201+W201),W201) -> 0.5720610276 | X199: =IF((X201+AB201)>100,X201*100/(X201+AB201),X201) -> 93.98138315 | Y199: =X199*AVERAGEIF(Y205:Y216,">0")/100 -> 70.22478535 | Z199: =X199*(100-AVERAGEIF(Y205:Y216,">0"))/100 -> 23.7565978 | AA199: =100-(Y199+Z199+AB199) -> 5.800056987 | AB199: =IF((X201+AB201)>100,AB201*100/(X201+AB201),AB201) -> 0.2185598619
C200: 2020 | D200: =IF((D202+H202)>100,D202*100/(D202+H202),D202) -> 60.41096749 | E200: =D200*AVERAGEIF(E205:E216,">0")/100 -> 37.14023099 | F200: =D200*(100-AVERAGEIF(E205:E216,">0"))/100 -> 23.27073649 | G200: =100-(E200+F200+H200) -> 39.02091722 | H200: =IF((D202+H202)>100,H202*100/(D202+H202),H202) -> 0.5681152928 | I200: =IF((I202+M202)>100,I202*100/(I202+M202),I202) -> 84.04687425 | J200: =I200*AVERAGEIF(J205:J216,">0")/100 -> 45.09079365 | K200: =I200*(100-AVERAGEIF(J205:J216,">0"))/100 -> 38.9560806 | L200: =100-(J200+K200+M200) -> 15.95312575 | M200: =IF((I202+M202)>100,M202*100/(I202+M202),M202) -> 0 | N200: =IF((N202+R202)>100,N202*100/(N202+R202),N202) -> 93.20624434 | O200: =N200*AVERAGEIF(O205:O216,">0")/100 -> 49.31219137 | P200: =N200*(100-AVERAGEIF(O205:O216,">0"))/100 -> 43.89405298 | Q200: =100-(O200+P200+R200) -> 6.793755656 | R200: =IF((N202+R202)>100,R202*100/(N202+R202),R202) -> 0 | S200: =IF((S202+W202)>100,S202*100/(S202+W202),S202) -> 97.46258876 | T200: =S200*AVERAGEIF(T205:T216,">0")/100 -> 57.36211744 | U200: =S200*(100-AVERAGEIF(T205:T216,">0"))/100 -> 40.10047132 | V200: =100-(T200+U200+W200) -> 2.507039512 | W200: =IF((S202+W202)>100,W202*100/(S202+W202),W202) -> 0.03037172819 | X200: =IF((X202+AB202)>100,X202*100/(X202+AB202),X202) -> 97.7786326 | Y200: =X200*AVERAGEIF(Y205:Y216,">0")/100 -> 73.06216674 | Z200: =X200*(100-AVERAGEIF(Y205:Y216,">0"))/100 -> 24.71646586 | AA200: =100-(Y200+Z200+AB200) -> 2.221367398 | AB200: =IF((X202+AB202)>100,AB202*100/(X202+AB202),AB202) -> 0
A201: Regression period: | C201: =MinRegYear(C199,C205:C216) -> 2000 | D201: =IF(MAX(C205:C216)-MIN(C205:C216)<5,AVERAGEIF(C205:C216,">0",D205:D216), IF(FORECAST($C201,D$205:D$216,$C$205:$C$216)<0,0, IF(FORECAST($C201,D$205:D$216,$C$205:$C$216)>100,100, FORECAST($C201,D$205:D$216,$C$205:$C$216)))) -> 48.10496265 | H201: =IF(MAX(C205:C216)-MIN(C205:C216)<5,AVERAGEIF(C205:C216,">0",H205:H216), IF(FORECAST($C201,H$205:H$216,$C$205:$C$216)<0,0, IF(FORECAST($C201,H$205:H$216,$C$205:$C$216)>100,100, FORECAST($C201,H$205:H$216,$C$205:$C$216)))) -> 11.65660454 | I201: =IF(MAX(C205:C216)-MIN(C205:C216)<5,AVERAGEIF(C205:C216,">0",I205:I216), IF(FORECAST($C201,I$205:I$216,$C$205:$C$216)<0,0, IF(FORECAST($C201,I$205:I$216,$C$205:$C$216)>100,100, FORECAST($C201,I$205:I$216,$C$205:$C$216)))) -> 80.69193961 | M201: =IF(MAX(C205:C216)-MIN(C205:C216)<5,AVERAGEIF(C205:C216,">0",M205:M216), IF(FORECAST($C201,M$205:M$216,$C$205:$C$216)<0,0, IF(FORECAST($C201,M$205:M$216,$C$205:$C$216)>100,100, FORECAST($C201,M$205:M$216,$C$205:$C$216)))) -> 7.725846511 | N201: =IF(MAX(C205:C216)-MIN(C205:C216)<5,AVERAGEIF(C205:C216,">0",N205:N216), IF(FORECAST($C201,N$205:N$216,$C$205:$C$216)<0,0, IF(FORECAST($C201,N$205:N$216,$C$205:$C$216)>100,100, FORECAST($C201,N$205:N$216,$C$205:$C$216)))) -> 74.77082908 | R201: =IF(MAX(C205:C216)-MIN(C205:C216)<5,AVERAGEIF(C205:C216,">0",R205:R216), IF(FORECAST($C201,R$205:R$216,$C$205:$C$216)<0,0, IF(FORECAST($C201,R$205:R$216,$C$205:$C$216)>100,100, FORECAST($C201,R$205:R$216,$C$205:$C$216)))) -> 1.536106323 | S201: =IF(MAX(C205:C216)-MIN(C205:C216)<5,AVERAGEIF(C205:C216,">0",S205:S216), IF(FORECAST($C201,S$205:S$216,$C$205:$C$216)<0,0, IF(FORECAST($C201,S$205:S$216,$C$205:$C$216)>100,100, FORECAST($C201,S$205:S$216,$C$205:$C$216)))) -> 85.03343774 | W201: =IF(MAX(C205:C216)-MIN(C205:C216)<5,AVERAGEIF(C205:C216,">0",W205:W216), IF(FORECAST($C201,W$205:W$216,$C$205:$C$216)<0,0, IF(FORECAST($C201,W$205:W$216,$C$205:$C$216)>100,100, FORECAST($C201,W$205:W$216,$C$205:$C$216)))) -> 0.5720610276 | X201: =IF(MAX(C205:C216)-MIN(C205:C216)<5,AVERAGEIF(C205:C216,">0",X205:X216), IF(FORECAST($C201,X$205:X$216,$C$205:$C$216)<0,0, IF(FORECAST($C201,X$205:X$216,$C$205:$C$216)>100,100, FORECAST($C201,X$205:X$216,$C$205:$C$216)))) -> 93.98138315 | AB201: =IF(MAX(C205:C216)-MIN(C205:C216)<5,AVERAGEIF(C205:C216,">0",AB205:AB216), IF(FORECAST($C201,AB$205:AB$216,$C$205:$C$216)<0,0, IF(FORECAST($C201,AB$205:AB$216,$C$205:$C$216)>100,100, FORECAST($C201,AB$205:AB$216,$C$205:$C$216)))) -> 0.2185598619
C202: =MaxRegYear(C200,C205:C216) -> 2020 | D202: =IF(MAX(C205:C216)-MIN(C205:C216)<5,AVERAGEIF(C205:C216,">0",D205:D216), IF(FORECAST($C202,D$205:D$216,$C$205:$C$216)<0,0, IF(FORECAST($C202,D$205:D$216,$C$205:$C$216)>100,100, FORECAST($C202,D$205:D$216,$C$205:$C$216)))) -> 60.41096749 | H202: =IF(MAX(C205:C216)-MIN(C205:C216)<5,AVERAGEIF(C205:C216,">0",H205:H216), IF(FORECAST($C202,H$205:H$216,$C$205:$C$216)<0,0, IF(FORECAST($C202,H$205:H$216,$C$205:$C$216)>100,100, FORECAST($C202,H$205:H$216,$C$205:$C$216)))) -> 0.5681152928 | I202: =IF(MAX(C205:C216)-MIN(C205:C216)<5,AVERAGEIF(C205:C216,">0",I205:I216), IF(FORECAST($C202,I$205:I$216,$C$205:$C$216)<0,0, IF(FORECAST($C202,I$205:I$216,$C$205:$C$216)>100,100, FORECAST($C202,I$205:I$216,$C$205:$C$216)))) -> 84.04687425 | M202: =IF(MAX(C205:C216)-MIN(C205:C216)<5,AVERAGEIF(C205:C216,">0",M205:M216), IF(FORECAST($C202,M$205:M$216,$C$205:$C$216)<0,0, IF(FORECAST($C202,M$205:M$216,$C$205:$C$216)>100,100, FORECAST($C202,M$205:M$216,$C$205:$C$216)))) -> 0 | N202: =IF(MAX(C205:C216)-MIN(C205:C216)<5,AVERAGEIF(C205:C216,">0",N205:N216), IF(FORECAST($C202,N$205:N$216,$C$205:$C$216)<0,0, IF(FORECAST($C202,N$205:N$216,$C$205:$C$216)>100,100, FORECAST($C202,N$205:N$216,$C$205:$C$216)))) -> 93.20624434 | R202: =IF(MAX(C205:C216)-MIN(C205:C216)<5,AVERAGEIF(C205:C216,">0",R205:R216), IF(FORECAST($C202,R$205:R$216,$C$205:$C$216)<0,0, IF(FORECAST($C202,R$205:R$216,$C$205:$C$216)>100,100, FORECAST($C202,R$205:R$216,$C$205:$C$216)))) -> 0 | S202: =IF(MAX(C205:C216)-MIN(C205:C216)<5,AVERAGEIF(C205:C216,">0",S205:S216), IF(FORECAST($C202,S$205:S$216,$C$205:$C$216)<0,0, IF(FORECAST($C202,S$205:S$216,$C$205:$C$216)>100,100, FORECAST($C202,S$205:S$216,$C$205:$C$216)))) -> 97.46258876 | W202: =IF(MAX(C205:C216)-MIN(C205:C216)<5,AVERAGEIF(C205:C216,">0",W205:W216), IF(FORECAST($C202,W$205:W$216,$C$205:$C$216)<0,0, IF(FORECAST($C202,W$205:W$216,$C$205:$C$216)>100,100, FORECAST($C202,W$205:W$216,$C$205:$C$216)))) -> 0.03037172819 | X202: =IF(MAX(C205:C216)-MIN(C205:C216)<5,AVERAGEIF(C205:C216,">0",X205:X216), IF(FORECAST($C202,X$205:X$216,$C$205:$C$216)<0,0, IF(FORECAST($C202,X$205:X$216,$C$205:$C$216)>100,100, FORECAST($C202,X$205:X$216,$C$205:$C$216)))) -> 97.7786326 | AB202: =IF(MAX(C205:C216)-MIN(C205:C216)<5,AVERAGEIF(C205:C216,">0",AB205:AB216), IF(FORECAST($C202,AB$205:AB$216,$C$205:$C$216)<0,0, IF(FORECAST($C202,AB$205:AB$216,$C$205:$C$216)>100,100, FORECAST($C202,AB$205:AB$216,$C$205:$C$216)))) -> 0
B204: Survey | C204: Year | D204: Improved | E204: Not shared | H204: Open defecation | I204: Improved | J204: Not shared | M204: Open defecation | N204: Improved | O204: Not shared | R204: Open defecation | S204: Improved | T204: Not shared | W204: Open defecation | X204: Improved | Y204: Not shared | AB204: Open defecation
B205: DHS01 | C205: 2001 | D205: =IF(ISERROR(INDIRECT(CONCATENATE($B205,"!H122"))),"",INDIRECT(CONCATENATE($B205,"!H122"))) -> 51.49865849 | E205: =IF(ISERROR(INDIRECT(CONCATENATE($B205,"!H129"))),"",INDIRECT(CONCATENATE($B205,"!H129"))) -> N/A | H205: =IF(ISERROR(INDIRECT(CONCATENATE($B205,"!H127"))),"",INDIRECT(CONCATENATE($B205,"!H127"))) -> 5.92507585 | I205: =IF(ISERROR(INDIRECT(CONCATENATE($B205,"!I122"))),"",INDIRECT(CONCATENATE($B205,"!I122"))) -> 84.01106829 | J205: =IF(ISERROR(INDIRECT(CONCATENATE($B205,"!I129"))),"",INDIRECT(CONCATENATE($B205,"!I129"))) -> N/A | M205: =IF(ISERROR(INDIRECT(CONCATENATE($B205,"!I127"))),"",INDIRECT(CONCATENATE($B205,"!I127"))) -> 2.366422299 | N205: =IF(ISERROR(INDIRECT(CONCATENATE($B205,"!J122"))),"",INDIRECT(CONCATENATE($B205,"!J122"))) -> 77.99899339 | O205: =IF(ISERROR(INDIRECT(CONCATENATE($B205,"!J129"))),"",INDIRECT(CONCATENATE($B205,"!J129"))) -> N/A | R205: =IF(ISERROR(INDIRECT(CONCATENATE($B205,"!J127"))),"",INDIRECT(CONCATENATE($B205,"!J127"))) -> 0.7859620031 | S205: =IF(ISERROR(INDIRECT(CONCATENATE($B205,"!K122"))),"",INDIRECT(CONCATENATE($B205,"!K122"))) -> 87.46403027 | T205: =IF(ISERROR(INDIRECT(CONCATENATE($B205,"!K129"))),"",INDIRECT(CONCATENATE($B205,"!K129"))) -> N/A | W205: =IF(ISERROR(INDIRECT(CONCATENATE($B205,"!K127"))),"",INDIRECT(CONCATENATE($B205,"!K127"))) -> 0 | X205: =IF(ISERROR(INDIRECT(CONCATENATE($B205,"!L122"))),"",INDIRECT(CONCATENATE($B205,"!L122"))) -> 95.75114375 | Y205: =IF(ISERROR(INDIRECT(CONCATENATE($B205,"!L129"))),"",INDIRECT(CONCATENATE($B205,"!L129"))) -> N/A | AB205: =IF(ISERROR(INDIRECT(CONCATENATE($B205,"!L2127"))),"",INDIRECT(CONCATENATE($B205,"!L127"))) -> 0
B206: DHS06 | C206: 2006 | D206: 51.86641549 | E206: N/A | H206: 17.00579891 | I206: 75.74691137 | J206: N/A | M206: 14.72490489 | N206: 83.61665138 | O206: N/A | R206: 1.766075562 | S206: 90.88277154 | T206: N/A | W206: 0.9389670868 | X206: 95.58038048 | Y206: N/A | AB206: 0.5271149611
B207: MICS10 | C207: 2010 | D207: 41.67731523 | E207: 86.12672891 | H207: 7.250130425 | I207: 84.01251323 | J207: 81.69720061 | M207: 0.3374386444 | N207: 69.50875178 | O207: 66.90409888 | R207: 1.351287484 | S207: 81.61629181 | T207: 59.35294509 | W207: 0.8863709321 | X207: 90.28200076 | Y207: 59.69740876 | AB207: 0
B208: DHS13 | C208: 2013 | D208: 67.09284129 | E208: 48.14754979 | H208: 1.993812177 | I208: 82.28366336 | J208: 38.96923156 | M208: 0.8213520848 | N208: 91.07178446 | O208: 43.01218887 | R208: 0.2552161106 | S208: 95.52217199 | T208: 52.52732982 | W208: 0.06499803521 | X208: 96.29111807 | Y208: 75.44695933 | AB208: 0
B209: MIS15 | C209: 2015 | D209: 68.43454065 | E209: 67.77528394 | H209: 0.06025026306 | I209: 87.77594353 | J209: 61.75732643 | M209: 0.4705741262 | N209: 92.54967366 | O209: 57.21977718 | R209: 0 | S209: 96.8831534 | T209: 61.76431098 | W209: 0 | X209: 99.50121664 | Y209: 74.04651479 | AB209: 0
B210: MICS15 | C210: 2015 | D210: 45.44498502 | E210: 59.70789611 | H210: 2.312253525 | I210: 81.18856391 | J210: 54.81133596 | M210: 0.8677098802 | N210: 89.73095382 | O210: 56.77621524 | R210: 0.2589971879 | S210: 94.76161009 | T210: 63.21115843 | W210: 0 | X210: 98.55752551 | Y210: 82.72050449 | AB210: 0
B211: DHS18 | C211: 2018 | D211: 58.71340124 | E211: 45.63896726 | H211: 3.803802557 | I211: 82.90915867 | J211: 31.0127972 | M211: 0.04457640647 | N211: 90.81711461 | O211: 40.62037915 | R211: 0 | S211: 96.57772405 | T211: 57.42187632 | W211: 0.001502871409 | X211: 96.71556971 | Y211: 81.69869901 | AB211: 0
B218: =CONCATENATE("Urban use of sanitation facilities, ",C199,"–",C200) -> Urban use of sanitation facilities, 2000–2020 | S218: Data points used for regression
A297: RURAL | D297: Poorest | I297: Poor | N297: Middle | S297: Rich | X297: Richest
D298: Improved | E298: Basic | F298: Limited | G298: Unimproved | H298: Open defecation | I298: Improved | J298: Basic | K298: Limited | L298: Unimproved | M298: Open defecation | N298: Improved | O298: Basic | P298: Limited | Q298: Unimproved | R298: Open defecation | S298: Improved | T298: Basic | U298: Limited | V298: Unimproved | W298: Open defecation | X298: Improved | Y298: Basic | Z298: Limited | AA298: Unimproved | AB298: Open defecation
A299: Forecast period: | C299: 2000 | D299: =IF((D301+H301)>100,D301*100/(D301+H301),D301) -> 14.81399049 | E299: =D299*AVERAGEIF(E305:E316,">0")/100 -> 11.57620473 | F299: =D299*(100-AVERAGEIF(E305:E316,">0"))/100 -> 3.237785758 | G299: =100-(E299+F299+H299) -> 43.41861898 | H299: =IF((D301+H301)>100,H301*100/(D301+H301),H301) -> 41.76739053 | I299: =IF((I301+M301)>100,I301*100/(I301+M301),I301) -> 13.91701553 | J299: =I299*AVERAGEIF(J305:J316,">0")/100 -> 11.14894547 | K299: =I299*(100-AVERAGEIF(J305:J316,">0"))/100 -> 2.768070065 | L299: =100-(J299+K299+M299) -> 55.48048355 | M299: =IF((I301+M301)>100,M301*100/(I301+M301),M301) -> 30.60250092 | N299: =IF((N301+R301)>100,N301*100/(N301+R301),N301) -> 17.32681437 | O299: =N299*AVERAGEIF(O305:O316,">0")/100 -> 13.02928684 | P299: =N299*(100-AVERAGEIF(O305:O316,">0"))/100 -> 4.297527523 | Q299: =100-(O299+P299+R299) -> 52.08516583 | R299: =IF((N301+R301)>100,R301*100/(N301+R301),R301) -> 30.5880198 | S299: =IF((S301+W301)>100,S301*100/(S301+W301),S301) -> 19.07079261 | T299: =S299*AVERAGEIF(T305:T316,">0")/100 -> 14.45515492 | U299: =S299*(100-AVERAGEIF(T305:T316,">0"))/100 -> 4.615637687 | V299: =100-(T299+U299+W299) -> 54.68681635 | W299: =IF((S301+W301)>100,W301*100/(S301+W301),W301) -> 26.24239104 | X299: =IF((X301+AB301)>100,X301*100/(X301+AB301),X301) -> 41.95626845 | Y299: =X299*AVERAGEIF(Y305:Y316,">0")/100 -> 30.73390087 | Z299: =X299*(100-AVERAGEIF(Y305:Y316,">0"))/100 -> 11.22236758 | AA299: =100-(Y299+Z299+AB299) -> 38.27409987 | AB299: =IF((X301+AB301)>100,AB301*100/(X301+AB301),AB301) -> 19.76963168
C300: 2020 | D300: =IF((D302+H302)>100,D302*100/(D302+H302),D302) -> 19.59850316 | E300: =D300*AVERAGEIF(E305:E316,">0")/100 -> 15.3150014 | F300: =D300*(100-AVERAGEIF(E305:E316,">0"))/100 -> 4.283501766 | G300: =100-(E300+F300+H300) -> 53.78217235 | H300: =IF((D302+H302)>100,H302*100/(D302+H302),H302) -> 26.61932449 | I300: =IF((I302+M302)>100,I302*100/(I302+M302),I302) -> 28.8593882 | J300: =I300*AVERAGEIF(J305:J316,">0")/100 -> 23.11930633 | K300: =I300*(100-AVERAGEIF(J305:J316,">0"))/100 -> 5.740081872 | L300: =100-(J300+K300+M300) -> 59.90038189 | M300: =IF((I302+M302)>100,M302*100/(I302+M302),M302) -> 11.24022991 | N300: =IF((N302+R302)>100,N302*100/(N302+R302),N302) -> 31.756812 | O300: =N300*AVERAGEIF(O305:O316,">0")/100 -> 23.88024735 | P300: =N300*(100-AVERAGEIF(O305:O316,">0"))/100 -> 7.876564656 | Q300: =100-(O300+P300+R300) -> 65.6166673 | R300: =IF((N302+R302)>100,R302*100/(N302+R302),R302) -> 2.626520698 | S300: =IF((S302+W302)>100,S302*100/(S302+W302),S302) -> 47.47266839 | T300: =S300*AVERAGEIF(T305:T316,">0")/100 -> 35.98302337 | U300: =S300*(100-AVERAGEIF(T305:T316,">0"))/100 -> 11.48964502 | V300: =100-(T300+U300+W300) -> 52.52733161 | W300: =IF((S302+W302)>100,W302*100/(S302+W302),W302) -> 0 | X300: =IF((X302+AB302)>100,X302*100/(X302+AB302),X302) -> 79.59943875 | Y300: =X300*AVERAGEIF(Y305:Y316,">0")/100 -> 58.30836131 | Z300: =X300*(100-AVERAGEIF(Y305:Y316,">0"))/100 -> 21.29107744 | AA300: =100-(Y300+Z300+AB300) -> 20.40056125 | AB300: =IF((X302+AB302)>100,AB302*100/(X302+AB302),AB302) -> 0
A301: Regression period: | C301: =MinRegYear(C299,C305:C316) -> 2000 | D301: =IF(MAX(C305:C316)-MIN(C305:C316)<5,AVERAGEIF(C305:C316,">0",D305:D316), IF(FORECAST($C301,D$305:D$316,$C$305:$C$316)<0,0, IF(FORECAST($C301,D$305:D$316,$C$305:$C$316)>100,100, FORECAST($C301,D$305:D$316,$C$305:$C$316)))) -> 14.81399049 | H301: =IF(MAX(C305:C316)-MIN(C305:C316)<5,AVERAGEIF(C305:C316,">0",H305:H316), IF(FORECAST($C301,H$305:H$316,$C$305:$C$316)<0,0, IF(FORECAST($C301,H$305:H$316,$C$305:$C$316)>100,100, FORECAST($C301,H$305:H$316,$C$305:$C$316)))) -> 41.76739053 | I301: =IF(MAX(C305:C316)-MIN(C305:C316)<5,AVERAGEIF(C305:C316,">0",I305:I316), IF(FORECAST($C301,I$305:I$316,$C$305:$C$316)<0,0, IF(FORECAST($C301,I$305:I$316,$C$305:$C$316)>100,100, FORECAST($C301,I$305:I$316,$C$305:$C$316)))) -> 13.91701553 | M301: =IF(MAX(C305:C316)-MIN(C305:C316)<5,AVERAGEIF(C305:C316,">0",M305:M316), IF(FORECAST($C301,M$305:M$316,$C$305:$C$316)<0,0, IF(FORECAST($C301,M$305:M$316,$C$305:$C$316)>100,100, FORECAST($C301,M$305:M$316,$C$305:$C$316)))) -> 30.60250092 | N301: =IF(MAX(C305:C316)-MIN(C305:C316)<5,AVERAGEIF(C305:C316,">0",N305:N316), IF(FORECAST($C301,N$305:N$316,$C$305:$C$316)<0,0, IF(FORECAST($C301,N$305:N$316,$C$305:$C$316)>100,100, FORECAST($C301,N$305:N$316,$C$305:$C$316)))) -> 17.32681437 | R301: =IF(MAX(C305:C316)-MIN(C305:C316)<5,AVERAGEIF(C305:C316,">0",R305:R316), IF(FORECAST($C301,R$305:R$316,$C$305:$C$316)<0,0, IF(FORECAST($C301,R$305:R$316,$C$305:$C$316)>100,100, FORECAST($C301,R$305:R$316,$C$305:$C$316)))) -> 30.5880198 | S301: =IF(MAX(C305:C316)-MIN(C305:C316)<5,AVERAGEIF(C305:C316,">0",S305:S316), IF(FORECAST($C301,S$305:S$316,$C$305:$C$316)<0,0, IF(FORECAST($C301,S$305:S$316,$C$305:$C$316)>100,100, FORECAST($C301,S$305:S$316,$C$305:$C$316)))) -> 19.07079261 | W301: =IF(MAX(C305:C316)-MIN(C305:C316)<5,AVERAGEIF(C305:C316,">0",W305:W316), IF(FORECAST($C301,W$305:W$316,$C$305:$C$316)<0,0, IF(FORECAST($C301,W$305:W$316,$C$305:$C$316)>100,100, FORECAST($C301,W$305:W$316,$C$305:$C$316)))) -> 26.24239104 | X301: =IF(MAX(C305:C316)-MIN(C305:C316)<5,AVERAGEIF(C305:C316,">0",X305:X316), IF(FORECAST($C301,X$305:X$316,$C$305:$C$316)<0,0, IF(FORECAST($C301,X$305:X$316,$C$305:$C$316)>100,100, FORECAST($C301,X$305:X$316,$C$305:$C$316)))) -> 41.95626845 | AB301: =IF(MAX(C305:C316)-MIN(C305:C316)<5,AVERAGEIF(C305:C316,">0",AB305:AB316), IF(FORECAST($C301,AB$305:AB$316,$C$305:$C$316)<0,0, IF(FORECAST($C301,AB$305:AB$316,$C$305:$C$316)>100,100, FORECAST($C301,AB$305:AB$316,$C$305:$C$316)))) -> 19.76963168
C302: =MaxRegYear(C300,C305:C316) -> 2020 | D302: =IF(MAX(C305:C316)-MIN(C305:C316)<5,AVERAGEIF(C305:C316,">0",D305:D316), IF(FORECAST($C302,D$305:D$316,$C$305:$C$316)<0,0, IF(FORECAST($C302,D$305:D$316,$C$305:$C$316)>100,100, FORECAST($C302,D$305:D$316,$C$305:$C$316)))) -> 19.59850316 | H302: =IF(MAX(C305:C316)-MIN(C305:C316)<5,AVERAGEIF(C305:C316,">0",H305:H316), IF(FORECAST($C302,H$305:H$316,$C$305:$C$316)<0,0, IF(FORECAST($C302,H$305:H$316,$C$305:$C$316)>100,100, FORECAST($C302,H$305:H$316,$C$305:$C$316)))) -> 26.61932449 | I302: =IF(MAX(C305:C316)-MIN(C305:C316)<5,AVERAGEIF(C305:C316,">0",I305:I316), IF(FORECAST($C302,I$305:I$316,$C$305:$C$316)<0,0, IF(FORECAST($C302,I$305:I$316,$C$305:$C$316)>100,100, FORECAST($C302,I$305:I$316,$C$305:$C$316)))) -> 28.8593882 | M302: =IF(MAX(C305:C316)-MIN(C305:C316)<5,AVERAGEIF(C305:C316,">0",M305:M316), IF(FORECAST($C302,M$305:M$316,$C$305:$C$316)<0,0, IF(FORECAST($C302,M$305:M$316,$C$305:$C$316)>100,100, FORECAST($C302,M$305:M$316,$C$305:$C$316)))) -> 11.24022991 | N302: =IF(MAX(C305:C316)-MIN(C305:C316)<5,AVERAGEIF(C305:C316,">0",N305:N316), IF(FORECAST($C302,N$305:N$316,$C$305:$C$316)<0,0, IF(FORECAST($C302,N$305:N$316,$C$305:$C$316)>100,100, FORECAST($C302,N$305:N$316,$C$305:$C$316)))) -> 31.756812 | R302: =IF(MAX(C305:C316)-MIN(C305:C316)<5,AVERAGEIF(C305:C316,">0",R305:R316), IF(FORECAST($C302,R$305:R$316,$C$305:$C$316)<0,0, IF(FORECAST($C302,R$305:R$316,$C$305:$C$316)>100,100, FORECAST($C302,R$305:R$316,$C$305:$C$316)))) -> 2.626520698 | S302: =IF(MAX(C305:C316)-MIN(C305:C316)<5,AVERAGEIF(C305:C316,">0",S305:S316), IF(FORECAST($C302,S$305:S$316,$C$305:$C$316)<0,0, IF(FORECAST($C302,S$305:S$316,$C$305:$C$316)>100,100, FORECAST($C302,S$305:S$316,$C$305:$C$316)))) -> 47.47266839 | W302: =IF(MAX(C305:C316)-MIN(C305:C316)<5,AVERAGEIF(C305:C316,">0",W305:W316), IF(FORECAST($C302,W$305:W$316,$C$305:$C$316)<0,0, IF(FORECAST($C302,W$305:W$316,$C$305:$C$316)>100,100, FORECAST($C302,W$305:W$316,$C$305:$C$316)))) -> 0 | X302: =IF(MAX(C305:C316)-MIN(C305:C316)<5,AVERAGEIF(C305:C316,">0",X305:X316), IF(FORECAST($C302,X$305:X$316,$C$305:$C$316)<0,0, IF(FORECAST($C302,X$305:X$316,$C$305:$C$316)>100,100, FORECAST($C302,X$305:X$316,$C$305:$C$316)))) -> 79.59943875 | AB302: =IF(MAX(C305:C316)-MIN(C305:C316)<5,AVERAGEIF(C305:C316,">0",AB305:AB316), IF(FORECAST($C302,AB$305:AB$316,$C$305:$C$316)<0,0, IF(FORECAST($C302,AB$305:AB$316,$C$305:$C$316)>100,100, FORECAST($C302,AB$305:AB$316,$C$305:$C$316)))) -> 0
B304: Survey | C304: Year | D304: Improved | E304: Not shared | H304: Open defecation | I304: Improved | J304: Not shared | M304: Open defecation | N304: Improved | O304: Not shared | R304: Open defecation | S304: Improved | T304: Not shared | W304: Open defecation | X304: Improved | Y304: Not shared | AB304: Open defecation
B305: DHS01 | C305: 2001 | D305: =IF(ISERROR(INDIRECT(CONCATENATE($B305,"!M122"))),"",INDIRECT(CONCATENATE($B305,"!M122"))) -> 16.85558281 | E305: =IF(ISERROR(INDIRECT(CONCATENATE($B305,"!M129"))),"",INDIRECT(CONCATENATE($B305,"!M129"))) -> N/A | H305: =IF(ISERROR(INDIRECT(CONCATENATE($B305,"!M127"))),"",INDIRECT(CONCATENATE($B305,"!M127"))) -> 39.84708721 | I305: =IF(ISERROR(INDIRECT(CONCATENATE($B305,"!N122"))),"",INDIRECT(CONCATENATE($B305,"!N122"))) -> 17.72335602 | J305: =IF(ISERROR(INDIRECT(CONCATENATE($B305,"!N129"))),"",INDIRECT(CONCATENATE($B305,"!N129"))) -> N/A | M305: =IF(ISERROR(INDIRECT(CONCATENATE($B305,"!N127"))),"",INDIRECT(CONCATENATE($B305,"!N127"))) -> 27.0538651 | N305: =IF(ISERROR(INDIRECT(CONCATENATE($B305,"!O122"))),"",INDIRECT(CONCATENATE($B305,"!O122"))) -> 21.45941752 | O305: =IF(ISERROR(INDIRECT(CONCATENATE($B305,"!O129"))),"",INDIRECT(CONCATENATE($B305,"!O129"))) -> N/A | R305: =IF(ISERROR(INDIRECT(CONCATENATE($B305,"!O127"))),"",INDIRECT(CONCATENATE($B305,"!O127"))) -> 27.99113071 | S305: =IF(ISERROR(INDIRECT(CONCATENATE($B305,"!P122"))),"",INDIRECT(CONCATENATE($B305,"!P122"))) -> 25.01006139 | T305: =IF(ISERROR(INDIRECT(CONCATENATE($B305,"!P129"))),"",INDIRECT(CONCATENATE($B305,"!P129"))) -> N/A | W305: =IF(ISERROR(INDIRECT(CONCATENATE($B305,"!P127"))),"",INDIRECT(CONCATENATE($B305,"!P127"))) -> 23.90389063 | X305: =IF(ISERROR(INDIRECT(CONCATENATE($B305,"!Q122"))),"",INDIRECT(CONCATENATE($B305,"!Q122"))) -> 46.64414284 | Y305: =IF(ISERROR(INDIRECT(CONCATENATE($B305,"!Q129"))),"",INDIRECT(CONCATENATE($B305,"!Q129"))) -> N/A | AB305: =IF(ISERROR(INDIRECT(CONCATENATE($B305,"!Q2127"))),"",INDIRECT(CONCATENATE($B305,"!Q127"))) -> 20.25514734
B306: DHS06 | C306: 2006 | D306: 15.86366161 | E306: N/A | H306: 40.91018965 | I306: 17.40734991 | J306: N/A | M306: 29.36906827 | N306: 20.14266623 | O306: N/A | R306: 24.75490875 | S306: 25.40547047 | T306: N/A | W306: 19.35113603 | X306: 52.6029693 | Y306: N/A | AB306: 11.1950254
B307: MICS10 | D307: 13.08449075 | E307: 89.64388528 | H307: 17.66967102 | I307: 12.11226 | J307: 89.13120454 | M307: 19.35833036 | N307: 13.88018147 | O307: 80.98678588 | R307: 23.76531765 | S307: 18.86785931 | T307: 86.06000797 | W307: 20.81724015 | X307: 48.35460648 | Y307: 82.31991788 | AB307: 10.06467535
B308: DHS13 | C308: 2013 | D308: 15.73479022 | E308: 59.2446266 | H308: 25.40284825 | I308: 17.67284512 | J308: 63.88721554 | M308: 17.80169199 | N308: 22.1634435 | O308: 61.42597706 | R308: 13.93217773 | S308: 30.06346314 | T308: 65.18763194 | W308: 8.779779273 | X308: 60.76474649 | Y308: 60.40032076 | AB308: 2.528545265
B309: MIS15 | C309: 2015 | D309: 14.31572403 | E309: 87.52194376 | H309: 25.47217656 | I309: 20.76359271 | J309: 90.17445854 | M309: 10.5722541 | N309: 24.63790445 | O309: 85.7583617 | R309: 5.756395116 | S309: 42.34796045 | T309: 87.8756286 | W309: 1.86084602 | X309: 75.42994313 | Y309: 77.20986974 | AB309: 0.6062768519
B310: MICS15 | C310: 2015 | D310: 17.46690128 | E310: 90.76919606 | H310: 38.04522877 | I310: 26.04577095 | J310: 90.55402475 | M310: 18.27019411 | N310: 25.95517412 | O310: 87.92894998 | R310: 7.51743402 | S310: 33.97890086 | T310: 80.99423024 | W310: 5.427507718 | X310: 61.0659313 | Y310: 82.16981617 | AB310: 1.185860055
B311: DHS18 | C311: 2018 | D311: 24.91462607 | E311: 63.53899832 | H311: 29.42338821 | I311: 34.69324556 | J311: 66.80397056 | M311: 14.71621053 | N311: 38.66427234 | O311: 59.88614441 | R311: 8.506975548 | S311: 54.185277 | T311: 58.86923814 | W311: 1.885571999 | X311: 83.21665667 | Y311: 64.16120885 | AB311: 0.8878950256
B318: =CONCATENATE("Rural use of sanitation facilities, ",C299,"–",C300) -> Rural use of sanitation facilities, 2000–2020 | S318: Data points used for regression

Sheet Hygiene
B4: Access to hygiene facilities by wealth quintile (%)
B5: =IF(ISERROR(INDIRECT(CONCATENATE($E$32,"!A2"))),"",INDIRECT(CONCATENATE($E$32,"!A2"))) -> Mali
B7: =CONCATENATE("National ",IF(ISERROR(INDIRECT(CONCATENATE($E$32,"!A2"))),"",INDIRECT(CONCATENATE($E$32,"!A210")))) -> National Access to hygiene facilities | K7: =CONCATENATE("Urban ",IF(ISERROR(INDIRECT(CONCATENATE($E$32,"!A2"))),"",INDIRECT(CONCATENATE($E$32,"!A210")))) -> Urban Access to hygiene facilities | S7: =CONCATENATE("Rural ",IF(ISERROR(INDIRECT(CONCATENATE($E$32,"!A2"))),"",INDIRECT(CONCATENATE($E$32,"!A210")))) -> Rural Access to hygiene facilities
E32: =INDEX(B88:B100,A88) -> MICS15 | G32: =IF(ISERROR(INDIRECT(CONCATENATE($E$32,"!A2"))),"",INDIRECT(CONCATENATE($E$32,"!A2"))) -> Mali | K32: Poorest | N32: Poor | Q32: Middle | T32: Rich | W32: Richest
K33: Basic | L33: Limited | M33: No facility | N33: Basic | O33: Limited | P33: No facility | Q33: Basic | R33: Limited | S33: No facility | T33: Basic | U33: Limited | V33: No facility | W33: Basic | X33: Limited | Y33: No facility
B34: >>> Select Survey : | G34: NATIONAL | J34: =IF(ISERROR(INDIRECT(CONCATENATE(#REF!,"!A2"))),"",INDIRECT(CONCATENATE(#REF!,"!A210"))) ->  | K34: =IF(ISERROR(INDIRECT(CONCATENATE($E$32,"!C222"))),"",INDIRECT(CONCATENATE($E$32,"!C222"))) -> 31.94492233 | L34: =IF(ISERROR(INDIRECT(CONCATENATE($E$32,"!C223"))),"",INDIRECT(CONCATENATE($E$32,"!C223"))) -> 37.88482268 | M34: =IF(ISERROR(INDIRECT(CONCATENATE($E$32,"!C224"))),"",INDIRECT(CONCATENATE($E$32,"!C224"))) -> 30.17025499 | N34: =IF(ISERROR(INDIRECT(CONCATENATE($E$32,"!D222"))),"",INDIRECT(CONCATENATE($E$32,"!D222"))) -> 34.1817097 | O34: =IF(ISERROR(INDIRECT(CONCATENATE($E$32,"!D223"))),"",INDIRECT(CONCATENATE($E$32,"!D223"))) -> 39.10692469 | P34: =IF(ISERROR(INDIRECT(CONCATENATE($E$32,"!D224"))),"",INDIRECT(CONCATENATE($E$32,"!D224"))) -> 26.71136561 | Q34: =IF(ISERROR(INDIRECT(CONCATENATE($E$32,"!E222"))),"",INDIRECT(CONCATENATE($E$32,"!E222"))) -> 35.21994419 | R34: =IF(ISERROR(INDIRECT(CONCATENATE($E$32,"!E223"))),"",INDIRECT(CONCATENATE($E$32,"!E223"))) -> 43.15058021 | S34: =IF(ISERROR(INDIRECT(CONCATENATE($E$32,"!E224"))),"",INDIRECT(CONCATENATE($E$32,"!E224"))) -> 21.6294756 | T34: =IF(ISERROR(INDIRECT(CONCATENATE($E$32,"!F222"))),"",INDIRECT(CONCATENATE($E$32,"!F222"))) -> 56.67934277 | U34: =IF(ISERROR(INDIRECT(CONCATENATE($E$32,"!F223"))),"",INDIRECT(CONCATENATE($E$32,"!F223"))) -> 23.39376696 | V34: =IF(ISERROR(INDIRECT(CONCATENATE($E$32,"!F224"))),"",INDIRECT(CONCATENATE($E$32,"!F224"))) -> 19.92689027 | W34: =IF(ISERROR(INDIRECT(CONCATENATE($E$32,"!G222"))),"",INDIRECT(CONCATENATE($E$32,"!G222"))) -> 78.65945067 | X34: =IF(ISERROR(INDIRECT(CONCATENATE($E$32,"!G223"))),"",INDIRECT(CONCATENATE($E$32,"!G223"))) -> 9.79061025 | Y34: =IF(ISERROR(INDIRECT(CONCATENATE($E$32,"!G224"))),"",INDIRECT(CONCATENATE($E$32,"!G224"))) -> 11.54993908
G37: URBAN | J37: =IF(ISERROR(INDIRECT(CONCATENATE(#REF!,"!A2"))),"",INDIRECT(CONCATENATE(#REF!,"!A210"))) ->  | K37: =IF(ISERROR(INDIRECT(CONCATENATE($E$32,"!H222"))),"",INDIRECT(CONCATENATE($E$32,"!H222"))) -> 57.61460809 | L37: =IF(ISERROR(INDIRECT(CONCATENATE($E$32,"!H223"))),"",INDIRECT(CONCATENATE($E$32,"!H223"))) -> 30.76985885 | M37: =IF(ISERROR(INDIRECT(CONCATENATE($E$32,"!H224"))),"",INDIRECT(CONCATENATE($E$32,"!H224"))) -> 11.61553305 | N37: =IF(ISERROR(INDIRECT(CONCATENATE($E$32,"!I222"))),"",INDIRECT(CONCATENATE($E$32,"!I222"))) -> 63.72625816 | O37: =IF(ISERROR(INDIRECT(CONCATENATE($E$32,"!I223"))),"",INDIRECT(CONCATENATE($E$32,"!I223"))) -> 21.19092658 | P37: =IF(ISERROR(INDIRECT(CONCATENATE($E$32,"!I224"))),"",INDIRECT(CONCATENATE($E$32,"!I224"))) -> 15.08281525 | Q37: =IF(ISERROR(INDIRECT(CONCATENATE($E$32,"!J222"))),"",INDIRECT(CONCATENATE($E$32,"!J222"))) -> 73.63469135 | R37: =IF(ISERROR(INDIRECT(CONCATENATE($E$32,"!J223"))),"",INDIRECT(CONCATENATE($E$32,"!J223"))) -> 13.79003714 | S37: =IF(ISERROR(INDIRECT(CONCATENATE($E$32,"!J224"))),"",INDIRECT(CONCATENATE($E$32,"!J224"))) -> 12.57527151 | T37: =IF(ISERROR(INDIRECT(CONCATENATE($E$32,"!K222"))),"",INDIRECT(CONCATENATE($E$32,"!K222"))) -> 80.84857818 | U37: =IF(ISERROR(INDIRECT(CONCATENATE($E$32,"!K223"))),"",INDIRECT(CONCATENATE($E$32,"!K223"))) -> 11.42428756 | V37: =IF(ISERROR(INDIRECT(CONCATENATE($E$32,"!K224"))),"",INDIRECT(CONCATENATE($E$32,"!K224"))) -> 7.727134259 | W37: =IF(ISERROR(INDIRECT(CONCATENATE($E$32,"!L222"))),"",INDIRECT(CONCATENATE($E$32,"!L222"))) -> 85.53449519 | X37: =IF(ISERROR(INDIRECT(CONCATENATE($E$32,"!L223"))),"",INDIRECT(CONCATENATE($E$32,"!L223"))) -> 7.535660609 | Y37: =IF(ISERROR(INDIRECT(CONCATENATE($E$32,"!L224"))),"",INDIRECT(CONCATENATE($E$32,"!L224"))) -> 6.929844198
G40: RURAL | J40: =IF(ISERROR(INDIRECT(CONCATENATE(#REF!,"!A2"))),"",INDIRECT(CONCATENATE(#REF!,"!A210"))) ->  | K40: =IF(ISERROR(INDIRECT(CONCATENATE($E$32,"!M222"))),"",INDIRECT(CONCATENATE($E$32,"!M222"))) -> 26.67750736 | L40: =IF(ISERROR(INDIRECT(CONCATENATE($E$32,"!M223"))),"",INDIRECT(CONCATENATE($E$32,"!M223"))) -> 42.37276214 | M40: =IF(ISERROR(INDIRECT(CONCATENATE($E$32,"!M224"))),"",INDIRECT(CONCATENATE($E$32,"!M224"))) -> 30.9497305 | N40: =IF(ISERROR(INDIRECT(CONCATENATE($E$32,"!N222"))),"",INDIRECT(CONCATENATE($E$32,"!N222"))) -> 32.64286617 | O40: =IF(ISERROR(INDIRECT(CONCATENATE($E$32,"!N223"))),"",INDIRECT(CONCATENATE($E$32,"!N223"))) -> 37.78421271 | P40: =IF(ISERROR(INDIRECT(CONCATENATE($E$32,"!N224"))),"",INDIRECT(CONCATENATE($E$32,"!N224"))) -> 29.57292112 | Q40: =IF(ISERROR(INDIRECT(CONCATENATE($E$32,"!O222"))),"",INDIRECT(CONCATENATE($E$32,"!O222"))) -> 35.80101235 | R40: =IF(ISERROR(INDIRECT(CONCATENATE($E$32,"!O223"))),"",INDIRECT(CONCATENATE($E$32,"!O223"))) -> 40.40763616 | S40: =IF(ISERROR(INDIRECT(CONCATENATE($E$32,"!O224"))),"",INDIRECT(CONCATENATE($E$32,"!O224"))) -> 23.79135149 | T40: =IF(ISERROR(INDIRECT(CONCATENATE($E$32,"!P222"))),"",INDIRECT(CONCATENATE($E$32,"!P222"))) -> 39.97600047 | U40: =IF(ISERROR(INDIRECT(CONCATENATE($E$32,"!P223"))),"",INDIRECT(CONCATENATE($E$32,"!P223"))) -> 38.01507233 | V40: =IF(ISERROR(INDIRECT(CONCATENATE($E$32,"!P224"))),"",INDIRECT(CONCATENATE($E$32,"!P224"))) -> 22.0089272 | W40: =IF(ISERROR(INDIRECT(CONCATENATE($E$32,"!Q222"))),"",INDIRECT(CONCATENATE($E$32,"!Q222"))) -> 67.34051562 | X40: =IF(ISERROR(INDIRECT(CONCATENATE($E$32,"!Q223"))),"",INDIRECT(CONCATENATE($E$32,"!Q223"))) -> 13.86674125 | Y40: =IF(ISERROR(INDIRECT(CONCATENATE($E$32,"!Q224"))),"",INDIRECT(CONCATENATE($E$32,"!Q224"))) -> 18.79274313
A88: 6 | B88: DHS01
B89: DHS06
B90: MICS10
B91: DHS13
B92: MIS15
B93: MICS15
B94: DHS18
B95: Input
B96: Template

Sheet DHS01
A2: =A1026 -> Mali
A3: =A1034 -> 2001
A4: Use of drinking water sources
A5: by wealth quintile and sub-national region
A6: Notes:
A7: WHO/UNICEF JMP customised wealth index excludes water,
A8: sanitation and hygiene assets.
A9: Survey used for analysis: | B9: =A1025 -> DHS01
A10: Improved Springs based on: | B10: MICS10
A11: Time to source based on: | B11: DHS06
A14: Use of drinking water sources | C14: NATIONAL wealth index quintile | H14: URBAN wealth index quintile | M14: RURAL wealth index quintile | R14: SUB-REGIONS: | BA14: Raw numbers of respondents: | BB14: Use of drinking water sources | BC14: NATIONAL wealth index quintile | BH14: URBAN wealth index quintile | BM14: RURAL wealth index quintile | BR14: SUB-REGIONS:
A15: Weighted percentage (used in graphs) | C15: Poorest | D15: Poor | E15: Middle | F15: Rich | G15: Richest | H15: Poorest | I15: Poor | J15: Middle | K15: Rich | L15: Richest | M15: Poorest | N15: Poor | O15: Middle | P15: Rich | Q15: Richest | R15: Bamako | S15: Gao | T15: Kayes | U15: Kidal | V15: Koulikoro | W15: Mopti | X15: Segou | Y15: Sikasso | Z15: Tombouctou | BA15: Water data, raw numbers (weighted) | BC15: Poorest | BD15: Poor | BE15: Middle | BF15: Rich | BG15: Richest | BH15: Poorest | BI15: Poor | BJ15: Middle | BK15: Rich | BL15: Richest | BM15: Poorest | BN15: Poor | BO15: Middle | BP15: Rich | BQ15: Richest | BR15: Bamako | BS15: Gao | BT15: Kayes | BU15: Kidal | BV15: Koulikoro | BW15: Mopti | BX15: Segou | BY15: Sikasso | BZ15: Tombouctou
A16: Water | B16: Improved | C16: =C58+C59+C60+C64+C65+C66+C71+C72+C67*MICS10!C25/100 -> 37.65523815 | D16: =D58+D59+D60+D64+D65+D66+D71+D72+D67*MICS10!D25/100 -> 35.68048403 | E16: =E58+E59+E60+E64+E65+E66+E71+E72+E67*MICS10!E25/100 -> 32.18819968 | F16: =F58+F59+F60+F64+F65+F66+F71+F72+F67*MICS10!F25/100 -> 35.78747235 | G16: =G58+G59+G60+G64+G65+G66+G71+G72+G67*MICS10!G25/100 -> 78.71842814 | H16: =H58+H59+H60+H64+H65+H66+H71+H72+H67*MICS10!H25/100 -> 45.68695232 | I16: =I58+I59+I60+I64+I65+I66+I71+I72+I67*MICS10!I25/100 -> 60.31654229 | J16: =J58+J59+J60+J64+J65+J66+J71+J72+J67*MICS10!J25/100 -> 68.8370477 | K16: =K58+K59+K60+K64+K65+K66+K71+K72+K67*MICS10!K25/100 -> 87.66809773 | L16: =L58+L59+L60+L64+L65+L66+L71+L72+L67*MICS10!L25/100 -> 96.32375344 | M16: =M58+M59+M60+M64+M65+M66+M71+M72+M67*MICS10!M25/100 -> 30.63454187 | N16: =N58+N59+N60+N64+N65+N66+N71+N72+N67*MICS10!N25/100 -> 32.71018955 | O16: =O58+O59+O60+O64+O65+O66+O71+O72+O67*MICS10!O25/100 -> 33.92492036 | P16: =P58+P59+P60+P64+P65+P66+P71+P72+P67*MICS10!P25/100 -> 35.82572346 | Q16: =Q58+Q59+Q60+Q64+Q65+Q66+Q71+Q72+Q67*MICS10!Q25/100 -> 36.15409089 | R16: =R58+R59+R60+R64+R65+R66+R71+R72+R67*MICS10!R25/100 -> 89.43661963 | S16: =S58+S59+S60+S64+S65+S66+S71+S72+S67*MICS10!S25/100 -> 32.56095668 | T16: =T58+T59+T60+T64+T65+T66+T71+T72+T67*MICS10!T25/100 -> 38.2921733 | U16: =U58+U59+U60+U64+U65+U66+U71+U72+U67*MICS10!U25/100 -> 58.38680295 | V16: =V58+V59+V60+V64+V65+V66+V71+V72+V67*MICS10!V25/100 -> 28.86718785 | W16: =W58+W59+W60+W64+W65+W66+W71+W72+W67*MICS10!W25/100 -> 37.00363299 | X16: =X58+X59+X60+X64+X65+X66+X71+X72+X67*MICS10!X25/100 -> 33.05205276 | Y16: =Y58+Y59+Y60+Y64+Y65+Y66+Y71+Y72+Y67*MICS10!Y25/100 -> 48.0266128 | Z16: =Z58+Z59+Z60+Z64+Z65+Z66+Z71+Z72+Z67*MICS10!Z25/100 -> 30.55454863 | BA16: Water | BB16: Improved | BC16: N/A | BD16: N/A | BE16: N/A | BF16: N/A | BG16: N/A | BH16: N/A | BI16: N/A | BJ16: N/A | BK16: N/A | BL16: N/A | BM16: N/A | BN16: N/A | BO16: N/A | BP16: N/A | BQ16: N/A | BR16: N/A | BS16: N/A | BT16: N/A | BU16: N/A | BV16: N/A | BW16: N/A | BX16: N/A | BY16: N/A | BZ16: N/A
B17: Not Improved | C17: =100-C16 -> 62.34476185 | D17: =100-D16 -> 64.31951597 | E17: 67.81180032 | F17: 64.21252765 | G17: 21.28157186 | H17: 54.31304768 | I17: 39.68345771 | J17: 31.1629523 | K17: 12.33190227 | L17: 3.676246562 | M17: 69.36545813 | N17: 67.28981045 | O17: 66.07507964 | P17: 64.17427654 | Q17: 63.84590911 | R17: 10.56338037 | S17: 67.43904332 | T17: 61.7078267 | U17: 41.61319705 | V17: 71.13281215 | W17: 62.99636701 | X17: 66.94794724 | Y17: 51.9733872 | Z17: 69.44545137 | BB17: Not Improved | BC17: N/A | BD17: N/A | BE17: N/A | BF17: N/A | BG17: N/A | BH17: N/A | BI17: N/A | BJ17: N/A | BK17: N/A | BL17: N/A | BM17: N/A | BN17: N/A | BO17: N/A | BP17: N/A | BQ17: N/A | BR17: N/A | BS17: N/A | BT17: N/A | BU17: N/A | BV17: N/A | BW17: N/A | BX17: N/A | BY17: N/A | BZ17: N/A
A18: Water ladder | B18: Basic | C18: =C16*'DHS06'!C23/100 -> 36.94291053 | D18: =D16*'DHS06'!D23/100 -> 35.20722321 | E18: =E16*'DHS06'!E23/100 -> 31.59116867 | F18: =F16*'DHS06'!F23/100 -> 35.40272994 | G18: =G16*'DHS06'!G23/100 -> 76.89743099 | H18: =H16*'DHS06'!H23/100 -> 45.13368815 | I18: =I16*'DHS06'!I23/100 -> 59.491414 | J18: =J16*'DHS06'!J23/100 -> 67.29093209 | K18: =K16*'DHS06'!K23/100 -> 84.95076672 | L18: =L16*'DHS06'!L23/100 -> 94.53950301 | M18: =M16*'DHS06'!M23/100 -> 29.88946835 | N18: =N16*'DHS06'!N23/100 -> 32.30642891 | O18: =O16*'DHS06'!O23/100 -> 33.47730807 | P18: =P16*'DHS06'!P23/100 -> 35.17329012 | Q18: =Q16*'DHS06'!Q23/100 -> 35.74754173 | R18: =R16*'DHS06'!R23/100 -> 86.7206764 | S18: =S16*'DHS06'!S23/100 -> 32.35934396 | T18: =T16*'DHS06'!T23/100 -> 37.80091859 | U18: =U16*'DHS06'!U23/100 -> 54.39327673 | V18: =V16*'DHS06'!V23/100 -> 28.30046826 | W18: =W16*'DHS06'!W23/100 -> 36.24244187 | X18: =X16*'DHS06'!X23/100 -> 32.92746283 | Y18: =Y16*'DHS06'!Y23/100 -> 47.18929034 | Z18: =Z16*'DHS06'!Z23/100 -> 29.96954292 | BA18: Water ladder | BB18: Basic | BC18: N/A | BD18: N/A | BE18: N/A | BF18: N/A | BG18: N/A | BH18: N/A | BI18: N/A | BJ18: N/A | BK18: N/A | BL18: N/A | BM18: N/A | BN18: N/A | BO18: N/A | BP18: N/A | BQ18: N/A | BR18: N/A | BS18: N/A | BT18: N/A | BU18: N/A | BV18: N/A | BW18: N/A | BX18: N/A | BY18: N/A | BZ18: N/A
B19: Limited | C19: =C16*'DHS06'!C22/100 -> 0.7123276261 | D19: =D16*'DHS06'!D22/100 -> 0.4732608218 | E19: =E16*'DHS06'!E22/100 -> 0.5970310046 | F19: =F16*'DHS06'!F22/100 -> 0.3847424083 | G19: =G16*'DHS06'!G22/100 -> 1.820997148 | H19: =H16*'DHS06'!H22/100 -> 0.5532641732 | I19: =I16*'DHS06'!I22/100 -> 0.8251282928 | J19: =J16*'DHS06'!J22/100 -> 1.546115615 | K19: =K16*'DHS06'!K22/100 -> 2.717331009 | L19: =L16*'DHS06'!L22/100 -> 1.784250431 | M19: =M16*'DHS06'!M22/100 -> 0.7450735161 | N19: =N16*'DHS06'!N22/100 -> 0.403760639 | O19: =O16*'DHS06'!O22/100 -> 0.4476122875 | P19: =P16*'DHS06'!P22/100 -> 0.6524333394 | Q19: =Q16*'DHS06'!Q22/100 -> 0.4065491521 | R19: =R16*'DHS06'!R22/100 -> 2.715943229 | S19: =S16*'DHS06'!S22/100 -> 0.2016127171 | T19: =T16*'DHS06'!T22/100 -> 0.4912547088 | U19: =U16*'DHS06'!U22/100 -> 3.993526221 | V19: =V16*'DHS06'!V22/100 -> 0.5667195897 | W19: =W16*'DHS06'!W22/100 -> 0.7611911125 | X19: =X16*'DHS06'!X22/100 -> 0.1245899339 | Y19: =Y16*'DHS06'!Y22/100 -> 0.8373224606 | Z19: =Z16*'DHS06'!Z22/100 -> 0.5850057052 | BB19: Limited | BC19: N/A | BD19: N/A | BE19: N/A | BF19: N/A | BG19: N/A | BH19: N/A | BI19: N/A | BJ19: N/A | BK19: N/A | BL19: N/A | BM19: N/A | BN19: N/A | BO19: N/A | BP19: N/A | BQ19: N/A | BR19: N/A | BS19: N/A | BT19: N/A | BU19: N/A | BV19: N/A | BW19: N/A | BX19: N/A | BY19: N/A | BZ19: N/A
B20: Unimproved | C20: =100-(C18+C19+C21) -> 59.02150316 | D20: =100-(D18+D19+D21) -> 61.80804336 | E20: 61.31873742 | F20: 52.85318234 | G20: 21.00776169 | H20: 47.11929627 | I20: 38.24172316 | J20: 30.80895691 | K20: 12.26724078 | L20: 3.676246562 | M20: 56.13058018 | N20: 59.83473641 | O20: 61.99134437 | P20: 62.14159363 | Q20: 61.70511738 | R20: 10.56338037 | S20: 33.32731364 | T20: 49.24080685 | U20: 41.61319705 | V20: 71.05801755 | W20: 52.82627182 | X20: 65.84860075 | Y20: 51.74297718 | Z20: 46.27560931 | BB20: Unimproved | BC20: N/A | BD20: N/A | BE20: N/A | BF20: N/A | BG20: N/A | BH20: N/A | BI20: N/A | BJ20: N/A | BK20: N/A | BL20: N/A | BM20: N/A | BN20: N/A | BO20: N/A | BP20: N/A | BQ20: N/A | BR20: N/A | BS20: N/A | BT20: N/A | BU20: N/A | BV20: N/A | BW20: N/A | BX20: N/A | BY20: N/A | BZ20: N/A
B21: Surface water | C21: =C68+C69+C70 -> 3.323258689 | D21: 2.511472604 | E21: 6.493062903 | F21: 11.35934531 | G21: 0.2738101671 | H21: 7.19375141 | I21: 1.441734548 | J21: 0.3539953907 | K21: 0.06466148993 | L21: 0 | M21: 13.23487795 | N21: 7.455074033 | O21: 4.083735274 | P21: 2.03268291 | Q21: 2.140791729 | R21: 0 | S21: 34.11172968 | T21: 12.46701985 | U21: 0 | V21: 0.07479459912 | W21: 10.17009519 | X21: 1.099346486 | Y21: 0.2304100149 | Z21: 23.16984206 | BB21: Surface water | BC21: N/A | BD21: N/A | BE21: N/A | BF21: N/A | BG21: N/A | BH21: N/A | BI21: N/A | BJ21: N/A | BK21: N/A | BL21: N/A | BM21: N/A | BN21: N/A | BO21: N/A | BP21: N/A | BQ21: N/A | BR21: N/A | BS21: N/A | BT21: N/A | BU21: N/A | BV21: N/A | BW21: N/A | BX21: N/A | BY21: N/A | BZ21: N/A
A22: Improved water point at more than 30 minutes | B22: Yes | C22: N/A | D22: N/A | E22: N/A | F22: N/A | G22: N/A | H22: N/A | I22: N/A | J22: N/A | K22: N/A | L22: N/A | M22: N/A | N22: N/A | O22: N/A | P22: N/A | Q22: N/A | R22: N/A | S22: N/A | T22: N/A | U22: N/A | V22: N/A | W22: N/A | X22: N/A | Y22: N/A | Z22: N/A | BA22: Improved water point at more than 30 minutes | BB22: Yes | BC22: N/A | BD22: N/A | BE22: N/A | BF22: N/A | BG22: N/A | BH22: N/A | BI22: N/A | BJ22: N/A | BK22: N/A | BL22: N/A | BM22: N/A | BN22: N/A | BO22: N/A | BP22: N/A | BQ22: N/A | BR22: N/A | BS22: N/A | BT22: N/A | BU22: N/A | BV22: N/A | BW22: N/A | BX22: N/A | BY22: N/A | BZ22: N/A
B23: No | C23: N/A | D23: N/A | E23: N/A | F23: N/A | G23: N/A | H23: N/A | I23: N/A | J23: N/A | K23: N/A | L23: N/A | M23: N/A | N23: N/A | O23: N/A | P23: N/A | Q23: N/A | R23: N/A | S23: N/A | T23: N/A | U23: N/A | V23: N/A | W23: N/A | X23: N/A | Y23: N/A | Z23: N/A | BB23: No | BC23: N/A | BD23: N/A | BE23: N/A | BF23: N/A | BG23: N/A | BH23: N/A | BI23: N/A | BJ23: N/A | BK23: N/A | BL23: N/A | BM23: N/A | BN23: N/A | BO23: N/A | BP23: N/A | BQ23: N/A | BR23: N/A | BS23: N/A | BT23: N/A | BU23: N/A | BV23: N/A | BW23: N/A | BX23: N/A | BY23: N/A | BZ23: N/A
A24: Manually calculated ratios | B24: Improved wells
B25: Improved springs
B26: Other
C27: NATIONAL wealth index quintile | H27: URBAN wealth index quintile | M27: RURAL wealth index quintile | R27: SUB-REGIONS: | BA27: Raw numbers of respondents: | BB27: Use of drinking water sources | BC27: NATIONAL wealth index quintile | BH27: URBAN wealth index quintile | BM27: RURAL wealth index quintile | BR27: SUB-REGIONS:
A28: Percentage based on weighted population | C28: Poorest | D28: Poor | E28: Middle | F28: Rich | G28: Richest | H28: Poorest | I28: Poor | J28: Middle | K28: Rich | L28: Richest | M28: Poorest | N28: Poor | O28: Middle | P28: Rich | Q28: Richest | R28: Bamako | S28: Gao | T28: Kayes | U28: Kidal | V28: Koulikoro | W28: Mopti | X28: Segou | Y28: Sikasso | Z28: Tombouctou | BA28: Water data, raw numbers (weighted) | BC28: Poorest | BD28: Poor | BE28: Middle | BF28: Rich | BG28: Richest | BH28: Poorest | BI28: Poor | BJ28: Middle | BK28: Rich | BL28: Richest | BM28: Poorest | BN28: Poor | BO28: Middle | BP28: Rich | BQ28: Richest | BR28: Bamako | BS28: Gao | BT28: Kayes | BU28: Kidal | BV28: Koulikoro | BW28: Mopti | BX28: Segou | BY28: Sikasso | BZ28: Tombouctou
A29: Piped water | B29: Yes | C29: 20.79826685 | D29: 20.55444614 | E29: 16.16680235 | F29: 19.12063464 | G29: 70.47838786 | H29: 25.30328398 | I29: 43.29120258 | J29: 60.06553274 | K29: 82.15664126 | L29: 92.97431934 | M29: 14.71422083 | N29: 16.91215965 | O29: 17.95873522 | P29: 20.4789809 | Q29: 20.46727292 | R29: 84.15952289 | S29: 22.92125989 | T29: 16.83383455 | U29: 49.95481572 | V29: 16.04667827 | W29: 22.76461294 | X29: 16.32206236 | Y29: 30.94535959 | Z29: 22.82225285 | BA29: Piped water | BB29: Yes | BC29: N/A | BD29: N/A | BE29: N/A | BF29: N/A | BG29: N/A | BH29: N/A | BI29: N/A | BJ29: N/A | BK29: N/A | BL29: N/A | BM29: N/A | BN29: N/A | BO29: N/A | BP29: N/A | BQ29: N/A | BR29: N/A | BS29: N/A | BT29: N/A | BU29: N/A | BV29: N/A | BW29: N/A | BX29: N/A | BY29: N/A | BZ29: N/A
B30: No | C30: 79.20173315 | D30: 79.44555386 | E30: 83.83319765 | F30: 80.87936536 | G30: 29.52161214 | H30: 74.69671602 | I30: 56.70879742 | J30: 39.93446726 | K30: 17.84335874 | L30: 7.02568066 | M30: 85.28577917 | N30: 83.08784035 | O30: 82.04126478 | P30: 79.5210191 | Q30: 79.53272708 | R30: 15.84047711 | S30: 77.07874011 | T30: 83.16616545 | U30: 50.04518428 | V30: 83.95332173 | W30: 77.23538706 | X30: 83.67793764 | Y30: 69.05464041 | Z30: 77.17774715 | BB30: No | BC30: N/A | BD30: N/A | BE30: N/A | BF30: N/A | BG30: N/A | BH30: N/A | BI30: N/A | BJ30: N/A | BK30: N/A | BL30: N/A | BM30: N/A | BN30: N/A | BO30: N/A | BP30: N/A | BQ30: N/A | BR30: N/A | BS30: N/A | BT30: N/A | BU30: N/A | BV30: N/A | BW30: N/A | BX30: N/A | BY30: N/A | BZ30: N/A
A31: Piped water on premises | B31: Yes | C31: 4.023525865 | D31: 2.085949412 | E31: 1.557018171 | F31: 1.387275272 | G31: 36.6421042 | H31: 5.449154007 | I31: 9.391296683 | J31: 15.68224309 | K31: 41.33610224 | L31: 74.88256723 | M31: 0.7586922146 | N31: 0.8268215647 | O31: 2.38962088 | P31: 2.068008391 | Q31: 3.318745245 | R31: 41.72593666 | S31: 10.23054004 | T31: 7.63496369 | U31: 6.992824616 | V31: 2.691440149 | W31: 2.057261103 | X31: 4.192621198 | Y31: 4.326785459 | Z31: 2.335357032 | BA31: Piped water on premises | BB31: Yes | BC31: N/A | BD31: N/A | BE31: N/A | BF31: N/A | BG31: N/A | BH31: N/A | BI31: N/A | BJ31: N/A | BK31: N/A | BL31: N/A | BM31: N/A | BN31: N/A | BO31: N/A | BP31: N/A | BQ31: N/A | BR31: N/A | BS31: N/A | BT31: N/A | BU31: N/A | BV31: N/A | BW31: N/A | BX31: N/A | BY31: N/A | BZ31: N/A
B32: No | C32: 95.97647413 | D32: 97.91405059 | E32: 98.44298183 | F32: 98.61272473 | G32: 63.3578958 | H32: 94.55084599 | I32: 90.60870332 | J32: 84.31775691 | K32: 58.66389776 | L32: 25.11743277 | M32: 99.24130779 | N32: 99.17317844 | O32: 97.61037912 | P32: 97.93199161 | Q32: 96.68125476 | R32: 58.27406334 | S32: 89.76945996 | T32: 92.36503631 | U32: 93.00717538 | V32: 97.30855985 | W32: 97.9427389 | X32: 95.8073788 | Y32: 95.67321454 | Z32: 97.66464297 | BB32: No | BC32: N/A | BD32: N/A | BE32: N/A | BF32: N/A | BG32: N/A | BH32: N/A | BI32: N/A | BJ32: N/A | BK32: N/A | BL32: N/A | BM32: N/A | BN32: N/A | BO32: N/A | BP32: N/A | BQ32: N/A | BR32: N/A | BS32: N/A | BT32: N/A | BU32: N/A | BV32: N/A | BW32: N/A | BX32: N/A | BY32: N/A | BZ32: N/A
A33: Piped water into dwelling | B33: Yes | C33: N/A | D33: N/A | E33: N/A | F33: N/A | G33: N/A | H33: N/A | I33: N/A | J33: N/A | K33: N/A | L33: N/A | M33: N/A | N33: N/A | O33: N/A | P33: N/A | Q33: N/A | R33: N/A | S33: N/A | T33: N/A | U33: N/A | V33: N/A | W33: N/A | X33: N/A | Y33: N/A | Z33: N/A | BA33: Piped water into dwelling | BB33: Yes | BC33: N/A | BD33: N/A | BE33: N/A | BF33: N/A | BG33: N/A | BH33: N/A | BI33: N/A | BJ33: N/A | BK33: N/A | BL33: N/A | BM33: N/A | BN33: N/A | BO33: N/A | BP33: N/A | BQ33: N/A | BR33: N/A | BS33: N/A | BT33: N/A | BU33: N/A | BV33: N/A | BW33: N/A | BX33: N/A | BY33: N/A | BZ33: N/A
B34: No | C34: N/A | D34: N/A | E34: N/A | F34: N/A | G34: N/A | H34: N/A | I34: N/A | J34: N/A | K34: N/A | L34: N/A | M34: N/A | N34: N/A | O34: N/A | P34: N/A | Q34: N/A | R34: N/A | S34: N/A | T34: N/A | U34: N/A | V34: N/A | W34: N/A | X34: N/A | Y34: N/A | Z34: N/A | BB34: No | BC34: N/A | BD34: N/A | BE34: N/A | BF34: N/A | BG34: N/A | BH34: N/A | BI34: N/A | BJ34: N/A | BK34: N/A | BL34: N/A | BM34: N/A | BN34: N/A | BO34: N/A | BP34: N/A | BQ34: N/A | BR34: N/A | BS34: N/A | BT34: N/A | BU34: N/A | BV34: N/A | BW34: N/A | BX34: N/A | BY34: N/A | BZ34: N/A
A35: Water source on premises | B35: Yes | C35: 4.50081784 | D35: 2.293606139 | E35: 1.87325239 | F35: 2.915684578 | G35: 38.1052884 | H35: 7.260866669 | I35: 12.32952283 | J35: 17.34845377 | K35: 42.42092913 | L35: 75.62460065 | M35: 2.182834912 | N35: 1.132988648 | O35: 2.748780053 | P35: 2.17355262 | Q35: 3.4473588 | R35: 43.85789134 | S35: 27.75620606 | T35: 7.929826993 | U35: 8.996240991 | V35: 2.699832842 | W35: 2.080757166 | X35: 4.308614176 | Y35: 4.819038222 | Z35: 2.335357032 | BA35: Water source on premises | BB35: Yes | BC35: N/A | BD35: N/A | BE35: N/A | BF35: N/A | BG35: N/A | BH35: N/A | BI35: N/A | BJ35: N/A | BK35: N/A | BL35: N/A | BM35: N/A | BN35: N/A | BO35: N/A | BP35: N/A | BQ35: N/A | BR35: N/A | BS35: N/A | BT35: N/A | BU35: N/A | BV35: N/A | BW35: N/A | BX35: N/A | BY35: N/A | BZ35: N/A
B36: No | C36: 95.49918216 | D36: 97.70639386 | E36: 98.12674761 | F36: 97.08431542 | G36: 61.8947116 | H36: 92.73913333 | I36: 87.67047717 | J36: 82.65154623 | K36: 57.57907087 | L36: 24.37539935 | M36: 97.81716509 | N36: 98.86701135 | O36: 97.25121995 | P36: 97.82644738 | Q36: 96.5526412 | R36: 56.14210866 | S36: 72.24379394 | T36: 92.07017301 | U36: 91.00375901 | V36: 97.30016716 | W36: 97.91924283 | X36: 95.69138582 | Y36: 95.18096178 | Z36: 97.66464297 | BB36: No | BC36: N/A | BD36: N/A | BE36: N/A | BF36: N/A | BG36: N/A | BH36: N/A | BI36: N/A | BJ36: N/A | BK36: N/A | BL36: N/A | BM36: N/A | BN36: N/A | BO36: N/A | BP36: N/A | BQ36: N/A | BR36: N/A | BS36: N/A | BT36: N/A | BU36: N/A | BV36: N/A | BW36: N/A | BX36: N/A | BY36: N/A | BZ36: N/A
A37: Improved Water source on premises | B37: Yes | C37: N/A | D37: N/A | E37: N/A | F37: N/A | G37: N/A | H37: N/A | I37: N/A | J37: N/A | K37: N/A | L37: N/A | M37: N/A | N37: N/A | O37: N/A | P37: N/A | Q37: N/A | R37: N/A | S37: N/A | T37: N/A | U37: N/A | V37: N/A | W37: N/A | X37: N/A | Y37: N/A | Z37: N/A | BA37: Improved water source on premises | BB37: Yes | BC37: N/A | BD37: N/A | BE37: N/A | BF37: N/A | BG37: N/A | BH37: N/A | BI37: N/A | BJ37: N/A | BK37: N/A | BL37: N/A | BM37: N/A | BN37: N/A | BO37: N/A | BP37: N/A | BQ37: N/A | BR37: N/A | BS37: N/A | BT37: N/A | BU37: N/A | BV37: N/A | BW37: N/A | BX37: N/A | BY37: N/A | BZ37: N/A
B38: No | C38: N/A | D38: N/A | E38: N/A | F38: N/A | G38: N/A | H38: N/A | I38: N/A | J38: N/A | K38: N/A | L38: N/A | M38: N/A | N38: N/A | O38: N/A | P38: N/A | Q38: N/A | R38: N/A | S38: N/A | T38: N/A | U38: N/A | V38: N/A | W38: N/A | X38: N/A | Y38: N/A | Z38: N/A | BB38: No | BC38: N/A | BD38: N/A | BE38: N/A | BF38: N/A | BG38: N/A | BH38: N/A | BI38: N/A | BJ38: N/A | BK38: N/A | BL38: N/A | BM38: N/A | BN38: N/A | BO38: N/A | BP38: N/A | BQ38: N/A | BR38: N/A | BS38: N/A | BT38: N/A | BU38: N/A | BV38: N/A | BW38: N/A | BX38: N/A | BY38: N/A | BZ38: N/A
A39: Piped water on premises available when needed | B39: Yes | C39: N/A | D39: N/A | E39: N/A | F39: N/A | G39: N/A | H39: N/A | I39: N/A | J39: N/A | K39: N/A | L39: N/A | M39: N/A | N39: N/A | O39: N/A | P39: N/A | Q39: N/A | R39: N/A | S39: N/A | T39: N/A | U39: N/A | V39: N/A | W39: N/A | X39: N/A | Y39: N/A | Z39: N/A | BA39: Piped water on premises available when needed | BB39: Yes | BC39: N/A | BD39: N/A | BE39: N/A | BF39: N/A | BG39: N/A | BH39: N/A | BI39: N/A | BJ39: N/A | BK39: N/A | BL39: N/A | BM39: N/A | BN39: N/A | BO39: N/A | BP39: N/A | BQ39: N/A | BR39: N/A | BS39: N/A | BT39: N/A | BU39: N/A | BV39: N/A | BW39: N/A | BX39: N/A | BY39: N/A | BZ39: N/A
B40: No | C40: N/A | D40: N/A | E40: N/A | F40: N/A | G40: N/A | H40: N/A | I40: N/A | J40: N/A | K40: N/A | L40: N/A | M40: N/A | N40: N/A | O40: N/A | P40: N/A | Q40: N/A | R40: N/A | S40: N/A | T40: N/A | U40: N/A | V40: N/A | W40: N/A | X40: N/A | Y40: N/A | Z40: N/A | BB40: No | BC40: N/A | BD40: N/A | BE40: N/A | BF40: N/A | BG40: N/A | BH40: N/A | BI40: N/A | BJ40: N/A | BK40: N/A | BL40: N/A | BM40: N/A | BN40: N/A | BO40: N/A | BP40: N/A | BQ40: N/A | BR40: N/A | BS40: N/A | BT40: N/A | BU40: N/A | BV40: N/A | BW40: N/A | BX40: N/A | BY40: N/A | BZ40: N/A
A41: Water point at more than 30 minutes | B41: Yes | C41: 9.281952312 | D41: 9.880496724 | E41: 9.086112198 | F41: 9.782555807 | G41: 3.479192914 | H41: 8.816541088 | I41: 7.441771336 | J41: 6.358688603 | K41: 3.583474895 | L41: 0.6232526914 | M41: 9.691226709 | N41: 7.963880124 | O41: 10.72251387 | P41: 9.145375025 | Q41: 9.978258348 | R41: 4.604535249 | S41: 13.28526329 | T41: 3.479887039 | U41: 12.26311208 | V41: 18.64514601 | W41: 15.27031545 | X41: 5.394180179 | Y41: 2.901569631 | Z41: 0.9853610219 | BA41: Water point at more than 30 minutes | BB41: Yes | BC41: N/A | BD41: N/A | BE41: N/A | BF41: N/A | BG41: N/A | BH41: N/A | BI41: N/A | BJ41: N/A | BK41: N/A | BL41: N/A | BM41: N/A | BN41: N/A | BO41: N/A | BP41: N/A | BQ41: N/A | BR41: N/A | BS41: N/A | BT41: N/A | BU41: N/A | BV41: N/A | BW41: N/A | BX41: N/A | BY41: N/A | BZ41: N/A
B42: No | C42: 90.71804769 | D42: 90.11950328 | E42: 90.9138878 | F42: 90.21744419 | G42: 96.52080709 | H42: 91.18345891 | I42: 92.55822866 | J42: 93.6413114 | K42: 96.41652511 | L42: 99.37674731 | M42: 90.30877329 | N42: 92.03611988 | O42: 89.27748613 | P42: 90.85462497 | Q42: 90.02174165 | R42: 95.39546475 | S42: 86.71473671 | T42: 96.52011296 | U42: 87.73688792 | V42: 81.35485399 | W42: 84.72968455 | X42: 94.60581982 | Y42: 97.09843037 | Z42: 99.01463898 | BB42: No | BC42: N/A | BD42: N/A | BE42: N/A | BF42: N/A | BG42: N/A | BH42: N/A | BI42: N/A | BJ42: N/A | BK42: N/A | BL42: N/A | BM42: N/A | BN42: N/A | BO42: N/A | BP42: N/A | BQ42: N/A | BR42: N/A | BS42: N/A | BT42: N/A | BU42: N/A | BV42: N/A | BW42: N/A | BX42: N/A | BY42: N/A | BZ42: N/A
A43: Water source available when needed | B43: Yes | C43: N/A | D43: N/A | E43: N/A | F43: N/A | G43: N/A | H43: N/A | I43: N/A | J43: N/A | K43: N/A | L43: N/A | M43: N/A | N43: N/A | O43: N/A | P43: N/A | Q43: N/A | R43: N/A | S43: N/A | T43: N/A | U43: N/A | V43: N/A | W43: N/A | X43: N/A | Y43: N/A | Z43: N/A | BA43: Water source available when needed | BB43: Yes | BC43: N/A | BD43: N/A | BE43: N/A | BF43: N/A | BG43: N/A | BH43: N/A | BI43: N/A | BJ43: N/A | BK43: N/A | BL43: N/A | BM43: N/A | BN43: N/A | BO43: N/A | BP43: N/A | BQ43: N/A | BR43: N/A | BS43: N/A | BT43: N/A | BU43: N/A | BV43: N/A | BW43: N/A | BX43: N/A | BY43: N/A | BZ43: N/A
B44: No | C44: N/A | D44: N/A | E44: N/A | F44: N/A | G44: N/A | H44: N/A | I44: N/A | J44: N/A | K44: N/A | L44: N/A | M44: N/A | N44: N/A | O44: N/A | P44: N/A | Q44: N/A | R44: N/A | S44: N/A | T44: N/A | U44: N/A | V44: N/A | W44: N/A | X44: N/A | Y44: N/A | Z44: N/A | BB44: No | BC44: N/A | BD44: N/A | BE44: N/A | BF44: N/A | BG44: N/A | BH44: N/A | BI44: N/A | BJ44: N/A | BK44: N/A | BL44: N/A | BM44: N/A | BN44: N/A | BO44: N/A | BP44: N/A | BQ44: N/A | BR44: N/A | BS44: N/A | BT44: N/A | BU44: N/A | BV44: N/A | BW44: N/A | BX44: N/A | BY44: N/A | BZ44: N/A
A45: Improved water source available when needed | B45: Yes | C45: N/A | D45: N/A | E45: N/A | F45: N/A | G45: N/A | H45: N/A | I45: N/A | J45: N/A | K45: N/A | L45: N/A | M45: N/A | N45: N/A | O45: N/A | P45: N/A | Q45: N/A | R45: N/A | S45: N/A | T45: N/A | U45: N/A | V45: N/A | W45: N/A | X45: N/A | Y45: N/A | Z45: N/A | BA45: Improved water source available when needed | BB45: Yes | BC45: N/A | BD45: N/A | BE45: N/A | BF45: N/A | BG45: N/A | BH45: N/A | BI45: N/A | BJ45: N/A | BK45: N/A | BL45: N/A | BM45: N/A | BN45: N/A | BO45: N/A | BP45: N/A | BQ45: N/A | BR45: N/A | BS45: N/A | BT45: N/A | BU45: N/A | BV45: N/A | BW45: N/A | BX45: N/A | BY45: N/A | BZ45: N/A
B46: No | C46: N/A | D46: N/A | E46: N/A | F46: N/A | G46: N/A | H46: N/A | I46: N/A | J46: N/A | K46: N/A | L46: N/A | M46: N/A | N46: N/A | O46: N/A | P46: N/A | Q46: N/A | R46: N/A | S46: N/A | T46: N/A | U46: N/A | V46: N/A | W46: N/A | X46: N/A | Y46: N/A | Z46: N/A | BB46: No | BC46: N/A | BD46: N/A | BE46: N/A | BF46: N/A | BG46: N/A | BH46: N/A | BI46: N/A | BJ46: N/A | BK46: N/A | BL46: N/A | BM46: N/A | BN46: N/A | BO46: N/A | BP46: N/A | BQ46: N/A | BR46: N/A | BS46: N/A | BT46: N/A | BU46: N/A | BV46: N/A | BW46: N/A | BX46: N/A | BY46: N/A | BZ46: N/A
A47: Microbiological quality at point of collection | B47: Not contaminated (No E. coli in 100 mL) | C47: N/A | D47: N/A | E47: N/A | F47: N/A | G47: N/A | H47: N/A | I47: N/A | J47: N/A | K47: N/A | L47: N/A | M47: N/A | N47: N/A | O47: N/A | P47: N/A | Q47: N/A | R47: N/A | S47: N/A | T47: N/A | U47: N/A | V47: N/A | W47: N/A | X47: N/A | Y47: N/A | Z47: N/A | BA47: Microbiological quality at point of collection | BB47: Not contaminated (No E. coli in 100 mL) | BC47: N/A | BD47: N/A | BE47: N/A | BF47: N/A | BG47: N/A | BH47: N/A | BI47: N/A | BJ47: N/A | BK47: N/A | BL47: N/A | BM47: N/A | BN47: N/A | BO47: N/A | BP47: N/A | BQ47: N/A | BR47: N/A | BS47: N/A | BT47: N/A | BU47: N/A | BV47: N/A | BW47: N/A | BX47: N/A | BY47: N/A | BZ47: N/A
B48: Contaminated (E. coli detected in 100 mL) | C48: N/A | D48: N/A | E48: N/A | F48: N/A | G48: N/A | H48: N/A | I48: N/A | J48: N/A | K48: N/A | L48: N/A | M48: N/A | N48: N/A | O48: N/A | P48: N/A | Q48: N/A | R48: N/A | S48: N/A | T48: N/A | U48: N/A | V48: N/A | W48: N/A | X48: N/A | Y48: N/A | Z48: N/A | BB48: Contaminated (E. coli detected in 100 mL) | BC48: N/A | BD48: N/A | BE48: N/A | BF48: N/A | BG48: N/A | BH48: N/A | BI48: N/A | BJ48: N/A | BK48: N/A | BL48: N/A | BM48: N/A | BN48: N/A | BO48: N/A | BP48: N/A | BQ48: N/A | BR48: N/A | BS48: N/A | BT48: N/A | BU48: N/A | BV48: N/A | BW48: N/A | BX48: N/A | BY48: N/A | BZ48: N/A
B49: Highly contaminated (>100 CFU/100 mL) | C49: N/A | D49: N/A | E49: N/A | F49: N/A | G49: N/A | H49: N/A | I49: N/A | J49: N/A | K49: N/A | L49: N/A | M49: N/A | N49: N/A | O49: N/A | P49: N/A | Q49: N/A | R49: N/A | S49: N/A | T49: N/A | U49: N/A | V49: N/A | W49: N/A | X49: N/A | Y49: N/A | Z49: N/A | BB49: Highly contaminated (>100 CFU/100 mL) | BC49: N/A | BD49: N/A | BE49: N/A | BF49: N/A | BG49: N/A | BH49: N/A | BI49: N/A | BJ49: N/A | BK49: N/A | BL49: N/A | BM49: N/A | BN49: N/A | BO49: N/A | BP49: N/A | BQ49: N/A | BR49: N/A | BS49: N/A | BT49: N/A | BU49: N/A | BV49: N/A | BW49: N/A | BX49: N/A | BY49: N/A | BZ49: N/A
A50: Microbiological quality of improved water sources at point of collection | B50: Not contaminated (No E. coli in 100 mL) | C50: N/A | D50: N/A | E50: N/A | F50: N/A | G50: N/A | H50: N/A | I50: N/A | J50: N/A | K50: N/A | L50: N/A | M50: N/A | N50: N/A | O50: N/A | P50: N/A | Q50: N/A | R50: N/A | S50: N/A | T50: N/A | U50: N/A | V50: N/A | W50: N/A | X50: N/A | Y50: N/A | Z50: N/A | BA50: Microbiological quality of improved water sources at point of collection | BB50: Not contaminated (No E. coli in 100 mL) | BC50: N/A | BD50: N/A | BE50: N/A | BF50: N/A | BG50: N/A | BH50: N/A | BI50: N/A | BJ50: N/A | BK50: N/A | BL50: N/A | BM50: N/A | BN50: N/A | BO50: N/A | BP50: N/A | BQ50: N/A | BR50: N/A | BS50: N/A | BT50: N/A | BU50: N/A | BV50: N/A | BW50: N/A | BX50: N/A | BY50: N/A | BZ50: N/A
B51: Contaminated (E. coli detected in 100 mL) | C51: N/A | D51: N/A | E51: N/A | F51: N/A | G51: N/A | H51: N/A | I51: N/A | J51: N/A | K51: N/A | L51: N/A | M51: N/A | N51: N/A | O51: N/A | P51: N/A | Q51: N/A | R51: N/A | S51: N/A | T51: N/A | U51: N/A | V51: N/A | W51: N/A | X51: N/A | Y51: N/A | Z51: N/A | BB51: Contaminated (E. coli detected in 100 mL) | BC51: N/A | BD51: N/A | BE51: N/A | BF51: N/A | BG51: N/A | BH51: N/A | BI51: N/A | BJ51: N/A | BK51: N/A | BL51: N/A | BM51: N/A | BN51: N/A | BO51: N/A | BP51: N/A | BQ51: N/A | BR51: N/A | BS51: N/A | BT51: N/A | BU51: N/A | BV51: N/A | BW51: N/A | BX51: N/A | BY51: N/A | BZ51: N/A
B52: Highly contaminated (>100 CFU/100 mL) | C52: N/A | D52: N/A | E52: N/A | F52: N/A | G52: N/A | H52: N/A | I52: N/A | J52: N/A | K52: N/A | L52: N/A | M52: N/A | N52: N/A | O52: N/A | P52: N/A | Q52: N/A | R52: N/A | S52: N/A | T52: N/A | U52: N/A | V52: N/A | W52: N/A | X52: N/A | Y52: N/A | Z52: N/A | BB52: Highly contaminated (>100 CFU/100 mL) | BC52: N/A | BD52: N/A | BE52: N/A | BF52: N/A | BG52: N/A | BH52: N/A | BI52: N/A | BJ52: N/A | BK52: N/A | BL52: N/A | BM52: N/A | BN52: N/A | BO52: N/A | BP52: N/A | BQ52: N/A | BR52: N/A | BS52: N/A | BT52: N/A | BU52: N/A | BV52: N/A | BW52: N/A | BX52: N/A | BY52: N/A | BZ52: N/A
A53: Microbiological quality of piped on premises at point of collection | B53: Not contaminated (No E. coli in 100 mL) | C53: N/A | D53: N/A | E53: N/A | F53: N/A | G53: N/A | H53: N/A | I53: N/A | J53: N/A | K53: N/A | L53: N/A | M53: N/A | N53: N/A | O53: N/A | P53: N/A | Q53: N/A | R53: N/A | S53: N/A | T53: N/A | U53: N/A | V53: N/A | W53: N/A | X53: N/A | Y53: N/A | Z53: N/A | BA53: Microbiological quality of piped on premises at point of collection | BB53: Not contaminated (No E. coli in 100 mL) | BC53: N/A | BD53: N/A | BE53: N/A | BF53: N/A | BG53: N/A | BH53: N/A | BI53: N/A | BJ53: N/A | BK53: N/A | BL53: N/A | BM53: N/A | BN53: N/A | BO53: N/A | BP53: N/A | BQ53: N/A | BR53: N/A | BS53: N/A | BT53: N/A | BU53: N/A | BV53: N/A | BW53: N/A | BX53: N/A | BY53: N/A | BZ53: N/A
B54: Contaminated (E. coli detected in 100 mL) | C54: N/A | D54: N/A | E54: N/A | F54: N/A | G54: N/A | H54: N/A | I54: N/A | J54: N/A | K54: N/A | L54: N/A | M54: N/A | N54: N/A | O54: N/A | P54: N/A | Q54: N/A | R54: N/A | S54: N/A | T54: N/A | U54: N/A | V54: N/A | W54: N/A | X54: N/A | Y54: N/A | Z54: N/A | BB54: Contaminated (E. coli detected in 100 mL) | BC54: N/A | BD54: N/A | BE54: N/A | BF54: N/A | BG54: N/A | BH54: N/A | BI54: N/A | BJ54: N/A | BK54: N/A | BL54: N/A | BM54: N/A | BN54: N/A | BO54: N/A | BP54: N/A | BQ54: N/A | BR54: N/A | BS54: N/A | BT54: N/A | BU54: N/A | BV54: N/A | BW54: N/A | BX54: N/A | BY54: N/A | BZ54: N/A
B55: Highly contaminated (>100 CFU/100 mL) | C55: N/A | D55: N/A | E55: N/A | F55: N/A | G55: N/A | H55: N/A | I55: N/A | J55: N/A | K55: N/A | L55: N/A | M55: N/A | N55: N/A | O55: N/A | P55: N/A | Q55: N/A | R55: N/A | S55: N/A | T55: N/A | U55: N/A | V55: N/A | W55: N/A | X55: N/A | Y55: N/A | Z55: N/A | BB55: Highly contaminated (>100 CFU/100 mL) | BC55: N/A | BD55: N/A | BE55: N/A | BF55: N/A | BG55: N/A | BH55: N/A | BI55: N/A | BJ55: N/A | BK55: N/A | BL55: N/A | BM55: N/A | BN55: N/A | BO55: N/A | BP55: N/A | BQ55: N/A | BR55: N/A | BS55: N/A | BT55: N/A | BU55: N/A | BV55: N/A | BW55: N/A | BX55: N/A | BY55: N/A | BZ55: N/A
C56: NATIONAL wealth index quintile | H56: URBAN wealth index quintile | M56: RURAL wealth index quintile | R56: SUB-REGIONS: | BA56: Raw numbers of respondents: | BB56: Use of drinking water sources | BC56: NATIONAL wealth index quintile | BH56: URBAN wealth index quintile | BM56: RURAL wealth index quintile | BR56: SUB-REGIONS:
A57: Percentage based on weighted population | C57: Poorest | D57: Poor | E57: Middle | F57: Rich | G57: Richest | H57: Poorest | I57: Poor | J57: Middle | K57: Rich | L57: Richest | M57: Poorest | N57: Poor | O57: Middle | P57: Rich | Q57: Richest | R57: Bamako | S57: Gao | T57: Kayes | U57: Kidal | V57: Koulikoro | W57: Mopti | X57: Segou | Y57: Sikasso | Z57: Tombouctou | BA57: Water data, raw numbers (weighted) | BC57: Poorest | BD57: Poor | BE57: Middle | BF57: Rich | BG57: Richest | BH57: Poorest | BI57: Poor | BJ57: Middle | BK57: Rich | BL57: Richest | BM57: Poorest | BN57: Poor | BO57: Middle | BP57: Rich | BQ57: Richest | BR57: Bamako | BS57: Gao | BT57: Kayes | BU57: Kidal | BV57: Koulikoro | BW57: Mopti | BX57: Segou | BY57: Sikasso | BZ57: Tombouctou
A58: Source of drinking water | B58: Piped into dwelling | C58: 2.108563402 | D58: 0.8473284738 | E58: 0.6418489286 | F58: 0.7097762899 | G58: 29.56202201 | H58: 3.302187683 | I58: 6.304979325 | J58: 11.50482261 | K58: 32.3633199 | L58: 63.66691615 | M58: 0.3023765572 | N58: 0.2316842093 | O58: 1.234505235 | P58: 0.6500281976 | Q58: 1.631978069 | R58: 33.59828349 | S58: 8.172020858 | T58: 6.243269979 | U58: 4.429076017 | V58: 0.775890789 | W58: 1.663631229 | X58: 2.224642425 | Y58: 2.756047908 | Z58: 1.865257505
B59: Piped into yard/plot | C59: 1.927874643 | D59: 1.240996964 | E59: 0.9260329146 | F59: 0.677498982 | G59: 7.134060446 | H59: 2.146966325 | I59: 3.087972894 | J59: 4.177420485 | K59: 8.972782342 | L59: 11.62171464 | M59: 0.4563156574 | N59: 0.5955046425 | O59: 1.179190722 | P59: 1.42063198 | Q59: 1.699590356 | R59: 8.218509801 | S59: 2.058519187 | T59: 1.429462743 | U59: 2.60640849 | V59: 1.925550396 | W59: 0.3941154814 | X59: 1.983803705 | Y59: 1.576653334 | Z59: 0.470908207
B60: Public tap | C60: 16.82857398 | D60: 18.48953349 | E60: 14.71171999 | F60: 17.73335936 | G60: 33.88612861 | H60: 19.85412997 | I60: 33.90588191 | J60: 44.38328965 | K60: 40.82053902 | L60: 18.18985773 | M60: 13.95552862 | N60: 16.09248344 | O60: 15.72597086 | P60: 18.43458072 | Q60: 17.21478725 | R60: 42.52598374 | S60: 12.69071984 | T60: 9.24437631 | U60: 43.22408174 | V60: 13.40486442 | W60: 20.71223971 | X60: 12.1752234 | Y60: 26.65496829 | Z60: 20.49398995
B61: Open well in dwelling | C61: 15.28081465 | D61: 10.57388599 | E61: 8.504664648 | F61: 6.802102749 | G61: 12.84480585 | H61: 18.63293238 | I61: 20.1834658 | J61: 17.66632327 | K61: 8.830071459 | L61: 3.213378328 | M61: 4.969400494 | N61: 7.933001355 | O61: 8.726015276 | P61: 11.48464849 | Q61: 14.87742561 | R61: 8.084373008 | S61: 0.1934890881 | T61: 2.635354968 | U61: 2.958390628 | V61: 16.36378382 | W61: 2.203252365 | X61: 14.47129996 | Y61: 18.43497651 | Z61: 0
B62: Open well in yard/plot | C62: 5.945366812 | D62: 4.765956754 | E62: 3.781963893 | F62: 4.695935267 | G62: 3.348117313 | H62: 8.388115909 | I62: 7.057979092 | J62: 5.225537895 | K62: 1.370427449 | L62: 0.05786476482 | M62: 3.5750534 | N62: 4.513803052 | O62: 2.944503986 | P62: 5.368908437 | Q62: 5.993552136 | R62: 1.036654039 | S62: 0 | T62: 4.383187918 | U62: 0.5840460119 | V62: 4.698942023 | W62: 2.098916143 | X62: 6.102655964 | Y62: 7.898869555 | Z62: 0.3450396437
B63: Open public well | C63: 37.71791642 | D63: 46.27878936 | E63: 48.67444189 | F63: 40.18691389 | G63: 4.492595645 | H63: 20.07914583 | I63: 10.34497038 | J63: 7.917095745 | K63: 1.785113621 | L63: 0.1381954273 | M63: 45.80163118 | N63: 46.89387978 | O63: 50.12648783 | P63: 45.09718261 | Q63: 40.74595847 | R63: 1.328228211 | S63: 29.47901424 | T63: 42.13260648 | U63: 38.07076041 | V63: 49.99529171 | W63: 46.66477 | X63: 45.25153164 | Y63: 25.09818104 | Z63: 45.60804243
B64: Protected well in dwelling | C64: 5.856533899 | D64: 5.437353205 | E64: 4.654885803 | F64: 4.747153539 | G64: 3.751150093 | H64: 10.7303304 | I64: 7.721423827 | J64: 3.822269313 | K64: 2.83184777 | L64: 1.477768303 | M64: 3.794555651 | N64: 4.968512739 | O64: 4.391853591 | P64: 5.810572771 | Q64: 4.643972797 | R64: 2.903243629 | S64: 0.5353108977 | T64: 9.118241779 | U64: 3.260286903 | V64: 3.898987118 | W64: 1.64331997 | X64: 9.916689448 | Y64: 3.045626724 | Z64: 0
B65: Protected well in yard/plot | C65: 3.684539873 | D65: 1.925707173 | E65: 1.553215317 | F65: 2.037223968 | G65: 2.887082484 | H65: 4.729485835 | I65: 5.342353581 | J65: 3.666082297 | K65: 1.338662163 | L65: 1.280851491 | M65: 1.638611628 | N65: 1.644831585 | O65: 0.9811248371 | P65: 2.53848771 | Q65: 3.356527027 | R65: 1.680779977 | S65: 0.6598807003 | T65: 1.964884021 | U65: 0 | V65: 3.126407449 | W65: 1.175743237 | X65: 3.471866159 | Y65: 2.776277998 | Z65: 0.3019096882
B66: Protected public well | C66: 7.001285489 | D66: 7.672216465 | E66: 9.597793021 | F66: 9.575212606 | G66: 1.475220655 | H66: 4.073587743 | I66: 3.953930757 | J66: 1.28316335 | K66: 1.340946542 | L66: 0 | M66: 10.39599155 | N66: 9.125425946 | O66: 10.32433348 | P66: 6.918474664 | Q66: 7.601005707 | R66: 0.4987672319 | S66: 7.475109182 | T66: 10.29193846 | U66: 2.911134242 | V66: 5.678290813 | W66: 11.12772576 | X66: 3.279827628 | Y66: 11.00766539 | Z66: 7.09995604
B67: Spring | C67: 0.03020353987 | D67: 0.2061127884 | E67: 0.3407038254 | F67: 1.311120851 | G67: 0 | H67: 0 | I67: 0 | J67: 0 | K67: 0 | L67: 0 | M67: 1.699726373 | N67: 0.375457476 | O67: 0.2534270544 | P67: 0.1685691825 | Q67: 0.03636527901 | R67: 0 | S67: 1.938792024 | T67: 0 | U67: 0 | V67: 0 | W67: 2.00851766 | X67: 0 | Y67: 0.1581237033 | Z67: 0.6450544651
B68: River, stream | C68: 3.235869035 | D68: 1.971149741 | E68: 5.974317551 | F68: 10.2307222 | G68: 0.2738101671 | H68: 7.19375141 | I68: 1.441734548 | J68: 0.3539953907 | K68: 0.06466148993 | L68: 0 | M68: 11.80297516 | N68: 6.828030737 | O68: 3.698257725 | P68: 1.462854661 | Q68: 2.035573957 | R68: 0 | S68: 32.78898121 | T68: 10.37022379 | U68: 0 | V68: 0.07479459912 | W68: 9.35010328 | X68: 1.041820651 | Y68: 0.2084524417 | Z68: 22.24152304
B69: Pond, lake | C69: 0.08738965394 | D69: 0.4952434478 | E69: 0.5187453529 | F69: 1.128623113 | G69: 0 | H69: 0 | I69: 0 | J69: 0 | K69: 0 | L69: 0 | M69: 1.431902791 | N69: 0.6270432963 | O69: 0.3854775488 | P69: 0.5028658057 | Q69: 0.1052177712 | R69: 0 | S69: 1.322748472 | T69: 2.096796062 | U69: 0 | V69: 0 | W69: 0.8199919097 | X69: 0 | Y69: 0.02195757311 | Z69: 0.9283190212
B70: Canal | C70: 0 | D70: 0.04507941528 | E70: 0 | F70: 0 | G70: 0 | H70: 0 | I70: 0 | J70: 0 | K70: 0 | L70: 0 | M70: 0 | N70: 0 | O70: 0 | P70: 0.06696244405 | Q70: 0 | R70: 0 | S70: 0 | T70: 0 | U70: 0 | V70: 0 | W70: 0 | X70: 0.05752583534 | Y70: 0 | Z70: 0
B71: Tanker truck | C71: 0.2468582906 | D71: 0 | E71: 0 | F71: 0 | G71: 0.01553288395 | H71: 0.8502643627 | I71: 0 | J71: 0 | K71: 0 | L71: 0.0591222106 | M71: 0 | N71: 0 | O71: 0 | P71: 0 | Q71: 0 | R71: 0 | S71: 0 | T71: 0 | U71: 1.95581556 | V71: 0 | W71: 0 | X71: 0 | Y71: 0.2093731558 | Z71: 0
B72: Bottled water | C72: 0 | D72: 0.01125060795 | E72: 0.02096530163 | F72: 0.01256012055 | G72: 0.007230957333 | H72: 0 | I72: 0 | J72: 0 | K72: 0 | L72: 0.02752291099 | M72: 0.0162828378 | N72: 0.02942446006 | O72: 0 | P72: 0.01671202257 | Q72: 0 | R72: 0.01105176407 | S72: 0 | T72: 0 | U72: 0 | V72: 0.05719686659 | W72: 0 | X72: 0 | Y72: 0 | Z72: 0
B73: Other | C73: 0.04821031106 | D73: 0.03939613344 | E73: 0.09870156406 | F73: 0.1517970633 | G73: 0.3222428813 | H73: 0.0191021466 | I73: 0.6553078897 | J73: 0 | K73: 0.2816282481 | L73: 0.2668080421 | M73: 0.1596481042 | N73: 0.1409172738 | O73: 0.02885185285 | P73: 0.05852031054 | Q73: 0.05804556091 | R73: 0.1141251134 | S73: 2.685414297 | T73: 0.08965748397 | U73: 0 | V73: 0 | W73: 0.1376732567 | X73: 0.02311318972 | Y73: 0.1528263685 | Z73: 0
A108: =A1026 -> Mali
A109: =A1034 -> 2001
A110: Use of sanitation facilities
A111: by wealth quintile and sub-national region
A112: Notes:
A113: WHO/UNICEF JMP customised wealth index excludes water,
A114: sanitation and hygiene assets.
A115: Survey used for analysis: | B115: =A1025 -> DHS01
A116: =B1030 -> Ratio of Improved latrines based on:
A117: =B1029 -> Ratio of Shared improved based on:
A120: Use of sanitation facilities | C120: NATIONAL wealth index quintile | H120: URBAN wealth index quintile | M120: RURAL wealth index quintile | R120: SUB-REGIONS: | BA120: Raw numbers of respondents: | BB120: Use of sanitation facilities | BC120: NATIONAL wealth index quintile | BH120: URBAN wealth index quintile | BM120: RURAL wealth index quintile | BR120: SUB-REGIONS:
A121: Weighted percentage (used in graphs) | C121: Poorest | D121: Poor | E121: Middle | F121: Rich | G121: Richest | H121: Poorest | I121: Poor | J121: Middle | K121: Rich | L121: Richest | M121: Poorest | N121: Poor | O121: Middle | P121: Rich | Q121: Richest | R121: Bamako | S121: Gao | T121: Kayes | U121: Kidal | V121: Koulikoro | W121: Mopti | X121: Segou | Y121: Sikasso | Z121: Tombouctou | BA121: Sanitation data, raw numbers (weighted) | BC121: Poorest | BD121: Poor | BE121: Middle | BF121: Rich | BG121: Richest | BH121: Poorest | BI121: Poor | BJ121: Middle | BK121: Rich | BL121: Richest | BM121: Poorest | BN121: Poor | BO121: Middle | BP121: Rich | BQ121: Richest | BR121: Bamako | BS121: Gao | BT121: Kayes | BU121: Kidal | BV121: Koulikoro | BW121: Mopti | BX121: Segou | BY121: Sikasso | BZ121: Tombouctou
A122: Sanitation | B122: Improved | C122: =C153+C155+C154*MICS10!C130/100 -> 23.11622266 | D122: =D153+D155+D154*MICS10!D130/100 -> 20.0053036 | E122: =E153+E155+E154*MICS10!E130/100 -> 24.98829986 | F122: =F153+F155+F154*MICS10!F130/100 -> 40.32127246 | G122: =G153+G155+G154*MICS10!G130/100 -> 87.48501054 | H122: =H153+H155+H154*MICS10!H130/100 -> 51.49865849 | I122: =I153+I155+I154*MICS10!I130/100 -> 84.01106829 | J122: =J153+J155+J154*MICS10!J130/100 -> 77.99899339 | K122: =K153+K155+K154*MICS10!K130/100 -> 87.46403027 | L122: =L153+L155+L154*MICS10!L130/100 -> 95.75114375 | M122: =M153+M155+M154*MICS10!M130/100 -> 16.85558281 | N122: =N153+N155+N154*MICS10!N130/100 -> 17.72335602 | O122: =O153+O155+O154*MICS10!O130/100 -> 21.45941752 | P122: =P153+P155+P154*MICS10!P130/100 -> 25.01006139 | Q122: =Q153+Q155+Q154*MICS10!Q130/100 -> 46.64414284 | R122: =R153+R155+R154*MICS10!R130/100 -> 89.56864339 | S122: =S153+S155+S154*MICS10!S130/100 -> 44.44963848 | T122: =T153+T155+T154*MICS10!T130/100 -> 40.25356798 | U122: =U153+U155+U154*MICS10!U130/100 -> 49.36295942 | V122: =V153+V155+V154*MICS10!V130/100 -> 26.50878674 | W122: =W153+W155+W154*MICS10!W130/100 -> 26.68036997 | X122: =X153+X155+X154*MICS10!X130/100 -> 32.08911154 | Y122: =Y153+Y155+Y154*MICS10!Y130/100 -> 34.37221272 | Z122: =Z153+Z155+Z154*MICS10!Z130/100 -> 24.08951141 | BA122: Sanitation | BB122: Improved | BC122: N/A | BD122: N/A | BE122: N/A | BF122: N/A | BG122: N/A | BH122: N/A | BI122: N/A | BJ122: N/A | BK122: N/A | BL122: N/A | BM122: N/A | BN122: N/A | BO122: N/A | BP122: N/A | BQ122: N/A | BR122: N/A | BS122: N/A | BT122: N/A | BU122: N/A | BV122: N/A | BW122: N/A | BX122: N/A | BY122: N/A | BZ122: N/A
B123: Not Improved | C123: =100-C122 -> 76.88377734 | D123: =100-D122 -> 79.9946964 | E123: 75.01170014 | F123: 59.67872754 | G123: 12.51498946 | H123: 48.50134151 | I123: 15.98893171 | J123: 22.00100661 | K123: 12.53596973 | L123: 4.248856252 | M123: 83.14441719 | N123: 82.27664398 | O123: 78.54058248 | P123: 74.98993861 | Q123: 53.35585716 | R123: 10.43135661 | S123: 55.55036152 | T123: 59.74643202 | U123: 50.63704058 | V123: 73.49121326 | W123: 73.31963003 | X123: 67.91088846 | Y123: 65.62778728 | Z123: 75.91048859 | BB123: Not Improved | BC123: N/A | BD123: N/A | BE123: N/A | BF123: N/A | BG123: N/A | BH123: N/A | BI123: N/A | BJ123: N/A | BK123: N/A | BL123: N/A | BM123: N/A | BN123: N/A | BO123: N/A | BP123: N/A | BQ123: N/A | BR123: N/A | BS123: N/A | BT123: N/A | BU123: N/A | BV123: N/A | BW123: N/A | BX123: N/A | BY123: N/A | BZ123: N/A
A124: Sanitation ladder | B124: Basic | C124: =C122*MICS10!C129/100 -> 20.90582231 | D124: =D122*MICS10!D129/100 -> 16.66378851 | E124: =E122*MICS10!E129/100 -> 21.48480396 | F124: =F122*MICS10!F129/100 -> 33.65976245 | G124: =G122*MICS10!G129/100 -> 56.72629645 | H124: =H122*MICS10!H129/100 -> 44.35410999 | I124: =I122*MICS10!I129/100 -> 68.634691 | J124: =J122*MICS10!J129/100 -> 52.18452367 | K124: =K122*MICS10!K129/100 -> 51.91247786 | L124: =L122*MICS10!L129/100 -> 57.16095167 | M124: =M122*MICS10!M129/100 -> 15.10999931 | N124: =N122*MICS10!N129/100 -> 15.79704071 | O124: =O122*MICS10!O129/100 -> 17.37929252 | P124: =P122*MICS10!P129/100 -> 21.52366083 | Q124: =Q122*MICS10!Q129/100 -> 38.39742008 | R124: =R122*MICS10!R129/100 -> 57.6339425 | S124: =S122*MICS10!S129/100 -> 34.03401248 | T124: =T122*MICS10!T129/100 -> 34.2246342 | U124: =U122*MICS10!U129/100 -> 42.04541706 | V124: =V122*MICS10!V129/100 -> 21.65898212 | W124: =W122*MICS10!W129/100 -> 19.79910821 | X124: =X122*MICS10!X129/100 -> 27.74868401 | Y124: =Y122*MICS10!Y129/100 -> 27.30253105 | Z124: =Z122*MICS10!Z129/100 -> 19.95034413 | BA124: Sanitation ladder | BB124: Basic | BC124: N/A | BD124: N/A | BE124: N/A | BF124: N/A | BG124: N/A | BH124: N/A | BI124: N/A | BJ124: N/A | BK124: N/A | BL124: N/A | BM124: N/A | BN124: N/A | BO124: N/A | BP124: N/A | BQ124: N/A | BR124: N/A | BS124: N/A | BT124: N/A | BU124: N/A | BV124: N/A | BW124: N/A | BX124: N/A | BY124: N/A | BZ124: N/A
B125: Limited | C125: =C122*MICS10!C128/100 -> 2.21040035 | D125: =D122*MICS10!D128/100 -> 3.341515091 | E125: =E122*MICS10!E128/100 -> 3.503495896 | F125: =F122*MICS10!F128/100 -> 6.661510014 | G125: =G122*MICS10!G128/100 -> 30.75871409 | H125: =H122*MICS10!H128/100 -> 7.1445485 | I125: =I122*MICS10!I128/100 -> 15.37637729 | J125: =J122*MICS10!J128/100 -> 25.81446972 | K125: =K122*MICS10!K128/100 -> 35.55155241 | L125: =L122*MICS10!L128/100 -> 38.59019207 | M125: =M122*MICS10!M128/100 -> 1.745583492 | N125: =N122*MICS10!N128/100 -> 1.926315316 | O125: =O122*MICS10!O128/100 -> 4.080125001 | P125: =P122*MICS10!P128/100 -> 3.486400563 | Q125: =Q122*MICS10!Q128/100 -> 8.246722758 | R125: =R122*MICS10!R128/100 -> 31.93470089 | S125: =S122*MICS10!S128/100 -> 10.415626 | T125: =T122*MICS10!T128/100 -> 6.028933782 | U125: =U122*MICS10!U128/100 -> 7.317542366 | V125: =V122*MICS10!V128/100 -> 4.849804621 | W125: =W122*MICS10!W128/100 -> 6.881261756 | X125: =X122*MICS10!X128/100 -> 4.340427536 | Y125: =Y122*MICS10!Y128/100 -> 7.06968167 | Z125: =Z122*MICS10!Z128/100 -> 4.139167277 | BB125: Limited | BC125: N/A | BD125: N/A | BE125: N/A | BF125: N/A | BG125: N/A | BH125: N/A | BI125: N/A | BJ125: N/A | BK125: N/A | BL125: N/A | BM125: N/A | BN125: N/A | BO125: N/A | BP125: N/A | BQ125: N/A | BR125: N/A | BS125: N/A | BT125: N/A | BU125: N/A | BV125: N/A | BW125: N/A | BX125: N/A | BY125: N/A | BZ125: N/A
B126: Unimproved | C126: =100-(C124+C125+C127) -> 59.37601371 | D126: =100-(D124+D125+D127) -> 55.11921788 | E126: 47.78206159 | F126: 25.95135318 | G126: 11.82043238 | H126: 42.57626566 | I126: 13.62250941 | J126: 21.21504461 | K126: 12.53596973 | L126: 4.248856252 | M126: 43.29732999 | N126: 55.22277888 | O126: 50.54945177 | P126: 51.08604798 | Q126: 33.10070982 | R126: 10.33281776 | S126: 16.563889 | T126: 45.49408117 | U126: 36.33021929 | V126: 56.89223524 | W126: 22.70080008 | X126: 52.60496299 | Y126: 44.39426354 | Z126: 30.74928448 | BB126: Unimproved | BC126: N/A | BD126: N/A | BE126: N/A | BF126: N/A | BG126: N/A | BH126: N/A | BI126: N/A | BJ126: N/A | BK126: N/A | BL126: N/A | BM126: N/A | BN126: N/A | BO126: N/A | BP126: N/A | BQ126: N/A | BR126: N/A | BS126: N/A | BT126: N/A | BU126: N/A | BV126: N/A | BW126: N/A | BX126: N/A | BY126: N/A | BZ126: N/A
B127: Open defecation | C127: =C156 -> 17.50776363 | D127: =D156 -> 24.87547852 | E127: 27.22963855 | F127: 33.72737436 | G127: 0.6945570746 | H127: 5.92507585 | I127: 2.366422299 | J127: 0.7859620031 | K127: 0 | L127: 0 | M127: 39.84708721 | N127: 27.0538651 | O127: 27.99113071 | P127: 23.90389063 | Q127: 20.25514734 | R127: 0.09853885302 | S127: 38.98647252 | T127: 14.25235084 | U127: 14.30682129 | V127: 16.59897801 | W127: 50.61882995 | X127: 15.30592547 | Y127: 21.23352373 | Z127: 45.16120411 | BB127: Open defecation | BC127: N/A | BD127: N/A | BE127: N/A | BF127: N/A | BG127: N/A | BH127: N/A | BI127: N/A | BJ127: N/A | BK127: N/A | BL127: N/A | BM127: N/A | BN127: N/A | BO127: N/A | BP127: N/A | BQ127: N/A | BR127: N/A | BS127: N/A | BT127: N/A | BU127: N/A | BV127: N/A | BW127: N/A | BX127: N/A | BY127: N/A | BZ127: N/A
A128: Shared among Improved Sanitation | B128: Yes | C128: N/A | D128: N/A | E128: N/A | F128: N/A | G128: N/A | H128: N/A | I128: N/A | J128: N/A | K128: N/A | L128: N/A | M128: N/A | N128: N/A | O128: N/A | P128: N/A | Q128: N/A | R128: N/A | S128: N/A | T128: N/A | U128: N/A | V128: N/A | W128: N/A | X128: N/A | Y128: N/A | Z128: N/A | BA128: Shared among improved sanitation facilities | BB128: Yes | BC128: N/A | BD128: N/A | BE128: N/A | BF128: N/A | BG128: N/A | BH128: N/A | BI128: N/A | BJ128: N/A | BK128: N/A | BL128: N/A | BM128: N/A | BN128: N/A | BO128: N/A | BP128: N/A | BQ128: N/A | BR128: N/A | BS128: N/A | BT128: N/A | BU128: N/A | BV128: N/A | BW128: N/A | BX128: N/A | BY128: N/A | BZ128: N/A
B129: No | C129: N/A | D129: N/A | E129: N/A | F129: N/A | G129: N/A | H129: N/A | I129: N/A | J129: N/A | K129: N/A | L129: N/A | M129: N/A | N129: N/A | O129: N/A | P129: N/A | Q129: N/A | R129: N/A | S129: N/A | T129: N/A | U129: N/A | V129: N/A | W129: N/A | X129: N/A | Y129: N/A | Z129: N/A | BB129: No | BC129: N/A | BD129: N/A | BE129: N/A | BF129: N/A | BG129: N/A | BH129: N/A | BI129: N/A | BJ129: N/A | BK129: N/A | BL129: N/A | BM129: N/A | BN129: N/A | BO129: N/A | BP129: N/A | BQ129: N/A | BR129: N/A | BS129: N/A | BT129: N/A | BU129: N/A | BV129: N/A | BW129: N/A | BX129: N/A | BY129: N/A | BZ129: N/A
A130: Manually calculated ratios | B130: Improved latrines
B131: Other
B132: Other
C133: NATIONAL wealth index quintile | H133: URBAN wealth index quintile | M133: RURAL wealth index quintile | R133: SUB-REGIONS: | BA133: Raw numbers of respondents: | BB133: Use of sanitation facilities | BC133: NATIONAL wealth index quintile | BH133: URBAN wealth index quintile | BM133: RURAL wealth index quintile | BR133: SUB-REGIONS:
A134: Percentage based on weighted population | C134: Poorest | D134: Poor | E134: Middle | F134: Rich | G134: Richest | H134: Poorest | I134: Poor | J134: Middle | K134: Rich | L134: Richest | M134: Poorest | N134: Poor | O134: Middle | P134: Rich | Q134: Richest | R134: Bamako | S134: Gao | T134: Kayes | U134: Kidal | V134: Koulikoro | W134: Mopti | X134: Segou | Y134: Sikasso | Z134: Tombouctou | BA134: Sanitation data, raw numbers (weighted) | BC134: Poorest | BD134: Poor | BE134: Middle | BF134: Rich | BG134: Richest | BH134: Poorest | BI134: Poor | BJ134: Middle | BK134: Rich | BL134: Richest | BM134: Poorest | BN134: Poor | BO134: Middle | BP134: Rich | BQ134: Richest | BR134: Bamako | BS134: Gao | BT134: Kayes | BU134: Kidal | BV134: Koulikoro | BW134: Mopti | BX134: Segou | BY134: Sikasso | BZ134: Tombouctou
A135: Sanitation type | B135: Sewer connection | C135: N/A | D135: N/A | E135: N/A | F135: N/A | G135: N/A | H135: N/A | I135: N/A | J135: N/A | K135: N/A | L135: N/A | M135: N/A | N135: N/A | O135: N/A | P135: N/A | Q135: N/A | R135: N/A | S135: N/A | T135: N/A | U135: N/A | V135: N/A | W135: N/A | X135: N/A | Y135: N/A | Z135: N/A | BA135: Sanitation type | BB135: Sewer connection | BC135: N/A | BD135: N/A | BE135: N/A | BF135: N/A | BG135: N/A | BH135: N/A | BI135: N/A | BJ135: N/A | BK135: N/A | BL135: N/A | BM135: N/A | BN135: N/A | BO135: N/A | BP135: N/A | BQ135: N/A | BR135: N/A | BS135: N/A | BT135: N/A | BU135: N/A | BV135: N/A | BW135: N/A | BX135: N/A | BY135: N/A | BZ135: N/A
B136: Septic tank connection | C136: N/A | D136: N/A | E136: N/A | F136: N/A | G136: N/A | H136: N/A | I136: N/A | J136: N/A | K136: N/A | L136: N/A | M136: N/A | N136: N/A | O136: N/A | P136: N/A | Q136: N/A | R136: N/A | S136: N/A | T136: N/A | U136: N/A | V136: N/A | W136: N/A | X136: N/A | Y136: N/A | Z136: N/A | BB136: Septic tank connection | BC136: N/A | BD136: N/A | BE136: N/A | BF136: N/A | BG136: N/A | BH136: N/A | BI136: N/A | BJ136: N/A | BK136: N/A | BL136: N/A | BM136: N/A | BN136: N/A | BO136: N/A | BP136: N/A | BQ136: N/A | BR136: N/A | BS136: N/A | BT136: N/A | BU136: N/A | BV136: N/A | BW136: N/A | BX136: N/A | BY136: N/A | BZ136: N/A
B137: Improved latrines | C137: N/A | D137: N/A | E137: N/A | F137: N/A | G137: N/A | H137: N/A | I137: N/A | J137: N/A | K137: N/A | L137: N/A | M137: N/A | N137: N/A | O137: N/A | P137: N/A | Q137: N/A | R137: N/A | S137: N/A | T137: N/A | U137: N/A | V137: N/A | W137: N/A | X137: N/A | Y137: N/A | Z137: N/A | BB137: Improved latrines | BC137: N/A | BD137: N/A | BE137: N/A | BF137: N/A | BG137: N/A | BH137: N/A | BI137: N/A | BJ137: N/A | BK137: N/A | BL137: N/A | BM137: N/A | BN137: N/A | BO137: N/A | BP137: N/A | BQ137: N/A | BR137: N/A | BS137: N/A | BT137: N/A | BU137: N/A | BV137: N/A | BW137: N/A | BX137: N/A | BY137: N/A | BZ137: N/A
B138: Unimproved facilities | C138: N/A | D138: N/A | E138: N/A | F138: N/A | G138: N/A | H138: N/A | I138: N/A | J138: N/A | K138: N/A | L138: N/A | M138: N/A | N138: N/A | O138: N/A | P138: N/A | Q138: N/A | R138: N/A | S138: N/A | T138: N/A | U138: N/A | V138: N/A | W138: N/A | X138: N/A | Y138: N/A | Z138: N/A | BB138: Unimproved facilities | BC138: N/A | BD138: N/A | BE138: N/A | BF138: N/A | BG138: N/A | BH138: N/A | BI138: N/A | BJ138: N/A | BK138: N/A | BL138: N/A | BM138: N/A | BN138: N/A | BO138: N/A | BP138: N/A | BQ138: N/A | BR138: N/A | BS138: N/A | BT138: N/A | BU138: N/A | BV138: N/A | BW138: N/A | BX138: N/A | BY138: N/A | BZ138: N/A
B139: Open defecation | C139: =C156 -> 17.50776363 | D139: =D156 -> 24.87547852 | E139: 27.22963855 | F139: 33.72737436 | G139: 0.6945570746 | H139: 5.92507585 | I139: 2.366422299 | J139: 0.7859620031 | K139: 0 | L139: 0 | M139: 39.84708721 | N139: 27.0538651 | O139: 27.99113071 | P139: 23.90389063 | Q139: 20.25514734 | R139: 0.09853885302 | S139: 38.98647252 | T139: 14.25235084 | U139: 14.30682129 | V139: 16.59897801 | W139: 50.61882995 | X139: 15.30592547 | Y139: 21.23352373 | Z139: 45.16120411 | BB139: Open defecation | BC139: N/A | BD139: N/A | BE139: N/A | BF139: N/A | BG139: N/A | BH139: N/A | BI139: N/A | BJ139: N/A | BK139: N/A | BL139: N/A | BM139: N/A | BN139: N/A | BO139: N/A | BP139: N/A | BQ139: N/A | BR139: N/A | BS139: N/A | BT139: N/A | BU139: N/A | BV139: N/A | BW139: N/A | BX139: N/A | BY139: N/A | BZ139: N/A
A140: Septic tank emptying practices | B140: Not emptied/treated and disposed in situ | C140: N/A | D140: N/A | E140: N/A | F140: N/A | G140: N/A | H140: N/A | I140: N/A | J140: N/A | K140: N/A | L140: N/A | M140: N/A | N140: N/A | O140: N/A | P140: N/A | Q140: N/A | R140: N/A | S140: N/A | T140: N/A | U140: N/A | V140: N/A | W140: N/A | X140: N/A | Y140: N/A | Z140: N/A | BA140: Septic tank emptying practices | BB140: Not emptied/treated and disposed in situ | BC140: N/A | BD140: N/A | BE140: N/A | BF140: N/A | BG140: N/A | BH140: N/A | BI140: N/A | BJ140: N/A | BK140: N/A | BL140: N/A | BM140: N/A | BN140: N/A | BO140: N/A | BP140: N/A | BQ140: N/A | BR140: N/A | BS140: N/A | BT140: N/A | BU140: N/A | BV140: N/A | BW140: N/A | BX140: N/A | BY140: N/A | BZ140: N/A
B141: Emptied and buried on site | C141: N/A | D141: N/A | E141: N/A | F141: N/A | G141: N/A | H141: N/A | I141: N/A | J141: N/A | K141: N/A | L141: N/A | M141: N/A | N141: N/A | O141: N/A | P141: N/A | Q141: N/A | R141: N/A | S141: N/A | T141: N/A | U141: N/A | V141: N/A | W141: N/A | X141: N/A | Y141: N/A | Z141: N/A | BB141: Emptied and buried on site | BC141: N/A | BD141: N/A | BE141: N/A | BF141: N/A | BG141: N/A | BH141: N/A | BI141: N/A | BJ141: N/A | BK141: N/A | BL141: N/A | BM141: N/A | BN141: N/A | BO141: N/A | BP141: N/A | BQ141: N/A | BR141: N/A | BS141: N/A | BT141: N/A | BU141: N/A | BV141: N/A | BW141: N/A | BX141: N/A | BY141: N/A | BZ141: N/A
B142: Emptied and discharged locally | C142: N/A | D142: N/A | E142: N/A | F142: N/A | G142: N/A | H142: N/A | I142: N/A | J142: N/A | K142: N/A | L142: N/A | M142: N/A | N142: N/A | O142: N/A | P142: N/A | Q142: N/A | R142: N/A | S142: N/A | T142: N/A | U142: N/A | V142: N/A | W142: N/A | X142: N/A | Y142: N/A | Z142: N/A | BB142: Emptied and discharged locally | BC142: N/A | BD142: N/A | BE142: N/A | BF142: N/A | BG142: N/A | BH142: N/A | BI142: N/A | BJ142: N/A | BK142: N/A | BL142: N/A | BM142: N/A | BN142: N/A | BO142: N/A | BP142: N/A | BQ142: N/A | BR142: N/A | BS142: N/A | BT142: N/A | BU142: N/A | BV142: N/A | BW142: N/A | BX142: N/A | BY142: N/A | BZ142: N/A
B143: Emptied and removed offsite | C143: N/A | D143: N/A | E143: N/A | F143: N/A | G143: N/A | H143: N/A | I143: N/A | J143: N/A | K143: N/A | L143: N/A | M143: N/A | N143: N/A | O143: N/A | P143: N/A | Q143: N/A | R143: N/A | S143: N/A | T143: N/A | U143: N/A | V143: N/A | W143: N/A | X143: N/A | Y143: N/A | Z143: N/A | BB143: Emptied and removed offsite | BC143: N/A | BD143: N/A | BE143: N/A | BF143: N/A | BG143: N/A | BH143: N/A | BI143: N/A | BJ143: N/A | BK143: N/A | BL143: N/A | BM143: N/A | BN143: N/A | BO143: N/A | BP143: N/A | BQ143: N/A | BR143: N/A | BS143: N/A | BT143: N/A | BU143: N/A | BV143: N/A | BW143: N/A | BX143: N/A | BY143: N/A | BZ143: N/A
A144: Latrine emptying practices | B144: Not emptied/treated and disposed in situ | C144: N/A | D144: N/A | E144: N/A | F144: N/A | G144: N/A | H144: N/A | I144: N/A | J144: N/A | K144: N/A | L144: N/A | M144: N/A | N144: N/A | O144: N/A | P144: N/A | Q144: N/A | R144: N/A | S144: N/A | T144: N/A | U144: N/A | V144: N/A | W144: N/A | X144: N/A | Y144: N/A | Z144: N/A | BA144: Latrine emptying practices | BB144: Not emptied/treated and disposed in situ | BC144: N/A | BD144: N/A | BE144: N/A | BF144: N/A | BG144: N/A | BH144: N/A | BI144: N/A | BJ144: N/A | BK144: N/A | BL144: N/A | BM144: N/A | BN144: N/A | BO144: N/A | BP144: N/A | BQ144: N/A | BR144: N/A | BS144: N/A | BT144: N/A | BU144: N/A | BV144: N/A | BW144: N/A | BX144: N/A | BY144: N/A | BZ144: N/A
B145: Emptied and buried on site | C145: N/A | D145: N/A | E145: N/A | F145: N/A | G145: N/A | H145: N/A | I145: N/A | J145: N/A | K145: N/A | L145: N/A | M145: N/A | N145: N/A | O145: N/A | P145: N/A | Q145: N/A | R145: N/A | S145: N/A | T145: N/A | U145: N/A | V145: N/A | W145: N/A | X145: N/A | Y145: N/A | Z145: N/A | BB145: Emptied and buried on site | BC145: N/A | BD145: N/A | BE145: N/A | BF145: N/A | BG145: N/A | BH145: N/A | BI145: N/A | BJ145: N/A | BK145: N/A | BL145: N/A | BM145: N/A | BN145: N/A | BO145: N/A | BP145: N/A | BQ145: N/A | BR145: N/A | BS145: N/A | BT145: N/A | BU145: N/A | BV145: N/A | BW145: N/A | BX145: N/A | BY145: N/A | BZ145: N/A
B146: Emptied and discharged locally | C146: N/A | D146: N/A | E146: N/A | F146: N/A | G146: N/A | H146: N/A | I146: N/A | J146: N/A | K146: N/A | L146: N/A | M146: N/A | N146: N/A | O146: N/A | P146: N/A | Q146: N/A | R146: N/A | S146: N/A | T146: N/A | U146: N/A | V146: N/A | W146: N/A | X146: N/A | Y146: N/A | Z146: N/A | BB146: Emptied and discharged locally | BC146: N/A | BD146: N/A | BE146: N/A | BF146: N/A | BG146: N/A | BH146: N/A | BI146: N/A | BJ146: N/A | BK146: N/A | BL146: N/A | BM146: N/A | BN146: N/A | BO146: N/A | BP146: N/A | BQ146: N/A | BR146: N/A | BS146: N/A | BT146: N/A | BU146: N/A | BV146: N/A | BW146: N/A | BX146: N/A | BY146: N/A | BZ146: N/A
B147: Emptied and removed offsite | C147: N/A | D147: N/A | E147: N/A | F147: N/A | G147: N/A | H147: N/A | I147: N/A | J147: N/A | K147: N/A | L147: N/A | M147: N/A | N147: N/A | O147: N/A | P147: N/A | Q147: N/A | R147: N/A | S147: N/A | T147: N/A | U147: N/A | V147: N/A | W147: N/A | X147: N/A | Y147: N/A | Z147: N/A | BB147: Emptied and removed offsite | BC147: N/A | BD147: N/A | BE147: N/A | BF147: N/A | BG147: N/A | BH147: N/A | BI147: N/A | BJ147: N/A | BK147: N/A | BL147: N/A | BM147: N/A | BN147: N/A | BO147: N/A | BP147: N/A | BQ147: N/A | BR147: N/A | BS147: N/A | BT147: N/A | BU147: N/A | BV147: N/A | BW147: N/A | BX147: N/A | BY147: N/A | BZ147: N/A
A148: Shared among improved sanitation facilities | B148: Yes | C148: N/A | D148: N/A | E148: N/A | F148: N/A | G148: N/A | H148: N/A | I148: N/A | J148: N/A | K148: N/A | L148: N/A | M148: N/A | N148: N/A | O148: N/A | P148: N/A | Q148: N/A | R148: N/A | S148: N/A | T148: N/A | U148: N/A | V148: N/A | W148: N/A | X148: N/A | Y148: N/A | Z148: N/A | BA148: Shared among improved sanitation facilities | BB148: Yes | BC148: N/A | BD148: N/A | BE148: N/A | BF148: N/A | BG148: N/A | BH148: N/A | BI148: N/A | BJ148: N/A | BK148: N/A | BL148: N/A | BM148: N/A | BN148: N/A | BO148: N/A | BP148: N/A | BQ148: N/A | BR148: N/A | BS148: N/A | BT148: N/A | BU148: N/A | BV148: N/A | BW148: N/A | BX148: N/A | BY148: N/A | BZ148: N/A
B149: No | C149: N/A | D149: N/A | E149: N/A | F149: N/A | G149: N/A | H149: N/A | I149: N/A | J149: N/A | K149: N/A | L149: N/A | M149: N/A | N149: N/A | O149: N/A | P149: N/A | Q149: N/A | R149: N/A | S149: N/A | T149: N/A | U149: N/A | V149: N/A | W149: N/A | X149: N/A | Y149: N/A | Z149: N/A | BB149: No | BC149: N/A | BD149: N/A | BE149: N/A | BF149: N/A | BG149: N/A | BH149: N/A | BI149: N/A | BJ149: N/A | BK149: N/A | BL149: N/A | BM149: N/A | BN149: N/A | BO149: N/A | BP149: N/A | BQ149: N/A | BR149: N/A | BS149: N/A | BT149: N/A | BU149: N/A | BV149: N/A | BW149: N/A | BX149: N/A | BY149: N/A | BZ149: N/A
B150: DK/missing | C150: N/A | D150: N/A | E150: N/A | F150: N/A | G150: N/A | H150: N/A | I150: N/A | J150: N/A | K150: N/A | L150: N/A | M150: N/A | N150: N/A | O150: N/A | P150: N/A | Q150: N/A | R150: N/A | S150: N/A | T150: N/A | U150: N/A | V150: N/A | W150: N/A | X150: N/A | Y150: N/A | Z150: N/A | BB150: DK/missing | BC150: N/A | BD150: N/A | BE150: N/A | BF150: N/A | BG150: N/A | BH150: N/A | BI150: N/A | BJ150: N/A | BK150: N/A | BL150: N/A | BM150: N/A | BN150: N/A | BO150: N/A | BP150: N/A | BQ150: N/A | BR150: N/A | BS150: N/A | BT150: N/A | BU150: N/A | BV150: N/A | BW150: N/A | BX150: N/A | BY150: N/A | BZ150: N/A
A151: Shared among all sanitation facilities | B151: Yes | C151: 44.0052132 | D151: 44.88898226 | E151: 42.7860758 | F151: 49.84475723 | G151: 53.02069211 | H151: 42.52713363 | I151: 49.38280839 | J151: 58.34729202 | K151: 64.48836241 | L151: 38.64215962 | M151: 50.52554431 | N151: 45.04528088 | O151: 41.01481191 | P151: 44.24974915 | Q151: 46.88666953 | R151: 53.8138664 | S151: 45.15929886 | T151: 54.27077373 | U151: 30.97895955 | V151: 49.31300607 | W151: 53.58526452 | X151: 25.66372556 | Y151: 54.6523673 | Z151: 32.67095995 | BA151: Shared among all sanitation facilities | BB151: Yes | BC151: N/A | BD151: N/A | BE151: N/A | BF151: N/A | BG151: N/A | BH151: N/A | BI151: N/A | BJ151: N/A | BK151: N/A | BL151: N/A | BM151: N/A | BN151: N/A | BO151: N/A | BP151: N/A | BQ151: N/A | BR151: N/A | BS151: N/A | BT151: N/A | BU151: N/A | BV151: N/A | BW151: N/A | BX151: N/A | BY151: N/A | BZ151: N/A
B152: No | C152: 51.67623293 | D152: 51.19393743 | E152: 53.00325695 | F152: 48.08352022 | G152: 44.44281646 | H152: 55.3536022 | I152: 47.53983362 | J152: 39.92315189 | K152: 31.35685198 | L152: 60.7045778 | M152: 46.77676702 | N152: 51.43295367 | O152: 55.23462455 | P152: 51.08540584 | Q152: 48.46568423 | R152: 43.67440332 | S152: 53.48925938 | T152: 41.79061413 | U152: 67.02399949 | V152: 47.75413759 | W152: 43.81367026 | X152: 69.46226044 | Y152: 42.2477156 | Z152: 62.60579293 | BB152: No | BC152: N/A | BD152: N/A | BE152: N/A | BF152: N/A | BG152: N/A | BH152: N/A | BI152: N/A | BJ152: N/A | BK152: N/A | BL152: N/A | BM152: N/A | BN152: N/A | BO152: N/A | BP152: N/A | BQ152: N/A | BR152: N/A | BS152: N/A | BT152: N/A | BU152: N/A | BV152: N/A | BW152: N/A | BX152: N/A | BY152: N/A | BZ152: N/A
A153: Type of toilet facility | B153: Flush toilet | C153: 5.035785501 | D153: 3.28568849 | E153: 2.628032082 | F153: 3.604607027 | G153: 15.86168787 | H153: 10.13260896 | I153: 6.140360851 | J153: 4.703287115 | K153: 11.73381173 | L153: 40.08555038 | M153: 2.945317816 | N153: 1.773994822 | O153: 4.40310911 | P153: 2.685200772 | Q153: 3.259216125 | R153: 22.62712921 | S153: 0.240073824 | T153: 16.24998107 | U153: 3.94060018 | V153: 1.153229313 | W153: 0.4304156397 | X153: 2.182682203 | Y153: 1.218665162 | Z153: 0.2017575188 | BA153: Type of toilet facility | BB153: Flush toilet | BC153: 561.284891 | BD153: 502.897304 | BE153: 365.302552 | BF153: 455.413413 | BG153: 2140.494557 | BH153: 326.843354 | BI153: 227.443782 | BJ153: 175.075898 | BK153: 404.456586 | BL153: 1426.800947 | BM153: 286.9555 | BN153: 175.394365 | BO153: 423.852594 | BP153: 276.655492 | BQ153: 301.914199 | BR153: 1999.234385 | BS153: 3.03746 | BT153: 1426.770044 | BU153: 4.242808 | BV153: 125.776989 | BW153: 40.656749 | BX153: 261.718964 | BY153: 159.85607 | BZ153: 4.099248
B154: Traditional pit toilet | C154: 69.51345736 | D154: 65.27382034 | E154: 62.75445015 | F154: 55.66659533 | G154: 58.2533948 | H154: 76.45532569 | I154: 75.72628541 | J154: 66.27631226 | K154: 63.07040934 | L154: 32.25049285 | M154: 50.95997873 | N154: 64.1319254 | O154: 60.90561337 | P154: 66.42195554 | Q154: 67.83276146 | R154: 51.62810169 | S154: 27.79956006 | T154: 65.07491418 | U154: 64.97550861 | V154: 78.53190475 | W154: 41.3103203 | X154: 79.49415639 | Y154: 58.91522484 | Z154: 45.84721564 | BB154: Traditional pit toilet | BC154: 7747.918042 | BD154: 9990.608778 | BE154: 8723.014054 | BF154: 7033.031334 | BG154: 7861.147913 | BH154: 2466.18765 | BI154: 2804.961006 | BJ154: 2467.079853 | BK154: 2173.994524 | BL154: 1147.920717 | BM154: 4964.912817 | BN154: 6340.705277 | BO154: 5862.903138 | BP154: 6843.435686 | BQ154: 6283.619453 | BR154: 4561.633745 | BS154: 351.725358 | BT154: 5713.66439 | BU154: 69.958533 | BV154: 8565.084504 | BW154: 3902.142879 | BX154: 9531.909054 | BY154: 7728.091853 | BZ154: 931.509805
B155: Ventilated improved pit latrine | C155: 7.891512486 | D155: 6.565012648 | E155: 7.331662101 | F155: 6.977622499 | G155: 25.19036025 | H155: 7.486989496 | I155: 15.76693144 | J155: 28.23443862 | K155: 25.19577893 | L155: 27.66395677 | M155: 6.247616254 | N155: 6.930764079 | O155: 6.700146805 | P155: 6.988953065 | Q155: 8.590931974 | R155: 25.64623025 | S155: 32.9738936 | T155: 4.422753909 | U155: 16.77706992 | V155: 3.715887925 | W155: 7.608599863 | X155: 2.904212168 | Y155: 18.63258627 | Z155: 8.789822729 | BB155: Ventilated improved pit latrine | BC155: 879.582088 | BD155: 1004.820503 | BE155: 1019.118029 | BF155: 881.567076 | BG155: 3399.37524 | BH155: 241.504707 | BI155: 584.019507 | BJ155: 1051.003176 | BK155: 868.481527 | BL155: 984.668025 | BM155: 608.690796 | BN155: 685.242679 | BO155: 644.9703 | BP155: 720.069899 | BQ155: 795.81232 | BR155: 2265.988977 | BS155: 417.192017 | BT155: 388.323701 | BU155: 18.063717 | BV155: 405.273426 | BW155: 718.702822 | BX155: 348.235487 | BY155: 2444.09384 | BZ155: 178.588949
B156: No facility, bush, field | C156: 17.50776363 | D156: 24.87547852 | E156: 27.22963855 | F156: 33.72737436 | G156: 0.6945570746 | H156: 5.92507585 | I156: 2.366422299 | J156: 0.7859620031 | K156: 0 | L156: 0 | M156: 39.84708721 | N156: 27.0538651 | O156: 27.99113071 | P156: 23.90389063 | Q156: 20.25514734 | R156: 0.09853885302 | S156: 38.98647252 | T156: 14.25235084 | U156: 14.30682129 | V156: 16.59897801 | W156: 50.61882995 | X156: 15.30592547 | Y156: 21.23352373 | Z156: 45.16120411 | BB156: No facility, bush, field | BC156: 1951.402259 | BD156: 3807.363699 | BE156: 3784.982885 | BF156: 4261.185353 | BG156: 93.728716 | BH156: 191.122708 | BI156: 87.654138 | BJ156: 29.256773 | BK156: 0 | BL156: 0 | BM156: 3882.209509 | BN156: 2674.80797 | BO156: 2694.485434 | BP156: 2462.811232 | BQ156: 1876.315148 | BR156: 8.706463 | BS156: 493.264317 | BT156: 1251.375442 | BU156: 15.404023 | BV156: 1810.368026 | BW156: 4781.417946 | BX156: 1835.28823 | BY156: 2785.266834 | BZ156: 917.571631
B157: Other | C157: 0.05148101963 | D157: 0 | E157: 0.05621711994 | F157: 0.02380078673 | G157: 0 | H157: 0 | I157: 0 | J157: 0 | K157: 0 | L157: 0 | M157: 0 | N157: 0.1094506022 | O157: 0 | P157: 0 | Q157: 0.06194309349 | R157: 0 | S157: 0 | T157: 0 | U157: 0 | V157: 0 | W157: 0.03183424836 | X157: 0.1130237717 | Y157: 0 | Z157: 0 | BB157: Other | BC157: 5.738036 | BD157: 0 | BE157: 7.81431 | BF157: 3.00704 | BG157: 0 | BH157: 0 | BI157: 0 | BJ157: 0 | BK157: 0 | BL157: 0 | BM157: 0 | BN157: 10.82135 | BO157: 0 | BP157: 0 | BQ157: 5.738036 | BR157: 0 | BS157: 0 | BT157: 0 | BU157: 0 | BV157: 0 | BW157: 3.00704 | BX157: 13.552346 | BY157: 0 | BZ157: 0
BB158: Total | BC158: 11145.92532 | BD158: 15305.69028 | BE158: 13900.23183 | BF158: 12634.20422 | BG158: 13494.74643 | BH158: 3225.658419 | BI158: 3704.078433 | BJ158: 3722.4157 | BK158: 3446.932637 | BL158: 3559.389689 | BM158: 9742.768622 | BN158: 9886.971641 | BO158: 9626.211466 | BP158: 10302.97231 | BQ158: 9263.399156 | BR158: 8835.56357 | BS158: 1265.219152 | BT158: 8780.133577 | BU158: 107.669081 | BV158: 10906.50295 | BW158: 9445.927436 | BX158: 11990.70408 | BY158: 13117.3086 | BZ158: 2031.769633
A208: =A1026 -> Mali
A209: =A1034 -> 2001
A210: Access to hygiene facilities
A211: by wealth quintile and sub-national region
A212: Notes:
A213: WHO/UNICEF JMP customised wealth index excludes water,
A214: sanitation and hygiene assets.
A215: Survey used for analysis: | B215: =A1025 -> DHS01
A220: Access to handwashing | C220: NATIONAL wealth index quintile | H220: URBAN wealth index quintile | M220: RURAL wealth index quintile | R220: SUB-REGIONS: | BA220: Raw numbers of respondents: | BB220: Access to handwashing | BC220: NATIONAL wealth index quintile | BH220: URBAN wealth index quintile | BM220: RURAL wealth index quintile | BR220: SUB-REGIONS:
A221: Weighted percentage (used in graphs) | C221: Poorest | D221: Poor | E221: Middle | F221: Rich | G221: Richest | H221: Poorest | I221: Poor | J221: Middle | K221: Rich | L221: Richest | M221: Poorest | N221: Poor | O221: Middle | P221: Rich | Q221: Richest | R221: Bamako | S221: Gao | T221: Kayes | U221: Kidal | V221: Koulikoro | W221: Mopti | X221: Segou | Y221: Sikasso | Z221: Tombouctou | BA221: Hygiene data, raw numbers (weighted) | BC221: Poorest | BD221: Poor | BE221: Middle | BF221: Rich | BG221: Richest | BH221: Poorest | BI221: Poor | BJ221: Middle | BK221: Rich | BL221: Richest | BM221: Poorest | BN221: Poor | BO221: Middle | BP221: Rich | BQ221: Richest | BR221: Bamako | BS221: Gao | BT221: Kayes | BU221: Kidal | BV221: Koulikoro | BW221: Mopti | BX221: Segou | BY221: Sikasso | BZ221: Tombouctou
A222: Hygiene ladder | B222: Basic | C222: 7.136685426 | D222: 5.588573151 | E222: 9.438611263 | F222: 7.521929562 | G222: 23.99396004 | H222: 6.620051545 | I222: 13.81392383 | J222: 15.49278 | K222: 24.10600423 | L222: 40.30122362 | M222: 6.862000848 | N222: 11.00106768 | O222: 6.011218572 | P222: 5.514541857 | Q222: 7.37314614 | R222: 28.27771896 | S222: 8.234777733 | T222: 16.43439189 | U222: 11.4392989 | V222: 9.975155029 | W222: 3.173490999 | X222: 4.086444515 | Y222: 8.59114498 | Z222: 4.469893069 | BA222: Hygiene ladder | BB222: Basic | BC222: 793.527632 | BD222: 852.926777 | BE222: 1312.068504 | BF222: 949.443324 | BG222: 3225.476512 | BH222: 213.54025 | BI222: 511.288441 | BJ222: 576.161259 | BK222: 823.246806 | BL222: 1427.810873 | BM222: 668.1347 | BN222: 1088.33905 | BO222: 578.080817 | BP222: 565.822273 | BQ222: 681.01828 | BR222: 2485.023887 | BS222: 104.187985 | BT222: 1443.201049 | BU222: 12.316588 | BV222: 1088.398636 | BW222: 299.501723 | BX222: 489.757846 | BY222: 1120.237105 | BZ222: 90.81793
B223: Limited | C223: 80.40348853 | D223: 85.80448054 | E223: 80.39894873 | F223: 80.29386002 | G223: 67.56233331 | H223: 77.45770263 | I223: 75.07682143 | J223: 75.23209106 | K223: 67.66525996 | L223: 53.75659436 | M223: 80.52567049 | N223: 79.39222817 | O223: 84.85365383 | P223: 85.43380697 | Q223: 81.39128384 | R223: 62.71420638 | S223: 86.64493019 | T223: 71.78582774 | U223: 86.34892036 | V223: 87.30544077 | W223: 78.89809874 | X223: 93.20140881 | Y223: 72.56090137 | Z223: 89.62349685 | BB223: Limited | BC223: 8940.059152 | BD223: 13095.46052 | BE223: 11176.31879 | BF223: 10134.96188 | BG223: 9082.315667 | BH223: 2498.520906 | BI223: 2778.784034 | BJ223: 2797.807514 | BK223: 2310.843747 | BL223: 1904.514132 | BM223: 7840.56952 | BN223: 7854.297848 | BO223: 8160.120772 | BP223: 8765.977683 | BQ223: 7517.679844 | BR223: 5511.275542 | BS223: 1096.248251 | BT223: 6303.937657 | BU223: 92.971089 | BV223: 9525.979534 | BW223: 7446.095333 | BX223: 11170.13116 | BY223: 9461.534437 | BZ223: 1820.942993
B224: No facility | C224: 12.45982605 | D224: 8.606946307 | E224: 10.16244001 | F224: 12.18421042 | G224: 8.44370665 | H224: 15.92224583 | I224: 11.10925475 | J224: 9.275128942 | K224: 8.228735806 | L224: 5.942182017 | M224: 12.61232866 | N224: 9.606704158 | O224: 9.135127599 | P224: 9.051651174 | Q224: 11.23557002 | R224: 9.008074658 | S224: 5.120292077 | T224: 11.77978037 | U224: 2.211780743 | V224: 2.719404198 | W224: 17.92841026 | X224: 2.712146671 | Y224: 18.84795365 | Z224: 5.906610083 | BB224: No facility | BC224: 1385.407324 | BD224: 1313.590209 | BE224: 1412.688486 | BF224: 1537.932142 | BG224: 1135.076387 | BH224: 513.597263 | BI224: 411.181762 | BJ224: 344.932928 | BK224: 281.020463 | BL224: 210.522444 | BM224: 1228.028765 | BN224: 950.394233 | BO224: 878.497756 | BP224: 928.74911 | BQ224: 1037.769824 | BR224: 791.622575 | BS224: 64.782916 | BT224: 1034.452111 | BU224: 2.381404 | BV224: 296.716774 | BW224: 1692.013548 | BX224: 325.0491 | BY224: 2457.66741 | BZ224: 120.00871
A225: Place for hand washing | B225: Nowhere | C225: 10.11900526 | D225: 6.921941857 | E225: 8.782381267 | F225: 10.92922593 | G225: 7.411820715 | H225: 13.77212343 | I225: 10.30778948 | J225: 7.669343916 | K225: 7.12326314 | L225: 5.587999359 | M225: 11.44248804 | N225: 8.507941336 | O225: 7.839256366 | P225: 6.917977118 | Q225: 8.748675636 | R225: 8.02130572 | S225: 4.706067949 | T225: 11.0374269 | U225: 1.439013861 | V225: 1.827113421 | W225: 16.78434323 | X225: 1.060270747 | Y225: 15.48700905 | Z225: 5.398108093 | BA225: Observed handwashing place | BB225: Fixed | BC225: N/A | BD225: N/A | BE225: N/A | BF225: N/A | BG225: N/A | BH225: N/A | BI225: N/A | BJ225: N/A | BK225: N/A | BL225: N/A | BM225: N/A | BN225: N/A | BO225: N/A | BP225: N/A | BQ225: N/A | BR225: N/A | BS225: N/A | BT225: N/A | BU225: N/A | BV225: N/A | BW225: N/A | BX225: N/A | BY225: N/A | BZ225: N/A
B226: In dwelling/yard/plot | C226: 87.32865606 | D226: 91.08903457 | E226: 89.28304888 | F226: 87.64533889 | G226: 91.20432345 | H226: 84.07775417 | I226: 88.82296999 | J226: 90.63922584 | K226: 90.92404416 | L226: 93.6206849 | M226: 87.22001296 | N226: 90.31552493 | O226: 90.09558165 | P226: 90.51038581 | Q226: 88.50636776 | R226: 90.50129475 | S226: 94.87970792 | T226: 87.68369084 | U226: 97.78821926 | V226: 97.22143244 | W226: 81.99932837 | X226: 96.91241985 | Y226: 80.67029501 | Z226: 94.09338992 | BB226: Mobile | BC226: N/A | BD226: N/A | BE226: N/A | BF226: N/A | BG226: N/A | BH226: N/A | BI226: N/A | BJ226: N/A | BK226: N/A | BL226: N/A | BM226: N/A | BN226: N/A | BO226: N/A | BP226: N/A | BQ226: N/A | BR226: N/A | BS226: N/A | BT226: N/A | BU226: N/A | BV226: N/A | BW226: N/A | BX226: N/A | BY226: N/A | BZ226: N/A
B227: Somewhere else | C227: 2.310714882 | D227: 1.65637343 | E227: 1.317332348 | F227: 1.231334904 | G227: 0.9994257894 | H227: 2.150122393 | I227: 0.7929949522 | J227: 1.597029209 | K227: 1.029506078 | L227: 0.3265664065 | M227: 1.145643133 | N227: 1.090497584 | O227: 1.218530354 | P227: 2.090085707 | Q227: 2.454229545 | R227: 0.9381971885 | S227: 0.414224128 | T227: 0.6707123925 | U227: 0.7727668819 | V227: 0.8906369106 | W227: 1.128281651 | X227: 1.64140976 | Y227: 3.249055527 | Z227: 0.5085019892 | BA227: Water / Soap | BB227: Water and soap | BC227: N/A | BD227: N/A | BE227: N/A | BF227: N/A | BG227: N/A | BH227: N/A | BI227: N/A | BJ227: N/A | BK227: N/A | BL227: N/A | BM227: N/A | BN227: N/A | BO227: N/A | BP227: N/A | BQ227: N/A | BR227: N/A | BS227: N/A | BT227: N/A | BU227: N/A | BV227: N/A | BW227: N/A | BX227: N/A | BY227: N/A | BZ227: N/A
B228: missing | C228: 0.2416237974 | D228: 0.3326501445 | E228: 0.6172375073 | F228: 0.1941002708 | G228: 0.3844300468 | H228: 0 | I228: 0.07624557771 | J228: 0.0944010364 | K228: 0.9231866228 | L228: 0.4647493375 | M228: 0.191855867 | N228: 0.08603614548 | O228: 0.8466316314 | P228: 0.4815513647 | Q228: 0.2907270598 | R228: 0.5392023454 | S228: 0 | T228: 0.6081698686 | U228: 0 | V228: 0.06081723102 | W228: 0.08804674879 | X228: 0.3858996452 | Y228: 0.5936404135 | Z228: 0 | BB228: Water only | BC228: N/A | BD228: N/A | BE228: N/A | BF228: N/A | BG228: N/A | BH228: N/A | BI228: N/A | BJ228: N/A | BK228: N/A | BL228: N/A | BM228: N/A | BN228: N/A | BO228: N/A | BP228: N/A | BQ228: N/A | BR228: N/A | BS228: N/A | BT228: N/A | BU228: N/A | BV228: N/A | BW228: N/A | BX228: N/A | BY228: N/A | BZ228: N/A
BB229: Soap only | BC229: N/A | BD229: N/A | BE229: N/A | BF229: N/A | BG229: N/A | BH229: N/A | BI229: N/A | BJ229: N/A | BK229: N/A | BL229: N/A | BM229: N/A | BN229: N/A | BO229: N/A | BP229: N/A | BQ229: N/A | BR229: N/A | BS229: N/A | BT229: N/A | BU229: N/A | BV229: N/A | BW229: N/A | BX229: N/A | BY229: N/A | BZ229: N/A
BB230: Neither | BC230: N/A | BD230: N/A | BE230: N/A | BF230: N/A | BG230: N/A | BH230: N/A | BI230: N/A | BJ230: N/A | BK230: N/A | BL230: N/A | BM230: N/A | BN230: N/A | BO230: N/A | BP230: N/A | BQ230: N/A | BR230: N/A | BS230: N/A | BT230: N/A | BU230: N/A | BV230: N/A | BW230: N/A | BX230: N/A | BY230: N/A | BZ230: N/A
BA231: Place for hand washing | BB231: Nowhere | BC231: 1127.856769 | BD231: 1059.951138 | BE231: 1228.427792 | BF231: 1382.206633 | BG231: 1000.206411 | BH231: 444.241659 | BI231: 381.808607 | BJ231: 285.484862 | BK231: 245.534082 | BL231: 198.898673 | BM231: 1116.266129 | BN231: 842.418069 | BO231: 760.314781 | BP231: 713.257136 | BQ231: 810.424745 | BR231: 708.727566 | BS231: 59.542073 | BT231: 975.192494 | BU231: 1.549373 | BV231: 199.479398 | BW231: 1585.436882 | BX231: 127.565066 | BY231: 2031.47877 | BZ231: 109.677121
BB232: In dwelling/yard/plot | BC232: 9733.586784 | BD232: 13948.38729 | BE232: 12488.38729 | BF232: 11084.4052 | BG232: 12307.79218 | BH232: 2712.061156 | BI232: 3290.072475 | BJ232: 3373.968773 | BK232: 3134.090553 | BL232: 3332.325005 | BM232: 8508.70422 | BN232: 8942.636898 | BO232: 8738.201589 | BP232: 9331.799956 | BQ232: 8198.698124 | BR232: 7996.299429 | BS232: 1200.436236 | BT232: 7747.138706 | BU232: 105.287677 | BV232: 10614.37817 | BW232: 7745.597056 | BX232: 11659.88901 | BY232: 10581.77154 | BZ232: 1911.760923
BB233: Somewhere else | BC233: 257.550555 | BD233: 253.639071 | BE233: 184.260694 | BF233: 155.725509 | BG233: 134.869976 | BH233: 69.355604 | BI233: 29.373155 | BJ233: 59.448066 | BK233: 35.486381 | BL233: 11.623771 | BM233: 111.762636 | BN233: 107.976164 | BO233: 118.182975 | BP233: 215.491974 | BQ233: 227.345079 | BR233: 82.895009 | BS233: 5.240843 | BT233: 59.259617 | BU233: 0.832031 | BV233: 97.237376 | BW233: 106.576666 | BX233: 197.484034 | BY233: 426.18864 | BZ233: 10.331589
BB234: missing | BC234: 26.931208 | BD234: 50.938437 | BE234: 86.335549 | BF234: 24.547638 | BG234: 51.87786 | BH234: 0 | BI234: 2.824196 | BJ234: 3.513999 | BK234: 31.821621 | BL234: 16.54224 | BM234: 18.716402 | BN234: 8.518912 | BO234: 82.113215 | BP234: 49.648899 | BQ234: 26.931208 | BR234: 47.641566 | BS234: 0 | BT234: 53.733782 | BU234: 0 | BV234: 6.639864 | BW234: 8.316832 | BX234: 46.429003 | BY234: 77.869645 | BZ234: 0
BB235: Total | BC235: 11145.92532 | BD235: 15312.91594 | BE235: 13987.41133 | BF235: 12646.88498 | BG235: 13494.74643 | BH235: 3225.658419 | BI235: 3704.078433 | BJ235: 3722.4157 | BK235: 3446.932637 | BL235: 3559.389689 | BM235: 9755.449387 | BN235: 9901.550043 | BO235: 9698.81256 | BP235: 10310.19797 | BQ235: 9263.399156 | BR235: 8835.56357 | BS235: 1265.219152 | BT235: 8835.324599 | BU235: 107.669081 | BV235: 10917.73481 | BW235: 9445.927436 | BX235: 12031.36711 | BY235: 13117.3086 | BZ235: 2031.769633
BA259: Raw numbers of respondents: | BB259: Menstrual health and hygiene | BC259: NATIONAL wealth index quintile | BH259: URBAN wealth index quintile | BM259: RURAL wealth index quintile | BR259: SUB-REGIONS:
BA260: MHH data, raw numbers (weighted) | BC260: Poorest | BD260: Poor | BE260: Middle | BF260: Rich | BG260: Richest | BH260: Poorest | BI260: Poor | BJ260: Middle | BK260: Rich | BL260: Richest | BM260: Poorest | BN260: Poor | BO260: Middle | BP260: Rich | BQ260: Richest | BR260: Bamako | BS260: Gao | BT260: Kayes | BU260: Kidal | BV260: Koulikoro | BW260: Mopti | BX260: Segou | BY260: Sikasso | BZ260: Tombouctou
BA261: Private place to wash and change | BB261: Yes | BC261: N/A | BD261: N/A | BE261: N/A | BF261: N/A | BG261: N/A | BH261: N/A | BI261: N/A | BJ261: N/A | BK261: N/A | BL261: N/A | BM261: N/A | BN261: N/A | BO261: N/A | BP261: N/A | BQ261: N/A | BR261: N/A | BS261: N/A | BT261: N/A | BU261: N/A | BV261: N/A | BW261: N/A | BX261: N/A | BY261: N/A | BZ261: N/A
BB262: No | BC262: N/A | BD262: N/A | BE262: N/A | BF262: N/A | BG262: N/A | BH262: N/A | BI262: N/A | BJ262: N/A | BK262: N/A | BL262: N/A | BM262: N/A | BN262: N/A | BO262: N/A | BP262: N/A | BQ262: N/A | BR262: N/A | BS262: N/A | BT262: N/A | BU262: N/A | BV262: N/A | BW262: N/A | BX262: N/A | BY262: N/A | BZ262: N/A
BB263: DK/not sure/missing | BC263: N/A | BD263: N/A | BE263: N/A | BF263: N/A | BG263: N/A | BH263: N/A | BI263: N/A | BJ263: N/A | BK263: N/A | BL263: N/A | BM263: N/A | BN263: N/A | BO263: N/A | BP263: N/A | BQ263: N/A | BR263: N/A | BS263: N/A | BT263: N/A | BU263: N/A | BV263: N/A | BW263: N/A | BX263: N/A | BY263: N/A | BZ263: N/A
BA264: Use of menstrual materials | BB264: Materials reusable | BC264: N/A | BD264: N/A | BE264: N/A | BF264: N/A | BG264: N/A | BH264: N/A | BI264: N/A | BJ264: N/A | BK264: N/A | BL264: N/A | BM264: N/A | BN264: N/A | BO264: N/A | BP264: N/A | BQ264: N/A | BR264: N/A | BS264: N/A | BT264: N/A | BU264: N/A | BV264: N/A | BW264: N/A | BX264: N/A | BY264: N/A | BZ264: N/A
BB265: Materials not reusable | BC265: N/A | BD265: N/A | BE265: N/A | BF265: N/A | BG265: N/A | BH265: N/A | BI265: N/A | BJ265: N/A | BK265: N/A | BL265: N/A | BM265: N/A | BN265: N/A | BO265: N/A | BP265: N/A | BQ265: N/A | BR265: N/A | BS265: N/A | BT265: N/A | BU265: N/A | BV265: N/A | BW265: N/A | BX265: N/A | BY265: N/A | BZ265: N/A
BB266: No materials used | BC266: N/A | BD266: N/A | BE266: N/A | BF266: N/A | BG266: N/A | BH266: N/A | BI266: N/A | BJ266: N/A | BK266: N/A | BL266: N/A | BM266: N/A | BN266: N/A | BO266: N/A | BP266: N/A | BQ266: N/A | BR266: N/A | BS266: N/A | BT266: N/A | BU266: N/A | BV266: N/A | BW266: N/A | BX266: N/A | BY266: N/A | BZ266: N/A
BB267: DK/not sure/missing | BC267: N/A | BD267: N/A | BE267: N/A | BF267: N/A | BG267: N/A | BH267: N/A | BI267: N/A | BJ267: N/A | BK267: N/A | BL267: N/A | BM267: N/A | BN267: N/A | BO267: N/A | BP267: N/A | BQ267: N/A | BR267: N/A | BS267: N/A | BT267: N/A | BU267: N/A | BV267: N/A | BW267: N/A | BX267: N/A | BY267: N/A | BZ267: N/A
BA268: Use of menstrual materials with private place to wash and change | BB268: Materials reusable | BC268: N/A | BD268: N/A | BE268: N/A | BF268: N/A | BG268: N/A | BH268: N/A | BI268: N/A | BJ268: N/A | BK268: N/A | BL268: N/A | BM268: N/A | BN268: N/A | BO268: N/A | BP268: N/A | BQ268: N/A | BR268: N/A | BS268: N/A | BT268: N/A | BU268: N/A | BV268: N/A | BW268: N/A | BX268: N/A | BY268: N/A | BZ268: N/A
BB269: Materials not reusable | BC269: N/A | BD269: N/A | BE269: N/A | BF269: N/A | BG269: N/A | BH269: N/A | BI269: N/A | BJ269: N/A | BK269: N/A | BL269: N/A | BM269: N/A | BN269: N/A | BO269: N/A | BP269: N/A | BQ269: N/A | BR269: N/A | BS269: N/A | BT269: N/A | BU269: N/A | BV269: N/A | BW269: N/A | BX269: N/A | BY269: N/A | BZ269: N/A
BB270: No materials used | BC270: N/A | BD270: N/A | BE270: N/A | BF270: N/A | BG270: N/A | BH270: N/A | BI270: N/A | BJ270: N/A | BK270: N/A | BL270: N/A | BM270: N/A | BN270: N/A | BO270: N/A | BP270: N/A | BQ270: N/A | BR270: N/A | BS270: N/A | BT270: N/A | BU270: N/A | BV270: N/A | BW270: N/A | BX270: N/A | BY270: N/A | BZ270: N/A
BA271: Awareness of menstruation before menarche | BB271: Yes | BC271: N/A | BD271: N/A | BE271: N/A | BF271: N/A | BG271: N/A | BH271: N/A | BI271: N/A | BJ271: N/A | BK271: N/A | BL271: N/A | BM271: N/A | BN271: N/A | BO271: N/A | BP271: N/A | BQ271: N/A | BR271: N/A | BS271: N/A | BT271: N/A | BU271: N/A | BV271: N/A | BW271: N/A | BX271: N/A | BY271: N/A | BZ271: N/A
BB272: No | BC272: N/A | BD272: N/A | BE272: N/A | BF272: N/A | BG272: N/A | BH272: N/A | BI272: N/A | BJ272: N/A | BK272: N/A | BL272: N/A | BM272: N/A | BN272: N/A | BO272: N/A | BP272: N/A | BQ272: N/A | BR272: N/A | BS272: N/A | BT272: N/A | BU272: N/A | BV272: N/A | BW272: N/A | BX272: N/A | BY272: N/A | BZ272: N/A
BB273: DK/not sure/missing | BC273: N/A | BD273: N/A | BE273: N/A | BF273: N/A | BG273: N/A | BH273: N/A | BI273: N/A | BJ273: N/A | BK273: N/A | BL273: N/A | BM273: N/A | BN273: N/A | BO273: N/A | BP273: N/A | BQ273: N/A | BR273: N/A | BS273: N/A | BT273: N/A | BU273: N/A | BV273: N/A | BW273: N/A | BX273: N/A | BY273: N/A | BZ273: N/A
BA274: Participation in (all) activities during menstruation | BB274: Yes | BC274: N/A | BD274: N/A | BE274: N/A | BF274: N/A | BG274: N/A | BH274: N/A | BI274: N/A | BJ274: N/A | BK274: N/A | BL274: N/A | BM274: N/A | BN274: N/A | BO274: N/A | BP274: N/A | BQ274: N/A | BR274: N/A | BS274: N/A | BT274: N/A | BU274: N/A | BV274: N/A | BW274: N/A | BX274: N/A | BY274: N/A | BZ274: N/A
BB275: No | BC275: N/A | BD275: N/A | BE275: N/A | BF275: N/A | BG275: N/A | BH275: N/A | BI275: N/A | BJ275: N/A | BK275: N/A | BL275: N/A | BM275: N/A | BN275: N/A | BO275: N/A | BP275: N/A | BQ275: N/A | BR275: N/A | BS275: N/A | BT275: N/A | BU275: N/A | BV275: N/A | BW275: N/A | BX275: N/A | BY275: N/A | BZ275: N/A
BB276: DK/not sure/missing/no such activity | BC276: N/A | BD276: N/A | BE276: N/A | BF276: N/A | BG276: N/A | BH276: N/A | BI276: N/A | BJ276: N/A | BK276: N/A | BL276: N/A | BM276: N/A | BN276: N/A | BO276: N/A | BP276: N/A | BQ276: N/A | BR276: N/A | BS276: N/A | BT276: N/A | BU276: N/A | BV276: N/A | BW276: N/A | BX276: N/A | BY276: N/A | BZ276: N/A
BA277: Participation in specific activities during menstruation | BB277: Did not go to school (amongst those usually attending school) | BC277: N/A | BD277: N/A | BE277: N/A | BF277: N/A | BG277: N/A | BH277: N/A | BI277: N/A | BJ277: N/A | BK277: N/A | BL277: N/A | BM277: N/A | BN277: N/A | BO277: N/A | BP277: N/A | BQ277: N/A | BR277: N/A | BS277: N/A | BT277: N/A | BU277: N/A | BV277: N/A | BW277: N/A | BX277: N/A | BY277: N/A | BZ277: N/A
BB278: Did not go to work (amongst those who usually work) | BC278: N/A | BD278: N/A | BE278: N/A | BF278: N/A | BG278: N/A | BH278: N/A | BI278: N/A | BJ278: N/A | BK278: N/A | BL278: N/A | BM278: N/A | BN278: N/A | BO278: N/A | BP278: N/A | BQ278: N/A | BR278: N/A | BS278: N/A | BT278: N/A | BU278: N/A | BV278: N/A | BW278: N/A | BX278: N/A | BY278: N/A | BZ278: N/A
BB279: Did not participate in social activities | BC279: N/A | BD279: N/A | BE279: N/A | BF279: N/A | BG279: N/A | BH279: N/A | BI279: N/A | BJ279: N/A | BK279: N/A | BL279: N/A | BM279: N/A | BN279: N/A | BO279: N/A | BP279: N/A | BQ279: N/A | BR279: N/A | BS279: N/A | BT279: N/A | BU279: N/A | BV279: N/A | BW279: N/A | BX279: N/A | BY279: N/A | BZ279: N/A
BB280: Did not cook food | BC280: N/A | BD280: N/A | BE280: N/A | BF280: N/A | BG280: N/A | BH280: N/A | BI280: N/A | BJ280: N/A | BK280: N/A | BL280: N/A | BM280: N/A | BN280: N/A | BO280: N/A | BP280: N/A | BQ280: N/A | BR280: N/A | BS280: N/A | BT280: N/A | BU280: N/A | BV280: N/A | BW280: N/A | BX280: N/A | BY280: N/A | BZ280: N/A
BB281: Did not eat with others | BC281: N/A | BD281: N/A | BE281: N/A | BF281: N/A | BG281: N/A | BH281: N/A | BI281: N/A | BJ281: N/A | BK281: N/A | BL281: N/A | BM281: N/A | BN281: N/A | BO281: N/A | BP281: N/A | BQ281: N/A | BR281: N/A | BS281: N/A | BT281: N/A | BU281: N/A | BV281: N/A | BW281: N/A | BX281: N/A | BY281: N/A | BZ281: N/A
BB282: Did not bathe in regular place | BC282: N/A | BD282: N/A | BE282: N/A | BF282: N/A | BG282: N/A | BH282: N/A | BI282: N/A | BJ282: N/A | BK282: N/A | BL282: N/A | BM282: N/A | BN282: N/A | BO282: N/A | BP282: N/A | BQ282: N/A | BR282: N/A | BS282: N/A | BT282: N/A | BU282: N/A | BV282: N/A | BW282: N/A | BX282: N/A | BY282: N/A | BZ282: N/A
BB283: Did not participate in other activities | BC283: N/A | BD283: N/A | BE283: N/A | BF283: N/A | BG283: N/A | BH283: N/A | BI283: N/A | BJ283: N/A | BK283: N/A | BL283: N/A | BM283: N/A | BN283: N/A | BO283: N/A | BP283: N/A | BQ283: N/A | BR283: N/A | BS283: N/A | BT283: N/A | BU283: N/A | BV283: N/A | BW283: N/A | BX283: N/A | BY283: N/A | BZ283: N/A
BB284: DK/not sure/missing/no such activity | BC284: N/A | BD284: N/A | BE284: N/A | BF284: N/A | BG284: N/A | BH284: N/A | BI284: N/A | BJ284: N/A | BK284: N/A | BL284: N/A | BM284: N/A | BN284: N/A | BO284: N/A | BP284: N/A | BQ284: N/A | BR284: N/A | BS284: N/A | BT284: N/A | BU284: N/A | BV284: N/A | BW284: N/A | BX284: N/A | BY284: N/A | BZ284: N/A
BA339: Raw numbers of respondents: | BB339: Basic water, sanitation and hygiene | BC339: NATIONAL wealth index quintile | BH339: URBAN wealth index quintile | BM339: RURAL wealth index quintile | BR339: SUB-REGIONS:
BA340: WatSan data, raw numbers (weighted) | BC340: Poorest | BD340: Poor | BE340: Middle | BF340: Rich | BG340: Richest | BH340: Poorest | BI340: Poor | BJ340: Middle | BK340: Rich | BL340: Richest | BM340: Poorest | BN340: Poor | BO340: Middle | BP340: Rich | BQ340: Richest | BR340: Bamako | BS340: Gao | BT340: Kayes | BU340: Kidal | BV340: Koulikoro | BW340: Mopti | BX340: Segou | BY340: Sikasso | BZ340: Tombouctou
BA341: Use of Basic Water Sanitation and Hygiene | BB341: Yes | BC341: N/A | BD341: N/A | BE341: N/A | BF341: N/A | BG341: N/A | BH341: N/A | BI341: N/A | BJ341: N/A | BK341: N/A | BL341: N/A | BM341: N/A | BN341: N/A | BO341: N/A | BP341: N/A | BQ341: N/A | BR341: N/A | BS341: N/A | BT341: N/A | BU341: N/A | BV341: N/A | BW341: N/A | BX341: N/A | BY341: N/A | BZ341: N/A
BB342: No | BC342: N/A | BD342: N/A | BE342: N/A | BF342: N/A | BG342: N/A | BH342: N/A | BI342: N/A | BJ342: N/A | BK342: N/A | BL342: N/A | BM342: N/A | BN342: N/A | BO342: N/A | BP342: N/A | BQ342: N/A | BR342: N/A | BS342: N/A | BT342: N/A | BU342: N/A | BV342: N/A | BW342: N/A | BX342: N/A | BY342: N/A | BZ342: N/A
BA343: Use of Basic Water and Sanitation | BB343: Yes | BC343: N/A | BD343: N/A | BE343: N/A | BF343: N/A | BG343: N/A | BH343: N/A | BI343: N/A | BJ343: N/A | BK343: N/A | BL343: N/A | BM343: N/A | BN343: N/A | BO343: N/A | BP343: N/A | BQ343: N/A | BR343: N/A | BS343: N/A | BT343: N/A | BU343: N/A | BV343: N/A | BW343: N/A | BX343: N/A | BY343: N/A | BZ343: N/A
BB344: No | BC344: N/A | BD344: N/A | BE344: N/A | BF344: N/A | BG344: N/A | BH344: N/A | BI344: N/A | BJ344: N/A | BK344: N/A | BL344: N/A | BM344: N/A | BN344: N/A | BO344: N/A | BP344: N/A | BQ344: N/A | BR344: N/A | BS344: N/A | BT344: N/A | BU344: N/A | BV344: N/A | BW344: N/A | BX344: N/A | BY344: N/A | BZ344: N/A
BA345: Use of Basic Water and Hygiene | BB345: Yes | BC345: N/A | BD345: N/A | BE345: N/A | BF345: N/A | BG345: N/A | BH345: N/A | BI345: N/A | BJ345: N/A | BK345: N/A | BL345: N/A | BM345: N/A | BN345: N/A | BO345: N/A | BP345: N/A | BQ345: N/A | BR345: N/A | BS345: N/A | BT345: N/A | BU345: N/A | BV345: N/A | BW345: N/A | BX345: N/A | BY345: N/A | BZ345: N/A
BB346: No | BC346: N/A | BD346: N/A | BE346: N/A | BF346: N/A | BG346: N/A | BH346: N/A | BI346: N/A | BJ346: N/A | BK346: N/A | BL346: N/A | BM346: N/A | BN346: N/A | BO346: N/A | BP346: N/A | BQ346: N/A | BR346: N/A | BS346: N/A | BT346: N/A | BU346: N/A | BV346: N/A | BW346: N/A | BX346: N/A | BY346: N/A | BZ346: N/A
BA347: Use of Basic Sanitation and Hygiene | BB347: Yes | BC347: N/A | BD347: N/A | BE347: N/A | BF347: N/A | BG347: N/A | BH347: N/A | BI347: N/A | BJ347: N/A | BK347: N/A | BL347: N/A | BM347: N/A | BN347: N/A | BO347: N/A | BP347: N/A | BQ347: N/A | BR347: N/A | BS347: N/A | BT347: N/A | BU347: N/A | BV347: N/A | BW347: N/A | BX347: N/A | BY347: N/A | BZ347: N/A
BB348: No | BC348: N/A | BD348: N/A | BE348: N/A | BF348: N/A | BG348: N/A | BH348: N/A | BI348: N/A | BJ348: N/A | BK348: N/A | BL348: N/A | BM348: N/A | BN348: N/A | BO348: N/A | BP348: N/A | BQ348: N/A | BR348: N/A | BS348: N/A | BT348: N/A | BU348: N/A | BV348: N/A | BW348: N/A | BX348: N/A | BY348: N/A | BZ348: N/A
BA349: Use of Basic Water | BB349: Yes | BC349: N/A | BD349: N/A | BE349: N/A | BF349: N/A | BG349: N/A | BH349: N/A | BI349: N/A | BJ349: N/A | BK349: N/A | BL349: N/A | BM349: N/A | BN349: N/A | BO349: N/A | BP349: N/A | BQ349: N/A | BR349: N/A | BS349: N/A | BT349: N/A | BU349: N/A | BV349: N/A | BW349: N/A | BX349: N/A | BY349: N/A | BZ349: N/A
BB350: No | BC350: N/A | BD350: N/A | BE350: N/A | BF350: N/A | BG350: N/A | BH350: N/A | BI350: N/A | BJ350: N/A | BK350: N/A | BL350: N/A | BM350: N/A | BN350: N/A | BO350: N/A | BP350: N/A | BQ350: N/A | BR350: N/A | BS350: N/A | BT350: N/A | BU350: N/A | BV350: N/A | BW350: N/A | BX350: N/A | BY350: N/A | BZ350: N/A
BA351: Use of Basic Sanitation | BB351: Yes | BC351: N/A | BD351: N/A | BE351: N/A | BF351: N/A | BG351: N/A | BH351: N/A | BI351: N/A | BJ351: N/A | BK351: N/A | BL351: N/A | BM351: N/A | BN351: N/A | BO351: N/A | BP351: N/A | BQ351: N/A | BR351: N/A | BS351: N/A | BT351: N/A | BU351: N/A | BV351: N/A | BW351: N/A | BX351: N/A | BY351: N/A | BZ351: N/A
BB352: No | BC352: N/A | BD352: N/A | BE352: N/A | BF352: N/A | BG352: N/A | BH352: N/A | BI352: N/A | BJ352: N/A | BK352: N/A | BL352: N/A | BM352: N/A | BN352: N/A | BO352: N/A | BP352: N/A | BQ352: N/A | BR352: N/A | BS352: N/A | BT352: N/A | BU352: N/A | BV352: N/A | BW352: N/A | BX352: N/A | BY352: N/A | BZ352: N/A
BA353: Access to Basic Hygiene | BB353: Yes | BC353: N/A | BD353: N/A | BE353: N/A | BF353: N/A | BG353: N/A | BH353: N/A | BI353: N/A | BJ353: N/A | BK353: N/A | BL353: N/A | BM353: N/A | BN353: N/A | BO353: N/A | BP353: N/A | BQ353: N/A | BR353: N/A | BS353: N/A | BT353: N/A | BU353: N/A | BV353: N/A | BW353: N/A | BX353: N/A | BY353: N/A | BZ353: N/A
BB354: No | BC354: N/A | BD354: N/A | BE354: N/A | BF354: N/A | BG354: N/A | BH354: N/A | BI354: N/A | BJ354: N/A | BK354: N/A | BL354: N/A | BM354: N/A | BN354: N/A | BO354: N/A | BP354: N/A | BQ354: N/A | BR354: N/A | BS354: N/A | BT354: N/A | BU354: N/A | BV354: N/A | BW354: N/A | BX354: N/A | BY354: N/A | BZ354: N/A
C399: INITIAL (national) Wealth Index | H399: URBAN Wealth Index | M399: RURAL Wealth Index
C400: Component Matrix | H400: Component Matrix | M400: Component Matrix
E401: Component | J401: Component | O401: Component
B402: Note: The INITIAL (national) Wealth Index is based on the first component of the Principal Component Analysis (PCA) which has been obtained at national level. The final national-level (NATIONAL) Wealth Index is based on the URBAN and RURAL specific wealth indexes. Regression procedures are used to establish the relationships between the two sets of scores (urban and rural) and the initial (national) wealth factors. This allows best use of the available information for each area and a better precision of the FINAL (NATIONAL) Wealth Index. For dependency reasons, all WASH variables (contained in the generic MICS and DHS scripts) have been excluded from the sets of asset variables used in the PCAs. The PCA can extracts as many components as there are asset variables in the input. Only the first of the components is used to represent the Wealth Index. The scores represent the weights of the asset variables on the Wealth Index (correlations between the variables and the component). The communalities are the proportion of each variable's variance that can be explained by the component. Proportion of explained variance is the part of the model's total variance that is explained by the component. For more information on the procedure used: The DHS Wealth Index, DHS Comparative Reports No. 6, Shea Oscar Rutstein, Kiersten Johnson, ORC Macro International Inc., 2004. The DHS Wealth Index: Approaches for Rural and Urban Areas, Shea O. Rutstein, ORC Macro International Inc., 2008. MICS Methodological Paper No. 4, Review of options for reporting water, sanitation and hygiene coverage by wealth quintile, UNICEF, 2016. | E402: 1 | J402: 1 | O402: 1
C403: Has electricity | E403: 0.781551888 | H403: Has electricity | J403: 0.7332468481 | M403: Item present (CS) : horse-drawn cart | O403: 0.7758868217
C404: if has dirt, sand, dung as principal floor in dwelling | E404: -0.7733320392 | H404: Has television | J404: 0.691932723 | M404: Item present (CS) : plow | O404: 0.7127463671
C405: Has television | E405: 0.7386196413 | H405: Has refrigerator | J405: 0.6803393213 | M405: Item present (CS) : donkey | O405: 0.665061749
C406: Has refrigerator | E406: 0.7366423907 | H406: if has dirt, sand, dung as principal floor in dwelling | J406: -0.6694629313 | M406: Has bicycle | O406: 0.4972354251
C407: if has vinyl or asphalt strips as flooring material | E407: 0.65221992 | H407: Item present (CS) :donkey | J407: -0.5178923731 | M407: Has motorcycle/scooter | O407: 0.4737608838
C408: Has telephone | E408: 0.5739986722 | H408: Has telephone | J408: 0.5127410346 | M408: if uses wood as cooking fuel | O408: 0.4515333502
C409: if uses charcoal for cooking | E409: 0.5443014814 | H409: Has car/truck | J409: 0.4999828331 | M409: if uses dung, manure as cooking fuel | O409: -0.4490884038
C410: Has car/truck | E410: 0.5337310234 | H410: if uses wood as cooking fuel | J410: -0.4834033644 | M410: Has radio | O410: 0.3648425196
C411: if uses wood as cooking fuel | E411: -0.4811374226 | H411: if uses charcoal for cooking | J411: 0.476381464 | M411: Item present (CS) : horse | O411: 0.2836872868
C412: if has parquet or polished wood floors | E412: 0.4315203934 | H412: if has vinyl or asphalt strips as flooring material | J412: 0.4729445294 | M412: if has vinyl or asphalt strips as flooring material | O412: 0.2485771675
C413: Item present (CS) :plow | E413: -0.4020423265 | H413: Item present (CS) :horse-drawn cart | J413: -0.4531944524 | M413: Has television | O413: 0.2440603925
... 140 more rows

Sheet DHS06
A2: =A1026 -> Mali
A3: =A1034 -> 2006
A4: Use of drinking water sources
A5: by wealth quintile and sub-national region
A6: Notes:
A7: WHO/UNICEF JMP customised wealth index excludes water,
A8: sanitation and hygiene assets.
A9: Survey used for analysis: | B9: =A1025 -> DHS06
A10: =B1028 -> 
A11: =B1027 -> 
A14: Use of drinking water sources | C14: NATIONAL wealth index quintile | H14: URBAN wealth index quintile | M14: RURAL wealth index quintile | R14: SUB-REGIONS: | BA14: Raw numbers of respondents: | BB14: Use of drinking water sources | BC14: NATIONAL wealth index quintile | BH14: URBAN wealth index quintile | BM14: RURAL wealth index quintile | BR14: SUB-REGIONS:
A15: Weighted percentage (used in graphs) | C15: Poorest | D15: Poor | E15: Middle | F15: Rich | G15: Richest | H15: Poorest | I15: Poor | J15: Middle | K15: Rich | L15: Richest | M15: Poorest | N15: Poor | O15: Middle | P15: Rich | Q15: Richest | R15: Bamako | S15: Gao | T15: Kayes | U15: Kidal | V15: Koulikoro | W15: Mopti | X15: Segou | Y15: Sikasso | Z15: Tombouctou | BA15: Water data, raw numbers (weighted) | BC15: Poorest | BD15: Poor | BE15: Middle | BF15: Rich | BG15: Richest | BH15: Poorest | BI15: Poor | BJ15: Middle | BK15: Rich | BL15: Richest | BM15: Poorest | BN15: Poor | BO15: Middle | BP15: Rich | BQ15: Richest | BR15: Bamako | BS15: Gao | BT15: Kayes | BU15: Kidal | BV15: Koulikoro | BW15: Mopti | BX15: Segou | BY15: Sikasso | BZ15: Tombouctou
A16: Water | B16: Improved | C16: 44.30293444 | D16: 46.24731018 | E16: 44.44233908 | F16: 56.15841257 | G16: 89.44736788 | H16: 59.65031857 | I16: 64.42008737 | J16: 86.63993933 | K16: 88.1873356 | L16: 97.54099082 | M16: 41.64264594 | N16: 45.3219491 | O16: 44.2170224 | P16: 44.02379501 | Q16: 54.6176522 | R16: 95.81735814 | S16: 58.26111296 | T16: 57.76603589 | U16: 31.54919074 | V16: 40.20254472 | W16: 48.66031447 | X16: 51.57420269 | Y16: 55.91735673 | Z16: 49.22906111 | BA16: Water | BB16: Improved | BC16: N/A | BD16: N/A | BE16: N/A | BF16: N/A | BG16: N/A | BH16: N/A | BI16: N/A | BJ16: N/A | BK16: N/A | BL16: N/A | BM16: N/A | BN16: N/A | BO16: N/A | BP16: N/A | BQ16: N/A | BR16: N/A | BS16: N/A | BT16: N/A | BU16: N/A | BV16: N/A | BW16: N/A | BX16: N/A | BY16: N/A | BZ16: N/A
B17: Not Improved | C17: 55.69706556 | D17: 53.75268982 | E17: 55.55766092 | F17: 43.84158743 | G17: 10.55263212 | H17: 40.34968143 | I17: 35.57991263 | J17: 13.36006067 | K17: 11.8126644 | L17: 2.459009181 | M17: 58.35735406 | N17: 54.6780509 | O17: 55.7829776 | P17: 55.97620499 | Q17: 45.3823478 | R17: 4.182641859 | S17: 41.73888704 | T17: 42.23396411 | U17: 68.45080926 | V17: 59.79745528 | W17: 51.33968553 | X17: 48.42579731 | Y17: 44.08264327 | Z17: 50.77093889 | BB17: Not Improved | BC17: N/A | BD17: N/A | BE17: N/A | BF17: N/A | BG17: N/A | BH17: N/A | BI17: N/A | BJ17: N/A | BK17: N/A | BL17: N/A | BM17: N/A | BN17: N/A | BO17: N/A | BP17: N/A | BQ17: N/A | BR17: N/A | BS17: N/A | BT17: N/A | BU17: N/A | BV17: N/A | BW17: N/A | BX17: N/A | BY17: N/A | BZ17: N/A
A18: Water ladder | B18: Basic | C18: =C16*C23/100 -> 43.46485173 | D18: =D16*D23/100 -> 45.63389249 | E18: =E16*E23/100 -> 43.61801667 | F18: 55.55466714 | G18: 87.37817766 | H18: 58.92795951 | I18: 63.53882271 | J18: 84.69396158 | K18: 85.45391047 | L18: 95.73419292 | M18: 40.62984044 | N18: 44.76251428 | O18: 43.63361403 | P18: 43.22206405 | Q18: 54.00348214 | R18: 92.9076495 | S18: 57.90036861 | T18: 57.02494875 | U18: 29.39129693 | V18: 39.41328981 | W18: 47.65933711 | X18: 51.37979338 | Y18: 54.94246269 | Z18: 48.28650811 | BA18: Water ladder | BB18: Basic | BC18: N/A | BD18: N/A | BE18: N/A | BF18: N/A | BG18: N/A | BH18: N/A | BI18: N/A | BJ18: N/A | BK18: N/A | BL18: N/A | BM18: N/A | BN18: N/A | BO18: N/A | BP18: N/A | BQ18: N/A | BR18: N/A | BS18: N/A | BT18: N/A | BU18: N/A | BV18: N/A | BW18: N/A | BX18: N/A | BY18: N/A | BZ18: N/A
B19: Limited | C19: =C16*C22/100 -> 0.8380827122 | D19: =D16*D22/100 -> 0.613417688 | E19: =E16*E22/100 -> 0.8243224105 | F19: 0.6037454305 | G19: 2.069190223 | H19: 0.7223590656 | I19: 0.8812646529 | J19: 1.945977748 | K19: 2.733425132 | L19: 1.806797895 | M19: 1.012805505 | N19: 0.5594348238 | O19: 0.5834083716 | P19: 0.8017309579 | Q19: 0.6141700606 | R19: 2.909708642 | S19: 0.360744354 | T19: 0.7410871386 | U19: 2.157893806 | V19: 0.7892549063 | W19: 1.000977361 | X19: 0.1944093019 | Y19: 0.974894043 | Z19: 0.9425530046 | BB19: Limited | BC19: N/A | BD19: N/A | BE19: N/A | BF19: N/A | BG19: N/A | BH19: N/A | BI19: N/A | BJ19: N/A | BK19: N/A | BL19: N/A | BM19: N/A | BN19: N/A | BO19: N/A | BP19: N/A | BQ19: N/A | BR19: N/A | BS19: N/A | BT19: N/A | BU19: N/A | BV19: N/A | BW19: N/A | BX19: N/A | BY19: N/A | BZ19: N/A
B20: Unimproved | C20: =100-C18-C19-C21 -> 46.19034368 | D20: =100-D18-D19-D21 -> 48.77679189 | E20: =100-E18-E19-E21 -> 52.59398399 | F20: 42.2066915 | G20: 10.5079004 | H20: 37.26674423 | I20: 35.147459 | J20: 13.36006067 | K20: 11.66583461 | L20: 2.459009181 | M20: 47.04644667 | N20: 48.15245376 | O20: 52.7861852 | P20: 52.74479598 | Q20: 43.54668847 | R20: 4.182641859 | S20: 21.2641943 | T20: 33.03739045 | U20: 68.45080926 | V20: 58.00488015 | W20: 46.11179354 | X20: 48.21550155 | Y20: 42.7141987 | Z20: 43.16550178 | BB20: Unimproved | BC20: N/A | BD20: N/A | BE20: N/A | BF20: N/A | BG20: N/A | BH20: N/A | BI20: N/A | BJ20: N/A | BK20: N/A | BL20: N/A | BM20: N/A | BN20: N/A | BO20: N/A | BP20: N/A | BQ20: N/A | BR20: N/A | BS20: N/A | BT20: N/A | BU20: N/A | BV20: N/A | BW20: N/A | BX20: N/A | BY20: N/A | BZ20: N/A
B21: Surface water | C21: 9.506721872 | D21: 4.975897928 | E21: 2.963676925 | F21: 1.634895926 | G21: 0.04473171779 | H21: 3.082937197 | I21: 0.4324536319 | J21: 0 | K21: 0.1468297946 | L21: 0 | M21: 11.31090739 | N21: 6.52559714 | O21: 2.996792404 | P21: 3.231409016 | Q21: 1.835659327 | R21: 0 | S21: 20.47469274 | T21: 9.196573658 | U21: 0 | V21: 1.79257513 | W21: 5.227891996 | X21: 0.2102957648 | Y21: 1.368444563 | Z21: 7.605437113 | BB21: Surface water | BC21: N/A | BD21: N/A | BE21: N/A | BF21: N/A | BG21: N/A | BH21: N/A | BI21: N/A | BJ21: N/A | BK21: N/A | BL21: N/A | BM21: N/A | BN21: N/A | BO21: N/A | BP21: N/A | BQ21: N/A | BR21: N/A | BS21: N/A | BT21: N/A | BU21: N/A | BV21: N/A | BW21: N/A | BX21: N/A | BY21: N/A | BZ21: N/A
A22: Improved water point at more than 30 minutes | B22: Yes | C22: 1.891709257 | D22: 1.326385655 | E22: 1.854813287 | F22: 1.07507567 | G22: 2.313304764 | H22: 1.210989451 | I22: 1.367996675 | J22: 2.246051605 | K22: 3.099566523 | L22: 1.852347284 | M22: 2.432135331 | N22: 1.234357381 | O22: 1.319420304 | P22: 1.821130954 | Q22: 1.124490043 | R22: 3.036723928 | S22: 0.6191854836 | T22: 1.282911536 | U22: 6.839775461 | V22: 1.963196389 | W22: 2.057071296 | X22: 0.3769506687 | Y22: 1.743455163 | Z22: 1.914627221 | BA22: Improved water point at more than 30 minutes | BB22: Yes | BC22: N/A | BD22: N/A | BE22: N/A | BF22: N/A | BG22: N/A | BH22: N/A | BI22: N/A | BJ22: N/A | BK22: N/A | BL22: N/A | BM22: N/A | BN22: N/A | BO22: N/A | BP22: N/A | BQ22: N/A | BR22: N/A | BS22: N/A | BT22: N/A | BU22: N/A | BV22: N/A | BW22: N/A | BX22: N/A | BY22: N/A | BZ22: N/A
B23: No | C23: 98.10829074 | D23: 98.67361435 | E23: 98.14518671 | F23: 98.92492433 | G23: 97.68669524 | H23: 98.78901055 | I23: 98.63200333 | J23: 97.7539484 | K23: 96.90043348 | L23: 98.14765272 | M23: 97.56786467 | N23: 98.76564262 | O23: 98.6805797 | P23: 98.17886905 | Q23: 98.87550996 | R23: 96.96327607 | S23: 99.38081452 | T23: 98.71708846 | U23: 93.16022454 | V23: 98.03680361 | W23: 97.9429287 | X23: 99.62304933 | Y23: 98.25654484 | Z23: 98.08537278 | BB23: No | BC23: N/A | BD23: N/A | BE23: N/A | BF23: N/A | BG23: N/A | BH23: N/A | BI23: N/A | BJ23: N/A | BK23: N/A | BL23: N/A | BM23: N/A | BN23: N/A | BO23: N/A | BP23: N/A | BQ23: N/A | BR23: N/A | BS23: N/A | BT23: N/A | BU23: N/A | BV23: N/A | BW23: N/A | BX23: N/A | BY23: N/A | BZ23: N/A
A24: Manually calculated ratios | B24: Improved wells
B25: Improved springs
B26: Other
C27: NATIONAL wealth index quintile | H27: URBAN wealth index quintile | M27: RURAL wealth index quintile | R27: SUB-REGIONS: | BA27: Raw numbers of respondents: | BB27: Use of drinking water sources | BC27: NATIONAL wealth index quintile | BH27: URBAN wealth index quintile | BM27: RURAL wealth index quintile | BR27: SUB-REGIONS:
A28: Percentage based on weighted population | C28: Poorest | D28: Poor | E28: Middle | F28: Rich | G28: Richest | H28: Poorest | I28: Poor | J28: Middle | K28: Rich | L28: Richest | M28: Poorest | N28: Poor | O28: Middle | P28: Rich | Q28: Richest | R28: Bamako | S28: Gao | T28: Kayes | U28: Kidal | V28: Koulikoro | W28: Mopti | X28: Segou | Y28: Sikasso | Z28: Tombouctou | BA28: Water data, raw numbers (weighted) | BC28: Poorest | BD28: Poor | BE28: Middle | BF28: Rich | BG28: Richest | BH28: Poorest | BI28: Poor | BJ28: Middle | BK28: Rich | BL28: Richest | BM28: Poorest | BN28: Poor | BO28: Middle | BP28: Rich | BQ28: Richest | BR28: Bamako | BS28: Gao | BT28: Kayes | BU28: Kidal | BV28: Koulikoro | BW28: Mopti | BX28: Segou | BY28: Sikasso | BZ28: Tombouctou
A29: Piped water | B29: Yes | C29: 10.67233043 | D29: 7.416739122 | E29: 8.294596122 | F29: 22.29414329 | G29: 81.26570588 | H29: 39.04776668 | I29: 53.43300551 | J29: 74.99724203 | K29: 84.17501486 | L29: 95.36734353 | M29: 5.952586833 | N29: 5.281296441 | O29: 6.671385468 | P29: 5.844421336 | Q29: 11.01567776 | R29: 93.12627179 | S29: 43.09312464 | T29: 11.04006629 | U29: 23.07383064 | V29: 14.03359823 | W29: 20.29062911 | X29: 15.79375228 | Y29: 12.6972727 | Z29: 27.86823387 | BA29: Piped water | BB29: Yes | BC29: N/A | BD29: N/A | BE29: N/A | BF29: N/A | BG29: N/A | BH29: N/A | BI29: N/A | BJ29: N/A | BK29: N/A | BL29: N/A | BM29: N/A | BN29: N/A | BO29: N/A | BP29: N/A | BQ29: N/A | BR29: N/A | BS29: N/A | BT29: N/A | BU29: N/A | BV29: N/A | BW29: N/A | BX29: N/A | BY29: N/A | BZ29: N/A
B30: No | C30: 89.32766957 | D30: 92.58326088 | E30: 91.70540388 | F30: 77.70585671 | G30: 18.73429412 | H30: 60.95223332 | I30: 46.56699449 | J30: 25.00275797 | K30: 15.82498514 | L30: 4.632656474 | M30: 94.04741317 | N30: 94.71870356 | O30: 93.32861453 | P30: 94.15557866 | Q30: 88.98432224 | R30: 6.873728213 | S30: 56.90687536 | T30: 88.95993371 | U30: 76.92616936 | V30: 85.96640177 | W30: 79.70937089 | X30: 84.20624772 | Y30: 87.3027273 | Z30: 72.13176613 | BB30: No | BC30: N/A | BD30: N/A | BE30: N/A | BF30: N/A | BG30: N/A | BH30: N/A | BI30: N/A | BJ30: N/A | BK30: N/A | BL30: N/A | BM30: N/A | BN30: N/A | BO30: N/A | BP30: N/A | BQ30: N/A | BR30: N/A | BS30: N/A | BT30: N/A | BU30: N/A | BV30: N/A | BW30: N/A | BX30: N/A | BY30: N/A | BZ30: N/A
A31: Piped water on premises | B31: Yes | C31: 1.1964692 | D31: 1.804285528 | E31: 1.556393349 | F31: 6.477989051 | G31: 42.17138057 | H31: 10.46131418 | I31: 19.40995778 | J31: 26.09935691 | K31: 41.64071869 | L31: 66.27393336 | M31: 0.203890453 | N31: 0.8191461731 | O31: 0.6496594594 | P31: 0.7796228042 | Q31: 2.221454382 | R31: 40.88293561 | S31: 23.3763302 | T31: 8.837441968 | U31: 7.616004684 | V31: 5.365355031 | W31: 6.803073553 | X31: 5.085684643 | Y31: 2.660880105 | Z31: 7.589642671 | BA31: Piped water on premises | BB31: Yes | BC31: N/A | BD31: N/A | BE31: N/A | BF31: N/A | BG31: N/A | BH31: N/A | BI31: N/A | BJ31: N/A | BK31: N/A | BL31: N/A | BM31: N/A | BN31: N/A | BO31: N/A | BP31: N/A | BQ31: N/A | BR31: N/A | BS31: N/A | BT31: N/A | BU31: N/A | BV31: N/A | BW31: N/A | BX31: N/A | BY31: N/A | BZ31: N/A
B32: No | C32: 98.8035308 | D32: 98.19571447 | E32: 98.44360665 | F32: 93.52201095 | G32: 57.82861943 | H32: 89.53868582 | I32: 80.59004222 | J32: 73.90064309 | K32: 58.35928131 | L32: 33.72606664 | M32: 99.79610955 | N32: 99.18085383 | O32: 99.35034054 | P32: 99.2203772 | Q32: 97.77854562 | R32: 59.11706439 | S32: 76.6236698 | T32: 91.16255803 | U32: 92.38399532 | V32: 94.63464497 | W32: 93.19692645 | X32: 94.91431536 | Y32: 97.3391199 | Z32: 92.41035733 | BB32: No | BC32: N/A | BD32: N/A | BE32: N/A | BF32: N/A | BG32: N/A | BH32: N/A | BI32: N/A | BJ32: N/A | BK32: N/A | BL32: N/A | BM32: N/A | BN32: N/A | BO32: N/A | BP32: N/A | BQ32: N/A | BR32: N/A | BS32: N/A | BT32: N/A | BU32: N/A | BV32: N/A | BW32: N/A | BX32: N/A | BY32: N/A | BZ32: N/A
A33: Piped water into dwelling | B33: Yes | C33: N/A | D33: N/A | E33: N/A | F33: N/A | G33: N/A | H33: N/A | I33: N/A | J33: N/A | K33: N/A | L33: N/A | M33: N/A | N33: N/A | O33: N/A | P33: N/A | Q33: N/A | R33: N/A | S33: N/A | T33: N/A | U33: N/A | V33: N/A | W33: N/A | X33: N/A | Y33: N/A | Z33: N/A | BA33: Piped water into dwelling | BB33: Yes | BC33: N/A | BD33: N/A | BE33: N/A | BF33: N/A | BG33: N/A | BH33: N/A | BI33: N/A | BJ33: N/A | BK33: N/A | BL33: N/A | BM33: N/A | BN33: N/A | BO33: N/A | BP33: N/A | BQ33: N/A | BR33: N/A | BS33: N/A | BT33: N/A | BU33: N/A | BV33: N/A | BW33: N/A | BX33: N/A | BY33: N/A | BZ33: N/A
B34: No | C34: N/A | D34: N/A | E34: N/A | F34: N/A | G34: N/A | H34: N/A | I34: N/A | J34: N/A | K34: N/A | L34: N/A | M34: N/A | N34: N/A | O34: N/A | P34: N/A | Q34: N/A | R34: N/A | S34: N/A | T34: N/A | U34: N/A | V34: N/A | W34: N/A | X34: N/A | Y34: N/A | Z34: N/A | BB34: No | BC34: N/A | BD34: N/A | BE34: N/A | BF34: N/A | BG34: N/A | BH34: N/A | BI34: N/A | BJ34: N/A | BK34: N/A | BL34: N/A | BM34: N/A | BN34: N/A | BO34: N/A | BP34: N/A | BQ34: N/A | BR34: N/A | BS34: N/A | BT34: N/A | BU34: N/A | BV34: N/A | BW34: N/A | BX34: N/A | BY34: N/A | BZ34: N/A
A35: Water source on premises | B35: Yes | C35: 40.31430938 | D35: 40.32396299 | E35: 38.06726958 | F35: 48.95623951 | G35: 60.25533079 | H35: 48.69719513 | I35: 51.91742058 | J35: 50.11688513 | K35: 58.23799492 | L35: 73.80427506 | M35: 38.88083849 | N35: 40.3547487 | O35: 39.55233053 | P35: 37.12487036 | Q35: 47.94735654 | R35: 54.32367692 | S35: 44.22291429 | T35: 53.36716905 | U35: 15.30666696 | V35: 40.65702356 | W35: 30.78145757 | X35: 49.12246301 | Y35: 52.31869111 | Z35: 34.14464745 | BA35: Water source on premises | BB35: Yes | BC35: N/A | BD35: N/A | BE35: N/A | BF35: N/A | BG35: N/A | BH35: N/A | BI35: N/A | BJ35: N/A | BK35: N/A | BL35: N/A | BM35: N/A | BN35: N/A | BO35: N/A | BP35: N/A | BQ35: N/A | BR35: N/A | BS35: N/A | BT35: N/A | BU35: N/A | BV35: N/A | BW35: N/A | BX35: N/A | BY35: N/A | BZ35: N/A
B36: No | C36: 59.68569062 | D36: 59.67603701 | E36: 61.93273042 | F36: 51.04376049 | G36: 39.74466921 | H36: 51.30280487 | I36: 48.08257942 | J36: 49.88311487 | K36: 41.76200508 | L36: 26.19572494 | M36: 61.11916151 | N36: 59.6452513 | O36: 60.44766947 | P36: 62.87512964 | Q36: 52.05264346 | R36: 45.67632308 | S36: 55.77708571 | T36: 46.63283095 | U36: 84.69333304 | V36: 59.34297644 | W36: 69.21854243 | X36: 50.87753699 | Y36: 47.68130889 | Z36: 65.85535255 | BB36: No | BC36: N/A | BD36: N/A | BE36: N/A | BF36: N/A | BG36: N/A | BH36: N/A | BI36: N/A | BJ36: N/A | BK36: N/A | BL36: N/A | BM36: N/A | BN36: N/A | BO36: N/A | BP36: N/A | BQ36: N/A | BR36: N/A | BS36: N/A | BT36: N/A | BU36: N/A | BV36: N/A | BW36: N/A | BX36: N/A | BY36: N/A | BZ36: N/A
A37: Improved Water source on premises | B37: Yes | C37: 20.44594176 | D37: 22.03620116 | E37: 18.51159813 | F37: 26.85289999 | G37: 52.45736336 | H37: 25.2586058 | I37: 31.49650342 | J37: 37.96006089 | K37: 51.86508338 | L37: 71.38394483 | M37: 21.05580924 | N37: 21.10352756 | O37: 19.9978111 | P37: 18.36717152 | Q37: 25.72777119 | R37: 50.49910541 | S37: 32.01250135 | T37: 40.13635445 | U37: 9.186268914 | V37: 15.90027324 | W37: 17.25633492 | X37: 23.60514432 | Y37: 29.58558699 | Z37: 24.20539439 | BA37: Improved water source on premises | BB37: Yes | BC37: N/A | BD37: N/A | BE37: N/A | BF37: N/A | BG37: N/A | BH37: N/A | BI37: N/A | BJ37: N/A | BK37: N/A | BL37: N/A | BM37: N/A | BN37: N/A | BO37: N/A | BP37: N/A | BQ37: N/A | BR37: N/A | BS37: N/A | BT37: N/A | BU37: N/A | BV37: N/A | BW37: N/A | BX37: N/A | BY37: N/A | BZ37: N/A
B38: No | C38: 79.55405824 | D38: 77.96379884 | E38: 81.48840187 | F38: 73.14710001 | G38: 47.54263664 | H38: 74.7413942 | I38: 68.50349658 | J38: 62.03993911 | K38: 48.13491662 | L38: 28.61605517 | M38: 78.94419076 | N38: 78.89647244 | O38: 80.0021889 | P38: 81.63282848 | Q38: 74.27222881 | R38: 49.50089459 | S38: 67.98749865 | T38: 59.86364555 | U38: 90.81373109 | V38: 84.09972676 | W38: 82.74366508 | X38: 76.39485568 | Y38: 70.41441301 | Z38: 75.79460561 | BB38: No | BC38: N/A | BD38: N/A | BE38: N/A | BF38: N/A | BG38: N/A | BH38: N/A | BI38: N/A | BJ38: N/A | BK38: N/A | BL38: N/A | BM38: N/A | BN38: N/A | BO38: N/A | BP38: N/A | BQ38: N/A | BR38: N/A | BS38: N/A | BT38: N/A | BU38: N/A | BV38: N/A | BW38: N/A | BX38: N/A | BY38: N/A | BZ38: N/A
A39: Piped water on premises available when needed | B39: Yes | C39: N/A | D39: N/A | E39: N/A | F39: N/A | G39: N/A | H39: N/A | I39: N/A | J39: N/A | K39: N/A | L39: N/A | M39: N/A | N39: N/A | O39: N/A | P39: N/A | Q39: N/A | R39: N/A | S39: N/A | T39: N/A | U39: N/A | V39: N/A | W39: N/A | X39: N/A | Y39: N/A | Z39: N/A | BA39: Piped water on premises available when needed | BB39: Yes | BC39: N/A | BD39: N/A | BE39: N/A | BF39: N/A | BG39: N/A | BH39: N/A | BI39: N/A | BJ39: N/A | BK39: N/A | BL39: N/A | BM39: N/A | BN39: N/A | BO39: N/A | BP39: N/A | BQ39: N/A | BR39: N/A | BS39: N/A | BT39: N/A | BU39: N/A | BV39: N/A | BW39: N/A | BX39: N/A | BY39: N/A | BZ39: N/A
B40: No | C40: N/A | D40: N/A | E40: N/A | F40: N/A | G40: N/A | H40: N/A | I40: N/A | J40: N/A | K40: N/A | L40: N/A | M40: N/A | N40: N/A | O40: N/A | P40: N/A | Q40: N/A | R40: N/A | S40: N/A | T40: N/A | U40: N/A | V40: N/A | W40: N/A | X40: N/A | Y40: N/A | Z40: N/A | BB40: No | BC40: N/A | BD40: N/A | BE40: N/A | BF40: N/A | BG40: N/A | BH40: N/A | BI40: N/A | BJ40: N/A | BK40: N/A | BL40: N/A | BM40: N/A | BN40: N/A | BO40: N/A | BP40: N/A | BQ40: N/A | BR40: N/A | BS40: N/A | BT40: N/A | BU40: N/A | BV40: N/A | BW40: N/A | BX40: N/A | BY40: N/A | BZ40: N/A
A41: Water point at more than 30 minutes | B41: Yes | C41: 3.616015173 | D41: 2.445400777 | E41: 2.308703163 | F41: 1.081005673 | G41: 2.110231095 | H41: 1.538696066 | I41: 1.017260838 | J41: 2.046287586 | K41: 2.731168127 | L41: 1.806748635 | M41: 4.400238378 | N41: 2.380838002 | O41: 2.735142275 | P41: 1.887299518 | Q41: 1.219311607 | R41: 2.909171856 | S41: 5.737477486 | T41: 2.870178769 | U41: 19.94596121 | V41: 1.646454264 | W41: 2.55845908 | X41: 0.8008799726 | Y41: 1.611657528 | Z41: 4.285626291 | BA41: Water point at more than 30 minutes | BB41: Yes | BC41: N/A | BD41: N/A | BE41: N/A | BF41: N/A | BG41: N/A | BH41: N/A | BI41: N/A | BJ41: N/A | BK41: N/A | BL41: N/A | BM41: N/A | BN41: N/A | BO41: N/A | BP41: N/A | BQ41: N/A | BR41: N/A | BS41: N/A | BT41: N/A | BU41: N/A | BV41: N/A | BW41: N/A | BX41: N/A | BY41: N/A | BZ41: N/A
B42: No | C42: 96.38398483 | D42: 97.55459922 | E42: 97.69129684 | F42: 98.91899433 | G42: 97.8897689 | H42: 98.46130393 | I42: 98.98273916 | J42: 97.95371241 | K42: 97.26883187 | L42: 98.19325137 | M42: 95.59976162 | N42: 97.619162 | O42: 97.26485773 | P42: 98.11270048 | Q42: 98.78068839 | R42: 97.09082814 | S42: 94.26252251 | T42: 97.12982123 | U42: 80.05403879 | V42: 98.35354574 | W42: 97.44154092 | X42: 99.19912003 | Y42: 98.38834247 | Z42: 95.71437371 | BB42: No | BC42: N/A | BD42: N/A | BE42: N/A | BF42: N/A | BG42: N/A | BH42: N/A | BI42: N/A | BJ42: N/A | BK42: N/A | BL42: N/A | BM42: N/A | BN42: N/A | BO42: N/A | BP42: N/A | BQ42: N/A | BR42: N/A | BS42: N/A | BT42: N/A | BU42: N/A | BV42: N/A | BW42: N/A | BX42: N/A | BY42: N/A | BZ42: N/A
A43: Water source available when needed | B43: Yes | C43: N/A | D43: N/A | E43: N/A | F43: N/A | G43: N/A | H43: N/A | I43: N/A | J43: N/A | K43: N/A | L43: N/A | M43: N/A | N43: N/A | O43: N/A | P43: N/A | Q43: N/A | R43: N/A | S43: N/A | T43: N/A | U43: N/A | V43: N/A | W43: N/A | X43: N/A | Y43: N/A | Z43: N/A | BA43: Water source available when needed | BB43: Yes | BC43: N/A | BD43: N/A | BE43: N/A | BF43: N/A | BG43: N/A | BH43: N/A | BI43: N/A | BJ43: N/A | BK43: N/A | BL43: N/A | BM43: N/A | BN43: N/A | BO43: N/A | BP43: N/A | BQ43: N/A | BR43: N/A | BS43: N/A | BT43: N/A | BU43: N/A | BV43: N/A | BW43: N/A | BX43: N/A | BY43: N/A | BZ43: N/A
B44: No | C44: N/A | D44: N/A | E44: N/A | F44: N/A | G44: N/A | H44: N/A | I44: N/A | J44: N/A | K44: N/A | L44: N/A | M44: N/A | N44: N/A | O44: N/A | P44: N/A | Q44: N/A | R44: N/A | S44: N/A | T44: N/A | U44: N/A | V44: N/A | W44: N/A | X44: N/A | Y44: N/A | Z44: N/A | BB44: No | BC44: N/A | BD44: N/A | BE44: N/A | BF44: N/A | BG44: N/A | BH44: N/A | BI44: N/A | BJ44: N/A | BK44: N/A | BL44: N/A | BM44: N/A | BN44: N/A | BO44: N/A | BP44: N/A | BQ44: N/A | BR44: N/A | BS44: N/A | BT44: N/A | BU44: N/A | BV44: N/A | BW44: N/A | BX44: N/A | BY44: N/A | BZ44: N/A
A45: Improved water source available when needed | B45: Yes | C45: N/A | D45: N/A | E45: N/A | F45: N/A | G45: N/A | H45: N/A | I45: N/A | J45: N/A | K45: N/A | L45: N/A | M45: N/A | N45: N/A | O45: N/A | P45: N/A | Q45: N/A | R45: N/A | S45: N/A | T45: N/A | U45: N/A | V45: N/A | W45: N/A | X45: N/A | Y45: N/A | Z45: N/A | BA45: Improved water source available when needed | BB45: Yes | BC45: N/A | BD45: N/A | BE45: N/A | BF45: N/A | BG45: N/A | BH45: N/A | BI45: N/A | BJ45: N/A | BK45: N/A | BL45: N/A | BM45: N/A | BN45: N/A | BO45: N/A | BP45: N/A | BQ45: N/A | BR45: N/A | BS45: N/A | BT45: N/A | BU45: N/A | BV45: N/A | BW45: N/A | BX45: N/A | BY45: N/A | BZ45: N/A
B46: No | C46: N/A | D46: N/A | E46: N/A | F46: N/A | G46: N/A | H46: N/A | I46: N/A | J46: N/A | K46: N/A | L46: N/A | M46: N/A | N46: N/A | O46: N/A | P46: N/A | Q46: N/A | R46: N/A | S46: N/A | T46: N/A | U46: N/A | V46: N/A | W46: N/A | X46: N/A | Y46: N/A | Z46: N/A | BB46: No | BC46: N/A | BD46: N/A | BE46: N/A | BF46: N/A | BG46: N/A | BH46: N/A | BI46: N/A | BJ46: N/A | BK46: N/A | BL46: N/A | BM46: N/A | BN46: N/A | BO46: N/A | BP46: N/A | BQ46: N/A | BR46: N/A | BS46: N/A | BT46: N/A | BU46: N/A | BV46: N/A | BW46: N/A | BX46: N/A | BY46: N/A | BZ46: N/A
A47: Microbiological quality at point of collection | B47: Not contaminated (No E. coli in 100 mL) | C47: N/A | D47: N/A | E47: N/A | F47: N/A | G47: N/A | H47: N/A | I47: N/A | J47: N/A | K47: N/A | L47: N/A | M47: N/A | N47: N/A | O47: N/A | P47: N/A | Q47: N/A | R47: N/A | S47: N/A | T47: N/A | U47: N/A | V47: N/A | W47: N/A | X47: N/A | Y47: N/A | Z47: N/A | BA47: Microbiological quality at point of collection | BB47: Not contaminated (No E. coli in 100 mL) | BC47: N/A | BD47: N/A | BE47: N/A | BF47: N/A | BG47: N/A | BH47: N/A | BI47: N/A | BJ47: N/A | BK47: N/A | BL47: N/A | BM47: N/A | BN47: N/A | BO47: N/A | BP47: N/A | BQ47: N/A | BR47: N/A | BS47: N/A | BT47: N/A | BU47: N/A | BV47: N/A | BW47: N/A | BX47: N/A | BY47: N/A | BZ47: N/A
B48: Contaminated (E. coli detected in 100 mL) | C48: N/A | D48: N/A | E48: N/A | F48: N/A | G48: N/A | H48: N/A | I48: N/A | J48: N/A | K48: N/A | L48: N/A | M48: N/A | N48: N/A | O48: N/A | P48: N/A | Q48: N/A | R48: N/A | S48: N/A | T48: N/A | U48: N/A | V48: N/A | W48: N/A | X48: N/A | Y48: N/A | Z48: N/A | BB48: Contaminated (E. coli detected in 100 mL) | BC48: N/A | BD48: N/A | BE48: N/A | BF48: N/A | BG48: N/A | BH48: N/A | BI48: N/A | BJ48: N/A | BK48: N/A | BL48: N/A | BM48: N/A | BN48: N/A | BO48: N/A | BP48: N/A | BQ48: N/A | BR48: N/A | BS48: N/A | BT48: N/A | BU48: N/A | BV48: N/A | BW48: N/A | BX48: N/A | BY48: N/A | BZ48: N/A
B49: Highly contaminated (>100 CFU/100 mL) | C49: N/A | D49: N/A | E49: N/A | F49: N/A | G49: N/A | H49: N/A | I49: N/A | J49: N/A | K49: N/A | L49: N/A | M49: N/A | N49: N/A | O49: N/A | P49: N/A | Q49: N/A | R49: N/A | S49: N/A | T49: N/A | U49: N/A | V49: N/A | W49: N/A | X49: N/A | Y49: N/A | Z49: N/A | BB49: Highly contaminated (>100 CFU/100 mL) | BC49: N/A | BD49: N/A | BE49: N/A | BF49: N/A | BG49: N/A | BH49: N/A | BI49: N/A | BJ49: N/A | BK49: N/A | BL49: N/A | BM49: N/A | BN49: N/A | BO49: N/A | BP49: N/A | BQ49: N/A | BR49: N/A | BS49: N/A | BT49: N/A | BU49: N/A | BV49: N/A | BW49: N/A | BX49: N/A | BY49: N/A | BZ49: N/A
A50: Microbiological quality of improved water sources at point of collection | B50: Not contaminated (No E. coli in 100 mL) | C50: N/A | D50: N/A | E50: N/A | F50: N/A | G50: N/A | H50: N/A | I50: N/A | J50: N/A | K50: N/A | L50: N/A | M50: N/A | N50: N/A | O50: N/A | P50: N/A | Q50: N/A | R50: N/A | S50: N/A | T50: N/A | U50: N/A | V50: N/A | W50: N/A | X50: N/A | Y50: N/A | Z50: N/A | BA50: Microbiological quality of improved water sources at point of collection | BB50: Not contaminated (No E. coli in 100 mL) | BC50: N/A | BD50: N/A | BE50: N/A | BF50: N/A | BG50: N/A | BH50: N/A | BI50: N/A | BJ50: N/A | BK50: N/A | BL50: N/A | BM50: N/A | BN50: N/A | BO50: N/A | BP50: N/A | BQ50: N/A | BR50: N/A | BS50: N/A | BT50: N/A | BU50: N/A | BV50: N/A | BW50: N/A | BX50: N/A | BY50: N/A | BZ50: N/A
B51: Contaminated (E. coli detected in 100 mL) | C51: N/A | D51: N/A | E51: N/A | F51: N/A | G51: N/A | H51: N/A | I51: N/A | J51: N/A | K51: N/A | L51: N/A | M51: N/A | N51: N/A | O51: N/A | P51: N/A | Q51: N/A | R51: N/A | S51: N/A | T51: N/A | U51: N/A | V51: N/A | W51: N/A | X51: N/A | Y51: N/A | Z51: N/A | BB51: Contaminated (E. coli detected in 100 mL) | BC51: N/A | BD51: N/A | BE51: N/A | BF51: N/A | BG51: N/A | BH51: N/A | BI51: N/A | BJ51: N/A | BK51: N/A | BL51: N/A | BM51: N/A | BN51: N/A | BO51: N/A | BP51: N/A | BQ51: N/A | BR51: N/A | BS51: N/A | BT51: N/A | BU51: N/A | BV51: N/A | BW51: N/A | BX51: N/A | BY51: N/A | BZ51: N/A
B52: Highly contaminated (>100 CFU/100 mL) | C52: N/A | D52: N/A | E52: N/A | F52: N/A | G52: N/A | H52: N/A | I52: N/A | J52: N/A | K52: N/A | L52: N/A | M52: N/A | N52: N/A | O52: N/A | P52: N/A | Q52: N/A | R52: N/A | S52: N/A | T52: N/A | U52: N/A | V52: N/A | W52: N/A | X52: N/A | Y52: N/A | Z52: N/A | BB52: Highly contaminated (>100 CFU/100 mL) | BC52: N/A | BD52: N/A | BE52: N/A | BF52: N/A | BG52: N/A | BH52: N/A | BI52: N/A | BJ52: N/A | BK52: N/A | BL52: N/A | BM52: N/A | BN52: N/A | BO52: N/A | BP52: N/A | BQ52: N/A | BR52: N/A | BS52: N/A | BT52: N/A | BU52: N/A | BV52: N/A | BW52: N/A | BX52: N/A | BY52: N/A | BZ52: N/A
A53: Microbiological quality of piped on premises at point of collection | B53: Not contaminated (No E. coli in 100 mL) | C53: N/A | D53: N/A | E53: N/A | F53: N/A | G53: N/A | H53: N/A | I53: N/A | J53: N/A | K53: N/A | L53: N/A | M53: N/A | N53: N/A | O53: N/A | P53: N/A | Q53: N/A | R53: N/A | S53: N/A | T53: N/A | U53: N/A | V53: N/A | W53: N/A | X53: N/A | Y53: N/A | Z53: N/A | BA53: Microbiological quality of piped on premises at point of collection | BB53: Not contaminated (No E. coli in 100 mL) | BC53: N/A | BD53: N/A | BE53: N/A | BF53: N/A | BG53: N/A | BH53: N/A | BI53: N/A | BJ53: N/A | BK53: N/A | BL53: N/A | BM53: N/A | BN53: N/A | BO53: N/A | BP53: N/A | BQ53: N/A | BR53: N/A | BS53: N/A | BT53: N/A | BU53: N/A | BV53: N/A | BW53: N/A | BX53: N/A | BY53: N/A | BZ53: N/A
B54: Contaminated (E. coli detected in 100 mL) | C54: N/A | D54: N/A | E54: N/A | F54: N/A | G54: N/A | H54: N/A | I54: N/A | J54: N/A | K54: N/A | L54: N/A | M54: N/A | N54: N/A | O54: N/A | P54: N/A | Q54: N/A | R54: N/A | S54: N/A | T54: N/A | U54: N/A | V54: N/A | W54: N/A | X54: N/A | Y54: N/A | Z54: N/A | BB54: Contaminated (E. coli detected in 100 mL) | BC54: N/A | BD54: N/A | BE54: N/A | BF54: N/A | BG54: N/A | BH54: N/A | BI54: N/A | BJ54: N/A | BK54: N/A | BL54: N/A | BM54: N/A | BN54: N/A | BO54: N/A | BP54: N/A | BQ54: N/A | BR54: N/A | BS54: N/A | BT54: N/A | BU54: N/A | BV54: N/A | BW54: N/A | BX54: N/A | BY54: N/A | BZ54: N/A
B55: Highly contaminated (>100 CFU/100 mL) | C55: N/A | D55: N/A | E55: N/A | F55: N/A | G55: N/A | H55: N/A | I55: N/A | J55: N/A | K55: N/A | L55: N/A | M55: N/A | N55: N/A | O55: N/A | P55: N/A | Q55: N/A | R55: N/A | S55: N/A | T55: N/A | U55: N/A | V55: N/A | W55: N/A | X55: N/A | Y55: N/A | Z55: N/A | BB55: Highly contaminated (>100 CFU/100 mL) | BC55: N/A | BD55: N/A | BE55: N/A | BF55: N/A | BG55: N/A | BH55: N/A | BI55: N/A | BJ55: N/A | BK55: N/A | BL55: N/A | BM55: N/A | BN55: N/A | BO55: N/A | BP55: N/A | BQ55: N/A | BR55: N/A | BS55: N/A | BT55: N/A | BU55: N/A | BV55: N/A | BW55: N/A | BX55: N/A | BY55: N/A | BZ55: N/A
C56: NATIONAL wealth index quintile | H56: URBAN wealth index quintile | M56: RURAL wealth index quintile | R56: SUB-REGIONS: | BA56: Raw numbers of respondents: | BB56: Use of drinking water sources | BC56: NATIONAL wealth index quintile | BH56: URBAN wealth index quintile | BM56: RURAL wealth index quintile | BR56: SUB-REGIONS:
A57: Percentage based on weighted population | C57: Poorest | D57: Poor | E57: Middle | F57: Rich | G57: Richest | H57: Poorest | I57: Poor | J57: Middle | K57: Rich | L57: Richest | M57: Poorest | N57: Poor | O57: Middle | P57: Rich | Q57: Richest | R57: Bamako | S57: Gao | T57: Kayes | U57: Kidal | V57: Koulikoro | W57: Mopti | X57: Segou | Y57: Sikasso | Z57: Tombouctou | BA57: Water data, raw numbers (weighted) | BC57: Poorest | BD57: Poor | BE57: Middle | BF57: Rich | BG57: Richest | BH57: Poorest | BI57: Poor | BJ57: Middle | BK57: Rich | BL57: Richest | BM57: Poorest | BN57: Poor | BO57: Middle | BP57: Rich | BQ57: Richest | BR57: Bamako | BS57: Gao | BT57: Kayes | BU57: Kidal | BV57: Koulikoro | BW57: Mopti | BX57: Segou | BY57: Sikasso | BZ57: Tombouctou
A58: Source of drinking water | B58: Piped into dwelling | C58: 0.8571142884 | D58: 1.197686367 | E58: 0.9141596051 | F58: 4.81027632 | G58: 32.12933602 | H58: 7.404387474 | I58: 15.14233623 | J58: 18.28360917 | K58: 31.88286159 | L58: 52.99255542 | M58: 0.115626554 | N58: 0.3913234119 | O58: 0.4472145884 | P58: 0.2938597612 | Q58: 1.031155231 | R58: 31.68852608 | S58: 12.82286297 | T58: 8.506041115 | U58: 0.3851926257 | V58: 3.219195076 | W58: 6.672703703 | X58: 3.357580915 | Y58: 1.271801007 | Z58: 4.731653402
B59: Piped to yard/plot | C59: 0.3408860351 | D59: 0.606599161 | E59: 0.6424154878 | F59: 1.67507656 | G59: 10.04204455 | H59: 3.065966081 | I59: 4.267621559 | J59: 7.815747744 | K59: 9.757857097 | L59: 13.28137794 | M59: 0.08863948271 | N59: 0.4278227613 | O59: 0.202444871 | P59: 0.485763043 | Q59: 1.193466676 | R59: 9.194409525 | S59: 10.63069034 | T59: 0.3314008534 | U59: 7.230812058 | V59: 2.146159955 | W59: 0.1317812763 | X59: 1.73405462 | Y59: 1.389079097 | Z59: 2.87867343
B60: Public tap/standpipe | C60: 9.487987502 | D60: 5.612453593 | E60: 6.738989609 | F60: 15.83413319 | G60: 39.09432531 | H60: 28.61115338 | I60: 34.02304772 | J60: 48.89788512 | K60: 42.53429617 | L60: 29.09341017 | M60: 5.759285972 | N60: 4.462150268 | O60: 6.021726008 | P60: 5.064798532 | Q60: 8.806762869 | R60: 52.24333618 | S60: 19.78192837 | T60: 2.202624323 | U60: 15.45782595 | V60: 8.668243199 | W60: 13.49035381 | X60: 10.72059743 | Y60: 10.0363926 | Z60: 20.33385673
B61: Protected well | C61: 32.86922871 | D61: 38.24653135 | E61: 35.88855345 | F61: 33.58210272 | G61: 7.922828585 | H61: 20.38578592 | I61: 10.67480521 | J61: 11.32546259 | K61: 3.528039071 | L61: 2.125904047 | M61: 34.78450216 | N61: 39.27657668 | O61: 37.16767822 | P61: 38.01899097 | Q61: 43.3403764 | R61: 2.276476374 | S61: 15.15360181 | T61: 46.42834088 | U61: 8.475360096 | V61: 25.95171995 | W61: 27.07699521 | X61: 35.44667115 | Y61: 43.01268769 | Z61: 20.92394106
B62: Unprotected well | C62: 46.17090399 | D62: 48.79455588 | E62: 52.60047224 | F62: 42.12971166 | G62: 10.50805049 | H62: 37.18994696 | I62: 35.13763127 | J62: 13.36006067 | K62: 11.66673417 | L62: 2.459009181 | M62: 46.99290645 | N62: 48.18889184 | O62: 52.79036504 | P62: 52.7645023 | Q62: 43.46689085 | R62: 4.182641859 | S62: 21.18928817 | T62: 33.08270208 | U62: 68.45080926 | V62: 58.00698746 | W62: 46.12137472 | X62: 48.14066407 | Y62: 42.7141987 | Z62: 43.01060992
B63: Protected spring | C63: 0.5874904047 | D63: 0.552740663 | E63: 0.2439184861 | F63: 0.3151333965 | G63: 0.0193308776 | H63: 0.12708007 | I63: 0.2942351904 | J63: 0.06365090864 | K63: 0 | L63: 0 | M63: 0.7260117637 | N63: 0.699281743 | O63: 0.3499159938 | P63: 0.1603827039 | Q63: 0.323769168 | R63: 0 | S63: 0.06449357443 | T63: 0.2976287196 | U63: 0 | V63: 0.1779595456 | W63: 1.238714738 | X63: 0.2835686417 | Y63: 0.2073963442 | Z63: 0.03896031792
B64: River/dam/lake/ponds/stream/canal/irirgation channel | C64: 9.465592299 | D64: 4.958133936 | E64: 2.951999038 | F64: 1.635897665 | G64: 0.04458163184 | H64: 3.065766878 | I64: 0.4321303813 | J64: 0 | K64: 0.1459302373 | L64: 0 | M64: 11.28773828 | N64: 6.489159061 | O64: 2.99261256 | P64: 3.211702692 | Q64: 1.837578809 | R64: 0 | S64: 20.35713477 | T64: 9.151262024 | U64: 0 | V64: 1.79046782 | W64: 5.204105758 | X64: 0.2095502669 | Y64: 1.368444563 | Z64: 7.626164318
B65: Rainwater | C65: 0.2169220266 | D65: 0.03129904407 | E65: 0.01949208079 | F65: 0 | G65: 0 | H65: 0.1074880838 | I65: 0 | J65: 0 | K65: 0 | L65: 0 | M65: 0.2452893394 | N65: 0.06479424261 | O65: 0.02804271702 | P65: 0 | Q65: 0 | R65: 0 | S65: 0 | T65: 0 | U65: 0 | V65: 0.03926698691 | W65: 0.05986123213 | X65: 0.09207824812 | Y65: 0 | Z65: 0.4561408246
B66: Bottled water | C66: 0 | D66: 0 | E66: 0 | F66: 0.005528247695 | G66: 0.2395025393 | H66: 0 | I66: 0.01804145871 | J66: 0.2535837992 | K66: 0.484281663 | L66: 0.0477432456 | M66: 0 | N66: 0 | O66: 0 | P66: 0 | Q66: 0 | R66: 0.4146099797 | S66: 0 | T66: 0 | U66: 0 | V66: 0 | W66: 0 | X66: 0 | Y66: 0 | Z66: 0
B67: Other | C67: 0.003874745499 | D67: 0 | E67: 0 | F67: 0.01214024494 | G67: 0 | H67: 0.04242515229 | I67: 0.01015098048 | J67: 0 | K67: 0 | L67: 0 | M67: 0 | N67: 0 | O67: 0 | P67: 0 | Q67: 0 | R67: 0 | S67: 0 | T67: 0 | U67: 0 | V67: 0 | W67: 0.004109549425 | X67: 0.01523465567 | Y67: 0 | Z67: 0
A108: =A1026 -> Mali
A109: =A1034 -> 2006
A110: Use of sanitation facilities
A111: by wealth quintile and sub-national region
A112: Notes:
A113: WHO/UNICEF JMP customised wealth index excludes water,
A114: sanitation and hygiene assets.
A115: Survey used for analysis: | B115: =A1025 -> DHS06
A116: =B1030 -> Ratio of Improved latrines based on: | B116: MICS10
A117: =B1029 -> Ratio of Shared improved based on: | B117: MICS10
A120: Use of sanitation facilities | C120: NATIONAL wealth index quintile | H120: URBAN wealth index quintile | M120: RURAL wealth index quintile | R120: SUB-REGIONS: | BA120: Raw numbers of respondents: | BB120: Use of sanitation facilities | BC120: NATIONAL wealth index quintile | BH120: URBAN wealth index quintile | BM120: RURAL wealth index quintile | BR120: SUB-REGIONS:
A121: Weighted percentage (used in graphs) | C121: Poorest | D121: Poor | E121: Middle | F121: Rich | G121: Richest | H121: Poorest | I121: Poor | J121: Middle | K121: Rich | L121: Richest | M121: Poorest | N121: Poor | O121: Middle | P121: Rich | Q121: Richest | R121: Bamako | S121: Gao | T121: Kayes | U121: Kidal | V121: Koulikoro | W121: Mopti | X121: Segou | Y121: Sikasso | Z121: Tombouctou | BA121: Sanitation data, raw numbers (weighted) | BC121: Poorest | BD121: Poor | BE121: Middle | BF121: Rich | BG121: Richest | BH121: Poorest | BI121: Poor | BJ121: Middle | BK121: Rich | BL121: Richest | BM121: Poorest | BN121: Poor | BO121: Middle | BP121: Rich | BQ121: Richest | BR121: Bamako | BS121: Gao | BT121: Kayes | BU121: Kidal | BV121: Koulikoro | BW121: Mopti | BX121: Segou | BY121: Sikasso | BZ121: Tombouctou
A122: Sanitation | B122: Improved | C122: =C153+C155+C154*MICS10!C130/100 -> 19.17846596 | D122: =D153+D155+D154*MICS10!D130/100 -> 19.61602773 | E122: =E153+E155+E154*MICS10!E130/100 -> 26.39735271 | F122: =F153+F155+F154*MICS10!F130/100 -> 54.50074325 | G122: =G153+G155+G154*MICS10!G130/100 -> 90.74624709 | H122: =H153+H155+H154*MICS10!H130/100 -> 51.86641549 | I122: =I153+I155+I154*MICS10!I130/100 -> 75.74691137 | J122: =J153+J155+J154*MICS10!J130/100 -> 83.61665138 | K122: =K153+K155+K154*MICS10!K130/100 -> 90.88277154 | L122: =L153+L155+L154*MICS10!L130/100 -> 95.58038048 | M122: =M153+M155+M154*MICS10!M130/100 -> 15.86366161 | N122: =N153+N155+N154*MICS10!N130/100 -> 17.40734991 | O122: =O153+O155+O154*MICS10!O130/100 -> 20.14266623 | P122: =P153+P155+P154*MICS10!P130/100 -> 25.40547047 | Q122: =Q153+Q155+Q154*MICS10!Q130/100 -> 52.6029693 | R122: =R153+R155+R154*MICS10!R130/100 -> 91.71257091 | S122: =S153+S155+S154*MICS10!S130/100 -> 40.76652008 | T122: =T153+T155+T154*MICS10!T130/100 -> 46.51089606 | U122: =U153+U155+U154*MICS10!U130/100 -> 93.7187763 | V122: =V153+V155+V154*MICS10!V130/100 -> 33.21389901 | W122: =W153+W155+W154*MICS10!W130/100 -> 33.37690051 | X122: =X153+X155+X154*MICS10!X130/100 -> 37.52487916 | Y122: =Y153+Y155+Y154*MICS10!Y130/100 -> 29.29392343 | Z122: =Z153+Z155+Z154*MICS10!Z130/100 -> 24.30295508 | BA122: Sanitation | BB122: Improved | BC122: N/A | BD122: N/A | BE122: N/A | BF122: N/A | BG122: N/A | BH122: N/A | BI122: N/A | BJ122: N/A | BK122: N/A | BL122: N/A | BM122: N/A | BN122: N/A | BO122: N/A | BP122: N/A | BQ122: N/A | BR122: N/A | BS122: N/A | BT122: N/A | BU122: N/A | BV122: N/A | BW122: N/A | BX122: N/A | BY122: N/A | BZ122: N/A
B123: Not Improved | C123: =100-C122 -> 80.82153404 | D123: =100-D122 -> 80.38397227 | E123: 73.60264729 | F123: 45.49925675 | G123: 9.253752913 | H123: 48.13358451 | I123: 24.25308863 | J123: 16.38334862 | K123: 9.117228459 | L123: 4.41961952 | M123: 84.13633839 | N123: 82.59265009 | O123: 79.85733377 | P123: 74.59452953 | Q123: 47.3970307 | R123: 8.287429087 | S123: 59.23347992 | T123: 53.48910394 | U123: 6.281223696 | V123: 66.78610099 | W123: 66.62309949 | X123: 62.47512084 | Y123: 70.70607657 | Z123: 75.69704492 | BB123: Not Improved | BC123: N/A | BD123: N/A | BE123: N/A | BF123: N/A | BG123: N/A | BH123: N/A | BI123: N/A | BJ123: N/A | BK123: N/A | BL123: N/A | BM123: N/A | BN123: N/A | BO123: N/A | BP123: N/A | BQ123: N/A | BR123: N/A | BS123: N/A | BT123: N/A | BU123: N/A | BV123: N/A | BW123: N/A | BX123: N/A | BY123: N/A | BZ123: N/A
A124: Sanitation ladder | B124: Basic | C124: =C122*MICS10!C129/100 -> 17.34459853 | D124: =D122*MICS10!D129/100 -> 16.33953396 | E124: =E122*MICS10!E129/100 -> 22.69629992 | F124: =F122*MICS10!F129/100 -> 45.49663141 | G124: =G122*MICS10!G129/100 -> 58.84092008 | H124: =H122*MICS10!H129/100 -> 44.67084706 | I124: =I122*MICS10!I129/100 -> 61.88310614 | J124: =J122*MICS10!J129/100 -> 55.94296712 | K124: =K122*MICS10!K129/100 -> 53.94160149 | L124: =L122*MICS10!L129/100 -> 57.05901043 | M124: =M122*MICS10!M129/100 -> 14.22080262 | N124: =N122*MICS10!N129/100 -> 15.51538065 | O124: =O122*MICS10!O129/100 -> 16.31289797 | P124: =P122*MICS10!P129/100 -> 21.86394991 | Q124: =Q122*MICS10!Q129/100 -> 43.30272113 | R124: =R122*MICS10!R129/100 -> 59.01347657 | S124: =S122*MICS10!S129/100 -> 31.21393786 | T124: =T122*MICS10!T129/100 -> 39.54477786 | U124: =U122*MICS10!U129/100 -> 79.82594808 | V124: =V122*MICS10!V129/100 -> 27.13738851 | W124: =W122*MICS10!W129/100 -> 24.76850455 | X124: =X122*MICS10!X129/100 -> 32.4492005 | Y124: =Y122*MICS10!Y129/100 -> 23.26874503 | Z124: =Z122*MICS10!Z129/100 -> 20.12711296 | BA124: Sanitation ladder | BB124: Basic | BC124: N/A | BD124: N/A | BE124: N/A | BF124: N/A | BG124: N/A | BH124: N/A | BI124: N/A | BJ124: N/A | BK124: N/A | BL124: N/A | BM124: N/A | BN124: N/A | BO124: N/A | BP124: N/A | BQ124: N/A | BR124: N/A | BS124: N/A | BT124: N/A | BU124: N/A | BV124: N/A | BW124: N/A | BX124: N/A | BY124: N/A | BZ124: N/A
B125: Limited | C125: =C122*MICS10!C128/100 -> 1.833867432 | D125: =D122*MICS10!D128/100 -> 3.276493773 | E125: =E122*MICS10!E128/100 -> 3.701052789 | F125: =F122*MICS10!F128/100 -> 9.004111844 | G125: =G122*MICS10!G128/100 -> 31.905327 | H125: =H122*MICS10!H128/100 -> 7.195568426 | I125: =I122*MICS10!I128/100 -> 13.86380523 | J125: =J122*MICS10!J128/100 -> 27.67368426 | K125: =K122*MICS10!K128/100 -> 36.94117005 | L125: =L122*MICS10!L128/100 -> 38.52137005 | M125: =M122*MICS10!M128/100 -> 1.642858995 | N125: =N122*MICS10!N128/100 -> 1.891969257 | O125: =O122*MICS10!O128/100 -> 3.829768259 | P125: =P122*MICS10!P128/100 -> 3.541520558 | Q125: =Q122*MICS10!Q128/100 -> 9.300248169 | R125: =R122*MICS10!R128/100 -> 32.69909434 | S125: =S122*MICS10!S128/100 -> 9.552582227 | T125: =T122*MICS10!T128/100 -> 6.966118199 | U125: =U122*MICS10!U128/100 -> 13.89282823 | V125: =V122*MICS10!V128/100 -> 6.076510497 | W125: =W122*MICS10!W128/100 -> 8.608395958 | X125: =X122*MICS10!X128/100 -> 5.075678664 | Y125: =Y122*MICS10!Y128/100 -> 6.025178395 | Z125: =Z122*MICS10!Z128/100 -> 4.17584212 | BB125: Limited | BC125: N/A | BD125: N/A | BE125: N/A | BF125: N/A | BG125: N/A | BH125: N/A | BI125: N/A | BJ125: N/A | BK125: N/A | BL125: N/A | BM125: N/A | BN125: N/A | BO125: N/A | BP125: N/A | BQ125: N/A | BR125: N/A | BS125: N/A | BT125: N/A | BU125: N/A | BV125: N/A | BW125: N/A | BX125: N/A | BY125: N/A | BZ125: N/A
B126: Unimproved | C126: =100-C124-C125-C127 -> 45.58526509 | D126: =100-D124-D125-D127 -> 52.75568789 | E126: 52.97446456 | F126: 32.06766653 | G126: 8.213262198 | H126: 31.1277856 | I126: 9.528183737 | J126: 14.61727306 | K126: 8.178261372 | L126: 3.892504558 | M126: 43.22614874 | N126: 53.22358182 | O126: 55.10242502 | P126: 55.2433935 | Q126: 36.20200529 | R126: 7.636454131 | S126: 16.19913018 | T126: 42.79979426 | U126: 0.2835768794 | V126: 53.19298333 | W126: 22.47099323 | X126: 49.69559884 | Y126: 54.00960028 | Z126: 28.60377928 | BB126: Unimproved | BC126: N/A | BD126: N/A | BE126: N/A | BF126: N/A | BG126: N/A | BH126: N/A | BI126: N/A | BJ126: N/A | BK126: N/A | BL126: N/A | BM126: N/A | BN126: N/A | BO126: N/A | BP126: N/A | BQ126: N/A | BR126: N/A | BS126: N/A | BT126: N/A | BU126: N/A | BV126: N/A | BW126: N/A | BX126: N/A | BY126: N/A | BZ126: N/A
B127: Open defecation | C127: =C156 -> 35.23626895 | D127: =D156 -> 27.62828437 | E127: 20.62818273 | F127: 13.43159022 | G127: 1.040490715 | H127: 17.00579891 | I127: 14.72490489 | J127: 1.766075562 | K127: 0.9389670868 | L127: 0.5271149611 | M127: 40.91018965 | N127: 29.36906827 | O127: 24.75490875 | P127: 19.35113603 | Q127: 11.1950254 | R127: 0.6509749564 | S127: 43.03434974 | T127: 10.68930968 | U127: 5.997646816 | V127: 13.59311766 | W127: 44.15210626 | X127: 12.77952199 | Y127: 16.6964763 | Z127: 47.09326565 | BB127: Open defecation | BC127: N/A | BD127: N/A | BE127: N/A | BF127: N/A | BG127: N/A | BH127: N/A | BI127: N/A | BJ127: N/A | BK127: N/A | BL127: N/A | BM127: N/A | BN127: N/A | BO127: N/A | BP127: N/A | BQ127: N/A | BR127: N/A | BS127: N/A | BT127: N/A | BU127: N/A | BV127: N/A | BW127: N/A | BX127: N/A | BY127: N/A | BZ127: N/A
A128: Shared among Improved Sanitation | B128: Yes | C128: N/A | D128: N/A | E128: N/A | F128: N/A | G128: N/A | H128: N/A | I128: N/A | J128: N/A | K128: N/A | L128: N/A | M128: N/A | N128: N/A | O128: N/A | P128: N/A | Q128: N/A | R128: N/A | S128: N/A | T128: N/A | U128: N/A | V128: N/A | W128: N/A | X128: N/A | Y128: N/A | Z128: N/A | BA128: Shared among improved sanitation facilities | BB128: Yes | BC128: N/A | BD128: N/A | BE128: N/A | BF128: N/A | BG128: N/A | BH128: N/A | BI128: N/A | BJ128: N/A | BK128: N/A | BL128: N/A | BM128: N/A | BN128: N/A | BO128: N/A | BP128: N/A | BQ128: N/A | BR128: N/A | BS128: N/A | BT128: N/A | BU128: N/A | BV128: N/A | BW128: N/A | BX128: N/A | BY128: N/A | BZ128: N/A
B129: No | C129: N/A | D129: N/A | E129: N/A | F129: N/A | G129: N/A | H129: N/A | I129: N/A | J129: N/A | K129: N/A | L129: N/A | M129: N/A | N129: N/A | O129: N/A | P129: N/A | Q129: N/A | R129: N/A | S129: N/A | T129: N/A | U129: N/A | V129: N/A | W129: N/A | X129: N/A | Y129: N/A | Z129: N/A | BB129: No | BC129: N/A | BD129: N/A | BE129: N/A | BF129: N/A | BG129: N/A | BH129: N/A | BI129: N/A | BJ129: N/A | BK129: N/A | BL129: N/A | BM129: N/A | BN129: N/A | BO129: N/A | BP129: N/A | BQ129: N/A | BR129: N/A | BS129: N/A | BT129: N/A | BU129: N/A | BV129: N/A | BW129: N/A | BX129: N/A | BY129: N/A | BZ129: N/A
A130: Manually calculated ratios | B130: Improved latrines
B131: Other
B132: Other
C133: NATIONAL wealth index quintile | H133: URBAN wealth index quintile | M133: RURAL wealth index quintile | R133: SUB-REGIONS: | BA133: Raw numbers of respondents: | BB133: Use of sanitation facilities | BC133: NATIONAL wealth index quintile | BH133: URBAN wealth index quintile | BM133: RURAL wealth index quintile | BR133: SUB-REGIONS:
A134: Percentage based on weighted population | C134: Poorest | D134: Poor | E134: Middle | F134: Rich | G134: Richest | H134: Poorest | I134: Poor | J134: Middle | K134: Rich | L134: Richest | M134: Poorest | N134: Poor | O134: Middle | P134: Rich | Q134: Richest | R134: Bamako | S134: Gao | T134: Kayes | U134: Kidal | V134: Koulikoro | W134: Mopti | X134: Segou | Y134: Sikasso | Z134: Tombouctou | BA134: Sanitation data, raw numbers (weighted) | BC134: Poorest | BD134: Poor | BE134: Middle | BF134: Rich | BG134: Richest | BH134: Poorest | BI134: Poor | BJ134: Middle | BK134: Rich | BL134: Richest | BM134: Poorest | BN134: Poor | BO134: Middle | BP134: Rich | BQ134: Richest | BR134: Bamako | BS134: Gao | BT134: Kayes | BU134: Kidal | BV134: Koulikoro | BW134: Mopti | BX134: Segou | BY134: Sikasso | BZ134: Tombouctou
A135: Sanitation type | B135: Sewer connection | C135: N/A | D135: N/A | E135: N/A | F135: N/A | G135: N/A | H135: N/A | I135: N/A | J135: N/A | K135: N/A | L135: N/A | M135: N/A | N135: N/A | O135: N/A | P135: N/A | Q135: N/A | R135: N/A | S135: N/A | T135: N/A | U135: N/A | V135: N/A | W135: N/A | X135: N/A | Y135: N/A | Z135: N/A | BA135: Sanitation type | BB135: Sewer connection | BC135: N/A | BD135: N/A | BE135: N/A | BF135: N/A | BG135: N/A | BH135: N/A | BI135: N/A | BJ135: N/A | BK135: N/A | BL135: N/A | BM135: N/A | BN135: N/A | BO135: N/A | BP135: N/A | BQ135: N/A | BR135: N/A | BS135: N/A | BT135: N/A | BU135: N/A | BV135: N/A | BW135: N/A | BX135: N/A | BY135: N/A | BZ135: N/A
B136: Septic tank connection | C136: N/A | D136: N/A | E136: N/A | F136: N/A | G136: N/A | H136: N/A | I136: N/A | J136: N/A | K136: N/A | L136: N/A | M136: N/A | N136: N/A | O136: N/A | P136: N/A | Q136: N/A | R136: N/A | S136: N/A | T136: N/A | U136: N/A | V136: N/A | W136: N/A | X136: N/A | Y136: N/A | Z136: N/A | BB136: Septic tank connection | BC136: N/A | BD136: N/A | BE136: N/A | BF136: N/A | BG136: N/A | BH136: N/A | BI136: N/A | BJ136: N/A | BK136: N/A | BL136: N/A | BM136: N/A | BN136: N/A | BO136: N/A | BP136: N/A | BQ136: N/A | BR136: N/A | BS136: N/A | BT136: N/A | BU136: N/A | BV136: N/A | BW136: N/A | BX136: N/A | BY136: N/A | BZ136: N/A
B137: Improved latrines | C137: N/A | D137: N/A | E137: N/A | F137: N/A | G137: N/A | H137: N/A | I137: N/A | J137: N/A | K137: N/A | L137: N/A | M137: N/A | N137: N/A | O137: N/A | P137: N/A | Q137: N/A | R137: N/A | S137: N/A | T137: N/A | U137: N/A | V137: N/A | W137: N/A | X137: N/A | Y137: N/A | Z137: N/A | BB137: Improved latrines | BC137: N/A | BD137: N/A | BE137: N/A | BF137: N/A | BG137: N/A | BH137: N/A | BI137: N/A | BJ137: N/A | BK137: N/A | BL137: N/A | BM137: N/A | BN137: N/A | BO137: N/A | BP137: N/A | BQ137: N/A | BR137: N/A | BS137: N/A | BT137: N/A | BU137: N/A | BV137: N/A | BW137: N/A | BX137: N/A | BY137: N/A | BZ137: N/A
B138: Unimproved facilities | C138: N/A | D138: N/A | E138: N/A | F138: N/A | G138: N/A | H138: N/A | I138: N/A | J138: N/A | K138: N/A | L138: N/A | M138: N/A | N138: N/A | O138: N/A | P138: N/A | Q138: N/A | R138: N/A | S138: N/A | T138: N/A | U138: N/A | V138: N/A | W138: N/A | X138: N/A | Y138: N/A | Z138: N/A | BB138: Unimproved facilities | BC138: N/A | BD138: N/A | BE138: N/A | BF138: N/A | BG138: N/A | BH138: N/A | BI138: N/A | BJ138: N/A | BK138: N/A | BL138: N/A | BM138: N/A | BN138: N/A | BO138: N/A | BP138: N/A | BQ138: N/A | BR138: N/A | BS138: N/A | BT138: N/A | BU138: N/A | BV138: N/A | BW138: N/A | BX138: N/A | BY138: N/A | BZ138: N/A
B139: Open defecation | C139: =C156 -> 35.23626895 | D139: =D156 -> 27.62828437 | E139: 20.62818273 | F139: 13.43159022 | G139: 1.040490715 | H139: 17.00579891 | I139: 14.72490489 | J139: 1.766075562 | K139: 0.9389670868 | L139: 0.5271149611 | M139: 40.91018965 | N139: 29.36906827 | O139: 24.75490875 | P139: 19.35113603 | Q139: 11.1950254 | R139: 0.6509749564 | S139: 43.03434974 | T139: 10.68930968 | U139: 5.997646816 | V139: 13.59311766 | W139: 44.15210626 | X139: 12.77952199 | Y139: 16.6964763 | Z139: 47.09326565 | BB139: Open defecation | BC139: N/A | BD139: N/A | BE139: N/A | BF139: N/A | BG139: N/A | BH139: N/A | BI139: N/A | BJ139: N/A | BK139: N/A | BL139: N/A | BM139: N/A | BN139: N/A | BO139: N/A | BP139: N/A | BQ139: N/A | BR139: N/A | BS139: N/A | BT139: N/A | BU139: N/A | BV139: N/A | BW139: N/A | BX139: N/A | BY139: N/A | BZ139: N/A
A140: Septic tank emptying practices | B140: Not emptied/treated and disposed in situ | C140: N/A | D140: N/A | E140: N/A | F140: N/A | G140: N/A | H140: N/A | I140: N/A | J140: N/A | K140: N/A | L140: N/A | M140: N/A | N140: N/A | O140: N/A | P140: N/A | Q140: N/A | R140: N/A | S140: N/A | T140: N/A | U140: N/A | V140: N/A | W140: N/A | X140: N/A | Y140: N/A | Z140: N/A | BA140: Septic tank emptying practices | BB140: Not emptied/treated and disposed in situ | BC140: N/A | BD140: N/A | BE140: N/A | BF140: N/A | BG140: N/A | BH140: N/A | BI140: N/A | BJ140: N/A | BK140: N/A | BL140: N/A | BM140: N/A | BN140: N/A | BO140: N/A | BP140: N/A | BQ140: N/A | BR140: N/A | BS140: N/A | BT140: N/A | BU140: N/A | BV140: N/A | BW140: N/A | BX140: N/A | BY140: N/A | BZ140: N/A
B141: Emptied and buried on site | C141: N/A | D141: N/A | E141: N/A | F141: N/A | G141: N/A | H141: N/A | I141: N/A | J141: N/A | K141: N/A | L141: N/A | M141: N/A | N141: N/A | O141: N/A | P141: N/A | Q141: N/A | R141: N/A | S141: N/A | T141: N/A | U141: N/A | V141: N/A | W141: N/A | X141: N/A | Y141: N/A | Z141: N/A | BB141: Emptied and buried on site | BC141: N/A | BD141: N/A | BE141: N/A | BF141: N/A | BG141: N/A | BH141: N/A | BI141: N/A | BJ141: N/A | BK141: N/A | BL141: N/A | BM141: N/A | BN141: N/A | BO141: N/A | BP141: N/A | BQ141: N/A | BR141: N/A | BS141: N/A | BT141: N/A | BU141: N/A | BV141: N/A | BW141: N/A | BX141: N/A | BY141: N/A | BZ141: N/A
B142: Emptied and discharged locally | C142: N/A | D142: N/A | E142: N/A | F142: N/A | G142: N/A | H142: N/A | I142: N/A | J142: N/A | K142: N/A | L142: N/A | M142: N/A | N142: N/A | O142: N/A | P142: N/A | Q142: N/A | R142: N/A | S142: N/A | T142: N/A | U142: N/A | V142: N/A | W142: N/A | X142: N/A | Y142: N/A | Z142: N/A | BB142: Emptied and discharged locally | BC142: N/A | BD142: N/A | BE142: N/A | BF142: N/A | BG142: N/A | BH142: N/A | BI142: N/A | BJ142: N/A | BK142: N/A | BL142: N/A | BM142: N/A | BN142: N/A | BO142: N/A | BP142: N/A | BQ142: N/A | BR142: N/A | BS142: N/A | BT142: N/A | BU142: N/A | BV142: N/A | BW142: N/A | BX142: N/A | BY142: N/A | BZ142: N/A
B143: Emptied and removed offsite | C143: N/A | D143: N/A | E143: N/A | F143: N/A | G143: N/A | H143: N/A | I143: N/A | J143: N/A | K143: N/A | L143: N/A | M143: N/A | N143: N/A | O143: N/A | P143: N/A | Q143: N/A | R143: N/A | S143: N/A | T143: N/A | U143: N/A | V143: N/A | W143: N/A | X143: N/A | Y143: N/A | Z143: N/A | BB143: Emptied and removed offsite | BC143: N/A | BD143: N/A | BE143: N/A | BF143: N/A | BG143: N/A | BH143: N/A | BI143: N/A | BJ143: N/A | BK143: N/A | BL143: N/A | BM143: N/A | BN143: N/A | BO143: N/A | BP143: N/A | BQ143: N/A | BR143: N/A | BS143: N/A | BT143: N/A | BU143: N/A | BV143: N/A | BW143: N/A | BX143: N/A | BY143: N/A | BZ143: N/A
A144: Latrine emptying practices | B144: Not emptied/treated and disposed in situ | C144: N/A | D144: N/A | E144: N/A | F144: N/A | G144: N/A | H144: N/A | I144: N/A | J144: N/A | K144: N/A | L144: N/A | M144: N/A | N144: N/A | O144: N/A | P144: N/A | Q144: N/A | R144: N/A | S144: N/A | T144: N/A | U144: N/A | V144: N/A | W144: N/A | X144: N/A | Y144: N/A | Z144: N/A | BA144: Latrine emptying practices | BB144: Not emptied/treated and disposed in situ | BC144: N/A | BD144: N/A | BE144: N/A | BF144: N/A | BG144: N/A | BH144: N/A | BI144: N/A | BJ144: N/A | BK144: N/A | BL144: N/A | BM144: N/A | BN144: N/A | BO144: N/A | BP144: N/A | BQ144: N/A | BR144: N/A | BS144: N/A | BT144: N/A | BU144: N/A | BV144: N/A | BW144: N/A | BX144: N/A | BY144: N/A | BZ144: N/A
B145: Emptied and buried on site | C145: N/A | D145: N/A | E145: N/A | F145: N/A | G145: N/A | H145: N/A | I145: N/A | J145: N/A | K145: N/A | L145: N/A | M145: N/A | N145: N/A | O145: N/A | P145: N/A | Q145: N/A | R145: N/A | S145: N/A | T145: N/A | U145: N/A | V145: N/A | W145: N/A | X145: N/A | Y145: N/A | Z145: N/A | BB145: Emptied and buried on site | BC145: N/A | BD145: N/A | BE145: N/A | BF145: N/A | BG145: N/A | BH145: N/A | BI145: N/A | BJ145: N/A | BK145: N/A | BL145: N/A | BM145: N/A | BN145: N/A | BO145: N/A | BP145: N/A | BQ145: N/A | BR145: N/A | BS145: N/A | BT145: N/A | BU145: N/A | BV145: N/A | BW145: N/A | BX145: N/A | BY145: N/A | BZ145: N/A
B146: Emptied and discharged locally | C146: N/A | D146: N/A | E146: N/A | F146: N/A | G146: N/A | H146: N/A | I146: N/A | J146: N/A | K146: N/A | L146: N/A | M146: N/A | N146: N/A | O146: N/A | P146: N/A | Q146: N/A | R146: N/A | S146: N/A | T146: N/A | U146: N/A | V146: N/A | W146: N/A | X146: N/A | Y146: N/A | Z146: N/A | BB146: Emptied and discharged locally | BC146: N/A | BD146: N/A | BE146: N/A | BF146: N/A | BG146: N/A | BH146: N/A | BI146: N/A | BJ146: N/A | BK146: N/A | BL146: N/A | BM146: N/A | BN146: N/A | BO146: N/A | BP146: N/A | BQ146: N/A | BR146: N/A | BS146: N/A | BT146: N/A | BU146: N/A | BV146: N/A | BW146: N/A | BX146: N/A | BY146: N/A | BZ146: N/A
B147: Emptied and removed offsite | C147: N/A | D147: N/A | E147: N/A | F147: N/A | G147: N/A | H147: N/A | I147: N/A | J147: N/A | K147: N/A | L147: N/A | M147: N/A | N147: N/A | O147: N/A | P147: N/A | Q147: N/A | R147: N/A | S147: N/A | T147: N/A | U147: N/A | V147: N/A | W147: N/A | X147: N/A | Y147: N/A | Z147: N/A | BB147: Emptied and removed offsite | BC147: N/A | BD147: N/A | BE147: N/A | BF147: N/A | BG147: N/A | BH147: N/A | BI147: N/A | BJ147: N/A | BK147: N/A | BL147: N/A | BM147: N/A | BN147: N/A | BO147: N/A | BP147: N/A | BQ147: N/A | BR147: N/A | BS147: N/A | BT147: N/A | BU147: N/A | BV147: N/A | BW147: N/A | BX147: N/A | BY147: N/A | BZ147: N/A
A148: Shared among improved sanitation facilities | B148: Yes | C148: N/A | D148: N/A | E148: N/A | F148: N/A | G148: N/A | H148: N/A | I148: N/A | J148: N/A | K148: N/A | L148: N/A | M148: N/A | N148: N/A | O148: N/A | P148: N/A | Q148: N/A | R148: N/A | S148: N/A | T148: N/A | U148: N/A | V148: N/A | W148: N/A | X148: N/A | Y148: N/A | Z148: N/A | BA148: Shared among improved sanitation facilities | BB148: Yes | BC148: N/A | BD148: N/A | BE148: N/A | BF148: N/A | BG148: N/A | BH148: N/A | BI148: N/A | BJ148: N/A | BK148: N/A | BL148: N/A | BM148: N/A | BN148: N/A | BO148: N/A | BP148: N/A | BQ148: N/A | BR148: N/A | BS148: N/A | BT148: N/A | BU148: N/A | BV148: N/A | BW148: N/A | BX148: N/A | BY148: N/A | BZ148: N/A
B149: No | C149: N/A | D149: N/A | E149: N/A | F149: N/A | G149: N/A | H149: N/A | I149: N/A | J149: N/A | K149: N/A | L149: N/A | M149: N/A | N149: N/A | O149: N/A | P149: N/A | Q149: N/A | R149: N/A | S149: N/A | T149: N/A | U149: N/A | V149: N/A | W149: N/A | X149: N/A | Y149: N/A | Z149: N/A | BB149: No | BC149: N/A | BD149: N/A | BE149: N/A | BF149: N/A | BG149: N/A | BH149: N/A | BI149: N/A | BJ149: N/A | BK149: N/A | BL149: N/A | BM149: N/A | BN149: N/A | BO149: N/A | BP149: N/A | BQ149: N/A | BR149: N/A | BS149: N/A | BT149: N/A | BU149: N/A | BV149: N/A | BW149: N/A | BX149: N/A | BY149: N/A | BZ149: N/A
B150: DK/missing | C150: N/A | D150: N/A | E150: N/A | F150: N/A | G150: N/A | H150: N/A | I150: N/A | J150: N/A | K150: N/A | L150: N/A | M150: N/A | N150: N/A | O150: N/A | P150: N/A | Q150: N/A | R150: N/A | S150: N/A | T150: N/A | U150: N/A | V150: N/A | W150: N/A | X150: N/A | Y150: N/A | Z150: N/A | BB150: DK/missing | BC150: N/A | BD150: N/A | BE150: N/A | BF150: N/A | BG150: N/A | BH150: N/A | BI150: N/A | BJ150: N/A | BK150: N/A | BL150: N/A | BM150: N/A | BN150: N/A | BO150: N/A | BP150: N/A | BQ150: N/A | BR150: N/A | BS150: N/A | BT150: N/A | BU150: N/A | BV150: N/A | BW150: N/A | BX150: N/A | BY150: N/A | BZ150: N/A
A151: Shared among all sanitation facilities | B151: Yes | C151: 35.87248992 | D151: 34.01721153 | E151: 34.98844684 | F151: 39.63704544 | G151: 49.49550692 | H151: 37.62621823 | I151: 52.45440498 | J151: 55.92003066 | K151: 56.82790515 | L151: 35.69302544 | M151: 34.44730798 | N151: 34.88876696 | O151: 36.08503443 | P151: 32.97287832 | Q151: 36.25783598 | R151: 57.95458511 | S151: 33.10681123 | T151: 40.3031193 | U151: 2.720964636 | V151: 41.81584943 | W151: 36.59806038 | X151: 22.12498134 | Y151: 47.71279173 | Z151: 15.37211835 | BA151: Shared among all sanitation facilities | BB151: Yes | BC151: N/A | BD151: N/A | BE151: N/A | BF151: N/A | BG151: N/A | BH151: N/A | BI151: N/A | BJ151: N/A | BK151: N/A | BL151: N/A | BM151: N/A | BN151: N/A | BO151: N/A | BP151: N/A | BQ151: N/A | BR151: N/A | BS151: N/A | BT151: N/A | BU151: N/A | BV151: N/A | BW151: N/A | BX151: N/A | BY151: N/A | BZ151: N/A
B152: No | C152: 63.70640652 | D152: 65.71316242 | E152: 64.95606761 | F152: 60.35252687 | G152: 50.39236541 | H152: 62.34480812 | I152: 47.5110059 | J152: 44.07996934 | K152: 42.99071293 | L152: 64.1219025 | M152: 64.93551809 | N152: 64.67491965 | O152: 63.84480608 | P152: 67.02712168 | Q152: 63.74216402 | R152: 41.90247612 | S152: 66.38363525 | T152: 59.26742759 | U152: 97.27903536 | V152: 58.12148189 | W152: 63.32536719 | X152: 77.78680205 | Y152: 52.26590307 | Z152: 84.04502991 | BB152: No | BC152: N/A | BD152: N/A | BE152: N/A | BF152: N/A | BG152: N/A | BH152: N/A | BI152: N/A | BJ152: N/A | BK152: N/A | BL152: N/A | BM152: N/A | BN152: N/A | BO152: N/A | BP152: N/A | BQ152: N/A | BR152: N/A | BS152: N/A | BT152: N/A | BU152: N/A | BV152: N/A | BW152: N/A | BX152: N/A | BY152: N/A | BZ152: N/A
A153: Type of toilet facility | B153: Flush toilet | C153: 0.9467914728 | D153: 0.8567957186 | E153: 1.094000572 | F153: 0.5925289989 | G153: 9.299917753 | H153: 1.523128638 | I153: 0.7515626605 | J153: 0.5315744879 | K153: 2.581716148 | L153: 26.97615264 | M153: 0.7039091196 | N153: 1.075474711 | O153: 0.8009922442 | P153: 1.018828973 | Q153: 0.6323540603 | R153: 13.07234554 | S153: 2.200087956 | T153: 1.641347147 | U153: 0.3137278972 | V153: 0.3051204259 | W153: 1.003744945 | X153: 1.411121646 | Y153: 0.9627159924 | Z153: 2.005801926 | BA153: Type of toilet facility | BB153: Flush toilet | BC153: 140.736473 | BD153: 127.521463 | BE153: 162.882847 | BF153: 88.379894 | BG153: 1380.676689 | BH153: 68.864483 | BI153: 34.329473 | BJ153: 24.012469 | BK153: 116.920592 | BL153: 1218.064157 | BM153: 72.683283 | BN153: 111.591696 | BO153: 82.702519 | BP153: 105.434972 | BQ153: 65.593722 | BR153: 1145.672649 | BS153: 71.251189 | BT153: 160.452897 | BU153: 0.79654 | BV153: 37.733884 | BW153: 113.164364 | BX153: 178.067507 | BY153: 119.988551 | BZ153: 73.069785
B154: Traditional pit toilet | C154: 53.36250767 | D154: 62.39841583 | E154: 69.64597647 | F154: 68.77309813 | G154: 40.20607928 | H154: 55.89698742 | I154: 52.54925397 | J154: 45.10120881 | K154: 41.14610225 | L154: 29.5456431 | M154: 50.80104036 | N154: 61.82520334 | O154: 66.39136285 | P154: 71.81330557 | Q154: 74.29012445 | R154: 37.69114105 | S154: 27.09150729 | T154: 61.22099548 | U154: 0.5071687518 | V154: 73.31836191 | W154: 40.84252055 | X154: 75.24596669 | Y154: 71.67565108 | Z154: 42.5080071 | BB154: Traditional pit toilet | BC154: 7932.106842 | BD154: 9287.088045 | BE154: 10369.40494 | BF154: 10257.99435 | BG154: 5969.04165 | BH154: 2527.243625 | BI154: 2400.316421 | BJ154: 2037.327605 | BK154: 1863.421987 | BL154: 1334.085306 | BM154: 5245.544191 | BN154: 6415.008389 | BO154: 6854.913999 | BP154: 7431.702534 | BQ154: 7706.071767 | BR154: 3303.287026 | BS154: 877.374971 | BT154: 5984.77056 | BU154: 1.287677 | BV154: 9067.195536 | BW154: 4604.673611 | BX154: 9495.185435 | BY154: 8933.327776 | BZ154: 1548.533232
B155: Ventilated improved pit latrine | C155: 10.41007287 | D155: 9.051954211 | E155: 8.624345079 | F155: 17.16721894 | G155: 49.39862852 | H155: 25.57408503 | I155: 31.89925493 | J155: 52.42076301 | K155: 55.33321451 | L155: 42.9510893 | M155: 7.521002685 | N155: 7.637662487 | O155: 8.052736158 | P155: 7.805946058 | Q155: 13.86439424 | R155: 48.49256702 | S155: 27.61693279 | T155: 26.44834769 | U155: 93.18145653 | V155: 12.7057143 | W155: 13.94289656 | X155: 10.55454629 | Y155: 10.66515663 | Z155: 8.298855632 | BB155: Ventilated improved pit latrine | BC155: 1547.412478 | BD155: 1347.250481 | BE155: 1284.055892 | BF155: 2560.612212 | BG155: 7333.778284 | BH155: 1156.268814 | BI155: 1457.076926 | BJ155: 2367.969072 | BK155: 2505.926999 | BL155: 1939.386356 | BM155: 776.593386 | BN155: 792.486984 | BO155: 831.44571 | BP155: 807.809481 | BQ155: 1438.145619 | BR155: 4249.93415 | BS155: 894.391196 | BT155: 2585.506677 | BU155: 236.583224 | BV155: 1571.300735 | BW155: 1571.952146 | BX155: 1331.863735 | BY155: 1329.256707 | BZ155: 302.320777
B156: No facility, bush, field | C156: 35.23626895 | D156: 27.62828437 | E156: 20.62818273 | F156: 13.43159022 | G156: 1.040490715 | H156: 17.00579891 | I156: 14.72490489 | J156: 1.766075562 | K156: 0.9389670868 | L156: 0.5271149611 | M156: 40.91018965 | N156: 29.36906827 | O156: 24.75490875 | P156: 19.35113603 | Q156: 11.1950254 | R156: 0.6509749564 | S156: 43.03434974 | T156: 10.68930968 | U156: 5.997646816 | V156: 13.59311766 | W156: 44.15210626 | X156: 12.77952199 | Y156: 16.6964763 | Z156: 47.09326565 | BB156: No facility, bush, field | BC156: 5237.719557 | BD156: 4112.064483 | BE156: 3071.27548 | BF156: 2003.416747 | BG156: 154.472471 | BH156: 768.875012 | BI156: 672.596247 | BJ156: 79.777784 | BK156: 42.52388 | BL156: 23.801016 | BM156: 4224.248286 | BN156: 3047.346538 | BO156: 2555.946485 | BP156: 2002.579961 | BQ156: 1161.253529 | BR156: 57.052057 | BS156: 1393.693638 | BT156: 1044.953049 | BU156: 15.227736 | BV156: 1681.044864 | BW156: 4977.803422 | BX156: 1612.63037 | BY156: 2080.973011 | BZ156: 1715.570591
B157: OTHER | C157: 0.04435904561 | D157: 0.06454986724 | E157: 0.007495149812 | F157: 0.0355637096 | G157: 0.05488373755 | H157: 0 | I157: 0.07502354632 | J157: 0.1803781282 | K157: 0 | L157: 0 | M157: 0.06385818564 | N157: 0.0925911924 | O157: 0 | P157: 0.0107833753 | Q157: 0.01810184555 | R157: 0.09297143564 | S157: 0.05712222308 | T157: 0 | U157: 0 | V157: 0.0776857073 | W157: 0.05873168955 | X157: 0.008843372036 | Y157: 0 | Z157: 0.09406969698 | BB157: OTHER | BC157: 6.593781 | BD157: 9.6073 | BE157: 1.115933 | BF157: 5.304579 | BG157: 8.148104 | BH157: 0 | BI157: 3.426885 | BJ157: 8.148104 | BK157: 0 | BL157: 0 | BM157: 6.593781 | BN157: 9.6073 | BO157: 0 | BP157: 1.115933 | BQ157: 1.877694 | BR157: 8.148104 | BS157: 1.849938 | BT157: 0 | BU157: 0 | BV157: 9.6073 | BW157: 6.621537 | BX157: 1.115933 | BY157: 0 | BZ157: 3.426885
BB158: Total | BC158: 14864.56913 | BD158: 14883.53177 | BE158: 14888.73509 | BF158: 14915.70778 | BG158: 14846.1172 | BH158: 4521.251934 | BI158: 4567.745952 | BJ158: 4517.235034 | BK158: 4528.793458 | BL158: 4515.336835 | BM158: 10325.66293 | BN158: 10376.04091 | BO158: 10325.00871 | BP158: 10348.64288 | BQ158: 10372.94233 | BR158: 8764.093986 | BS158: 3238.560932 | BT158: 9775.683183 | BU158: 253.895177 | BV158: 12366.88232 | BW158: 11274.21508 | BX158: 12618.86298 | BY158: 12463.54605 | BZ158: 3642.92127
A208: =A1026 -> Mali
A209: =A1034 -> 2006
A210: Access to hygiene facilities
A211: by wealth quintile and sub-national region
A212: Notes:
A213: WHO/UNICEF JMP customised wealth index excludes water,
A214: sanitation and hygiene assets.
A215: Survey used for analysis: | B215: =A1025 -> DHS06
A220: Access to handwashing | C220: NATIONAL wealth index quintile | H220: URBAN wealth index quintile | M220: RURAL wealth index quintile | R220: SUB-REGIONS: | BA220: Raw numbers of respondents: | BB220: Access to handwashing | BC220: NATIONAL wealth index quintile | BH220: URBAN wealth index quintile | BM220: RURAL wealth index quintile | BR220: SUB-REGIONS:
A221: Weighted percentage (used in graphs) | C221: Poorest | D221: Poor | E221: Middle | F221: Rich | G221: Richest | H221: Poorest | I221: Poor | J221: Middle | K221: Rich | L221: Richest | M221: Poorest | N221: Poor | O221: Middle | P221: Rich | Q221: Richest | R221: Bamako | S221: Gao | T221: Kayes | U221: Kidal | V221: Koulikoro | W221: Mopti | X221: Segou | Y221: Sikasso | Z221: Tombouctou | BA221: Hygiene data, raw numbers (weighted) | BC221: Poorest | BD221: Poor | BE221: Middle | BF221: Rich | BG221: Richest | BH221: Poorest | BI221: Poor | BJ221: Middle | BK221: Rich | BL221: Richest | BM221: Poorest | BN221: Poor | BO221: Middle | BP221: Rich | BQ221: Richest | BR221: Bamako | BS221: Gao | BT221: Kayes | BU221: Kidal | BV221: Koulikoro | BW221: Mopti | BX221: Segou | BY221: Sikasso | BZ221: Tombouctou
A222: Hygiene ladder | B222: Basic | C222: N/A | D222: N/A | E222: N/A | F222: N/A | G222: N/A | H222: N/A | I222: N/A | J222: N/A | K222: N/A | L222: N/A | M222: N/A | N222: N/A | O222: N/A | P222: N/A | Q222: N/A | R222: N/A | S222: N/A | T222: N/A | U222: N/A | V222: N/A | W222: N/A | X222: N/A | Y222: N/A | Z222: N/A | BA222: Hygiene ladder | BB222: Basic | BC222: N/A | BD222: N/A | BE222: N/A | BF222: N/A | BG222: N/A | BH222: N/A | BI222: N/A | BJ222: N/A | BK222: N/A | BL222: N/A | BM222: N/A | BN222: N/A | BO222: N/A | BP222: N/A | BQ222: N/A | BR222: N/A | BS222: N/A | BT222: N/A | BU222: N/A | BV222: N/A | BW222: N/A | BX222: N/A | BY222: N/A | BZ222: N/A
B223: Limited | C223: N/A | D223: N/A | E223: N/A | F223: N/A | G223: N/A | H223: N/A | I223: N/A | J223: N/A | K223: N/A | L223: N/A | M223: N/A | N223: N/A | O223: N/A | P223: N/A | Q223: N/A | R223: N/A | S223: N/A | T223: N/A | U223: N/A | V223: N/A | W223: N/A | X223: N/A | Y223: N/A | Z223: N/A | BB223: Limited | BC223: N/A | BD223: N/A | BE223: N/A | BF223: N/A | BG223: N/A | BH223: N/A | BI223: N/A | BJ223: N/A | BK223: N/A | BL223: N/A | BM223: N/A | BN223: N/A | BO223: N/A | BP223: N/A | BQ223: N/A | BR223: N/A | BS223: N/A | BT223: N/A | BU223: N/A | BV223: N/A | BW223: N/A | BX223: N/A | BY223: N/A | BZ223: N/A
B224: No facility | C224: N/A | D224: N/A | E224: N/A | F224: N/A | G224: N/A | H224: N/A | I224: N/A | J224: N/A | K224: N/A | L224: N/A | M224: N/A | N224: N/A | O224: N/A | P224: N/A | Q224: N/A | R224: N/A | S224: N/A | T224: N/A | U224: N/A | V224: N/A | W224: N/A | X224: N/A | Y224: N/A | Z224: N/A | BB224: No facility | BC224: N/A | BD224: N/A | BE224: N/A | BF224: N/A | BG224: N/A | BH224: N/A | BI224: N/A | BJ224: N/A | BK224: N/A | BL224: N/A | BM224: N/A | BN224: N/A | BO224: N/A | BP224: N/A | BQ224: N/A | BR224: N/A | BS224: N/A | BT224: N/A | BU224: N/A | BV224: N/A | BW224: N/A | BX224: N/A | BY224: N/A | BZ224: N/A
BA225: Observed handwashing place | BB225: Fixed | BC225: N/A | BD225: N/A | BE225: N/A | BF225: N/A | BG225: N/A | BH225: N/A | BI225: N/A | BJ225: N/A | BK225: N/A | BL225: N/A | BM225: N/A | BN225: N/A | BO225: N/A | BP225: N/A | BQ225: N/A | BR225: N/A | BS225: N/A | BT225: N/A | BU225: N/A | BV225: N/A | BW225: N/A | BX225: N/A | BY225: N/A | BZ225: N/A
BB226: Mobile | BC226: N/A | BD226: N/A | BE226: N/A | BF226: N/A | BG226: N/A | BH226: N/A | BI226: N/A | BJ226: N/A | BK226: N/A | BL226: N/A | BM226: N/A | BN226: N/A | BO226: N/A | BP226: N/A | BQ226: N/A | BR226: N/A | BS226: N/A | BT226: N/A | BU226: N/A | BV226: N/A | BW226: N/A | BX226: N/A | BY226: N/A | BZ226: N/A
BA227: Water / Soap | BB227: Water and soap | BC227: N/A | BD227: N/A | BE227: N/A | BF227: N/A | BG227: N/A | BH227: N/A | BI227: N/A | BJ227: N/A | BK227: N/A | BL227: N/A | BM227: N/A | BN227: N/A | BO227: N/A | BP227: N/A | BQ227: N/A | BR227: N/A | BS227: N/A | BT227: N/A | BU227: N/A | BV227: N/A | BW227: N/A | BX227: N/A | BY227: N/A | BZ227: N/A
BB228: Water only | BC228: N/A | BD228: N/A | BE228: N/A | BF228: N/A | BG228: N/A | BH228: N/A | BI228: N/A | BJ228: N/A | BK228: N/A | BL228: N/A | BM228: N/A | BN228: N/A | BO228: N/A | BP228: N/A | BQ228: N/A | BR228: N/A | BS228: N/A | BT228: N/A | BU228: N/A | BV228: N/A | BW228: N/A | BX228: N/A | BY228: N/A | BZ228: N/A
BB229: Soap only | BC229: N/A | BD229: N/A | BE229: N/A | BF229: N/A | BG229: N/A | BH229: N/A | BI229: N/A | BJ229: N/A | BK229: N/A | BL229: N/A | BM229: N/A | BN229: N/A | BO229: N/A | BP229: N/A | BQ229: N/A | BR229: N/A | BS229: N/A | BT229: N/A | BU229: N/A | BV229: N/A | BW229: N/A | BX229: N/A | BY229: N/A | BZ229: N/A
BB230: Neither | BC230: N/A | BD230: N/A | BE230: N/A | BF230: N/A | BG230: N/A | BH230: N/A | BI230: N/A | BJ230: N/A | BK230: N/A | BL230: N/A | BM230: N/A | BN230: N/A | BO230: N/A | BP230: N/A | BQ230: N/A | BR230: N/A | BS230: N/A | BT230: N/A | BU230: N/A | BV230: N/A | BW230: N/A | BX230: N/A | BY230: N/A | BZ230: N/A
BA259: Raw numbers of respondents: | BB259: Menstrual health and hygiene | BC259: NATIONAL wealth index quintile | BH259: URBAN wealth index quintile | BM259: RURAL wealth index quintile | BR259: SUB-REGIONS:
BA260: MHH data, raw numbers (weighted) | BC260: Poorest | BD260: Poor | BE260: Middle | BF260: Rich | BG260: Richest | BH260: Poorest | BI260: Poor | BJ260: Middle | BK260: Rich | BL260: Richest | BM260: Poorest | BN260: Poor | BO260: Middle | BP260: Rich | BQ260: Richest | BR260: Bamako | BS260: Gao | BT260: Kayes | BU260: Kidal | BV260: Koulikoro | BW260: Mopti | BX260: Segou | BY260: Sikasso | BZ260: Tombouctou
BA261: Private place to wash and change | BB261: Yes | BC261: N/A | BD261: N/A | BE261: N/A | BF261: N/A | BG261: N/A | BH261: N/A | BI261: N/A | BJ261: N/A | BK261: N/A | BL261: N/A | BM261: N/A | BN261: N/A | BO261: N/A | BP261: N/A | BQ261: N/A | BR261: N/A | BS261: N/A | BT261: N/A | BU261: N/A | BV261: N/A | BW261: N/A | BX261: N/A | BY261: N/A | BZ261: N/A
BB262: No | BC262: N/A | BD262: N/A | BE262: N/A | BF262: N/A | BG262: N/A | BH262: N/A | BI262: N/A | BJ262: N/A | BK262: N/A | BL262: N/A | BM262: N/A | BN262: N/A | BO262: N/A | BP262: N/A | BQ262: N/A | BR262: N/A | BS262: N/A | BT262: N/A | BU262: N/A | BV262: N/A | BW262: N/A | BX262: N/A | BY262: N/A | BZ262: N/A
BB263: DK/not sure/missing | BC263: N/A | BD263: N/A | BE263: N/A | BF263: N/A | BG263: N/A | BH263: N/A | BI263: N/A | BJ263: N/A | BK263: N/A | BL263: N/A | BM263: N/A | BN263: N/A | BO263: N/A | BP263: N/A | BQ263: N/A | BR263: N/A | BS263: N/A | BT263: N/A | BU263: N/A | BV263: N/A | BW263: N/A | BX263: N/A | BY263: N/A | BZ263: N/A
BA264: Use of menstrual materials | BB264: Materials reusable | BC264: N/A | BD264: N/A | BE264: N/A | BF264: N/A | BG264: N/A | BH264: N/A | BI264: N/A | BJ264: N/A | BK264: N/A | BL264: N/A | BM264: N/A | BN264: N/A | BO264: N/A | BP264: N/A | BQ264: N/A | BR264: N/A | BS264: N/A | BT264: N/A | BU264: N/A | BV264: N/A | BW264: N/A | BX264: N/A | BY264: N/A | BZ264: N/A
BB265: Materials not reusable | BC265: N/A | BD265: N/A | BE265: N/A | BF265: N/A | BG265: N/A | BH265: N/A | BI265: N/A | BJ265: N/A | BK265: N/A | BL265: N/A | BM265: N/A | BN265: N/A | BO265: N/A | BP265: N/A | BQ265: N/A | BR265: N/A | BS265: N/A | BT265: N/A | BU265: N/A | BV265: N/A | BW265: N/A | BX265: N/A | BY265: N/A | BZ265: N/A
BB266: No materials used | BC266: N/A | BD266: N/A | BE266: N/A | BF266: N/A | BG266: N/A | BH266: N/A | BI266: N/A | BJ266: N/A | BK266: N/A | BL266: N/A | BM266: N/A | BN266: N/A | BO266: N/A | BP266: N/A | BQ266: N/A | BR266: N/A | BS266: N/A | BT266: N/A | BU266: N/A | BV266: N/A | BW266: N/A | BX266: N/A | BY266: N/A | BZ266: N/A
BB267: DK/not sure/missing | BC267: N/A | BD267: N/A | BE267: N/A | BF267: N/A | BG267: N/A | BH267: N/A | BI267: N/A | BJ267: N/A | BK267: N/A | BL267: N/A | BM267: N/A | BN267: N/A | BO267: N/A | BP267: N/A | BQ267: N/A | BR267: N/A | BS267: N/A | BT267: N/A | BU267: N/A | BV267: N/A | BW267: N/A | BX267: N/A | BY267: N/A | BZ267: N/A
BA268: Use of menstrual materials with private place to wash and change | BB268: Materials reusable | BC268: N/A | BD268: N/A | BE268: N/A | BF268: N/A | BG268: N/A | BH268: N/A | BI268: N/A | BJ268: N/A | BK268: N/A | BL268: N/A | BM268: N/A | BN268: N/A | BO268: N/A | BP268: N/A | BQ268: N/A | BR268: N/A | BS268: N/A | BT268: N/A | BU268: N/A | BV268: N/A | BW268: N/A | BX268: N/A | BY268: N/A | BZ268: N/A
BB269: Materials not reusable | BC269: N/A | BD269: N/A | BE269: N/A | BF269: N/A | BG269: N/A | BH269: N/A | BI269: N/A | BJ269: N/A | BK269: N/A | BL269: N/A | BM269: N/A | BN269: N/A | BO269: N/A | BP269: N/A | BQ269: N/A | BR269: N/A | BS269: N/A | BT269: N/A | BU269: N/A | BV269: N/A | BW269: N/A | BX269: N/A | BY269: N/A | BZ269: N/A
BB270: No materials used | BC270: N/A | BD270: N/A | BE270: N/A | BF270: N/A | BG270: N/A | BH270: N/A | BI270: N/A | BJ270: N/A | BK270: N/A | BL270: N/A | BM270: N/A | BN270: N/A | BO270: N/A | BP270: N/A | BQ270: N/A | BR270: N/A | BS270: N/A | BT270: N/A | BU270: N/A | BV270: N/A | BW270: N/A | BX270: N/A | BY270: N/A | BZ270: N/A
BA271: Awareness of menstruation before menarche | BB271: Yes | BC271: N/A | BD271: N/A | BE271: N/A | BF271: N/A | BG271: N/A | BH271: N/A | BI271: N/A | BJ271: N/A | BK271: N/A | BL271: N/A | BM271: N/A | BN271: N/A | BO271: N/A | BP271: N/A | BQ271: N/A | BR271: N/A | BS271: N/A | BT271: N/A | BU271: N/A | BV271: N/A | BW271: N/A | BX271: N/A | BY271: N/A | BZ271: N/A
BB272: No | BC272: N/A | BD272: N/A | BE272: N/A | BF272: N/A | BG272: N/A | BH272: N/A | BI272: N/A | BJ272: N/A | BK272: N/A | BL272: N/A | BM272: N/A | BN272: N/A | BO272: N/A | BP272: N/A | BQ272: N/A | BR272: N/A | BS272: N/A | BT272: N/A | BU272: N/A | BV272: N/A | BW272: N/A | BX272: N/A | BY272: N/A | BZ272: N/A
BB273: DK/not sure/missing | BC273: N/A | BD273: N/A | BE273: N/A | BF273: N/A | BG273: N/A | BH273: N/A | BI273: N/A | BJ273: N/A | BK273: N/A | BL273: N/A | BM273: N/A | BN273: N/A | BO273: N/A | BP273: N/A | BQ273: N/A | BR273: N/A | BS273: N/A | BT273: N/A | BU273: N/A | BV273: N/A | BW273: N/A | BX273: N/A | BY273: N/A | BZ273: N/A
BA274: Participation in (all) activities during menstruation | BB274: Yes | BC274: N/A | BD274: N/A | BE274: N/A | BF274: N/A | BG274: N/A | BH274: N/A | BI274: N/A | BJ274: N/A | BK274: N/A | BL274: N/A | BM274: N/A | BN274: N/A | BO274: N/A | BP274: N/A | BQ274: N/A | BR274: N/A | BS274: N/A | BT274: N/A | BU274: N/A | BV274: N/A | BW274: N/A | BX274: N/A | BY274: N/A | BZ274: N/A
BB275: No | BC275: N/A | BD275: N/A | BE275: N/A | BF275: N/A | BG275: N/A | BH275: N/A | BI275: N/A | BJ275: N/A | BK275: N/A | BL275: N/A | BM275: N/A | BN275: N/A | BO275: N/A | BP275: N/A | BQ275: N/A | BR275: N/A | BS275: N/A | BT275: N/A | BU275: N/A | BV275: N/A | BW275: N/A | BX275: N/A | BY275: N/A | BZ275: N/A
BB276: DK/not sure/missing/no such activity | BC276: N/A | BD276: N/A | BE276: N/A | BF276: N/A | BG276: N/A | BH276: N/A | BI276: N/A | BJ276: N/A | BK276: N/A | BL276: N/A | BM276: N/A | BN276: N/A | BO276: N/A | BP276: N/A | BQ276: N/A | BR276: N/A | BS276: N/A | BT276: N/A | BU276: N/A | BV276: N/A | BW276: N/A | BX276: N/A | BY276: N/A | BZ276: N/A
BA277: Participation in specific activities during menstruation | BB277: Did not go to school (amongst those usually attending school) | BC277: N/A | BD277: N/A | BE277: N/A | BF277: N/A | BG277: N/A | BH277: N/A | BI277: N/A | BJ277: N/A | BK277: N/A | BL277: N/A | BM277: N/A | BN277: N/A | BO277: N/A | BP277: N/A | BQ277: N/A | BR277: N/A | BS277: N/A | BT277: N/A | BU277: N/A | BV277: N/A | BW277: N/A | BX277: N/A | BY277: N/A | BZ277: N/A
BB278: Did not go to work (amongst those who usually work) | BC278: N/A | BD278: N/A | BE278: N/A | BF278: N/A | BG278: N/A | BH278: N/A | BI278: N/A | BJ278: N/A | BK278: N/A | BL278: N/A | BM278: N/A | BN278: N/A | BO278: N/A | BP278: N/A | BQ278: N/A | BR278: N/A | BS278: N/A | BT278: N/A | BU278: N/A | BV278: N/A | BW278: N/A | BX278: N/A | BY278: N/A | BZ278: N/A
BB279: Did not participate in social activities | BC279: N/A | BD279: N/A | BE279: N/A | BF279: N/A | BG279: N/A | BH279: N/A | BI279: N/A | BJ279: N/A | BK279: N/A | BL279: N/A | BM279: N/A | BN279: N/A | BO279: N/A | BP279: N/A | BQ279: N/A | BR279: N/A | BS279: N/A | BT279: N/A | BU279: N/A | BV279: N/A | BW279: N/A | BX279: N/A | BY279: N/A | BZ279: N/A
BB280: Did not cook food | BC280: N/A | BD280: N/A | BE280: N/A | BF280: N/A | BG280: N/A | BH280: N/A | BI280: N/A | BJ280: N/A | BK280: N/A | BL280: N/A | BM280: N/A | BN280: N/A | BO280: N/A | BP280: N/A | BQ280: N/A | BR280: N/A | BS280: N/A | BT280: N/A | BU280: N/A | BV280: N/A | BW280: N/A | BX280: N/A | BY280: N/A | BZ280: N/A
BB281: Did not eat with others | BC281: N/A | BD281: N/A | BE281: N/A | BF281: N/A | BG281: N/A | BH281: N/A | BI281: N/A | BJ281: N/A | BK281: N/A | BL281: N/A | BM281: N/A | BN281: N/A | BO281: N/A | BP281: N/A | BQ281: N/A | BR281: N/A | BS281: N/A | BT281: N/A | BU281: N/A | BV281: N/A | BW281: N/A | BX281: N/A | BY281: N/A | BZ281: N/A
BB282: Did not bathe in regular place | BC282: N/A | BD282: N/A | BE282: N/A | BF282: N/A | BG282: N/A | BH282: N/A | BI282: N/A | BJ282: N/A | BK282: N/A | BL282: N/A | BM282: N/A | BN282: N/A | BO282: N/A | BP282: N/A | BQ282: N/A | BR282: N/A | BS282: N/A | BT282: N/A | BU282: N/A | BV282: N/A | BW282: N/A | BX282: N/A | BY282: N/A | BZ282: N/A
BB283: Did not participate in other activities | BC283: N/A | BD283: N/A | BE283: N/A | BF283: N/A | BG283: N/A | BH283: N/A | BI283: N/A | BJ283: N/A | BK283: N/A | BL283: N/A | BM283: N/A | BN283: N/A | BO283: N/A | BP283: N/A | BQ283: N/A | BR283: N/A | BS283: N/A | BT283: N/A | BU283: N/A | BV283: N/A | BW283: N/A | BX283: N/A | BY283: N/A | BZ283: N/A
BB284: DK/not sure/missing/no such activity | BC284: N/A | BD284: N/A | BE284: N/A | BF284: N/A | BG284: N/A | BH284: N/A | BI284: N/A | BJ284: N/A | BK284: N/A | BL284: N/A | BM284: N/A | BN284: N/A | BO284: N/A | BP284: N/A | BQ284: N/A | BR284: N/A | BS284: N/A | BT284: N/A | BU284: N/A | BV284: N/A | BW284: N/A | BX284: N/A | BY284: N/A | BZ284: N/A
BA339: Raw numbers of respondents: | BB339: Basic water, sanitation and hygiene | BC339: NATIONAL wealth index quintile | BH339: URBAN wealth index quintile | BM339: RURAL wealth index quintile | BR339: SUB-REGIONS:
BA340: WatSan data, raw numbers (weighted) | BC340: Poorest | BD340: Poor | BE340: Middle | BF340: Rich | BG340: Richest | BH340: Poorest | BI340: Poor | BJ340: Middle | BK340: Rich | BL340: Richest | BM340: Poorest | BN340: Poor | BO340: Middle | BP340: Rich | BQ340: Richest | BR340: Bamako | BS340: Gao | BT340: Kayes | BU340: Kidal | BV340: Koulikoro | BW340: Mopti | BX340: Segou | BY340: Sikasso | BZ340: Tombouctou
BA341: Use of Basic Water Sanitation and Hygiene | BB341: Yes | BC341: N/A | BD341: N/A | BE341: N/A | BF341: N/A | BG341: N/A | BH341: N/A | BI341: N/A | BJ341: N/A | BK341: N/A | BL341: N/A | BM341: N/A | BN341: N/A | BO341: N/A | BP341: N/A | BQ341: N/A | BR341: N/A | BS341: N/A | BT341: N/A | BU341: N/A | BV341: N/A | BW341: N/A | BX341: N/A | BY341: N/A | BZ341: N/A
BB342: No | BC342: N/A | BD342: N/A | BE342: N/A | BF342: N/A | BG342: N/A | BH342: N/A | BI342: N/A | BJ342: N/A | BK342: N/A | BL342: N/A | BM342: N/A | BN342: N/A | BO342: N/A | BP342: N/A | BQ342: N/A | BR342: N/A | BS342: N/A | BT342: N/A | BU342: N/A | BV342: N/A | BW342: N/A | BX342: N/A | BY342: N/A | BZ342: N/A
BA343: Use of Basic Water and Sanitation | BB343: Yes | BC343: N/A | BD343: N/A | BE343: N/A | BF343: N/A | BG343: N/A | BH343: N/A | BI343: N/A | BJ343: N/A | BK343: N/A | BL343: N/A | BM343: N/A | BN343: N/A | BO343: N/A | BP343: N/A | BQ343: N/A | BR343: N/A | BS343: N/A | BT343: N/A | BU343: N/A | BV343: N/A | BW343: N/A | BX343: N/A | BY343: N/A | BZ343: N/A
BB344: No | BC344: N/A | BD344: N/A | BE344: N/A | BF344: N/A | BG344: N/A | BH344: N/A | BI344: N/A | BJ344: N/A | BK344: N/A | BL344: N/A | BM344: N/A | BN344: N/A | BO344: N/A | BP344: N/A | BQ344: N/A | BR344: N/A | BS344: N/A | BT344: N/A | BU344: N/A | BV344: N/A | BW344: N/A | BX344: N/A | BY344: N/A | BZ344: N/A
BA345: Use of Basic Water and Hygiene | BB345: Yes | BC345: N/A | BD345: N/A | BE345: N/A | BF345: N/A | BG345: N/A | BH345: N/A | BI345: N/A | BJ345: N/A | BK345: N/A | BL345: N/A | BM345: N/A | BN345: N/A | BO345: N/A | BP345: N/A | BQ345: N/A | BR345: N/A | BS345: N/A | BT345: N/A | BU345: N/A | BV345: N/A | BW345: N/A | BX345: N/A | BY345: N/A | BZ345: N/A
BB346: No | BC346: N/A | BD346: N/A | BE346: N/A | BF346: N/A | BG346: N/A | BH346: N/A | BI346: N/A | BJ346: N/A | BK346: N/A | BL346: N/A | BM346: N/A | BN346: N/A | BO346: N/A | BP346: N/A | BQ346: N/A | BR346: N/A | BS346: N/A | BT346: N/A | BU346: N/A | BV346: N/A | BW346: N/A | BX346: N/A | BY346: N/A | BZ346: N/A
BA347: Use of Basic Sanitation and Hygiene | BB347: Yes | BC347: N/A | BD347: N/A | BE347: N/A | BF347: N/A | BG347: N/A | BH347: N/A | BI347: N/A | BJ347: N/A | BK347: N/A | BL347: N/A | BM347: N/A | BN347: N/A | BO347: N/A | BP347: N/A | BQ347: N/A | BR347: N/A | BS347: N/A | BT347: N/A | BU347: N/A | BV347: N/A | BW347: N/A | BX347: N/A | BY347: N/A | BZ347: N/A
BB348: No | BC348: N/A | BD348: N/A | BE348: N/A | BF348: N/A | BG348: N/A | BH348: N/A | BI348: N/A | BJ348: N/A | BK348: N/A | BL348: N/A | BM348: N/A | BN348: N/A | BO348: N/A | BP348: N/A | BQ348: N/A | BR348: N/A | BS348: N/A | BT348: N/A | BU348: N/A | BV348: N/A | BW348: N/A | BX348: N/A | BY348: N/A | BZ348: N/A
BA349: Use of Basic Water | BB349: Yes | BC349: N/A | BD349: N/A | BE349: N/A | BF349: N/A | BG349: N/A | BH349: N/A | BI349: N/A | BJ349: N/A | BK349: N/A | BL349: N/A | BM349: N/A | BN349: N/A | BO349: N/A | BP349: N/A | BQ349: N/A | BR349: N/A | BS349: N/A | BT349: N/A | BU349: N/A | BV349: N/A | BW349: N/A | BX349: N/A | BY349: N/A | BZ349: N/A
BB350: No | BC350: N/A | BD350: N/A | BE350: N/A | BF350: N/A | BG350: N/A | BH350: N/A | BI350: N/A | BJ350: N/A | BK350: N/A | BL350: N/A | BM350: N/A | BN350: N/A | BO350: N/A | BP350: N/A | BQ350: N/A | BR350: N/A | BS350: N/A | BT350: N/A | BU350: N/A | BV350: N/A | BW350: N/A | BX350: N/A | BY350: N/A | BZ350: N/A
BA351: Use of Basic Sanitation | BB351: Yes | BC351: N/A | BD351: N/A | BE351: N/A | BF351: N/A | BG351: N/A | BH351: N/A | BI351: N/A | BJ351: N/A | BK351: N/A | BL351: N/A | BM351: N/A | BN351: N/A | BO351: N/A | BP351: N/A | BQ351: N/A | BR351: N/A | BS351: N/A | BT351: N/A | BU351: N/A | BV351: N/A | BW351: N/A | BX351: N/A | BY351: N/A | BZ351: N/A
BB352: No | BC352: N/A | BD352: N/A | BE352: N/A | BF352: N/A | BG352: N/A | BH352: N/A | BI352: N/A | BJ352: N/A | BK352: N/A | BL352: N/A | BM352: N/A | BN352: N/A | BO352: N/A | BP352: N/A | BQ352: N/A | BR352: N/A | BS352: N/A | BT352: N/A | BU352: N/A | BV352: N/A | BW352: N/A | BX352: N/A | BY352: N/A | BZ352: N/A
BA353: Access to Basic Hygiene | BB353: Yes | BC353: N/A | BD353: N/A | BE353: N/A | BF353: N/A | BG353: N/A | BH353: N/A | BI353: N/A | BJ353: N/A | BK353: N/A | BL353: N/A | BM353: N/A | BN353: N/A | BO353: N/A | BP353: N/A | BQ353: N/A | BR353: N/A | BS353: N/A | BT353: N/A | BU353: N/A | BV353: N/A | BW353: N/A | BX353: N/A | BY353: N/A | BZ353: N/A
BB354: No | BC354: N/A | BD354: N/A | BE354: N/A | BF354: N/A | BG354: N/A | BH354: N/A | BI354: N/A | BJ354: N/A | BK354: N/A | BL354: N/A | BM354: N/A | BN354: N/A | BO354: N/A | BP354: N/A | BQ354: N/A | BR354: N/A | BS354: N/A | BT354: N/A | BU354: N/A | BV354: N/A | BW354: N/A | BX354: N/A | BY354: N/A | BZ354: N/A
C399: INITIAL (national) Wealth Index | H399: URBAN Wealth Index | M399: RURAL Wealth Index
C400: Component Matrix | H400: Component Matrix | M400: Component Matrix
E401: Component | J401: Component | O401: Component
B402: Note: The INITIAL (national) Wealth Index is based on the first component of the Principal Component Analysis (PCA) which has been obtained at national level. The final national-level (NATIONAL) Wealth Index is based on the URBAN and RURAL specific wealth indexes. Regression procedures are used to establish the relationships between the two sets of scores (urban and rural) and the initial (national) wealth factors. This allows best use of the available information for each area and a better precision of the FINAL (NATIONAL) Wealth Index. For dependency reasons, all WASH variables (contained in the generic MICS and DHS scripts) have been excluded from the sets of asset variables used in the PCAs. The PCA can extracts as many components as there are asset variables in the input. Only the first of the components is used to represent the Wealth Index. The scores represent the weights of the asset variables on the Wealth Index (correlations between the variables and the component). The communalities are the proportion of each variable's variance that can be explained by the component. Proportion of explained variance is the part of the model's total variance that is explained by the component. For more information on the procedure used: The DHS Wealth Index, DHS Comparative Reports No. 6, Shea Oscar Rutstein, Kiersten Johnson, ORC Macro International Inc., 2004. The DHS Wealth Index: Approaches for Rural and Urban Areas, Shea O. Rutstein, ORC Macro International Inc., 2008. MICS Methodological Paper No. 4, Review of options for reporting water, sanitation and hygiene coverage by wealth quintile, UNICEF, 2016. | E402: 1 | J402: 1 | O402: 1
C403: TV5 channel | E403: 0.7434285973 | H403: TV5 channel | J403: 0.7173878843 | M403: Computer | O403: 0.5867692082
C404: Has electricity | E404: 0.7128309447 | H404: Has electricity | J404: 0.6685547725 | M404: Internet | O404: 0.5867692082
C405: Video/CD/DVD | E405: 0.6887296974 | H405: Has refrigerator | J405: 0.6386692218 | M405: Air conditioner | O405: 0.5296283297
C406: Has refrigerator | E406: 0.6883487938 | H406: Video/CD/DVD | J406: 0.6348222529 | M406: Has an animal-drawn cart | O406: 0.4905599741
C407: Has a mobile telephone | E407: 0.6595291389 | H407: Has television | J407: 0.6128554649 | M407: Cart | O407: 0.4762009974
C408: Has television | E408: 0.6547664504 | H408: Personal car | J408: 0.5989615876 | M408: Has refrigerator | O408: 0.4706189612
C409: Personal car | E409: 0.6336639143 | H409: Canal channel | J409: 0.5968399546 | M409: Washing machine | O409: 0.4519100168
C410: Canal channel | E410: 0.6331234312 | H410: Has car/truck | J410: 0.5801784112 | M410: Has television | O410: 0.4230013629
C411: Has car/truck | E411: 0.59605465 | H411: Has a mobile telephone | J411: 0.5741344515 | M411: Video/CD/DVD | O411: 0.4207527627
C412: Stove | E412: 0.5443233286 | H412: Stove | J412: 0.5063144741 | M412: Stove | O412: 0.4165158957
C413: Air conditioner | E413: 0.498125567 | H413: Air conditioner | J413: 0.4726663462 | M413: Canal channel | O413: 0.4162932058
C414: if floors are made of tile/finished surface (+ 10 parq) | E414: 0.4720021162 | H414: if uses wood for cooking fuel | J414: -0.4685917199 | M414: Own cows | O414: 0.4133637963
C415: Improved traditional kitchen | E415: 0.4620863055 | H415: Improved traditional kitchen | J415: 0.4565855556 | M415: TV5 channel | O415: 0.4129896664
C416: if uses charcoal for cooking fuel | E416: 0.4497601627 | H416: if floors are made of tile/finished surface (+ 10 parq) | J416: 0.456107034 | M416: Donkey | O416: 0.4030897987
C417: if floors are made of earth | E417: -0.4429366444 | H417: if uses charcoal for cooking fuel | J417: 0.4515653711 | M417: Has motorcycle/scooter | O417: 0.3988999443
C418: if floors are made of cement (+5 vin/asphalt) | E418: 0.4402207789 | H418: if floors are made of earth | J418: -0.4350339726 | M418: Has a mobile telephone | O418: 0.3587326341
C419: Computer | E419: 0.4384867994 | H419: Computer | J419: 0.4173051612 | M419: Has bicycle | O419: 0.3310730775
C420: if uses wood for cooking fuel | E420: -0.4278401396 | H420: Donkey | J420: -0.4066005914 | M420: Own chicken | O420: 0.3002488022
C421: Has motorcycle/scooter | E421: 0.3295530963 | H421: Cart | J421: -0.3662022208 | M421: Has electricity | O421: 0.296421754
C422: Internet | E422: 0.29424271 | H422: Has an animal-drawn cart | J422: -0.3496705123 | M422: Sheep/goat | O422: 0.2953168833
C423: Washing machine | E423: 0.2739607774 | H423: Has motorcycle/scooter | J423: 0.3206334848 | M423: if floors are made of cement (+5 vin/asphalt) | O423: 0.2931658184
C424: Cart | E424: -0.2553480666 | H424: Own cows | J424: -0.2931837965 | M424: Has radio | O424: 0.2814429783
... 162 more rows

Sheet MICS10
A2: =A1026 -> Mali
A3: =A1034 -> 2010
A4: Use of drinking water sources
A5: by wealth quintile and sub-national region
A6: Notes:
A7: WHO/UNICEF JMP customised wealth index excludes water,
A8: sanitation and hygiene assets.
A9: Survey used for analysis: | B9: =A1025 -> MICS10
A10: =B1028 -> 
A11: =B1027 -> 
A14: Use of drinking water sources | C14: NATIONAL wealth index quintile | H14: URBAN wealth index quintile | M14: RURAL wealth index quintile | R14: SUB-REGIONS: | BA14: Raw numbers of respondents: | BB14: Use of drinking water sources | BC14: NATIONAL wealth index quintile | BH14: URBAN wealth index quintile | BM14: RURAL wealth index quintile | BR14: SUB-REGIONS:
A15: Weighted percentage (used in graphs) | C15: Poorest | D15: Poor | E15: Middle | F15: Rich | G15: Richest | H15: Poorest | I15: Poor | J15: Middle | K15: Rich | L15: Richest | M15: Poorest | N15: Poor | O15: Middle | P15: Rich | Q15: Richest | R15: Bamako | S15: Gao | T15: Kayes | U15: Kidal | V15: Koulikoro | W15: Mopti | X15: Ségou | Y15: Sikasso | Z15: Tombouctou | BA15: Water data, raw numbers (weighted) | BC15: Poorest | BD15: Poor | BE15: Middle | BF15: Rich | BG15: Richest | BH15: Poorest | BI15: Poor | BJ15: Middle | BK15: Rich | BL15: Richest | BM15: Poorest | BN15: Poor | BO15: Middle | BP15: Rich | BQ15: Richest | BR15: Bamako | BS15: Gao | BT15: Kayes | BU15: Kidal | BV15: Koulikoro | BW15: Mopti | BX15: Ségou | BY15: Sikasso | BZ15: Tombouctou
A16: Water | B16: Improved | C16: 53.90148737 | D16: 54.86896521 | E16: 63.10678866 | F16: 81.21094614 | G16: 98.05385931 | H16: 81.13272503 | I16: 97.4702507 | J16: 95.64473158 | K16: 99.45103108 | L16: 98.74368989 | M16: 53.7473666 | N16: 52.20929251 | O16: 57.73377172 | P16: 63.98057344 | Q16: 76.7157033 | R16: 99.12859928 | S16: 70.93004203 | T16: 69.18354018 | U16: 42.9727682 | V16: 64.38354139 | W16: 58.29138351 | X16: 67.13127615 | Y16: 64.81103322 | Z16: 69.59066533 | BA16: Water | BB16: Improved | BC16: N/A | BD16: N/A | BE16: N/A | BF16: N/A | BG16: N/A | BH16: N/A | BI16: N/A | BJ16: N/A | BK16: N/A | BL16: N/A | BM16: N/A | BN16: N/A | BO16: N/A | BP16: N/A | BQ16: N/A | BR16: N/A | BS16: N/A | BT16: N/A | BU16: N/A | BV16: N/A | BW16: N/A | BX16: N/A | BY16: N/A | BZ16: N/A
B17: Not Improved | C17: 46.09851263 | D17: 45.13103479 | E17: 36.89321134 | F17: 18.78905386 | G17: 1.946140691 | H17: 18.86727497 | I17: 2.529749305 | J17: 4.355268417 | K17: 0.548968922 | L17: 1.256310113 | M17: 46.2526334 | N17: 47.79070749 | O17: 42.26622828 | P17: 36.01942656 | Q17: 23.2842967 | R17: 0.8714007172 | S17: 29.06995797 | T17: 30.81645982 | U17: 57.0272318 | V17: 35.61645861 | W17: 41.70861649 | X17: 32.86872385 | Y17: 35.18896678 | Z17: 30.40933467 | BB17: Not Improved | BC17: N/A | BD17: N/A | BE17: N/A | BF17: N/A | BG17: N/A | BH17: N/A | BI17: N/A | BJ17: N/A | BK17: N/A | BL17: N/A | BM17: N/A | BN17: N/A | BO17: N/A | BP17: N/A | BQ17: N/A | BR17: N/A | BS17: N/A | BT17: N/A | BU17: N/A | BV17: N/A | BW17: N/A | BX17: N/A | BY17: N/A | BZ17: N/A
A18: Water ladder | B18: Basic | C18: =C16*C23/100 -> 48.89231573 | D18: =D16*D23/100 -> 50.45382986 | E18: =E16*E23/100 -> 59.25657705 | F18: 76.33966791 | G18: 89.21819471 | H18: 77.18618154 | I18: 93.49774899 | J18: 84.57721026 | K18: 89.75756234 | L18: 91.17573853 | M18: 48.5555647 | N18: 47.35612562 | O18: 53.38491705 | P18: 60.31324943 | Q18: 71.4032583 | R18: 89.06758038 | S18: 69.39784016 | T18: 67.83347676 | U18: 36.79658826 | V18: 58.93437486 | W18: 51.05947286 | X18: 62.45343221 | Y18: 60.37314018 | Z18: 64.40573502 | BA18: Water ladder | BB18: Basic | BC18: N/A | BD18: N/A | BE18: N/A | BF18: N/A | BG18: N/A | BH18: N/A | BI18: N/A | BJ18: N/A | BK18: N/A | BL18: N/A | BM18: N/A | BN18: N/A | BO18: N/A | BP18: N/A | BQ18: N/A | BR18: N/A | BS18: N/A | BT18: N/A | BU18: N/A | BV18: N/A | BW18: N/A | BX18: N/A | BY18: N/A | BZ18: N/A
B19: Limited | C19: =C16*C22/100 -> 5.009171641 | D19: =D16*D22/100 -> 4.415135353 | E19: =E16*E22/100 -> 3.850211603 | F19: 4.871278226 | G19: 8.835664599 | H19: 3.946543485 | I19: 3.972501703 | J19: 11.06752132 | K19: 9.693468739 | L19: 7.567951357 | M19: 5.191801905 | N19: 4.853166894 | O19: 4.348854665 | P19: 3.667324008 | Q19: 5.312445002 | R19: 10.0610189 | S19: 1.532201876 | T19: 1.350063419 | U19: 6.176179933 | V19: 5.449166525 | W19: 7.231910652 | X19: 4.677843937 | Y19: 4.437893044 | Z19: 5.184930307 | BB19: Limited | BC19: N/A | BD19: N/A | BE19: N/A | BF19: N/A | BG19: N/A | BH19: N/A | BI19: N/A | BJ19: N/A | BK19: N/A | BL19: N/A | BM19: N/A | BN19: N/A | BO19: N/A | BP19: N/A | BQ19: N/A | BR19: N/A | BS19: N/A | BT19: N/A | BU19: N/A | BV19: N/A | BW19: N/A | BX19: N/A | BY19: N/A | BZ19: N/A
B20: Unimproved | C20: =100-C18-C19-C21 -> 45.03220646 | D20: =100-D18-D19-D21 -> 41.18988355 | E20: =100-E18-E19-E21 -> 30.46391499 | F20: 15.53964167 | G20: 1.861788891 | H20: 16.74369359 | I20: 2.38069876 | J20: 4.287060341 | K20: 0.4627668767 | L20: 1.256310113 | M20: 45.3052972 | N20: 46.06145253 | O20: 36.69431786 | P20: 29.38678487 | Q20: 18.64672732 | R20: 0.8391266319 | S20: 3.945761914 | T20: 26.91651632 | U20: 28.50972618 | V20: 35.12428447 | W20: 38.71816308 | X20: 31.96848763 | Y20: 34.6100832 | Z20: 12.2653011 | BB20: Unimproved | BC20: N/A | BD20: N/A | BE20: N/A | BF20: N/A | BG20: N/A | BH20: N/A | BI20: N/A | BJ20: N/A | BK20: N/A | BL20: N/A | BM20: N/A | BN20: N/A | BO20: N/A | BP20: N/A | BQ20: N/A | BR20: N/A | BS20: N/A | BT20: N/A | BU20: N/A | BV20: N/A | BW20: N/A | BX20: N/A | BY20: N/A | BZ20: N/A
B21: Surface water | C21: 1.066306172 | D21: 3.941151232 | E21: 6.429296349 | F21: 3.249412185 | G21: 0.08435179997 | H21: 2.123581384 | I21: 0.149050545 | J21: 0.06820807624 | K21: 0.08620204529 | L21: 0 | M21: 0.9473361967 | N21: 1.729254959 | O21: 5.571910425 | P21: 6.632641695 | Q21: 4.637569379 | R21: 0.03227408529 | S21: 25.12419605 | T21: 3.899943499 | U21: 28.51750563 | V21: 0.4921741464 | W21: 2.990453404 | X21: 0.9002362249 | Y21: 0.5788835839 | Z21: 18.14403357 | BB21: Surface water | BC21: N/A | BD21: N/A | BE21: N/A | BF21: N/A | BG21: N/A | BH21: N/A | BI21: N/A | BJ21: N/A | BK21: N/A | BL21: N/A | BM21: N/A | BN21: N/A | BO21: N/A | BP21: N/A | BQ21: N/A | BR21: N/A | BS21: N/A | BT21: N/A | BU21: N/A | BV21: N/A | BW21: N/A | BX21: N/A | BY21: N/A | BZ21: N/A
A22: Improved water point at more than 30 minutes | B22: Yes | C22: 9.293197433 | D22: 8.046689665 | E22: 6.101105262 | F22: 5.998302516 | G22: 9.011031959 | H22: 4.864305351 | I22: 4.075604274 | J22: 11.57149081 | K22: 9.746976611 | L22: 7.664237954 | M22: 9.659639594 | N22: 9.295599807 | O22: 7.532600999 | P22: 5.731933634 | Q22: 6.9248469 | R22: 10.14946138 | S22: 2.160159267 | T22: 1.951422861 | U22: 14.3723111 | V22: 8.463601734 | W22: 12.40648311 | X22: 6.968203505 | Y22: 6.847434492 | Z22: 7.450611778 | BA22: Improved water point at more than 30 minutes | BB22: Yes | BC22: N/A | BD22: N/A | BE22: N/A | BF22: N/A | BG22: N/A | BH22: N/A | BI22: N/A | BJ22: N/A | BK22: N/A | BL22: N/A | BM22: N/A | BN22: N/A | BO22: N/A | BP22: N/A | BQ22: N/A | BR22: N/A | BS22: N/A | BT22: N/A | BU22: N/A | BV22: N/A | BW22: N/A | BX22: N/A | BY22: N/A | BZ22: N/A
B23: No | C23: 90.70680257 | D23: 91.95331034 | E23: 93.89889474 | F23: 94.00169748 | G23: 90.98896804 | H23: 95.13569465 | I23: 95.92439573 | J23: 88.42850919 | K23: 90.25302339 | L23: 92.33576205 | M23: 90.34036041 | N23: 90.70440019 | O23: 92.467399 | P23: 94.26806637 | Q23: 93.0751531 | R23: 89.85053862 | S23: 97.83984073 | T23: 98.04857714 | U23: 85.6276889 | V23: 91.53639827 | W23: 87.59351689 | X23: 93.0317965 | Y23: 93.15256551 | Z23: 92.54938822 | BB23: No | BC23: N/A | BD23: N/A | BE23: N/A | BF23: N/A | BG23: N/A | BH23: N/A | BI23: N/A | BJ23: N/A | BK23: N/A | BL23: N/A | BM23: N/A | BN23: N/A | BO23: N/A | BP23: N/A | BQ23: N/A | BR23: N/A | BS23: N/A | BT23: N/A | BU23: N/A | BV23: N/A | BW23: N/A | BX23: N/A | BY23: N/A | BZ23: N/A
A24: Manually calculated ratios | B24: Improved wells
